Workbook

Sheet Control
A1: State Inventory Tool - Direct CO2 Emissions from Combustion of Fossil Fuels
A2: This module provides default activity data, emission factors, and other relevant metrics for 1990-2019. Emissions factors for 2020 onward are proxied to 2019 so users can still calculate emissions for subsequent inventory years.
A3: 1. Choose a State
A4: This is very important - it selects the correct default variables for your state.
A6: 2. Fill In the Variables that are used throughout the module for:
A7: Either Type in the value/percentage or Click the Default Box
A9: Combustion Efficiencies
A10: Fuel | B10: Default Efficiency | D10: Efficiency Used | F10: Use the Default? (Check for Yes)
A11: Coal | B11: 1
A12: Natural Gas | B12: 1
A13: Petroleum | B13: 1
A14: HGL | B14: 1
A16: Carbon Contents (lbs Carbon/million Btu)
A17: Fuel | B17: Default Carbon Content | D17: Carbon Content Used | F17: Use the Default? (Check for Yes)
A18: Asphalt and Road Oil | B18: 45.31195389
A19: Aviation Gasoline | B19: 41.56888669
A20: Distillate Fuel | B20: 44.5774164
A21: Jet Fuel, Kerosene | B21: variable by year
A22: Jet Fuel, Naphtha | B22: =B35 -> 43.51344284
A23: Kerosene | B23: 44.01326421
A24: HGL (non-industrial) | B24: variable by year
A25: HGL (industrial) | B25: variable by year
A26: Lubricants | B26: 44.53190305
A27: Motor Gasoline | B27: variable by year
A28: Residual Fuel | B28: 45.1506176
A29: Misc. Petro Products | B29: variable by year
A30: Feedstocks, Naphtha | B30: 40.89713257
A31: Feedstocks, Other Oils | B31: 44.4671854
A32: Pentanes Plus | B32: 40.2122688
A33: Petroleum Coke | B33: 61.39359661
A34: Still Gas | B34: 40.114063
A35: Special Naphthas | B35: 43.51344284
A36: Unfinished Oils | B36: variable by year
A37: Waxes | B37: 43.64211559
A38: Residential Coal | B38: variable by year
A39: Commercial Coal | B39: variable by year
A40: Industrial Coking Coal | B40: variable by year
A41: Industrial Other Coal | B41: variable by year
A42: Electric Power Coal | B42: variable by year
A43: Natural Gas | B43: 31.80249634
A44: Aviation Gasoline Blending Components | B44: 41.6011794
A45: Motor Gasoline Blending Components | B45: variable by year
A46: Crude Oil | B46: variable by year
A48: Storage Factors for the Non-Energy Use of Fossil Fuels (%)
A49: Fuel | B49: Default Storage Factor | D49: Storage Factor Used | F49: Use the Default? (Check for Yes)
A50: Asphalt and Road Oil | B50: 0.9956085223
A51: Distillate Fuel | B51: 0.5
A52: HGL | B52: variable by year
A53: Lubricants | B53: 0.0918
A54: Residual Fuel | B54: 0.5
A55: Feedstocks, Naphtha | B55: variable by year
A56: Feedstocks, Other Oils | B56: variable by year
A57: Misc. Petro Products | B57: 0
A58: Pentanes Plus | B58: variable by year
A59: Petroleum Coke | B59: 0.3
A60: Still Gas | B60: 0.6196553591
A61: Special Naphthas | B61: ='List Data'!F48 -> 0.6196553591
A62: Waxes | B62: 0.57825
A63: Industrial Coking Coal | B63: 0.1
A64: Natural Gas | B64: variable by year
A66: 3. Complete the Bulk Data Energy Consumption Worksheet
A69: 4. through 9. Complete Individual Sector Worksheets
A74: Energy Conversion Factors
A75: A British thermal unit (Btu) is the quantity of heat required to raise the temperature of one pound of water one degree Fahrenheit at or near 39.2 Fahrenheit.
A78: Btu | B78: British thermal unit | D78: 1 Btu
A79: MBtu | B79: Thousand Btu | D79: 1x103 Btu
A80: MMBtu | B80: Million Btu | D80: 1x106 Btu
A81: BBtu | B81: Billion Btu | D81: 1x109 Btu
A82: TBtu | B82: Trillion Btu | D82: 1x1012 Btu
A83: QBtu | B83: Quadrillion Btu | D83: 1x1015 Btu
A86: 10. Review the Summary Information
A93: 11. Export the results for use in the Synthesis Tool.

Sheet Dataframe (hidden)
A1: MMTCO2E | B1: Category | C1: 1990 | D1: 1991 | E1: 1992 | F1: 1993 | G1: 1994 | H1: 1995 | I1: 1996 | J1: 1997 | K1: 1998 | L1: 1999 | M1: 2000 | N1: 2001 | O1: 2002 | P1: 2003 | Q1: 2004 | R1: 2005 | S1: 2006 | T1: 2007 | U1: 2008 | V1: 2009 | W1: 2010 | X1: 2011 | Y1: 2012 | Z1: 2013 | AA1: 2014 | AB1: 2015 | AC1: 2016 | AD1: 2017 | AE1: 2018 | AF1: 2019 | AG1: 2020
A2: Residential | B2: Energy - CO2FFC - Residential | C2: ='Summary-MMTCO2E'!C6 ->  | D2: ='Summary-MMTCO2E'!D6 ->  | E2: ='Summary-MMTCO2E'!E6 ->  | F2: ='Summary-MMTCO2E'!F6 ->  | G2: ='Summary-MMTCO2E'!G6 ->  | H2: ='Summary-MMTCO2E'!H6 ->  | I2: ='Summary-MMTCO2E'!I6 ->  | J2: ='Summary-MMTCO2E'!J6 ->  | K2: ='Summary-MMTCO2E'!K6 ->  | L2: ='Summary-MMTCO2E'!L6 ->  | M2: ='Summary-MMTCO2E'!M6 ->  | N2: ='Summary-MMTCO2E'!N6 ->  | O2: ='Summary-MMTCO2E'!O6 ->  | P2: ='Summary-MMTCO2E'!P6 ->  | Q2: ='Summary-MMTCO2E'!Q6 ->  | R2: ='Summary-MMTCO2E'!R6 ->  | S2: ='Summary-MMTCO2E'!S6 ->  | T2: ='Summary-MMTCO2E'!T6 ->  | U2: ='Summary-MMTCO2E'!U6 ->  | V2: ='Summary-MMTCO2E'!V6 ->  | W2: ='Summary-MMTCO2E'!W6 ->  | X2: ='Summary-MMTCO2E'!X6 ->  | Y2: ='Summary-MMTCO2E'!Y6 ->  | Z2: ='Summary-MMTCO2E'!Z6 ->  | AA2: ='Summary-MMTCO2E'!AA6 ->  | AB2: ='Summary-MMTCO2E'!AB6 ->  | AC2: ='Summary-MMTCO2E'!AC6 ->  | AD2: ='Summary-MMTCO2E'!AD6 ->  | AE2: ='Summary-MMTCO2E'!AE6 ->  | AF2: ='Summary-MMTCO2E'!AF6 ->  | AG2: ='Summary-MMTCO2E'!AG6 -> 
A3: Coal | B3: Energy - CO2FFC - Residential - Coal | C3: ='Summary-MMTCO2E'!C7 ->  | D3: ='Summary-MMTCO2E'!D7 ->  | E3: ='Summary-MMTCO2E'!E7 ->  | F3: ='Summary-MMTCO2E'!F7 ->  | G3: ='Summary-MMTCO2E'!G7 ->  | H3: ='Summary-MMTCO2E'!H7 ->  | I3: ='Summary-MMTCO2E'!I7 ->  | J3: ='Summary-MMTCO2E'!J7 ->  | K3: ='Summary-MMTCO2E'!K7 ->  | L3: ='Summary-MMTCO2E'!L7 ->  | M3: ='Summary-MMTCO2E'!M7 ->  | N3: ='Summary-MMTCO2E'!N7 ->  | O3: ='Summary-MMTCO2E'!O7 ->  | P3: ='Summary-MMTCO2E'!P7 ->  | Q3: ='Summary-MMTCO2E'!Q7 ->  | R3: ='Summary-MMTCO2E'!R7 ->  | S3: ='Summary-MMTCO2E'!S7 ->  | T3: ='Summary-MMTCO2E'!T7 ->  | U3: ='Summary-MMTCO2E'!U7 ->  | V3: ='Summary-MMTCO2E'!V7 ->  | W3: ='Summary-MMTCO2E'!W7 ->  | X3: ='Summary-MMTCO2E'!X7 ->  | Y3: ='Summary-MMTCO2E'!Y7 ->  | Z3: ='Summary-MMTCO2E'!Z7 ->  | AA3: ='Summary-MMTCO2E'!AA7 ->  | AB3: ='Summary-MMTCO2E'!AB7 ->  | AC3: ='Summary-MMTCO2E'!AC7 ->  | AD3: ='Summary-MMTCO2E'!AD7 ->  | AE3: ='Summary-MMTCO2E'!AE7 ->  | AF3: ='Summary-MMTCO2E'!AF7 ->  | AG3: ='Summary-MMTCO2E'!AG7 -> 
A4: Petroleum | B4: Energy - CO2FFC - Residential - Petroleum | C4: ='Summary-MMTCO2E'!C8 ->  | D4: ='Summary-MMTCO2E'!D8 ->  | E4: ='Summary-MMTCO2E'!E8 ->  | F4: ='Summary-MMTCO2E'!F8 ->  | G4: ='Summary-MMTCO2E'!G8 ->  | H4: ='Summary-MMTCO2E'!H8 ->  | I4: ='Summary-MMTCO2E'!I8 ->  | J4: ='Summary-MMTCO2E'!J8 ->  | K4: ='Summary-MMTCO2E'!K8 ->  | L4: ='Summary-MMTCO2E'!L8 ->  | M4: ='Summary-MMTCO2E'!M8 ->  | N4: ='Summary-MMTCO2E'!N8 ->  | O4: ='Summary-MMTCO2E'!O8 ->  | P4: ='Summary-MMTCO2E'!P8 ->  | Q4: ='Summary-MMTCO2E'!Q8 ->  | R4: ='Summary-MMTCO2E'!R8 ->  | S4: ='Summary-MMTCO2E'!S8 ->  | T4: ='Summary-MMTCO2E'!T8 ->  | U4: ='Summary-MMTCO2E'!U8 ->  | V4: ='Summary-MMTCO2E'!V8 ->  | W4: ='Summary-MMTCO2E'!W8 ->  | X4: ='Summary-MMTCO2E'!X8 ->  | Y4: ='Summary-MMTCO2E'!Y8 ->  | Z4: ='Summary-MMTCO2E'!Z8 ->  | AA4: ='Summary-MMTCO2E'!AA8 ->  | AB4: ='Summary-MMTCO2E'!AB8 ->  | AC4: ='Summary-MMTCO2E'!AC8 ->  | AD4: ='Summary-MMTCO2E'!AD8 ->  | AE4: ='Summary-MMTCO2E'!AE8 ->  | AF4: ='Summary-MMTCO2E'!AF8 ->  | AG4: ='Summary-MMTCO2E'!AG8 -> 
A5: Natural Gas | B5: Energy - CO2FFC - Residential - Natural Gas | C5: ='Summary-MMTCO2E'!C9 ->  | D5: ='Summary-MMTCO2E'!D9 ->  | E5: ='Summary-MMTCO2E'!E9 ->  | F5: ='Summary-MMTCO2E'!F9 ->  | G5: ='Summary-MMTCO2E'!G9 ->  | H5: ='Summary-MMTCO2E'!H9 ->  | I5: ='Summary-MMTCO2E'!I9 ->  | J5: ='Summary-MMTCO2E'!J9 ->  | K5: ='Summary-MMTCO2E'!K9 ->  | L5: ='Summary-MMTCO2E'!L9 ->  | M5: ='Summary-MMTCO2E'!M9 ->  | N5: ='Summary-MMTCO2E'!N9 ->  | O5: ='Summary-MMTCO2E'!O9 ->  | P5: ='Summary-MMTCO2E'!P9 ->  | Q5: ='Summary-MMTCO2E'!Q9 ->  | R5: ='Summary-MMTCO2E'!R9 ->  | S5: ='Summary-MMTCO2E'!S9 ->  | T5: ='Summary-MMTCO2E'!T9 ->  | U5: ='Summary-MMTCO2E'!U9 ->  | V5: ='Summary-MMTCO2E'!V9 ->  | W5: ='Summary-MMTCO2E'!W9 ->  | X5: ='Summary-MMTCO2E'!X9 ->  | Y5: ='Summary-MMTCO2E'!Y9 ->  | Z5: ='Summary-MMTCO2E'!Z9 ->  | AA5: ='Summary-MMTCO2E'!AA9 ->  | AB5: ='Summary-MMTCO2E'!AB9 ->  | AC5: ='Summary-MMTCO2E'!AC9 ->  | AD5: ='Summary-MMTCO2E'!AD9 ->  | AE5: ='Summary-MMTCO2E'!AE9 ->  | AF5: ='Summary-MMTCO2E'!AF9 ->  | AG5: ='Summary-MMTCO2E'!AG9 -> 
A6: Other | B6: Energy - CO2FFC - Residential - Other | C6: ='Summary-MMTCO2E'!C10 -> 0 | D6: ='Summary-MMTCO2E'!D10 -> 0 | E6: ='Summary-MMTCO2E'!E10 -> 0 | F6: ='Summary-MMTCO2E'!F10 -> 0 | G6: ='Summary-MMTCO2E'!G10 -> 0 | H6: ='Summary-MMTCO2E'!H10 -> 0 | I6: ='Summary-MMTCO2E'!I10 -> 0 | J6: ='Summary-MMTCO2E'!J10 -> 0 | K6: ='Summary-MMTCO2E'!K10 -> 0 | L6: ='Summary-MMTCO2E'!L10 -> 0 | M6: ='Summary-MMTCO2E'!M10 -> 0 | N6: ='Summary-MMTCO2E'!N10 -> 0 | O6: ='Summary-MMTCO2E'!O10 -> 0 | P6: ='Summary-MMTCO2E'!P10 -> 0 | Q6: ='Summary-MMTCO2E'!Q10 -> 0 | R6: ='Summary-MMTCO2E'!R10 -> 0 | S6: ='Summary-MMTCO2E'!S10 -> 0 | T6: ='Summary-MMTCO2E'!T10 -> 0 | U6: ='Summary-MMTCO2E'!U10 -> 0 | V6: ='Summary-MMTCO2E'!V10 -> 0 | W6: ='Summary-MMTCO2E'!W10 -> 0 | X6: ='Summary-MMTCO2E'!X10 -> 0 | Y6: ='Summary-MMTCO2E'!Y10 -> 0 | Z6: ='Summary-MMTCO2E'!Z10 -> 0 | AA6: ='Summary-MMTCO2E'!AA10 -> 0 | AB6: ='Summary-MMTCO2E'!AB10 -> 0 | AC6: ='Summary-MMTCO2E'!AC10 -> 0 | AD6: ='Summary-MMTCO2E'!AD10 -> 0 | AE6: ='Summary-MMTCO2E'!AE10 -> 0 | AF6: ='Summary-MMTCO2E'!AF10 -> 0 | AG6: ='Summary-MMTCO2E'!AG10 -> 0
A7: Commercial | B7: Energy - CO2FFC - Commercial | C7: ='Summary-MMTCO2E'!C11 ->  | D7: ='Summary-MMTCO2E'!D11 ->  | E7: ='Summary-MMTCO2E'!E11 ->  | F7: ='Summary-MMTCO2E'!F11 ->  | G7: ='Summary-MMTCO2E'!G11 ->  | H7: ='Summary-MMTCO2E'!H11 ->  | I7: ='Summary-MMTCO2E'!I11 ->  | J7: ='Summary-MMTCO2E'!J11 ->  | K7: ='Summary-MMTCO2E'!K11 ->  | L7: ='Summary-MMTCO2E'!L11 ->  | M7: ='Summary-MMTCO2E'!M11 ->  | N7: ='Summary-MMTCO2E'!N11 ->  | O7: ='Summary-MMTCO2E'!O11 ->  | P7: ='Summary-MMTCO2E'!P11 ->  | Q7: ='Summary-MMTCO2E'!Q11 ->  | R7: ='Summary-MMTCO2E'!R11 ->  | S7: ='Summary-MMTCO2E'!S11 ->  | T7: ='Summary-MMTCO2E'!T11 ->  | U7: ='Summary-MMTCO2E'!U11 ->  | V7: ='Summary-MMTCO2E'!V11 ->  | W7: ='Summary-MMTCO2E'!W11 ->  | X7: ='Summary-MMTCO2E'!X11 ->  | Y7: ='Summary-MMTCO2E'!Y11 ->  | Z7: ='Summary-MMTCO2E'!Z11 ->  | AA7: ='Summary-MMTCO2E'!AA11 ->  | AB7: ='Summary-MMTCO2E'!AB11 ->  | AC7: ='Summary-MMTCO2E'!AC11 ->  | AD7: ='Summary-MMTCO2E'!AD11 ->  | AE7: ='Summary-MMTCO2E'!AE11 ->  | AF7: ='Summary-MMTCO2E'!AF11 ->  | AG7: ='Summary-MMTCO2E'!AG11 -> 
A8: Coal | B8: Energy - CO2FFC - Commercial - Coal | C8: ='Summary-MMTCO2E'!C12 ->  | D8: ='Summary-MMTCO2E'!D12 ->  | E8: ='Summary-MMTCO2E'!E12 ->  | F8: ='Summary-MMTCO2E'!F12 ->  | G8: ='Summary-MMTCO2E'!G12 ->  | H8: ='Summary-MMTCO2E'!H12 ->  | I8: ='Summary-MMTCO2E'!I12 ->  | J8: ='Summary-MMTCO2E'!J12 ->  | K8: ='Summary-MMTCO2E'!K12 ->  | L8: ='Summary-MMTCO2E'!L12 ->  | M8: ='Summary-MMTCO2E'!M12 ->  | N8: ='Summary-MMTCO2E'!N12 ->  | O8: ='Summary-MMTCO2E'!O12 ->  | P8: ='Summary-MMTCO2E'!P12 ->  | Q8: ='Summary-MMTCO2E'!Q12 ->  | R8: ='Summary-MMTCO2E'!R12 ->  | S8: ='Summary-MMTCO2E'!S12 ->  | T8: ='Summary-MMTCO2E'!T12 ->  | U8: ='Summary-MMTCO2E'!U12 ->  | V8: ='Summary-MMTCO2E'!V12 ->  | W8: ='Summary-MMTCO2E'!W12 ->  | X8: ='Summary-MMTCO2E'!X12 ->  | Y8: ='Summary-MMTCO2E'!Y12 ->  | Z8: ='Summary-MMTCO2E'!Z12 ->  | AA8: ='Summary-MMTCO2E'!AA12 ->  | AB8: ='Summary-MMTCO2E'!AB12 ->  | AC8: ='Summary-MMTCO2E'!AC12 ->  | AD8: ='Summary-MMTCO2E'!AD12 ->  | AE8: ='Summary-MMTCO2E'!AE12 ->  | AF8: ='Summary-MMTCO2E'!AF12 ->  | AG8: ='Summary-MMTCO2E'!AG12 -> 
A9: Petroleum | B9: Energy - CO2FFC - Commercial - Petroleum | C9: ='Summary-MMTCO2E'!C13 ->  | D9: ='Summary-MMTCO2E'!D13 ->  | E9: ='Summary-MMTCO2E'!E13 ->  | F9: ='Summary-MMTCO2E'!F13 ->  | G9: ='Summary-MMTCO2E'!G13 ->  | H9: ='Summary-MMTCO2E'!H13 ->  | I9: ='Summary-MMTCO2E'!I13 ->  | J9: ='Summary-MMTCO2E'!J13 ->  | K9: ='Summary-MMTCO2E'!K13 ->  | L9: ='Summary-MMTCO2E'!L13 ->  | M9: ='Summary-MMTCO2E'!M13 ->  | N9: ='Summary-MMTCO2E'!N13 ->  | O9: ='Summary-MMTCO2E'!O13 ->  | P9: ='Summary-MMTCO2E'!P13 ->  | Q9: ='Summary-MMTCO2E'!Q13 ->  | R9: ='Summary-MMTCO2E'!R13 ->  | S9: ='Summary-MMTCO2E'!S13 ->  | T9: ='Summary-MMTCO2E'!T13 ->  | U9: ='Summary-MMTCO2E'!U13 ->  | V9: ='Summary-MMTCO2E'!V13 ->  | W9: ='Summary-MMTCO2E'!W13 ->  | X9: ='Summary-MMTCO2E'!X13 ->  | Y9: ='Summary-MMTCO2E'!Y13 ->  | Z9: ='Summary-MMTCO2E'!Z13 ->  | AA9: ='Summary-MMTCO2E'!AA13 ->  | AB9: ='Summary-MMTCO2E'!AB13 ->  | AC9: ='Summary-MMTCO2E'!AC13 ->  | AD9: ='Summary-MMTCO2E'!AD13 ->  | AE9: ='Summary-MMTCO2E'!AE13 ->  | AF9: ='Summary-MMTCO2E'!AF13 ->  | AG9: ='Summary-MMTCO2E'!AG13 -> 
A10: Natural Gas | B10: Energy - CO2FFC - Commercial - Natural Gas | C10: ='Summary-MMTCO2E'!C14 ->  | D10: ='Summary-MMTCO2E'!D14 ->  | E10: ='Summary-MMTCO2E'!E14 ->  | F10: ='Summary-MMTCO2E'!F14 ->  | G10: ='Summary-MMTCO2E'!G14 ->  | H10: ='Summary-MMTCO2E'!H14 ->  | I10: ='Summary-MMTCO2E'!I14 ->  | J10: ='Summary-MMTCO2E'!J14 ->  | K10: ='Summary-MMTCO2E'!K14 ->  | L10: ='Summary-MMTCO2E'!L14 ->  | M10: ='Summary-MMTCO2E'!M14 ->  | N10: ='Summary-MMTCO2E'!N14 ->  | O10: ='Summary-MMTCO2E'!O14 ->  | P10: ='Summary-MMTCO2E'!P14 ->  | Q10: ='Summary-MMTCO2E'!Q14 ->  | R10: ='Summary-MMTCO2E'!R14 ->  | S10: ='Summary-MMTCO2E'!S14 ->  | T10: ='Summary-MMTCO2E'!T14 ->  | U10: ='Summary-MMTCO2E'!U14 ->  | V10: ='Summary-MMTCO2E'!V14 ->  | W10: ='Summary-MMTCO2E'!W14 ->  | X10: ='Summary-MMTCO2E'!X14 ->  | Y10: ='Summary-MMTCO2E'!Y14 ->  | Z10: ='Summary-MMTCO2E'!Z14 ->  | AA10: ='Summary-MMTCO2E'!AA14 ->  | AB10: ='Summary-MMTCO2E'!AB14 ->  | AC10: ='Summary-MMTCO2E'!AC14 ->  | AD10: ='Summary-MMTCO2E'!AD14 ->  | AE10: ='Summary-MMTCO2E'!AE14 ->  | AF10: ='Summary-MMTCO2E'!AF14 ->  | AG10: ='Summary-MMTCO2E'!AG14 -> 
A11: Other | B11: Energy - CO2FFC - Commercial - Other | C11: ='Summary-MMTCO2E'!C15 -> 0 | D11: ='Summary-MMTCO2E'!D15 -> 0 | E11: ='Summary-MMTCO2E'!E15 -> 0 | F11: ='Summary-MMTCO2E'!F15 -> 0 | G11: ='Summary-MMTCO2E'!G15 -> 0 | H11: ='Summary-MMTCO2E'!H15 -> 0 | I11: ='Summary-MMTCO2E'!I15 -> 0 | J11: ='Summary-MMTCO2E'!J15 -> 0 | K11: ='Summary-MMTCO2E'!K15 -> 0 | L11: ='Summary-MMTCO2E'!L15 -> 0 | M11: ='Summary-MMTCO2E'!M15 -> 0 | N11: ='Summary-MMTCO2E'!N15 -> 0 | O11: ='Summary-MMTCO2E'!O15 -> 0 | P11: ='Summary-MMTCO2E'!P15 -> 0 | Q11: ='Summary-MMTCO2E'!Q15 -> 0 | R11: ='Summary-MMTCO2E'!R15 -> 0 | S11: ='Summary-MMTCO2E'!S15 -> 0 | T11: ='Summary-MMTCO2E'!T15 -> 0 | U11: ='Summary-MMTCO2E'!U15 -> 0 | V11: ='Summary-MMTCO2E'!V15 -> 0 | W11: ='Summary-MMTCO2E'!W15 -> 0 | X11: ='Summary-MMTCO2E'!X15 -> 0 | Y11: ='Summary-MMTCO2E'!Y15 -> 0 | Z11: ='Summary-MMTCO2E'!Z15 -> 0 | AA11: ='Summary-MMTCO2E'!AA15 -> 0 | AB11: ='Summary-MMTCO2E'!AB15 -> 0 | AC11: ='Summary-MMTCO2E'!AC15 -> 0 | AD11: ='Summary-MMTCO2E'!AD15 -> 0 | AE11: ='Summary-MMTCO2E'!AE15 -> 0 | AF11: ='Summary-MMTCO2E'!AF15 -> 0 | AG11: ='Summary-MMTCO2E'!AG15 -> 0
A12: Industrial | B12: Energy - CO2FFC - Industrial | C12: ='Summary-MMTCO2E'!C16 ->  | D12: ='Summary-MMTCO2E'!D16 ->  | E12: ='Summary-MMTCO2E'!E16 ->  | F12: ='Summary-MMTCO2E'!F16 ->  | G12: ='Summary-MMTCO2E'!G16 ->  | H12: ='Summary-MMTCO2E'!H16 ->  | I12: ='Summary-MMTCO2E'!I16 ->  | J12: ='Summary-MMTCO2E'!J16 ->  | K12: ='Summary-MMTCO2E'!K16 ->  | L12: ='Summary-MMTCO2E'!L16 ->  | M12: ='Summary-MMTCO2E'!M16 ->  | N12: ='Summary-MMTCO2E'!N16 ->  | O12: ='Summary-MMTCO2E'!O16 ->  | P12: ='Summary-MMTCO2E'!P16 ->  | Q12: ='Summary-MMTCO2E'!Q16 ->  | R12: ='Summary-MMTCO2E'!R16 ->  | S12: ='Summary-MMTCO2E'!S16 ->  | T12: ='Summary-MMTCO2E'!T16 ->  | U12: ='Summary-MMTCO2E'!U16 ->  | V12: ='Summary-MMTCO2E'!V16 ->  | W12: ='Summary-MMTCO2E'!W16 ->  | X12: ='Summary-MMTCO2E'!X16 ->  | Y12: ='Summary-MMTCO2E'!Y16 ->  | Z12: ='Summary-MMTCO2E'!Z16 ->  | AA12: ='Summary-MMTCO2E'!AA16 ->  | AB12: ='Summary-MMTCO2E'!AB16 ->  | AC12: ='Summary-MMTCO2E'!AC16 ->  | AD12: ='Summary-MMTCO2E'!AD16 ->  | AE12: ='Summary-MMTCO2E'!AE16 ->  | AF12: ='Summary-MMTCO2E'!AF16 ->  | AG12: ='Summary-MMTCO2E'!AG16 -> 
A13: Coal | B13: Energy - CO2FFC - Industrial - Coal | C13: ='Summary-MMTCO2E'!C17 ->  | D13: ='Summary-MMTCO2E'!D17 ->  | E13: ='Summary-MMTCO2E'!E17 ->  | F13: ='Summary-MMTCO2E'!F17 ->  | G13: ='Summary-MMTCO2E'!G17 ->  | H13: ='Summary-MMTCO2E'!H17 ->  | I13: ='Summary-MMTCO2E'!I17 ->  | J13: ='Summary-MMTCO2E'!J17 ->  | K13: ='Summary-MMTCO2E'!K17 ->  | L13: ='Summary-MMTCO2E'!L17 ->  | M13: ='Summary-MMTCO2E'!M17 ->  | N13: ='Summary-MMTCO2E'!N17 ->  | O13: ='Summary-MMTCO2E'!O17 ->  | P13: ='Summary-MMTCO2E'!P17 ->  | Q13: ='Summary-MMTCO2E'!Q17 ->  | R13: ='Summary-MMTCO2E'!R17 ->  | S13: ='Summary-MMTCO2E'!S17 ->  | T13: ='Summary-MMTCO2E'!T17 ->  | U13: ='Summary-MMTCO2E'!U17 ->  | V13: ='Summary-MMTCO2E'!V17 ->  | W13: ='Summary-MMTCO2E'!W17 ->  | X13: ='Summary-MMTCO2E'!X17 ->  | Y13: ='Summary-MMTCO2E'!Y17 ->  | Z13: ='Summary-MMTCO2E'!Z17 ->  | AA13: ='Summary-MMTCO2E'!AA17 ->  | AB13: ='Summary-MMTCO2E'!AB17 ->  | AC13: ='Summary-MMTCO2E'!AC17 ->  | AD13: ='Summary-MMTCO2E'!AD17 ->  | AE13: ='Summary-MMTCO2E'!AE17 ->  | AF13: ='Summary-MMTCO2E'!AF17 ->  | AG13: ='Summary-MMTCO2E'!AG17 -> 
A14: Petroleum | B14: Energy - CO2FFC - Industrial - Petroleum | C14: ='Summary-MMTCO2E'!C18 ->  | D14: ='Summary-MMTCO2E'!D18 ->  | E14: ='Summary-MMTCO2E'!E18 ->  | F14: ='Summary-MMTCO2E'!F18 ->  | G14: ='Summary-MMTCO2E'!G18 ->  | H14: ='Summary-MMTCO2E'!H18 ->  | I14: ='Summary-MMTCO2E'!I18 ->  | J14: ='Summary-MMTCO2E'!J18 ->  | K14: ='Summary-MMTCO2E'!K18 ->  | L14: ='Summary-MMTCO2E'!L18 ->  | M14: ='Summary-MMTCO2E'!M18 ->  | N14: ='Summary-MMTCO2E'!N18 ->  | O14: ='Summary-MMTCO2E'!O18 ->  | P14: ='Summary-MMTCO2E'!P18 ->  | Q14: ='Summary-MMTCO2E'!Q18 ->  | R14: ='Summary-MMTCO2E'!R18 ->  | S14: ='Summary-MMTCO2E'!S18 ->  | T14: ='Summary-MMTCO2E'!T18 ->  | U14: ='Summary-MMTCO2E'!U18 ->  | V14: ='Summary-MMTCO2E'!V18 ->  | W14: ='Summary-MMTCO2E'!W18 ->  | X14: ='Summary-MMTCO2E'!X18 ->  | Y14: ='Summary-MMTCO2E'!Y18 ->  | Z14: ='Summary-MMTCO2E'!Z18 ->  | AA14: ='Summary-MMTCO2E'!AA18 ->  | AB14: ='Summary-MMTCO2E'!AB18 ->  | AC14: ='Summary-MMTCO2E'!AC18 ->  | AD14: ='Summary-MMTCO2E'!AD18 ->  | AE14: ='Summary-MMTCO2E'!AE18 ->  | AF14: ='Summary-MMTCO2E'!AF18 ->  | AG14: ='Summary-MMTCO2E'!AG18 -> 
A15: Natural Gas | B15: Energy - CO2FFC - Industrial - Natural Gas | C15: ='Summary-MMTCO2E'!C19 ->  | D15: ='Summary-MMTCO2E'!D19 ->  | E15: ='Summary-MMTCO2E'!E19 ->  | F15: ='Summary-MMTCO2E'!F19 ->  | G15: ='Summary-MMTCO2E'!G19 ->  | H15: ='Summary-MMTCO2E'!H19 ->  | I15: ='Summary-MMTCO2E'!I19 ->  | J15: ='Summary-MMTCO2E'!J19 ->  | K15: ='Summary-MMTCO2E'!K19 ->  | L15: ='Summary-MMTCO2E'!L19 ->  | M15: ='Summary-MMTCO2E'!M19 ->  | N15: ='Summary-MMTCO2E'!N19 ->  | O15: ='Summary-MMTCO2E'!O19 ->  | P15: ='Summary-MMTCO2E'!P19 ->  | Q15: ='Summary-MMTCO2E'!Q19 ->  | R15: ='Summary-MMTCO2E'!R19 ->  | S15: ='Summary-MMTCO2E'!S19 ->  | T15: ='Summary-MMTCO2E'!T19 ->  | U15: ='Summary-MMTCO2E'!U19 ->  | V15: ='Summary-MMTCO2E'!V19 ->  | W15: ='Summary-MMTCO2E'!W19 ->  | X15: ='Summary-MMTCO2E'!X19 ->  | Y15: ='Summary-MMTCO2E'!Y19 ->  | Z15: ='Summary-MMTCO2E'!Z19 ->  | AA15: ='Summary-MMTCO2E'!AA19 ->  | AB15: ='Summary-MMTCO2E'!AB19 ->  | AC15: ='Summary-MMTCO2E'!AC19 ->  | AD15: ='Summary-MMTCO2E'!AD19 ->  | AE15: ='Summary-MMTCO2E'!AE19 ->  | AF15: ='Summary-MMTCO2E'!AF19 ->  | AG15: ='Summary-MMTCO2E'!AG19 -> 
A16: Other | B16: Energy - CO2FFC - Industrial - Other | C16: ='Summary-MMTCO2E'!C20 -> 0 | D16: ='Summary-MMTCO2E'!D20 -> 0 | E16: ='Summary-MMTCO2E'!E20 -> 0 | F16: ='Summary-MMTCO2E'!F20 -> 0 | G16: ='Summary-MMTCO2E'!G20 -> 0 | H16: ='Summary-MMTCO2E'!H20 -> 0 | I16: ='Summary-MMTCO2E'!I20 -> 0 | J16: ='Summary-MMTCO2E'!J20 -> 0 | K16: ='Summary-MMTCO2E'!K20 -> 0 | L16: ='Summary-MMTCO2E'!L20 -> 0 | M16: ='Summary-MMTCO2E'!M20 -> 0 | N16: ='Summary-MMTCO2E'!N20 -> 0 | O16: ='Summary-MMTCO2E'!O20 -> 0 | P16: ='Summary-MMTCO2E'!P20 -> 0 | Q16: ='Summary-MMTCO2E'!Q20 -> 0 | R16: ='Summary-MMTCO2E'!R20 -> 0 | S16: ='Summary-MMTCO2E'!S20 -> 0 | T16: ='Summary-MMTCO2E'!T20 -> 0 | U16: ='Summary-MMTCO2E'!U20 -> 0 | V16: ='Summary-MMTCO2E'!V20 -> 0 | W16: ='Summary-MMTCO2E'!W20 -> 0 | X16: ='Summary-MMTCO2E'!X20 -> 0 | Y16: ='Summary-MMTCO2E'!Y20 -> 0 | Z16: ='Summary-MMTCO2E'!Z20 -> 0 | AA16: ='Summary-MMTCO2E'!AA20 -> 0 | AB16: ='Summary-MMTCO2E'!AB20 -> 0 | AC16: ='Summary-MMTCO2E'!AC20 -> 0 | AD16: ='Summary-MMTCO2E'!AD20 -> 0 | AE16: ='Summary-MMTCO2E'!AE20 -> 0 | AF16: ='Summary-MMTCO2E'!AF20 -> 0 | AG16: ='Summary-MMTCO2E'!AG20 -> 0
A17: Transportation | B17: Energy - CO2FFC - Transportation | C17: ='Summary-MMTCO2E'!C21 ->  | D17: ='Summary-MMTCO2E'!D21 ->  | E17: ='Summary-MMTCO2E'!E21 ->  | F17: ='Summary-MMTCO2E'!F21 ->  | G17: ='Summary-MMTCO2E'!G21 ->  | H17: ='Summary-MMTCO2E'!H21 ->  | I17: ='Summary-MMTCO2E'!I21 ->  | J17: ='Summary-MMTCO2E'!J21 ->  | K17: ='Summary-MMTCO2E'!K21 ->  | L17: ='Summary-MMTCO2E'!L21 ->  | M17: ='Summary-MMTCO2E'!M21 ->  | N17: ='Summary-MMTCO2E'!N21 ->  | O17: ='Summary-MMTCO2E'!O21 ->  | P17: ='Summary-MMTCO2E'!P21 ->  | Q17: ='Summary-MMTCO2E'!Q21 ->  | R17: ='Summary-MMTCO2E'!R21 ->  | S17: ='Summary-MMTCO2E'!S21 ->  | T17: ='Summary-MMTCO2E'!T21 ->  | U17: ='Summary-MMTCO2E'!U21 ->  | V17: ='Summary-MMTCO2E'!V21 ->  | W17: ='Summary-MMTCO2E'!W21 ->  | X17: ='Summary-MMTCO2E'!X21 ->  | Y17: ='Summary-MMTCO2E'!Y21 ->  | Z17: ='Summary-MMTCO2E'!Z21 ->  | AA17: ='Summary-MMTCO2E'!AA21 ->  | AB17: ='Summary-MMTCO2E'!AB21 ->  | AC17: ='Summary-MMTCO2E'!AC21 ->  | AD17: ='Summary-MMTCO2E'!AD21 ->  | AE17: ='Summary-MMTCO2E'!AE21 ->  | AF17: ='Summary-MMTCO2E'!AF21 ->  | AG17: ='Summary-MMTCO2E'!AG21 -> 
A18: Coal | B18: Energy - CO2FFC - Transportation - Coal | C18: ='Summary-MMTCO2E'!C22 -> 0 | D18: ='Summary-MMTCO2E'!D22 -> 0 | E18: ='Summary-MMTCO2E'!E22 -> 0 | F18: ='Summary-MMTCO2E'!F22 -> 0 | G18: ='Summary-MMTCO2E'!G22 -> 0 | H18: ='Summary-MMTCO2E'!H22 -> 0 | I18: ='Summary-MMTCO2E'!I22 -> 0 | J18: ='Summary-MMTCO2E'!J22 -> 0 | K18: ='Summary-MMTCO2E'!K22 -> 0 | L18: ='Summary-MMTCO2E'!L22 -> 0 | M18: ='Summary-MMTCO2E'!M22 -> 0 | N18: ='Summary-MMTCO2E'!N22 -> 0 | O18: ='Summary-MMTCO2E'!O22 -> 0 | P18: ='Summary-MMTCO2E'!P22 -> 0 | Q18: ='Summary-MMTCO2E'!Q22 -> 0 | R18: ='Summary-MMTCO2E'!R22 -> 0 | S18: ='Summary-MMTCO2E'!S22 -> 0 | T18: ='Summary-MMTCO2E'!T22 -> 0 | U18: ='Summary-MMTCO2E'!U22 -> 0 | V18: ='Summary-MMTCO2E'!V22 -> 0 | W18: ='Summary-MMTCO2E'!W22 -> 0 | X18: ='Summary-MMTCO2E'!X22 -> 0 | Y18: ='Summary-MMTCO2E'!Y22 -> 0 | Z18: ='Summary-MMTCO2E'!Z22 -> 0 | AA18: ='Summary-MMTCO2E'!AA22 -> 0 | AB18: ='Summary-MMTCO2E'!AB22 -> 0 | AC18: ='Summary-MMTCO2E'!AC22 -> 0 | AD18: ='Summary-MMTCO2E'!AD22 -> 0 | AE18: ='Summary-MMTCO2E'!AE22 -> 0 | AF18: ='Summary-MMTCO2E'!AF22 -> 0 | AG18: ='Summary-MMTCO2E'!AG22 -> 0
A19: Petroleum | B19: Energy - CO2FFC - Transportation - Petroleum | C19: ='Summary-MMTCO2E'!C23 ->  | D19: ='Summary-MMTCO2E'!D23 ->  | E19: ='Summary-MMTCO2E'!E23 ->  | F19: ='Summary-MMTCO2E'!F23 ->  | G19: ='Summary-MMTCO2E'!G23 ->  | H19: ='Summary-MMTCO2E'!H23 ->  | I19: ='Summary-MMTCO2E'!I23 ->  | J19: ='Summary-MMTCO2E'!J23 ->  | K19: ='Summary-MMTCO2E'!K23 ->  | L19: ='Summary-MMTCO2E'!L23 ->  | M19: ='Summary-MMTCO2E'!M23 ->  | N19: ='Summary-MMTCO2E'!N23 ->  | O19: ='Summary-MMTCO2E'!O23 ->  | P19: ='Summary-MMTCO2E'!P23 ->  | Q19: ='Summary-MMTCO2E'!Q23 ->  | R19: ='Summary-MMTCO2E'!R23 ->  | S19: ='Summary-MMTCO2E'!S23 ->  | T19: ='Summary-MMTCO2E'!T23 ->  | U19: ='Summary-MMTCO2E'!U23 ->  | V19: ='Summary-MMTCO2E'!V23 ->  | W19: ='Summary-MMTCO2E'!W23 ->  | X19: ='Summary-MMTCO2E'!X23 ->  | Y19: ='Summary-MMTCO2E'!Y23 ->  | Z19: ='Summary-MMTCO2E'!Z23 ->  | AA19: ='Summary-MMTCO2E'!AA23 ->  | AB19: ='Summary-MMTCO2E'!AB23 ->  | AC19: ='Summary-MMTCO2E'!AC23 ->  | AD19: ='Summary-MMTCO2E'!AD23 ->  | AE19: ='Summary-MMTCO2E'!AE23 ->  | AF19: ='Summary-MMTCO2E'!AF23 ->  | AG19: ='Summary-MMTCO2E'!AG23 -> 
A20: Natural Gas | B20: Energy - CO2FFC - Transportation - Natural Gas | C20: ='Summary-MMTCO2E'!C24 ->  | D20: ='Summary-MMTCO2E'!D24 ->  | E20: ='Summary-MMTCO2E'!E24 ->  | F20: ='Summary-MMTCO2E'!F24 ->  | G20: ='Summary-MMTCO2E'!G24 ->  | H20: ='Summary-MMTCO2E'!H24 ->  | I20: ='Summary-MMTCO2E'!I24 ->  | J20: ='Summary-MMTCO2E'!J24 ->  | K20: ='Summary-MMTCO2E'!K24 ->  | L20: ='Summary-MMTCO2E'!L24 ->  | M20: ='Summary-MMTCO2E'!M24 ->  | N20: ='Summary-MMTCO2E'!N24 ->  | O20: ='Summary-MMTCO2E'!O24 ->  | P20: ='Summary-MMTCO2E'!P24 ->  | Q20: ='Summary-MMTCO2E'!Q24 ->  | R20: ='Summary-MMTCO2E'!R24 ->  | S20: ='Summary-MMTCO2E'!S24 ->  | T20: ='Summary-MMTCO2E'!T24 ->  | U20: ='Summary-MMTCO2E'!U24 ->  | V20: ='Summary-MMTCO2E'!V24 ->  | W20: ='Summary-MMTCO2E'!W24 ->  | X20: ='Summary-MMTCO2E'!X24 ->  | Y20: ='Summary-MMTCO2E'!Y24 ->  | Z20: ='Summary-MMTCO2E'!Z24 ->  | AA20: ='Summary-MMTCO2E'!AA24 ->  | AB20: ='Summary-MMTCO2E'!AB24 ->  | AC20: ='Summary-MMTCO2E'!AC24 ->  | AD20: ='Summary-MMTCO2E'!AD24 ->  | AE20: ='Summary-MMTCO2E'!AE24 ->  | AF20: ='Summary-MMTCO2E'!AF24 ->  | AG20: ='Summary-MMTCO2E'!AG24 -> 
A21: Other | B21: Energy - CO2FFC - Transportation - Other | C21: ='Summary-MMTCO2E'!C25 -> 0 | D21: ='Summary-MMTCO2E'!D25 -> 0 | E21: ='Summary-MMTCO2E'!E25 -> 0 | F21: ='Summary-MMTCO2E'!F25 -> 0 | G21: ='Summary-MMTCO2E'!G25 -> 0 | H21: ='Summary-MMTCO2E'!H25 -> 0 | I21: ='Summary-MMTCO2E'!I25 -> 0 | J21: ='Summary-MMTCO2E'!J25 -> 0 | K21: ='Summary-MMTCO2E'!K25 -> 0 | L21: ='Summary-MMTCO2E'!L25 -> 0 | M21: ='Summary-MMTCO2E'!M25 -> 0 | N21: ='Summary-MMTCO2E'!N25 -> 0 | O21: ='Summary-MMTCO2E'!O25 -> 0 | P21: ='Summary-MMTCO2E'!P25 -> 0 | Q21: ='Summary-MMTCO2E'!Q25 -> 0 | R21: ='Summary-MMTCO2E'!R25 -> 0 | S21: ='Summary-MMTCO2E'!S25 -> 0 | T21: ='Summary-MMTCO2E'!T25 -> 0 | U21: ='Summary-MMTCO2E'!U25 -> 0 | V21: ='Summary-MMTCO2E'!V25 -> 0 | W21: ='Summary-MMTCO2E'!W25 -> 0 | X21: ='Summary-MMTCO2E'!X25 -> 0 | Y21: ='Summary-MMTCO2E'!Y25 -> 0 | Z21: ='Summary-MMTCO2E'!Z25 -> 0 | AA21: ='Summary-MMTCO2E'!AA25 -> 0 | AB21: ='Summary-MMTCO2E'!AB25 -> 0 | AC21: ='Summary-MMTCO2E'!AC25 -> 0 | AD21: ='Summary-MMTCO2E'!AD25 -> 0 | AE21: ='Summary-MMTCO2E'!AE25 -> 0 | AF21: ='Summary-MMTCO2E'!AF25 -> 0 | AG21: ='Summary-MMTCO2E'!AG25 -> 0
A22: Electric Power | B22: Energy - CO2FFC - Electric Power | C22: ='Summary-MMTCO2E'!C26 ->  | D22: ='Summary-MMTCO2E'!D26 ->  | E22: ='Summary-MMTCO2E'!E26 ->  | F22: ='Summary-MMTCO2E'!F26 ->  | G22: ='Summary-MMTCO2E'!G26 ->  | H22: ='Summary-MMTCO2E'!H26 ->  | I22: ='Summary-MMTCO2E'!I26 ->  | J22: ='Summary-MMTCO2E'!J26 ->  | K22: ='Summary-MMTCO2E'!K26 ->  | L22: ='Summary-MMTCO2E'!L26 ->  | M22: ='Summary-MMTCO2E'!M26 ->  | N22: ='Summary-MMTCO2E'!N26 ->  | O22: ='Summary-MMTCO2E'!O26 ->  | P22: ='Summary-MMTCO2E'!P26 ->  | Q22: ='Summary-MMTCO2E'!Q26 ->  | R22: ='Summary-MMTCO2E'!R26 ->  | S22: ='Summary-MMTCO2E'!S26 ->  | T22: ='Summary-MMTCO2E'!T26 ->  | U22: ='Summary-MMTCO2E'!U26 ->  | V22: ='Summary-MMTCO2E'!V26 ->  | W22: ='Summary-MMTCO2E'!W26 ->  | X22: ='Summary-MMTCO2E'!X26 ->  | Y22: ='Summary-MMTCO2E'!Y26 ->  | Z22: ='Summary-MMTCO2E'!Z26 ->  | AA22: ='Summary-MMTCO2E'!AA26 ->  | AB22: ='Summary-MMTCO2E'!AB26 ->  | AC22: ='Summary-MMTCO2E'!AC26 ->  | AD22: ='Summary-MMTCO2E'!AD26 ->  | AE22: ='Summary-MMTCO2E'!AE26 ->  | AF22: ='Summary-MMTCO2E'!AF26 ->  | AG22: ='Summary-MMTCO2E'!AG26 -> 
A23: Coal | B23: Energy - CO2FFC - Electric Power - Coal | C23: ='Summary-MMTCO2E'!C27 ->  | D23: ='Summary-MMTCO2E'!D27 ->  | E23: ='Summary-MMTCO2E'!E27 ->  | F23: ='Summary-MMTCO2E'!F27 ->  | G23: ='Summary-MMTCO2E'!G27 ->  | H23: ='Summary-MMTCO2E'!H27 ->  | I23: ='Summary-MMTCO2E'!I27 ->  | J23: ='Summary-MMTCO2E'!J27 ->  | K23: ='Summary-MMTCO2E'!K27 ->  | L23: ='Summary-MMTCO2E'!L27 ->  | M23: ='Summary-MMTCO2E'!M27 ->  | N23: ='Summary-MMTCO2E'!N27 ->  | O23: ='Summary-MMTCO2E'!O27 ->  | P23: ='Summary-MMTCO2E'!P27 ->  | Q23: ='Summary-MMTCO2E'!Q27 ->  | R23: ='Summary-MMTCO2E'!R27 ->  | S23: ='Summary-MMTCO2E'!S27 ->  | T23: ='Summary-MMTCO2E'!T27 ->  | U23: ='Summary-MMTCO2E'!U27 ->  | V23: ='Summary-MMTCO2E'!V27 ->  | W23: ='Summary-MMTCO2E'!W27 ->  | X23: ='Summary-MMTCO2E'!X27 ->  | Y23: ='Summary-MMTCO2E'!Y27 ->  | Z23: ='Summary-MMTCO2E'!Z27 ->  | AA23: ='Summary-MMTCO2E'!AA27 ->  | AB23: ='Summary-MMTCO2E'!AB27 ->  | AC23: ='Summary-MMTCO2E'!AC27 ->  | AD23: ='Summary-MMTCO2E'!AD27 ->  | AE23: ='Summary-MMTCO2E'!AE27 ->  | AF23: ='Summary-MMTCO2E'!AF27 ->  | AG23: ='Summary-MMTCO2E'!AG27 -> 
A24: Petroleum | B24: Energy - CO2FFC - Electric Power - Petroleum | C24: ='Summary-MMTCO2E'!C28 ->  | D24: ='Summary-MMTCO2E'!D28 ->  | E24: ='Summary-MMTCO2E'!E28 ->  | F24: ='Summary-MMTCO2E'!F28 ->  | G24: ='Summary-MMTCO2E'!G28 ->  | H24: ='Summary-MMTCO2E'!H28 ->  | I24: ='Summary-MMTCO2E'!I28 ->  | J24: ='Summary-MMTCO2E'!J28 ->  | K24: ='Summary-MMTCO2E'!K28 ->  | L24: ='Summary-MMTCO2E'!L28 ->  | M24: ='Summary-MMTCO2E'!M28 ->  | N24: ='Summary-MMTCO2E'!N28 ->  | O24: ='Summary-MMTCO2E'!O28 ->  | P24: ='Summary-MMTCO2E'!P28 ->  | Q24: ='Summary-MMTCO2E'!Q28 ->  | R24: ='Summary-MMTCO2E'!R28 ->  | S24: ='Summary-MMTCO2E'!S28 ->  | T24: ='Summary-MMTCO2E'!T28 ->  | U24: ='Summary-MMTCO2E'!U28 ->  | V24: ='Summary-MMTCO2E'!V28 ->  | W24: ='Summary-MMTCO2E'!W28 ->  | X24: ='Summary-MMTCO2E'!X28 ->  | Y24: ='Summary-MMTCO2E'!Y28 ->  | Z24: ='Summary-MMTCO2E'!Z28 ->  | AA24: ='Summary-MMTCO2E'!AA28 ->  | AB24: ='Summary-MMTCO2E'!AB28 ->  | AC24: ='Summary-MMTCO2E'!AC28 ->  | AD24: ='Summary-MMTCO2E'!AD28 ->  | AE24: ='Summary-MMTCO2E'!AE28 ->  | AF24: ='Summary-MMTCO2E'!AF28 ->  | AG24: ='Summary-MMTCO2E'!AG28 -> 
A25: Natural Gas | B25: Energy - CO2FFC - Electric Power - Natural Gas | C25: ='Summary-MMTCO2E'!C29 ->  | D25: ='Summary-MMTCO2E'!D29 ->  | E25: ='Summary-MMTCO2E'!E29 ->  | F25: ='Summary-MMTCO2E'!F29 ->  | G25: ='Summary-MMTCO2E'!G29 ->  | H25: ='Summary-MMTCO2E'!H29 ->  | I25: ='Summary-MMTCO2E'!I29 ->  | J25: ='Summary-MMTCO2E'!J29 ->  | K25: ='Summary-MMTCO2E'!K29 ->  | L25: ='Summary-MMTCO2E'!L29 ->  | M25: ='Summary-MMTCO2E'!M29 ->  | N25: ='Summary-MMTCO2E'!N29 ->  | O25: ='Summary-MMTCO2E'!O29 ->  | P25: ='Summary-MMTCO2E'!P29 ->  | Q25: ='Summary-MMTCO2E'!Q29 ->  | R25: ='Summary-MMTCO2E'!R29 ->  | S25: ='Summary-MMTCO2E'!S29 ->  | T25: ='Summary-MMTCO2E'!T29 ->  | U25: ='Summary-MMTCO2E'!U29 ->  | V25: ='Summary-MMTCO2E'!V29 ->  | W25: ='Summary-MMTCO2E'!W29 ->  | X25: ='Summary-MMTCO2E'!X29 ->  | Y25: ='Summary-MMTCO2E'!Y29 ->  | Z25: ='Summary-MMTCO2E'!Z29 ->  | AA25: ='Summary-MMTCO2E'!AA29 ->  | AB25: ='Summary-MMTCO2E'!AB29 ->  | AC25: ='Summary-MMTCO2E'!AC29 ->  | AD25: ='Summary-MMTCO2E'!AD29 ->  | AE25: ='Summary-MMTCO2E'!AE29 ->  | AF25: ='Summary-MMTCO2E'!AF29 ->  | AG25: ='Summary-MMTCO2E'!AG29 -> 
A26: Other | B26: Energy - CO2FFC - Electric Power - Other | C26: ='Summary-MMTCO2E'!C30 -> 0 | D26: ='Summary-MMTCO2E'!D30 -> 0 | E26: ='Summary-MMTCO2E'!E30 -> 0 | F26: ='Summary-MMTCO2E'!F30 -> 0 | G26: ='Summary-MMTCO2E'!G30 -> 0 | H26: ='Summary-MMTCO2E'!H30 -> 0 | I26: ='Summary-MMTCO2E'!I30 -> 0 | J26: ='Summary-MMTCO2E'!J30 -> 0 | K26: ='Summary-MMTCO2E'!K30 -> 0 | L26: ='Summary-MMTCO2E'!L30 -> 0 | M26: ='Summary-MMTCO2E'!M30 -> 0 | N26: ='Summary-MMTCO2E'!N30 -> 0 | O26: ='Summary-MMTCO2E'!O30 -> 0 | P26: ='Summary-MMTCO2E'!P30 -> 0 | Q26: ='Summary-MMTCO2E'!Q30 -> 0 | R26: ='Summary-MMTCO2E'!R30 -> 0 | S26: ='Summary-MMTCO2E'!S30 -> 0 | T26: ='Summary-MMTCO2E'!T30 -> 0 | U26: ='Summary-MMTCO2E'!U30 -> 0 | V26: ='Summary-MMTCO2E'!V30 -> 0 | W26: ='Summary-MMTCO2E'!W30 -> 0 | X26: ='Summary-MMTCO2E'!X30 -> 0 | Y26: ='Summary-MMTCO2E'!Y30 -> 0 | Z26: ='Summary-MMTCO2E'!Z30 -> 0 | AA26: ='Summary-MMTCO2E'!AA30 -> 0 | AB26: ='Summary-MMTCO2E'!AB30 -> 0 | AC26: ='Summary-MMTCO2E'!AC30 -> 0 | AD26: ='Summary-MMTCO2E'!AD30 -> 0 | AE26: ='Summary-MMTCO2E'!AE30 -> 0 | AF26: ='Summary-MMTCO2E'!AF30 -> 0 | AG26: ='Summary-MMTCO2E'!AG30 -> 0
A27: International Bunker Fuels | B27: Energy - CO2FFC - International Bunker Fuels | C27: ='Summary-MMTCO2E'!C31 ->  | D27: ='Summary-MMTCO2E'!D31 ->  | E27: ='Summary-MMTCO2E'!E31 ->  | F27: ='Summary-MMTCO2E'!F31 ->  | G27: ='Summary-MMTCO2E'!G31 ->  | H27: ='Summary-MMTCO2E'!H31 ->  | I27: ='Summary-MMTCO2E'!I31 ->  | J27: ='Summary-MMTCO2E'!J31 ->  | K27: ='Summary-MMTCO2E'!K31 ->  | L27: ='Summary-MMTCO2E'!L31 ->  | M27: ='Summary-MMTCO2E'!M31 ->  | N27: ='Summary-MMTCO2E'!N31 ->  | O27: ='Summary-MMTCO2E'!O31 ->  | P27: ='Summary-MMTCO2E'!P31 ->  | Q27: ='Summary-MMTCO2E'!Q31 ->  | R27: ='Summary-MMTCO2E'!R31 ->  | S27: ='Summary-MMTCO2E'!S31 ->  | T27: ='Summary-MMTCO2E'!T31 ->  | U27: ='Summary-MMTCO2E'!U31 ->  | V27: ='Summary-MMTCO2E'!V31 ->  | W27: ='Summary-MMTCO2E'!W31 ->  | X27: ='Summary-MMTCO2E'!X31 ->  | Y27: ='Summary-MMTCO2E'!Y31 ->  | Z27: ='Summary-MMTCO2E'!Z31 ->  | AA27: ='Summary-MMTCO2E'!AA31 ->  | AB27: ='Summary-MMTCO2E'!AB31 ->  | AC27: ='Summary-MMTCO2E'!AC31 ->  | AD27: ='Summary-MMTCO2E'!AD31 ->  | AE27: ='Summary-MMTCO2E'!AE31 ->  | AF27: ='Summary-MMTCO2E'!AF31 ->  | AG27: ='Summary-MMTCO2E'!AG31 -> 
A28: Petroleum | B28: Energy - CO2FFC - International Bunker Fuels - Petroleum | C28: ='Summary-MMTCO2E'!C32 ->  | D28: ='Summary-MMTCO2E'!D32 ->  | E28: ='Summary-MMTCO2E'!E32 ->  | F28: ='Summary-MMTCO2E'!F32 ->  | G28: ='Summary-MMTCO2E'!G32 ->  | H28: ='Summary-MMTCO2E'!H32 ->  | I28: ='Summary-MMTCO2E'!I32 ->  | J28: ='Summary-MMTCO2E'!J32 ->  | K28: ='Summary-MMTCO2E'!K32 ->  | L28: ='Summary-MMTCO2E'!L32 ->  | M28: ='Summary-MMTCO2E'!M32 ->  | N28: ='Summary-MMTCO2E'!N32 ->  | O28: ='Summary-MMTCO2E'!O32 ->  | P28: ='Summary-MMTCO2E'!P32 ->  | Q28: ='Summary-MMTCO2E'!Q32 ->  | R28: ='Summary-MMTCO2E'!R32 ->  | S28: ='Summary-MMTCO2E'!S32 ->  | T28: ='Summary-MMTCO2E'!T32 ->  | U28: ='Summary-MMTCO2E'!U32 ->  | V28: ='Summary-MMTCO2E'!V32 ->  | W28: ='Summary-MMTCO2E'!W32 ->  | X28: ='Summary-MMTCO2E'!X32 ->  | Y28: ='Summary-MMTCO2E'!Y32 ->  | Z28: ='Summary-MMTCO2E'!Z32 ->  | AA28: ='Summary-MMTCO2E'!AA32 ->  | AB28: ='Summary-MMTCO2E'!AB32 ->  | AC28: ='Summary-MMTCO2E'!AC32 ->  | AD28: ='Summary-MMTCO2E'!AD32 ->  | AE28: ='Summary-MMTCO2E'!AE32 ->  | AF28: ='Summary-MMTCO2E'!AF32 ->  | AG28: ='Summary-MMTCO2E'!AG32 -> 

Sheet Dataframe_Sum (hidden)
A1: MMTCO2E | B1: Category | C1: 1990 | D1: 1991 | E1: 1992 | F1: 1993 | G1: 1994 | H1: 1995 | I1: 1996 | J1: 1997 | K1: 1998 | L1: 1999 | M1: 2000 | N1: 2001 | O1: 2002 | P1: 2003 | Q1: 2004 | R1: 2005 | S1: 2006 | T1: 2007 | U1: 2008 | V1: 2009 | W1: 2010 | X1: 2011 | Y1: 2012 | Z1: 2013 | AA1: 2014 | AB1: 2015 | AC1: 2016 | AD1: 2017 | AE1: 2018 | AF1: 2019 | AG1: 2020
A2: Total | B2: ="Energy - CO2FFC - "&A2 -> Energy - CO2FFC - Total | C2: ='Summary-MMTCO2E'!C33 ->  | D2: ='Summary-MMTCO2E'!D33 ->  | E2: ='Summary-MMTCO2E'!E33 ->  | F2: ='Summary-MMTCO2E'!F33 ->  | G2: ='Summary-MMTCO2E'!G33 ->  | H2: ='Summary-MMTCO2E'!H33 ->  | I2: ='Summary-MMTCO2E'!I33 ->  | J2: ='Summary-MMTCO2E'!J33 ->  | K2: ='Summary-MMTCO2E'!K33 ->  | L2: ='Summary-MMTCO2E'!L33 ->  | M2: ='Summary-MMTCO2E'!M33 ->  | N2: ='Summary-MMTCO2E'!N33 ->  | O2: ='Summary-MMTCO2E'!O33 ->  | P2: ='Summary-MMTCO2E'!P33 ->  | Q2: ='Summary-MMTCO2E'!Q33 ->  | R2: ='Summary-MMTCO2E'!R33 ->  | S2: ='Summary-MMTCO2E'!S33 ->  | T2: ='Summary-MMTCO2E'!T33 ->  | U2: ='Summary-MMTCO2E'!U33 ->  | V2: ='Summary-MMTCO2E'!V33 ->  | W2: ='Summary-MMTCO2E'!W33 ->  | X2: ='Summary-MMTCO2E'!X33 ->  | Y2: ='Summary-MMTCO2E'!Y33 ->  | Z2: ='Summary-MMTCO2E'!Z33 ->  | AA2: ='Summary-MMTCO2E'!AA33 ->  | AB2: ='Summary-MMTCO2E'!AB33 ->  | AC2: ='Summary-MMTCO2E'!AC33 ->  | AD2: ='Summary-MMTCO2E'!AD33 ->  | AE2: ='Summary-MMTCO2E'!AE33 ->  | AF2: ='Summary-MMTCO2E'!AF33 ->  | AG2: ='Summary-MMTCO2E'!AG33 -> 
A3: Residential | B3: ="Energy - CO2FFC - "&A3 -> Energy - CO2FFC - Residential | C3: ='Summary-MMTCO2E'!C6 ->  | D3: ='Summary-MMTCO2E'!D6 ->  | E3: ='Summary-MMTCO2E'!E6 ->  | F3: ='Summary-MMTCO2E'!F6 ->  | G3: ='Summary-MMTCO2E'!G6 ->  | H3: ='Summary-MMTCO2E'!H6 ->  | I3: ='Summary-MMTCO2E'!I6 ->  | J3: ='Summary-MMTCO2E'!J6 ->  | K3: ='Summary-MMTCO2E'!K6 ->  | L3: ='Summary-MMTCO2E'!L6 ->  | M3: ='Summary-MMTCO2E'!M6 ->  | N3: ='Summary-MMTCO2E'!N6 ->  | O3: ='Summary-MMTCO2E'!O6 ->  | P3: ='Summary-MMTCO2E'!P6 ->  | Q3: ='Summary-MMTCO2E'!Q6 ->  | R3: ='Summary-MMTCO2E'!R6 ->  | S3: ='Summary-MMTCO2E'!S6 ->  | T3: ='Summary-MMTCO2E'!T6 ->  | U3: ='Summary-MMTCO2E'!U6 ->  | V3: ='Summary-MMTCO2E'!V6 ->  | W3: ='Summary-MMTCO2E'!W6 ->  | X3: ='Summary-MMTCO2E'!X6 ->  | Y3: ='Summary-MMTCO2E'!Y6 ->  | Z3: ='Summary-MMTCO2E'!Z6 ->  | AA3: ='Summary-MMTCO2E'!AA6 ->  | AB3: ='Summary-MMTCO2E'!AB6 ->  | AC3: ='Summary-MMTCO2E'!AC6 ->  | AD3: ='Summary-MMTCO2E'!AD6 ->  | AE3: ='Summary-MMTCO2E'!AE6 ->  | AF3: ='Summary-MMTCO2E'!AF6 ->  | AG3: ='Summary-MMTCO2E'!AG6 -> 
A4: Commercial | B4: ="Energy - CO2FFC - "&A4 -> Energy - CO2FFC - Commercial | C4: ='Summary-MMTCO2E'!C11 ->  | D4: ='Summary-MMTCO2E'!D11 ->  | E4: ='Summary-MMTCO2E'!E11 ->  | F4: ='Summary-MMTCO2E'!F11 ->  | G4: ='Summary-MMTCO2E'!G11 ->  | H4: ='Summary-MMTCO2E'!H11 ->  | I4: ='Summary-MMTCO2E'!I11 ->  | J4: ='Summary-MMTCO2E'!J11 ->  | K4: ='Summary-MMTCO2E'!K11 ->  | L4: ='Summary-MMTCO2E'!L11 ->  | M4: ='Summary-MMTCO2E'!M11 ->  | N4: ='Summary-MMTCO2E'!N11 ->  | O4: ='Summary-MMTCO2E'!O11 ->  | P4: ='Summary-MMTCO2E'!P11 ->  | Q4: ='Summary-MMTCO2E'!Q11 ->  | R4: ='Summary-MMTCO2E'!R11 ->  | S4: ='Summary-MMTCO2E'!S11 ->  | T4: ='Summary-MMTCO2E'!T11 ->  | U4: ='Summary-MMTCO2E'!U11 ->  | V4: ='Summary-MMTCO2E'!V11 ->  | W4: ='Summary-MMTCO2E'!W11 ->  | X4: ='Summary-MMTCO2E'!X11 ->  | Y4: ='Summary-MMTCO2E'!Y11 ->  | Z4: ='Summary-MMTCO2E'!Z11 ->  | AA4: ='Summary-MMTCO2E'!AA11 ->  | AB4: ='Summary-MMTCO2E'!AB11 ->  | AC4: ='Summary-MMTCO2E'!AC11 ->  | AD4: ='Summary-MMTCO2E'!AD11 ->  | AE4: ='Summary-MMTCO2E'!AE11 ->  | AF4: ='Summary-MMTCO2E'!AF11 ->  | AG4: ='Summary-MMTCO2E'!AG11 -> 
A5: Industrial | B5: Energy - CO2FFC - Industrial | C5: ='Summary-MMTCO2E'!C16 ->  | D5: ='Summary-MMTCO2E'!D16 ->  | E5: ='Summary-MMTCO2E'!E16 ->  | F5: ='Summary-MMTCO2E'!F16 ->  | G5: ='Summary-MMTCO2E'!G16 ->  | H5: ='Summary-MMTCO2E'!H16 ->  | I5: ='Summary-MMTCO2E'!I16 ->  | J5: ='Summary-MMTCO2E'!J16 ->  | K5: ='Summary-MMTCO2E'!K16 ->  | L5: ='Summary-MMTCO2E'!L16 ->  | M5: ='Summary-MMTCO2E'!M16 ->  | N5: ='Summary-MMTCO2E'!N16 ->  | O5: ='Summary-MMTCO2E'!O16 ->  | P5: ='Summary-MMTCO2E'!P16 ->  | Q5: ='Summary-MMTCO2E'!Q16 ->  | R5: ='Summary-MMTCO2E'!R16 ->  | S5: ='Summary-MMTCO2E'!S16 ->  | T5: ='Summary-MMTCO2E'!T16 ->  | U5: ='Summary-MMTCO2E'!U16 ->  | V5: ='Summary-MMTCO2E'!V16 ->  | W5: ='Summary-MMTCO2E'!W16 ->  | X5: ='Summary-MMTCO2E'!X16 ->  | Y5: ='Summary-MMTCO2E'!Y16 ->  | Z5: ='Summary-MMTCO2E'!Z16 ->  | AA5: ='Summary-MMTCO2E'!AA16 ->  | AB5: ='Summary-MMTCO2E'!AB16 ->  | AC5: ='Summary-MMTCO2E'!AC16 ->  | AD5: ='Summary-MMTCO2E'!AD16 ->  | AE5: ='Summary-MMTCO2E'!AE16 ->  | AF5: ='Summary-MMTCO2E'!AF16 ->  | AG5: ='Summary-MMTCO2E'!AG16 -> 
A6: Transportation | B6: Energy - CO2FFC - Transportation | C6: ='Summary-MMTCO2E'!C21 ->  | D6: ='Summary-MMTCO2E'!D21 ->  | E6: ='Summary-MMTCO2E'!E21 ->  | F6: ='Summary-MMTCO2E'!F21 ->  | G6: ='Summary-MMTCO2E'!G21 ->  | H6: ='Summary-MMTCO2E'!H21 ->  | I6: ='Summary-MMTCO2E'!I21 ->  | J6: ='Summary-MMTCO2E'!J21 ->  | K6: ='Summary-MMTCO2E'!K21 ->  | L6: ='Summary-MMTCO2E'!L21 ->  | M6: ='Summary-MMTCO2E'!M21 ->  | N6: ='Summary-MMTCO2E'!N21 ->  | O6: ='Summary-MMTCO2E'!O21 ->  | P6: ='Summary-MMTCO2E'!P21 ->  | Q6: ='Summary-MMTCO2E'!Q21 ->  | R6: ='Summary-MMTCO2E'!R21 ->  | S6: ='Summary-MMTCO2E'!S21 ->  | T6: ='Summary-MMTCO2E'!T21 ->  | U6: ='Summary-MMTCO2E'!U21 ->  | V6: ='Summary-MMTCO2E'!V21 ->  | W6: ='Summary-MMTCO2E'!W21 ->  | X6: ='Summary-MMTCO2E'!X21 ->  | Y6: ='Summary-MMTCO2E'!Y21 ->  | Z6: ='Summary-MMTCO2E'!Z21 ->  | AA6: ='Summary-MMTCO2E'!AA21 ->  | AB6: ='Summary-MMTCO2E'!AB21 ->  | AC6: ='Summary-MMTCO2E'!AC21 ->  | AD6: ='Summary-MMTCO2E'!AD21 ->  | AE6: ='Summary-MMTCO2E'!AE21 ->  | AF6: ='Summary-MMTCO2E'!AF21 ->  | AG6: ='Summary-MMTCO2E'!AG21 -> 
A7: Electric Power | B7: Energy - CO2FFC - Electric Power | C7: ='Summary-MMTCO2E'!C26 ->  | D7: ='Summary-MMTCO2E'!D26 ->  | E7: ='Summary-MMTCO2E'!E26 ->  | F7: ='Summary-MMTCO2E'!F26 ->  | G7: ='Summary-MMTCO2E'!G26 ->  | H7: ='Summary-MMTCO2E'!H26 ->  | I7: ='Summary-MMTCO2E'!I26 ->  | J7: ='Summary-MMTCO2E'!J26 ->  | K7: ='Summary-MMTCO2E'!K26 ->  | L7: ='Summary-MMTCO2E'!L26 ->  | M7: ='Summary-MMTCO2E'!M26 ->  | N7: ='Summary-MMTCO2E'!N26 ->  | O7: ='Summary-MMTCO2E'!O26 ->  | P7: ='Summary-MMTCO2E'!P26 ->  | Q7: ='Summary-MMTCO2E'!Q26 ->  | R7: ='Summary-MMTCO2E'!R26 ->  | S7: ='Summary-MMTCO2E'!S26 ->  | T7: ='Summary-MMTCO2E'!T26 ->  | U7: ='Summary-MMTCO2E'!U26 ->  | V7: ='Summary-MMTCO2E'!V26 ->  | W7: ='Summary-MMTCO2E'!W26 ->  | X7: ='Summary-MMTCO2E'!X26 ->  | Y7: ='Summary-MMTCO2E'!Y26 ->  | Z7: ='Summary-MMTCO2E'!Z26 ->  | AA7: ='Summary-MMTCO2E'!AA26 ->  | AB7: ='Summary-MMTCO2E'!AB26 ->  | AC7: ='Summary-MMTCO2E'!AC26 ->  | AD7: ='Summary-MMTCO2E'!AD26 ->  | AE7: ='Summary-MMTCO2E'!AE26 ->  | AF7: ='Summary-MMTCO2E'!AF26 ->  | AG7: ='Summary-MMTCO2E'!AG26 -> 

Sheet Default State Energy Data Table
C1: ="Default Energy Consumption in "&State&", billion btu (Bbtu)" -> Default Energy Consumption in Select a State . . ., billion btu (Bbtu) | N1: Residential | O1: Residential
C5: Sector and Fuel | D5: 1990 | E5: 1991 | F5: 1992 | G5: 1993 | H5: 1994 | I5: 1995 | J5: 1996 | K5: 1997 | L5: 1998 | M5: 1999 | N5: 2000 | O5: 2001 | P5: 2002 | Q5: 2003 | R5: 2004 | S5: 2005 | T5: 2006 | U5: 2007 | V5: 2008 | W5: 2009 | X5: 2010 | Y5: 2011 | Z5: 2012 | AA5: 2013 | AB5: 2014 | AC5: 2015 | AD5: 2016 | AE5: 2017 | AF5: 2018 | AG5: 2019 | AH5: 2020
A6: =StateID&" "&C6 -> XX Commercial Coal | C6: Commercial Coal | D6: =VLOOKUP(StateID&" "&$C6,ConsumeBlock,D$5-1988,FALSE) ->  | U6: =VLOOKUP(StateID&" "&$C6,ConsumeBlock,U$5-1988,FALSE) -> 
A7: XX Commercial Distillate Fuel | C7: Commercial Distillate Fuel
A8: XX Commercial Kerosene | C8: Commercial Kerosene
A9: XX Commercial Hydrocarbon Gas Liquids | C9: Commercial Hydrocarbon Gas Liquids
A10: XX Commercial Motor Gasoline | C10: Commercial Motor Gasoline | D10: =VLOOKUP(StateID&" "&$C10,ConsumeBlock,D$5-1988,FALSE)-VLOOKUP(StateID,CommercialEthanol,D$5-1988,FALSE) -> 
A11: XX Commercial Natural Gas | C11: Commercial Natural Gas
A12: XX Commercial Residual Fuel | C12: Commercial Residual Fuel
A13: XX Commercial Wood | C13: Commercial Wood
A14: XX Commercial Other | C14: Commercial Other
A15: XX Electric Power Coal | C15: Electric Power Coal
A16: XX Electric Power Distillate Fuel | C16: Electric Power Distillate Fuel
A17: XX Electric Power Natural Gas | C17: Electric Power Natural Gas
A18: XX Electric Power Petroleum Coke | C18: Electric Power Petroleum Coke
A19: XX Electric Power Residual Fuel | C19: Electric Power Residual Fuel
A20: XX Electric Power Wood | C20: Electric Power Wood
A21: XX Electric Power Other | C21: Electric Power Other
A22: XX Industrial Asphalt and Road Oil | C22: Industrial Asphalt and Road Oil
A23: XX Industrial Aviation Gasoline Blending Components | C23: Industrial Aviation Gasoline Blending Components
A24: XX Industrial Coal | C24: Industrial Coal | D24: =VLOOKUP(StateID&" "&$C24,ConsumeBlock,D$5-1988,FALSE) ->  | U24: =VLOOKUP(StateID&" "&$C24,ConsumeBlock,U$5-1988,FALSE) -> 
A25: =StateID&" "&C25 -> XX Industrial Coking Coal | C25: Industrial Coking Coal
A26: XX Industrial Crude Oil | C26: Industrial Crude Oil
A27: XX Industrial Distillate Fuel | C27: Industrial Distillate Fuel
A28: XX Industrial Feedstocks, Naphtha less than 401 F | C28: Industrial Feedstocks, Naphtha less than 401 F
A29: XX Industrial Feedstocks, Other Oils greater than 401 F | C29: Industrial Feedstocks, Other Oils greater than 401 F
A30: XX Industrial Kerosene | C30: Industrial Kerosene
A31: XX Industrial Hydrocarbon Gas Liquids | C31: Industrial Hydrocarbon Gas Liquids
A32: XX Industrial Lubricants | C32: Industrial Lubricants
A33: XX Industrial Misc. Petro Products | C33: Industrial Misc. Petro Products
A34: XX Industrial Motor Gasoline | C34: Industrial Motor Gasoline | D34: =VLOOKUP(StateID&" "&$C34,ConsumeBlock,D$5-1988,FALSE)-VLOOKUP(StateID,IndustrialEthanol,D$5-1988,FALSE) -> 
A35: XX Industrial Motor Gasoline Blending Components | C35: Industrial Motor Gasoline Blending Components
A36: XX Industrial Natural Gas | C36: Industrial Natural Gas
A37: XX Industrial Pentanes Plus | C37: Industrial Pentanes Plus
A38: XX Industrial Petroleum Coke | C38: Industrial Petroleum Coke
A39: XX Industrial Residual Fuel | C39: Industrial Residual Fuel
A40: XX Industrial Special Naphthas | C40: Industrial Special Naphthas | O40: =VLOOKUP(StateID&" "&$C40,ConsumeBlock,O$5-1988,FALSE) -> 
A41: =StateID&" "&C41 -> XX Industrial Still Gas | C41: Industrial Still Gas | D41: =VLOOKUP(StateID&" "&$C41,ConsumeBlock,D$5-1988,FALSE) ->  | U41: =VLOOKUP(StateID&" "&$C41,ConsumeBlock,U$5-1988,FALSE) -> 
A42: XX Industrial Unfinished Oils | C42: Industrial Unfinished Oils
A43: XX Industrial Waxes | C43: Industrial Waxes
A44: XX Industrial Wood | C44: Industrial Wood
A45: XX Industrial Other Coal | C45: Industrial Other Coal
A46: XX Industrial Other | C46: Industrial Other
A47: XX Residential Coal | C47: Residential Coal
A48: XX Residential Distillate Fuel | C48: Residential Distillate Fuel
A49: XX Residential Kerosene | C49: Residential Kerosene
A50: XX Residential Hydrocarbon Gas Liquids | C50: Residential Hydrocarbon Gas Liquids
A51: XX Residential Natural Gas | C51: Residential Natural Gas
A52: XX Residential Wood | C52: Residential Wood
A53: XX Residential Other | C53: Residential Other
A54: XX Transportation Aviation Gasoline | C54: Transportation Aviation Gasoline
A55: XX Transportation Distillate Fuel | C55: Transportation Distillate Fuel
A56: XX Transportation Ethanol | C56: Transportation Ethanol
A57: XX Transportation Jet Fuel, Kerosene | C57: Transportation Jet Fuel, Kerosene
A58: XX Transportation Jet Fuel, Naphtha | C58: Transportation Jet Fuel, Naphtha | Q58: =VLOOKUP(StateID&" "&$C58,ConsumeBlock,Q$5-1988,FALSE) ->  | R58: =VLOOKUP(StateID&" "&$C58,ConsumeBlock,R$5-1988,FALSE) ->  | S58: =VLOOKUP(StateID&" "&$C58,ConsumeBlock,S$5-1988,FALSE) -> 
A59: XX Transportation Hydrocarbon Gas Liquids | C59: Transportation Hydrocarbon Gas Liquids | D59: =VLOOKUP(StateID&" "&$C59,ConsumeBlock,D$5-1988,FALSE) ->  | U59: =VLOOKUP(StateID&" "&$C59,ConsumeBlock,U$5-1988,FALSE) -> 
A60: XX Transportation Lubricants | C60: Transportation Lubricants
A61: XX Transportation Motor Gasoline | C61: Transportation Motor Gasoline | D61: =VLOOKUP(StateID&" "&$C61,ConsumeBlock,D$5-1988,FALSE)-VLOOKUP(StateID,Ethanol,D$5-1988,FALSE) -> 
A62: XX Transportation Natural Gas | C62: Transportation Natural Gas
A63: XX Transportation Residual Fuel | C63: Transportation Residual Fuel
A64: XX Transportation Other | C64: Transportation Other
A65: XX Bunker Fuels Distillate Fuel | C65: Bunker Fuels Distillate Fuel | D65: =VLOOKUP(StateID&" "&$C65,ConsumeBlock,D$5-1988,FALSE) -> 
A66: XX Bunker Fuels Residual Fuel | C66: Bunker Fuels Residual Fuel | D66: =VLOOKUP(StateID&" "&$C66,ConsumeBlock,D$5-1988,FALSE) ->  | S66: =VLOOKUP(StateID&" "&$C66,ConsumeBlock,S$5-1988,FALSE) -> 
A67: XX Bunker Fuels Jet Fuel, Kerosene | C67: Bunker Fuels Jet Fuel, Kerosene | D67: =VLOOKUP(StateID&" "&$C67,ConsumeBlock,D$5-1988,FALSE) ->  | S67: =VLOOKUP(StateID&" "&$C67,ConsumeBlock,S$5-1988,FALSE) -> 
C68: Default Energy Consumption Data from the Energy Information Administration's State Energy Data 2019: Consumption Estimates
C71: Commercial Coal | D71: =VLOOKUP(StateID&" "&$C71,ConsumeBlock,D$5-1988,FALSE) ->  | T71: =VLOOKUP(StateID&" "&$C71,ConsumeBlock,T$5-1988,FALSE) -> 
C72: Commercial Distillate Fuel
C73: Commercial Kerosene
C74: Commercial Hydrocarbon Gas Liquids
C75: Commercial Motor Gasoline | D75: =VLOOKUP(StateID&" "&$C75,ConsumeBlock,D$5-1988,FALSE)-VLOOKUP(StateID,CommercialEthanol,D$5-1988,FALSE) -> 
C76: Commercial Natural Gas
C77: Commercial Residual Fuel
C78: Commercial Wood
C79: Commercial Other
C80: Electric Power Coal
C81: Electric Power Distillate Fuel
C82: Electric Power Natural Gas
C83: Electric Power Petroleum Coke
C84: Electric Power Residual Fuel
C85: Electric Power Wood | Q85: =VLOOKUP(StateID&" "&$C85,ConsumeBlock,Q$5-1988,FALSE) -> 
C86: Electric Power Other
C87: Industrial Asphalt and Road Oil
C88: Industrial Aviation Gasoline Blending Components
C89: Industrial Coal | D89: =VLOOKUP(StateID&" "&$C89,ConsumeBlock,D$5-1988,FALSE) ->  | U89: =VLOOKUP(StateID&" "&$C89,ConsumeBlock,U$5-1988,FALSE) -> 
C90: Industrial Coking Coal | D90: =VLOOKUP(StateID&" "&$C90,ConsumeBlock,D$5-1988,FALSE) -> 
C91: Industrial Crude Oil
C92: Industrial Distillate Fuel
C93: Industrial Feedstocks, Naphtha less than 401 F
C94: Industrial Feedstocks, Other Oils greater than 401 F
C95: Industrial Kerosene
C96: Industrial Hydrocarbon Gas Liquids
C97: Industrial Lubricants
C98: Industrial Misc. Petro Products
C99: Industrial Motor Gasoline | D99: =VLOOKUP(StateID&" "&$C99,ConsumeBlock,D$5-1988,FALSE)-VLOOKUP(StateID,IndustrialEthanol,D$5-1988,FALSE) -> 
C100: Industrial Motor Gasoline Blending Components
C101: Industrial Natural Gas
C102: Industrial Pentanes Plus
C103: Industrial Petroleum Coke
C104: Industrial Residual Fuel
C105: Industrial Special Naphthas
C106: Industrial Still Gas | D106: =VLOOKUP(StateID&" "&$C106,ConsumeBlock,D$5-1988,FALSE) ->  | U106: =VLOOKUP(StateID&" "&$C106,ConsumeBlock,U$5-1988,FALSE) -> 
C107: Industrial Unfinished Oils
C108: Industrial Waxes
C109: Industrial Wood
C110: Industrial Other Coal
C111: Industrial Other
C112: Residential Coal
C113: Residential Distillate Fuel
C114: Residential Kerosene
C115: Residential Hydrocarbon Gas Liquids
C116: Residential Natural Gas
C117: Residential Wood
C118: Residential Other
C119: Transportation Aviation Gasoline
C120: Transportation Distillate Fuel
C121: Transportation Ethanol
C122: Transportation Jet Fuel, Kerosene
C123: Transportation Jet Fuel, Naphtha | Q123: =VLOOKUP(StateID&" "&$C123,ConsumeBlock,Q$5-1988,FALSE) ->  | R123: =VLOOKUP(StateID&" "&$C123,ConsumeBlock,R$5-1988,FALSE) ->  | S123: =VLOOKUP(StateID&" "&$C123,ConsumeBlock,S$5-1988,FALSE) -> 
C124: Transportation Hydrocarbon Gas Liquids | D124: =VLOOKUP(StateID&" "&$C124,ConsumeBlock,D$5-1988,FALSE) ->  | U124: =VLOOKUP(StateID&" "&$C124,ConsumeBlock,U$5-1988,FALSE) -> 
C125: Transportation Lubricants
C126: Transportation Motor Gasoline | D126: =VLOOKUP(StateID&" "&$C126,ConsumeBlock,D$5-1988,FALSE)-VLOOKUP(StateID,Ethanol,D$5-1988,FALSE) -> 
C127: Transportation Natural Gas
C128: Transportation Residual Fuel
C129: Transportation Other
C130: Bunker Fuels Distillate Fuel | D130: =VLOOKUP(StateID&" "&$C130,ConsumeBlock,D$5-1988,FALSE) -> 
C131: Bunker Fuels Residual Fuel | D131: =VLOOKUP(StateID&" "&$C131,ConsumeBlock,D$5-1988,FALSE) ->  | S131: =VLOOKUP(StateID&" "&$C131,ConsumeBlock,S$5-1988,FALSE) -> 
C132: Bunker Fuels Jet Fuel, Kerosene | D132: =VLOOKUP(StateID&" "&$C132,ConsumeBlock,D$5-1988,FALSE) ->  | E132: =VLOOKUP(StateID&" "&$C132,ConsumeBlock,E$5-1988,FALSE) ->  | S132: =VLOOKUP(StateID&" "&$C132,ConsumeBlock,S$5-1988,FALSE) -> 

Sheet Residential
A1: ="4. Residential Consumption and CO2 Emissions in "&'List Data'!E3 -> 4. Residential Consumption and CO2 Emissions in Select a State . . .
A2: ='List Data'!F3 -> XX | B2: Residential | C2: =" " -> 
A3: Residential Sector | D3: 1990
B5: Consumption | D5: Emission Factor | F5: Combustion | H5: Emissions | J5: Emissions | L5: Emissions
A6: Fuel Type | B6: (Billion Btu) | D6: (lbs C/Million Btu) | F6: Efficiency (%) | H6: (short tons carbon) | J6: (MMTCE) | L6: (MMTCO2E)
A7: Coal | B7: =VLOOKUP($A$2&$C$2&$B$2&$C$2&$A7,ConsumeBlock1,4,FALSE) ->  | C7: x | D7: =IF(ISNUMBER(ResCoalCC),ResCoalCC,VLOOKUP($A$2 & " Res + Comm Coal CC",CoalCoeffBlock,D3-1988,FALSE)) ->  | E7: x | F7: =CoalEff -> 0 | G7: = | H7: =B7*D7*F7*1000*lbs_shortt ->  | I7: = | J7: =H7*Short_Metric/1000000 ->  | K7: = | L7: =J7*C_CO2 -> 
A8: Distillate Fuel | C8: x | D8: =DistillCC -> 0 | E8: x | F8: =PetroEff -> 0 | G8: = | I8: = | K8: =
A9: Kerosene | C9: x | D9: =KeroCC -> 0 | E9: x | F9: =PetroEff -> 0 | G9: = | I9: = | K9: =
A10: Hydrocarbon Gas Liquids | C10: x | D10: =IF(ISNUMBER(LPGEUCC),LPGEUCC,VLOOKUP("LPG",VariableCCs,D3-1988,FALSE)) -> 37.80773182 | E10: x | F10: =LPGEff -> 0 | G10: = | I10: = | K10: =
A11: Natural Gas | C11: x | D11: =NGCC -> 0 | E11: x | F11: =NGEff -> 0 | G11: = | I11: = | K11: =
A12: Other | B12: 0 | C12: x | E12: x | G12: = | H12: 0 | I12: = | J12: 0 | K12: = | L12: 0
A14: Residential Sector | D14: 1991
B16: Consumption | D16: Emission Factor | F16: Combustion | H16: Emissions | J16: Emissions | L16: Emissions
A17: Fuel Type | B17: (Billion Btu) | D17: (lbs C/Million Btu) | F17: Efficiency (%) | H17: (short tons carbon) | J17: (MMTCE) | L17: (MMTCO2E)
A18: Coal | B18: =VLOOKUP($A$2&$C$2&$B$2&$C$2&$A18,ConsumeBlock1,5,FALSE) ->  | C18: x | D18: =IF(ISNUMBER(ResCoalCC),ResCoalCC,VLOOKUP($A$2 & " Res + Comm Coal CC",CoalCoeffBlock,D14-1988,FALSE)) ->  | E18: x | F18: =CoalEff -> 0 | G18: = | H18: =B18*D18*F18*1000*lbs_shortt ->  | I18: = | J18: =H18*Short_Metric/1000000 ->  | K18: = | L18: =J18*C_CO2 -> 
A19: Distillate Fuel | C19: x | D19: =DistillCC -> 0 | E19: x | F19: =PetroEff -> 0 | G19: = | I19: = | K19: =
A20: Kerosene | C20: x | D20: =KeroCC -> 0 | E20: x | F20: =PetroEff -> 0 | G20: = | I20: = | K20: =
A21: Hydrocarbon Gas Liquids | C21: x | D21: =IF(ISNUMBER(LPGEUCC),LPGEUCC,VLOOKUP("LPG",VariableCCs,D14-1988,FALSE)) -> 37.80773182 | E21: x | F21: =LPGEff -> 0 | G21: = | I21: = | K21: =
A22: Natural Gas | C22: x | D22: =NGCC -> 0 | E22: x | F22: =NGEff -> 0 | G22: = | I22: = | K22: =
A23: Other | B23: 0 | C23: x | E23: x | G23: = | H23: 0 | I23: = | J23: 0 | K23: = | L23: 0
A25: Residential Sector | D25: 1992
B27: Consumption | D27: Emission Factor | F27: Combustion | H27: Emissions | J27: Emissions | L27: Emissions
A28: Fuel Type | B28: (Billion Btu) | D28: (lbs C/Million Btu) | F28: Efficiency (%) | H28: (short tons carbon) | J28: (MMTCE) | L28: (MMTCO2E)
A29: Coal | B29: =VLOOKUP($A$2&$C$2&$B$2&$C$2&$A29,ConsumeBlock1,6,FALSE) ->  | C29: x | D29: =IF(ISNUMBER(ResCoalCC),ResCoalCC,VLOOKUP($A$2 & " Res + Comm Coal CC",CoalCoeffBlock,D25-1988,FALSE)) ->  | E29: x | F29: =CoalEff -> 0 | G29: = | H29: =B29*D29*F29*1000*lbs_shortt ->  | I29: = | J29: =H29*Short_Metric/1000000 ->  | K29: = | L29: =J29*C_CO2 -> 
A30: Distillate Fuel | C30: x | D30: =DistillCC -> 0 | E30: x | F30: =PetroEff -> 0 | G30: = | I30: = | K30: =
A31: Kerosene | C31: x | D31: =KeroCC -> 0 | E31: x | F31: =PetroEff -> 0 | G31: = | I31: = | K31: =
A32: Hydrocarbon Gas Liquids | C32: x | D32: =IF(ISNUMBER(LPGEUCC),LPGEUCC,VLOOKUP("LPG",VariableCCs,D25-1988,FALSE)) -> 37.80773182 | E32: x | F32: =LPGEff -> 0 | G32: = | I32: = | K32: =
A33: Natural Gas | C33: x | D33: =NGCC -> 0 | E33: x | F33: =NGEff -> 0 | G33: = | I33: = | K33: =
A34: Other | B34: 0 | C34: x | E34: x | G34: = | H34: 0 | I34: = | J34: 0 | K34: = | L34: 0
A36: Residential Sector | D36: 1993
B38: Consumption | D38: Emission Factor | F38: Combustion | H38: Emissions | J38: Emissions | L38: Emissions
A39: Fuel Type | B39: (Billion Btu) | D39: (lbs C/Million Btu) | F39: Efficiency (%) | H39: (short tons carbon) | J39: (MMTCE) | L39: (MMTCO2E)
A40: Coal | B40: =VLOOKUP($A$2&$C$2&$B$2&$C$2&$A40,ConsumeBlock1,7,FALSE) ->  | C40: x | D40: =IF(ISNUMBER(ResCoalCC),ResCoalCC,VLOOKUP($A$2 & " Res + Comm Coal CC",CoalCoeffBlock,D36-1988,FALSE)) ->  | E40: x | F40: =CoalEff -> 0 | G40: = | H40: =B40*D40*F40*1000*lbs_shortt ->  | I40: = | J40: =H40*Short_Metric/1000000 ->  | K40: = | L40: =J40*C_CO2 -> 
A41: Distillate Fuel | C41: x | D41: =DistillCC -> 0 | E41: x | F41: =PetroEff -> 0 | G41: = | I41: = | K41: =
A42: Kerosene | C42: x | D42: =KeroCC -> 0 | E42: x | F42: =PetroEff -> 0 | G42: = | I42: = | K42: =
A43: Hydrocarbon Gas Liquids | C43: x | D43: =IF(ISNUMBER(LPGEUCC),LPGEUCC,VLOOKUP("LPG",VariableCCs,D36-1988,FALSE)) -> 37.80773182 | E43: x | F43: =LPGEff -> 0 | G43: = | I43: = | K43: =
A44: Natural Gas | C44: x | D44: =NGCC -> 0 | E44: x | F44: =NGEff -> 0 | G44: = | I44: = | K44: =
A45: Other | B45: 0 | C45: x | E45: x | G45: = | H45: 0 | I45: = | J45: 0 | K45: = | L45: 0
A47: Residential Sector | D47: 1994
B49: Consumption | D49: Emission Factor | F49: Combustion | H49: Emissions | J49: Emissions | L49: Emissions
A50: Fuel Type | B50: (Billion Btu) | D50: (lbs C/Million Btu) | F50: Efficiency (%) | H50: (short tons carbon) | J50: (MMTCE) | L50: (MMTCO2E)
A51: Coal | B51: =VLOOKUP($A$2&$C$2&$B$2&$C$2&$A51,ConsumeBlock1,8,FALSE) ->  | C51: x | D51: =IF(ISNUMBER(ResCoalCC),ResCoalCC,VLOOKUP($A$2 & " Res + Comm Coal CC",CoalCoeffBlock,D47-1988,FALSE)) ->  | E51: x | F51: =CoalEff -> 0 | G51: = | H51: =B51*D51*F51*1000*lbs_shortt ->  | I51: = | J51: =H51*Short_Metric/1000000 ->  | K51: = | L51: =J51*C_CO2 -> 
A52: Distillate Fuel | C52: x | D52: =DistillCC -> 0 | E52: x | F52: =PetroEff -> 0 | G52: = | I52: = | K52: =
A53: Kerosene | C53: x | D53: =KeroCC -> 0 | E53: x | F53: =PetroEff -> 0 | G53: = | I53: = | K53: =
A54: Hydrocarbon Gas Liquids | C54: x | D54: =IF(ISNUMBER(LPGEUCC),LPGEUCC,VLOOKUP("LPG",VariableCCs,D47-1988,FALSE)) -> 37.80773182 | E54: x | F54: =LPGEff -> 0 | G54: = | I54: = | K54: =
A55: Natural Gas | C55: x | D55: =NGCC -> 0 | E55: x | F55: =NGEff -> 0 | G55: = | I55: = | K55: =
A56: Other | B56: 0 | C56: x | E56: x | G56: = | H56: 0 | I56: = | J56: 0 | K56: = | L56: 0
A58: Residential Sector | D58: 1995
B60: Consumption | D60: Emission Factor | F60: Combustion | H60: Emissions | J60: Emissions | L60: Emissions
A61: Fuel Type | B61: (Billion Btu) | D61: (lbs C/Million Btu) | F61: Efficiency (%) | H61: (short tons carbon) | J61: (MMTCE) | L61: (MMTCO2E)
A62: Coal | B62: =VLOOKUP($A$2&$C$2&$B$2&$C$2&$A62,ConsumeBlock1,9,FALSE) ->  | C62: x | D62: =IF(ISNUMBER(ResCoalCC),ResCoalCC,VLOOKUP($A$2 & " Res + Comm Coal CC",CoalCoeffBlock,D58-1988,FALSE)) ->  | E62: x | F62: =CoalEff -> 0 | G62: = | H62: =B62*D62*F62*1000*lbs_shortt ->  | I62: = | J62: =H62*Short_Metric/1000000 ->  | K62: = | L62: =J62*C_CO2 -> 
A63: Distillate Fuel | C63: x | D63: =DistillCC -> 0 | E63: x | F63: =PetroEff -> 0 | G63: = | I63: = | K63: =
A64: Kerosene | C64: x | D64: =KeroCC -> 0 | E64: x | F64: =PetroEff -> 0 | G64: = | I64: = | K64: =
A65: Hydrocarbon Gas Liquids | C65: x | D65: =IF(ISNUMBER(LPGEUCC),LPGEUCC,VLOOKUP("LPG",VariableCCs,D58-1988,FALSE)) -> 37.80773182 | E65: x | F65: =LPGEff -> 0 | G65: = | I65: = | K65: =
A66: Natural Gas | C66: x | D66: =NGCC -> 0 | E66: x | F66: =NGEff -> 0 | G66: = | I66: = | K66: =
A67: Other | B67: 0 | C67: x | E67: x | G67: = | H67: 0 | I67: = | J67: 0 | K67: = | L67: 0
A69: Residential Sector | D69: 1996
B71: Consumption | D71: Emission Factor | F71: Combustion | H71: Emissions | J71: Emissions | L71: Emissions
A72: Fuel Type | B72: (Billion Btu) | D72: (lbs C/Million Btu) | F72: Efficiency (%) | H72: (short tons carbon) | J72: (MMTCE) | L72: (MMTCO2E)
A73: Coal | B73: =VLOOKUP($A$2&$C$2&$B$2&$C$2&$A73,ConsumeBlock1,10,FALSE) ->  | C73: x | D73: =IF(ISNUMBER(ResCoalCC),ResCoalCC,VLOOKUP($A$2 & " Res + Comm Coal CC",CoalCoeffBlock,D69-1988,FALSE)) ->  | E73: x | F73: =CoalEff -> 0 | G73: = | H73: =B73*D73*F73*1000*lbs_shortt ->  | I73: = | J73: =H73*Short_Metric/1000000 ->  | K73: = | L73: =J73*C_CO2 -> 
A74: Distillate Fuel | C74: x | D74: =DistillCC -> 0 | E74: x | F74: =PetroEff -> 0 | G74: = | I74: = | K74: =
A75: Kerosene | C75: x | D75: =KeroCC -> 0 | E75: x | F75: =PetroEff -> 0 | G75: = | I75: = | K75: =
A76: Hydrocarbon Gas Liquids | C76: x | D76: =IF(ISNUMBER(LPGEUCC),LPGEUCC,VLOOKUP("LPG",VariableCCs,D69-1988,FALSE)) -> 37.80773182 | E76: x | F76: =LPGEff -> 0 | G76: = | I76: = | K76: =
A77: Natural Gas | C77: x | D77: =NGCC -> 0 | E77: x | F77: =NGEff -> 0 | G77: = | I77: = | K77: =
A78: Other | B78: 0 | C78: x | E78: x | G78: = | H78: 0 | I78: = | J78: 0 | K78: = | L78: 0
A80: Residential Sector | D80: 1997
B82: Consumption | D82: Emission Factor | F82: Combustion | H82: Emissions | J82: Emissions | L82: Emissions
A83: Fuel Type | B83: (Billion Btu) | D83: (lbs C/Million Btu) | F83: Efficiency (%) | H83: (short tons carbon) | J83: (MMTCE) | L83: (MMTCO2E)
A84: Coal | B84: =VLOOKUP($A$2&$C$2&$B$2&$C$2&$A84,ConsumeBlock1,11,FALSE) ->  | C84: x | D84: =IF(ISNUMBER(ResCoalCC),ResCoalCC,VLOOKUP($A$2 & " Res + Comm Coal CC",CoalCoeffBlock,D80-1988,FALSE)) ->  | E84: x | F84: =CoalEff -> 0 | G84: = | H84: =B84*D84*F84*1000*lbs_shortt ->  | I84: = | J84: =H84*Short_Metric/1000000 ->  | K84: = | L84: =J84*C_CO2 -> 
A85: Distillate Fuel | C85: x | D85: =DistillCC -> 0 | E85: x | F85: =PetroEff -> 0 | G85: = | I85: = | K85: =
A86: Kerosene | C86: x | D86: =KeroCC -> 0 | E86: x | F86: =PetroEff -> 0 | G86: = | I86: = | K86: =
A87: Hydrocarbon Gas Liquids | C87: x | D87: =IF(ISNUMBER(LPGEUCC),LPGEUCC,VLOOKUP("LPG",VariableCCs,D80-1988,FALSE)) -> 37.80773182 | E87: x | F87: =LPGEff -> 0 | G87: = | I87: = | K87: =
A88: Natural Gas | C88: x | D88: =NGCC -> 0 | E88: x | F88: =NGEff -> 0 | G88: = | I88: = | K88: =
A89: Other | B89: 0 | C89: x | E89: x | G89: = | H89: 0 | I89: = | J89: 0 | K89: = | L89: 0
A91: Residential Sector | D91: 1998
B93: Consumption | D93: Emission Factor | F93: Combustion | H93: Emissions | J93: Emissions | L93: Emissions
A94: Fuel Type | B94: (Billion Btu) | D94: (lbs C/Million Btu) | F94: Efficiency (%) | H94: (short tons carbon) | J94: (MMTCE) | L94: (MMTCO2E)
A95: Coal | B95: =VLOOKUP($A$2&$C$2&$B$2&$C$2&$A95,ConsumeBlock1,12,FALSE) ->  | C95: x | D95: =IF(ISNUMBER(ResCoalCC),ResCoalCC,VLOOKUP($A$2 & " Res + Comm Coal CC",CoalCoeffBlock,D91-1988,FALSE)) ->  | E95: x | F95: =CoalEff -> 0 | G95: = | H95: =B95*D95*F95*1000*lbs_shortt ->  | I95: = | J95: =H95*Short_Metric/1000000 ->  | K95: = | L95: =J95*C_CO2 -> 
A96: Distillate Fuel | C96: x | D96: =DistillCC -> 0 | E96: x | F96: =PetroEff -> 0 | G96: = | I96: = | K96: =
A97: Kerosene | C97: x | D97: =KeroCC -> 0 | E97: x | F97: =PetroEff -> 0 | G97: = | I97: = | K97: =
A98: Hydrocarbon Gas Liquids | C98: x | D98: =IF(ISNUMBER(LPGEUCC),LPGEUCC,VLOOKUP("LPG",VariableCCs,D91-1988,FALSE)) -> 37.80773182 | E98: x | F98: =LPGEff -> 0 | G98: = | I98: = | K98: =
A99: Natural Gas | C99: x | D99: =NGCC -> 0 | E99: x | F99: =NGEff -> 0 | G99: = | I99: = | K99: =
A100: Other | B100: 0 | C100: x | E100: x | G100: = | H100: 0 | I100: = | J100: 0 | K100: = | L100: 0
A102: Residential Sector | D102: 1999
B104: Consumption | D104: Emission Factor | F104: Combustion | H104: Emissions | J104: Emissions | L104: Emissions
A105: Fuel Type | B105: (Billion Btu) | D105: (lbs C/Million Btu) | F105: Efficiency (%) | H105: (short tons carbon) | J105: (MMTCE) | L105: (MMTCO2E)
A106: Coal | B106: =VLOOKUP($A$2&$C$2&$B$2&$C$2&$A106,ConsumeBlock1,13,FALSE) ->  | C106: x | D106: =IF(ISNUMBER(ResCoalCC),ResCoalCC,VLOOKUP($A$2 & " Res + Comm Coal CC",CoalCoeffBlock,D102-1988,FALSE)) ->  | E106: x | F106: =CoalEff -> 0 | G106: = | H106: =B106*D106*F106*1000*lbs_shortt ->  | I106: = | J106: =H106*Short_Metric/1000000 ->  | K106: = | L106: =J106*C_CO2 -> 
A107: Distillate Fuel | C107: x | D107: =DistillCC -> 0 | E107: x | F107: =PetroEff -> 0 | G107: = | I107: = | K107: =
A108: Kerosene | C108: x | D108: =KeroCC -> 0 | E108: x | F108: =PetroEff -> 0 | G108: = | I108: = | K108: =
A109: Hydrocarbon Gas Liquids | C109: x | D109: =IF(ISNUMBER(LPGEUCC),LPGEUCC,VLOOKUP("LPG",VariableCCs,D102-1988,FALSE)) -> 37.80773182 | E109: x | F109: =LPGEff -> 0 | G109: = | I109: = | K109: =
A110: Natural Gas | C110: x | D110: =NGCC -> 0 | E110: x | F110: =NGEff -> 0 | G110: = | I110: = | K110: =
A111: Other | B111: 0 | C111: x | E111: x | G111: = | H111: 0 | I111: = | J111: 0 | K111: = | L111: 0
A113: Residential Sector | D113: 2000
B115: Consumption | D115: Emission Factor | F115: Combustion | H115: Emissions | J115: Emissions | L115: Emissions
A116: Fuel Type | B116: (Billion Btu) | D116: (lbs C/Million Btu) | F116: Efficiency (%) | H116: (short tons carbon) | J116: (MMTCE) | L116: (MMTCO2E)
A117: Coal | B117: =VLOOKUP($A$2&$C$2&$B$2&$C$2&$A117,ConsumeBlock1,14,FALSE) ->  | C117: x | D117: =IF(ISNUMBER(ResCoalCC),ResCoalCC,VLOOKUP($A$2 & " Res + Comm Coal CC",CoalCoeffBlock,D113-1988,FALSE)) ->  | E117: x | F117: =CoalEff -> 0 | G117: = | H117: =B117*D117*F117*1000*lbs_shortt ->  | I117: = | J117: =H117*Short_Metric/1000000 ->  | K117: = | L117: =J117*C_CO2 -> 
A118: Distillate Fuel | C118: x | D118: =DistillCC -> 0 | E118: x | F118: =PetroEff -> 0 | G118: = | I118: = | K118: =
A119: Kerosene | C119: x | D119: =KeroCC -> 0 | E119: x | F119: =PetroEff -> 0 | G119: = | I119: = | K119: =
A120: Hydrocarbon Gas Liquids | C120: x | D120: =IF(ISNUMBER(LPGEUCC),LPGEUCC,VLOOKUP("LPG",VariableCCs,D113-1988,FALSE)) -> 37.80773182 | E120: x | F120: =LPGEff -> 0 | G120: = | I120: = | K120: =
A121: Natural Gas | C121: x | D121: =NGCC -> 0 | E121: x | F121: =NGEff -> 0 | G121: = | I121: = | K121: =
A122: Other | B122: 0 | C122: x | E122: x | G122: = | H122: 0 | I122: = | J122: 0 | K122: = | L122: 0
A124: Residential Sector | D124: 2001
B126: Consumption | D126: Emission Factor | F126: Combustion | H126: Emissions | J126: Emissions | L126: Emissions
A127: Fuel Type | B127: (Billion Btu) | D127: (lbs C/Million Btu) | F127: Efficiency (%) | H127: (short tons carbon) | J127: (MMTCE) | L127: (MMTCO2E)
A128: Coal | B128: =VLOOKUP($A$2&$C$2&$B$2&$C$2&$A128,ConsumeBlock1,15,FALSE) ->  | C128: x | D128: =IF(ISNUMBER(ResCoalCC),ResCoalCC,VLOOKUP($A$2 & " Res + Comm Coal CC",CoalCoeffBlock,D124-1988,FALSE)) ->  | E128: x | F128: =CoalEff -> 0 | G128: = | H128: =B128*D128*F128*1000*lbs_shortt ->  | I128: = | J128: =H128*Short_Metric/1000000 ->  | K128: = | L128: =J128*C_CO2 -> 
A129: Distillate Fuel | C129: x | D129: =DistillCC -> 0 | E129: x | F129: =PetroEff -> 0 | G129: = | I129: = | K129: =
A130: Kerosene | C130: x | D130: =KeroCC -> 0 | E130: x | F130: =PetroEff -> 0 | G130: = | I130: = | K130: =
A131: Hydrocarbon Gas Liquids | C131: x | D131: =IF(ISNUMBER(LPGEUCC),LPGEUCC,VLOOKUP("LPG",VariableCCs,D124-1988,FALSE)) -> 37.80773182 | E131: x | F131: =LPGEff -> 0 | G131: = | I131: = | K131: =
A132: Natural Gas | C132: x | D132: =NGCC -> 0 | E132: x | F132: =NGEff -> 0 | G132: = | I132: = | K132: =
A133: Other | B133: 0 | C133: x | E133: x | G133: = | H133: 0 | I133: = | J133: 0 | K133: = | L133: 0
A135: Residential Sector | D135: 2002
B137: Consumption | D137: Emission Factor | F137: Combustion | H137: Emissions | J137: Emissions | L137: Emissions
A138: Fuel Type | B138: (Billion Btu) | D138: (lbs C/Million Btu) | F138: Efficiency (%) | H138: (short tons carbon) | J138: (MMTCE) | L138: (MMTCO2E)
A139: Coal | B139: =VLOOKUP($A$2&$C$2&$B$2&$C$2&$A139,ConsumeBlock1,16,FALSE) ->  | C139: x | D139: =IF(ISNUMBER(ResCoalCC),ResCoalCC,VLOOKUP($A$2 & " Res + Comm Coal CC",CoalCoeffBlock,D135-1988,FALSE)) ->  | E139: x | F139: =CoalEff -> 0 | G139: = | H139: =B139*D139*F139*1000*lbs_shortt ->  | I139: = | J139: =H139*Short_Metric/1000000 ->  | K139: = | L139: =J139*C_CO2 -> 
A140: Distillate Fuel | C140: x | D140: =DistillCC -> 0 | E140: x | F140: =PetroEff -> 0 | G140: = | I140: = | K140: =
A141: Kerosene | C141: x | D141: =KeroCC -> 0 | E141: x | F141: =PetroEff -> 0 | G141: = | I141: = | K141: =
A142: Hydrocarbon Gas Liquids | C142: x | D142: =IF(ISNUMBER(LPGEUCC),LPGEUCC,VLOOKUP("LPG",VariableCCs,D135-1988,FALSE)) -> 37.80773182 | E142: x | F142: =LPGEff -> 0 | G142: = | H142: =B142*D142*F142*1000*lbs_shortt ->  | I142: = | K142: =
A143: Natural Gas | C143: x | D143: =NGCC -> 0 | E143: x | F143: =NGEff -> 0 | G143: = | I143: = | K143: =
A144: Other | B144: 0 | C144: x | E144: x | G144: = | H144: 0 | I144: = | J144: 0 | K144: = | L144: 0
A146: Residential Sector | D146: 2003
B148: Consumption | D148: Emission Factor | F148: Combustion | H148: Emissions | J148: Emissions | L148: Emissions
A149: Fuel Type | B149: (Billion Btu) | D149: (lbs C/Million Btu) | F149: Efficiency (%) | H149: (short tons carbon) | J149: (MMTCE) | L149: (MMTCO2E)
A150: Coal | B150: =VLOOKUP($A$2&$C$2&$B$2&$C$2&$A150,ConsumeBlock1,17,FALSE) ->  | C150: x | D150: =IF(ISNUMBER(ResCoalCC),ResCoalCC,VLOOKUP($A$2 & " Res + Comm Coal CC",CoalCoeffBlock,D146-1988,FALSE)) ->  | E150: x | F150: =CoalEff -> 0 | G150: = | H150: =B150*D150*F150*1000*lbs_shortt ->  | I150: = | J150: =H150*Short_Metric/1000000 ->  | K150: = | L150: =J150*C_CO2 -> 
A151: Distillate Fuel | C151: x | D151: =DistillCC -> 0 | E151: x | F151: =PetroEff -> 0 | G151: = | I151: = | K151: =
A152: Kerosene | C152: x | D152: =KeroCC -> 0 | E152: x | F152: =PetroEff -> 0 | G152: = | I152: = | K152: =
A153: Hydrocarbon Gas Liquids | C153: x | D153: =IF(ISNUMBER(LPGEUCC),LPGEUCC,VLOOKUP("LPG",VariableCCs,D146-1988,FALSE)) -> 37.80773182 | E153: x | F153: =LPGEff -> 0 | G153: = | I153: = | K153: =
A154: Natural Gas | C154: x | D154: =NGCC -> 0 | E154: x | F154: =NGEff -> 0 | G154: = | I154: = | K154: =
A155: Other | B155: 0 | C155: x | E155: x | G155: = | H155: 0 | I155: = | J155: 0 | K155: = | L155: 0
A157: Residential Sector | D157: 2004
B159: Consumption | D159: Emission Factor | F159: Combustion | H159: Emissions | J159: Emissions | L159: Emissions
A160: Fuel Type | B160: (Billion Btu) | D160: (lbs C/Million Btu) | F160: Efficiency (%) | H160: (short tons carbon) | J160: (MMTCE) | L160: (MMTCO2E)
A161: Coal | B161: =VLOOKUP($A$2&$C$2&$B$2&$C$2&$A161,ConsumeBlock1,18,FALSE) ->  | C161: x | D161: =IF(ISNUMBER(ResCoalCC),ResCoalCC,VLOOKUP($A$2 & " Res + Comm Coal CC",CoalCoeffBlock,D157-1988,FALSE)) ->  | E161: x | F161: =CoalEff -> 0 | G161: = | H161: =B161*D161*F161*1000*lbs_shortt ->  | I161: = | J161: =H161*Short_Metric/1000000 ->  | K161: = | L161: =J161*C_CO2 -> 
A162: Distillate Fuel | C162: x | D162: =DistillCC -> 0 | E162: x | F162: =PetroEff -> 0 | G162: = | I162: = | K162: =
A163: Kerosene | C163: x | D163: =KeroCC -> 0 | E163: x | F163: =PetroEff -> 0 | G163: = | I163: = | K163: =
A164: Hydrocarbon Gas Liquids | C164: x | D164: =IF(ISNUMBER(LPGEUCC),LPGEUCC,VLOOKUP("LPG",VariableCCs,D157-1988,FALSE)) -> 37.80773182 | E164: x | F164: =LPGEff -> 0 | G164: = | I164: = | K164: =
A165: Natural Gas | C165: x | D165: =NGCC -> 0 | E165: x | F165: =NGEff -> 0 | G165: = | I165: = | K165: =
A166: Other | B166: 0 | C166: x | E166: x | G166: = | H166: 0 | I166: = | J166: 0 | K166: = | L166: 0
A168: Residential Sector | D168: =D157+1 -> 2005
B170: Consumption | D170: Emission Factor | F170: Combustion | H170: Emissions | J170: Emissions | L170: Emissions
A171: Fuel Type | B171: (Billion Btu) | D171: (lbs C/Million Btu) | F171: Efficiency (%) | H171: (short tons carbon) | J171: (MMTCE) | L171: (MMTCO2E)
A172: Coal | B172: =VLOOKUP($A$2&$C$2&$B$2&$C$2&$A172,ConsumeBlock1,19,FALSE) ->  | C172: x | D172: =IF(ISNUMBER(ResCoalCC),ResCoalCC,VLOOKUP($A$2 & " Res + Comm Coal CC",CoalCoeffBlock,D168-1988,FALSE)) ->  | E172: x | F172: =CoalEff -> 0 | G172: = | H172: =B172*D172*F172*1000*lbs_shortt ->  | I172: = | J172: =H172*Short_Metric/1000000 ->  | K172: = | L172: =J172*C_CO2 -> 
A173: Distillate Fuel | C173: x | D173: =DistillCC -> 0 | E173: x | F173: =PetroEff -> 0 | G173: = | I173: = | K173: =
A174: Kerosene | C174: x | D174: =KeroCC -> 0 | E174: x | F174: =PetroEff -> 0 | G174: = | I174: = | K174: =
A175: Hydrocarbon Gas Liquids | C175: x | D175: =IF(ISNUMBER(LPGEUCC),LPGEUCC,VLOOKUP("LPG",VariableCCs,D168-1988,FALSE)) -> 37.80773182 | E175: x | F175: =LPGEff -> 0 | G175: = | I175: = | K175: =
A176: Natural Gas | C176: x | D176: =NGCC -> 0 | E176: x | F176: =NGEff -> 0 | G176: = | I176: = | K176: =
A177: Other | B177: 0 | C177: x | E177: x | G177: = | H177: 0 | I177: = | J177: 0 | K177: = | L177: 0
A179: Residential Sector | D179: =D168+1 -> 2006
B181: Consumption | D181: Emission Factor | F181: Combustion | H181: Emissions | J181: Emissions | L181: Emissions
A182: Fuel Type | B182: (Billion Btu) | D182: (lbs C/Million Btu) | F182: Efficiency (%) | H182: (short tons carbon) | J182: (MMTCE) | L182: (MMTCO2E)
A183: Coal | B183: =VLOOKUP($A$2&$C$2&$B$2&$C$2&$A183,ConsumeBlock1,20,FALSE) ->  | C183: x | D183: =IF(ISNUMBER(ResCoalCC),ResCoalCC,VLOOKUP($A$2 & " Res + Comm Coal CC",CoalCoeffBlock,D179-1988,FALSE)) ->  | E183: x | F183: =CoalEff -> 0 | G183: = | H183: =B183*D183*F183*1000*lbs_shortt ->  | I183: = | J183: =H183*Short_Metric/1000000 ->  | K183: = | L183: =J183*C_CO2 -> 
A184: Distillate Fuel | C184: x | D184: =DistillCC -> 0 | E184: x | F184: =PetroEff -> 0 | G184: = | I184: = | K184: =
A185: Kerosene | C185: x | D185: =KeroCC -> 0 | E185: x | F185: =PetroEff -> 0 | G185: = | I185: = | K185: =
A186: Hydrocarbon Gas Liquids | C186: x | D186: =IF(ISNUMBER(LPGEUCC),LPGEUCC,VLOOKUP("LPG",VariableCCs,D179-1988,FALSE)) -> 37.80773182 | E186: x | F186: =LPGEff -> 0 | G186: = | I186: = | K186: =
A187: Natural Gas | C187: x | D187: =NGCC -> 0 | E187: x | F187: =NGEff -> 0 | G187: = | I187: = | K187: =
A188: Other | B188: 0 | C188: x | E188: x | G188: = | H188: 0 | I188: = | J188: 0 | K188: = | L188: 0
A190: Residential Sector | D190: =D179+1 -> 2007
B192: Consumption | D192: Emission Factor | F192: Combustion | H192: Emissions | J192: Emissions | L192: Emissions
A193: Fuel Type | B193: (Billion Btu) | D193: (lbs C/Million Btu) | F193: Efficiency (%) | H193: (short tons carbon) | J193: (MMTCE) | L193: (MMTCO2E)
A194: Coal | B194: =VLOOKUP($A$2&$C$2&$B$2&$C$2&$A194,ConsumeBlock1,21,FALSE) ->  | C194: x | D194: =IF(ISNUMBER(ResCoalCC),ResCoalCC,VLOOKUP($A$2 & " Res + Comm Coal CC",CoalCoeffBlock,D190-1988,FALSE)) ->  | E194: x | F194: =CoalEff -> 0 | G194: = | H194: =B194*D194*F194*1000*lbs_shortt ->  | I194: = | J194: =H194*Short_Metric/1000000 ->  | K194: = | L194: =J194*C_CO2 -> 
A195: Distillate Fuel | C195: x | D195: =DistillCC -> 0 | E195: x | F195: =PetroEff -> 0 | G195: = | I195: = | K195: =
A196: Kerosene | C196: x | D196: =KeroCC -> 0 | E196: x | F196: =PetroEff -> 0 | G196: = | I196: = | K196: =
A197: Hydrocarbon Gas Liquids | C197: x | D197: =IF(ISNUMBER(LPGEUCC),LPGEUCC,VLOOKUP("LPG",VariableCCs,D190-1988,FALSE)) -> 37.80773182 | E197: x | F197: =LPGEff -> 0 | G197: = | I197: = | K197: =
A198: Natural Gas | C198: x | D198: =NGCC -> 0 | E198: x | F198: =NGEff -> 0 | G198: = | I198: = | K198: =
A199: Other | B199: 0 | C199: x | E199: x | G199: = | H199: 0 | I199: = | J199: 0 | K199: = | L199: 0
A201: Residential Sector | D201: =D190+1 -> 2008
B203: Consumption | D203: Emission Factor | F203: Combustion | H203: Emissions | J203: Emissions | L203: Emissions
A204: Fuel Type | B204: (Billion Btu) | D204: (lbs C/Million Btu) | F204: Efficiency (%) | H204: (short tons carbon) | J204: (MMTCE) | L204: (MMTCO2E)
A205: Coal | B205: =VLOOKUP($A$2&$C$2&$B$2&$C$2&$A205,ConsumeBlock1,22,FALSE) ->  | C205: x | D205: =IF(ISNUMBER(ResCoalCC),ResCoalCC,VLOOKUP($A$2 & " Res + Comm Coal CC",CoalCoeffBlock,D201-1988,FALSE)) ->  | E205: x | F205: =CoalEff -> 0 | G205: = | H205: =B205*D205*F205*1000*lbs_shortt ->  | I205: = | J205: =H205*Short_Metric/1000000 ->  | K205: = | L205: =J205*C_CO2 -> 
A206: Distillate Fuel | C206: x | D206: =DistillCC -> 0 | E206: x | F206: =PetroEff -> 0 | G206: = | I206: = | K206: =
A207: Kerosene | C207: x | D207: =KeroCC -> 0 | E207: x | F207: =PetroEff -> 0 | G207: = | I207: = | K207: =
A208: Hydrocarbon Gas Liquids | C208: x | D208: =IF(ISNUMBER(LPGEUCC),LPGEUCC,VLOOKUP("LPG",VariableCCs,D201-1988,FALSE)) -> 37.80773182 | E208: x | F208: =LPGEff -> 0 | G208: = | I208: = | K208: =
A209: Natural Gas | C209: x | D209: =NGCC -> 0 | E209: x | F209: =NGEff -> 0 | G209: = | I209: = | K209: =
A210: Other | B210: 0 | C210: x | E210: x | G210: = | H210: 0 | I210: = | J210: 0 | K210: = | L210: 0
A212: Residential Sector | D212: =D201+1 -> 2009
B214: Consumption | D214: Emission Factor | F214: Combustion | H214: Emissions | J214: Emissions | L214: Emissions
A215: Fuel Type | B215: (Billion Btu) | D215: (lbs C/Million Btu) | F215: Efficiency (%) | H215: (short tons carbon) | J215: (MMTCE) | L215: (MMTCO2E)
A216: Coal | B216: =VLOOKUP($A$2&$C$2&$B$2&$C$2&$A216,ConsumeBlock1,23,FALSE) ->  | C216: x | D216: =IF(ISNUMBER(ResCoalCC),ResCoalCC,VLOOKUP($A$2 & " Res + Comm Coal CC",CoalCoeffBlock,D212-1988,FALSE)) ->  | E216: x | F216: =CoalEff -> 0 | G216: = | H216: =B216*D216*F216*1000*lbs_shortt ->  | I216: = | J216: =H216*Short_Metric/1000000 ->  | K216: = | L216: =J216*C_CO2 -> 
A217: Distillate Fuel | C217: x | D217: =DistillCC -> 0 | E217: x | F217: =PetroEff -> 0 | G217: = | I217: = | K217: =
A218: Kerosene | C218: x | D218: =KeroCC -> 0 | E218: x | F218: =PetroEff -> 0 | G218: = | I218: = | K218: =
A219: Hydrocarbon Gas Liquids | C219: x | D219: =IF(ISNUMBER(LPGEUCC),LPGEUCC,VLOOKUP("LPG",VariableCCs,D212-1988,FALSE)) -> 37.80773182 | E219: x | F219: =LPGEff -> 0 | G219: = | I219: = | K219: =
A220: Natural Gas | C220: x | D220: =NGCC -> 0 | E220: x | F220: =NGEff -> 0 | G220: = | I220: = | K220: =
A221: Other | B221: 0 | C221: x | E221: x | G221: = | H221: 0 | I221: = | J221: 0 | K221: = | L221: 0
A223: Residential Sector | D223: =D212+1 -> 2010
B225: Consumption | D225: Emission Factor | F225: Combustion | H225: Emissions | J225: Emissions | L225: Emissions
A226: Fuel Type | B226: (Billion Btu) | D226: (lbs C/Million Btu) | F226: Efficiency (%) | H226: (short tons carbon) | J226: (MMTCE) | L226: (MMTCO2E)
A227: Coal | B227: =VLOOKUP($A$2&$C$2&$B$2&$C$2&$A227,ConsumeBlock1,24,FALSE) ->  | C227: x | D227: =IF(ISNUMBER(ResCoalCC),ResCoalCC,VLOOKUP($A$2 & " Res + Comm Coal CC",CoalCoeffBlock,D223-1988,FALSE)) ->  | E227: x | F227: =CoalEff -> 0 | G227: = | H227: =B227*D227*F227*1000*lbs_shortt ->  | I227: = | J227: =H227*Short_Metric/1000000 ->  | K227: = | L227: =J227*C_CO2 -> 
A228: Distillate Fuel | C228: x | D228: =DistillCC -> 0 | E228: x | F228: =PetroEff -> 0 | G228: = | I228: = | K228: =
A229: Kerosene | C229: x | D229: =KeroCC -> 0 | E229: x | F229: =PetroEff -> 0 | G229: = | I229: = | K229: =
A230: Hydrocarbon Gas Liquids | C230: x | D230: =IF(ISNUMBER(LPGEUCC),LPGEUCC,VLOOKUP("LPG",VariableCCs,D223-1988,FALSE)) -> 37.80773182 | E230: x | F230: =LPGEff -> 0 | G230: = | I230: = | K230: =
A231: Natural Gas | C231: x | D231: =NGCC -> 0 | E231: x | F231: =NGEff -> 0 | G231: = | I231: = | K231: =
A232: Other | B232: 0 | C232: x | E232: x | G232: = | H232: 0 | I232: = | J232: 0 | K232: = | L232: 0
A234: Residential Sector | D234: =D223+1 -> 2011
B236: Consumption | D236: Emission Factor | F236: Combustion | H236: Emissions | J236: Emissions | L236: Emissions
A237: Fuel Type | B237: (Billion Btu) | D237: (lbs C/Million Btu) | F237: Efficiency (%) | H237: (short tons carbon) | J237: (MMTCE) | L237: (MMTCO2E)
A238: Coal | B238: =VLOOKUP($A$2&$C$2&$B$2&$C$2&$A238,ConsumeBlock1,25,FALSE) ->  | C238: x | D238: =IF(ISNUMBER(ResCoalCC),ResCoalCC,VLOOKUP($A$2 & " Res + Comm Coal CC",CoalCoeffBlock,D234-1988,FALSE)) ->  | E238: x | F238: =CoalEff -> 0 | G238: = | H238: =B238*D238*F238*1000*lbs_shortt ->  | I238: = | J238: =H238*Short_Metric/1000000 ->  | K238: = | L238: =J238*C_CO2 -> 
A239: Distillate Fuel | C239: x | D239: =DistillCC -> 0 | E239: x | F239: =PetroEff -> 0 | G239: = | I239: = | K239: =
A240: Kerosene | C240: x | D240: =KeroCC -> 0 | E240: x | F240: =PetroEff -> 0 | G240: = | I240: = | K240: =
A241: Hydrocarbon Gas Liquids | C241: x | D241: =IF(ISNUMBER(LPGEUCC),LPGEUCC,VLOOKUP("LPG",VariableCCs,D234-1988,FALSE)) -> 37.80773182 | E241: x | F241: =LPGEff -> 0 | G241: = | I241: = | K241: =
A242: Natural Gas | C242: x | D242: =NGCC -> 0 | E242: x | F242: =NGEff -> 0 | G242: = | I242: = | K242: =
A243: Other | B243: 0 | C243: x | E243: x | G243: = | H243: 0 | I243: = | J243: 0 | K243: = | L243: 0
... 81 more rows

Sheet Commercial
A1: ="5. Commercial Consumption and CO2 Emissions in "&'List Data'!E3 -> 5. Commercial Consumption and CO2 Emissions in Select a State . . .
A2: ='List Data'!F3 -> XX | B2: Commercial | C2: =" " -> 
A3: Commercial Sector | D3: 1990
B5: Consumption | D5: Emission Factor | F5: Combustion | H5: Emissions | J5: Emissions | L5: Emissions
A6: Fuel Type | B6: (Billion Btu) | D6: (lbs C/Million Btu) | F6: Efficiency (%) | H6: (short tons carbon) | J6: (MMTCE) | L6: (MMTCO2E)
A7: Coal | B7: =VLOOKUP($A$2&$C$2&$B$2&$C$2&$A7,ConsumeBlock1,4,FALSE) ->  | C7: x | D7: =IF(ISNUMBER(CommCoalCC),CommCoalCC,VLOOKUP($A$2 & " Res + Comm Coal CC",CoalCoeffBlock,D3-1988,FALSE)) ->  | E7: x | F7: =CoalEff -> 0 | G7: = | H7: =B7*D7*F7*1000*lbs_shortt ->  | I7: = | J7: =H7*Short_Metric/1000000 ->  | K7: = | L7: =J7*C_CO2 -> 
A8: Distillate Fuel | C8: x | D8: =DistillCC -> 0 | E8: x | F8: =PetroEff -> 0 | G8: = | H8: =B8*D8*F8*1000*lbs_shortt ->  | I8: = | J8: =H8*Short_Metric/1000000 ->  | K8: =
A9: Kerosene | C9: x | D9: =KeroCC -> 0 | E9: x | F9: =PetroEff -> 0 | G9: = | I9: = | K9: =
A10: Hydrocarbon Gas Liquids | C10: x | D10: =IF(ISNUMBER(LPGEUCC),LPGEUCC,VLOOKUP("LPG",VariableCCs,D3-1988,FALSE)) -> 37.80773182 | E10: x | F10: =LPGEff -> 0 | G10: = | I10: = | K10: =
A11: Motor Gasoline | C11: x | D11: =IF(ISNUMBER(MotorGasCC),MotorGasCC,VLOOKUP(A11,VariableCCs,D3-1988,FALSE)) -> 42.82731893 | E11: x | F11: =PetroEff -> 0 | G11: = | I11: = | K11: =
A12: Residual Fuel | C12: x | D12: =ResidCC -> 0 | E12: x | F12: =PetroEff -> 0 | G12: = | I12: = | K12: =
A13: Natural Gas | C13: x | D13: =NatGasCC -> 0 | E13: x | F13: =NGEff -> 0 | G13: = | I13: = | K13: =
A14: Other | B14: 0 | C14: x | E14: x | G14: = | H14: =B14*D14*F14*1000*lbs_shortt -> 0 | I14: = | J14: =H14*Short_Metric/1000000 -> 0 | K14: = | L14: 0
A16: Commercial Sector | D16: 1991
B18: Consumption | D18: Emission Factor | F18: Combustion | H18: Emissions | J18: Emissions | L18: Emissions
A19: Fuel Type | B19: (Billion Btu) | D19: (lbs C/Million Btu) | F19: Efficiency (%) | H19: (short tons carbon) | J19: (MMTCE) | L19: (MMTCO2E)
A20: Coal | B20: =VLOOKUP($A$2&$C$2&$B$2&$C$2&$A20,ConsumeBlock1,5,FALSE) ->  | C20: x | D20: =IF(ISNUMBER(CommCoalCC),CommCoalCC,VLOOKUP($A$2 & " Res + Comm Coal CC",CoalCoeffBlock,D16-1988,FALSE)) ->  | E20: x | F20: =CoalEff -> 0 | G20: = | H20: =B20*D20*F20*1000*lbs_shortt ->  | I20: = | J20: =H20*Short_Metric/1000000 ->  | K20: = | L20: =J20*C_CO2 -> 
A21: Distillate Fuel | C21: x | D21: =DistillCC -> 0 | E21: x | F21: =PetroEff -> 0 | G21: = | H21: =B21*D21*F21*1000*lbs_shortt ->  | I21: = | J21: =H21*Short_Metric/1000000 ->  | K21: =
A22: Kerosene | C22: x | D22: =KeroCC -> 0 | E22: x | F22: =PetroEff -> 0 | G22: = | I22: = | K22: =
A23: Hydrocarbon Gas Liquids | C23: x | D23: =IF(ISNUMBER(LPGEUCC),LPGEUCC,VLOOKUP("LPG",VariableCCs,D16-1988,FALSE)) -> 37.80773182 | E23: x | F23: =LPGEff -> 0 | G23: = | I23: = | K23: =
A24: Motor Gasoline | C24: x | D24: =IF(ISNUMBER(MotorGasCC),MotorGasCC,VLOOKUP(A24,VariableCCs,D16-1988,FALSE)) -> 42.86295359 | E24: x | F24: =PetroEff -> 0 | G24: = | I24: = | K24: =
A25: Residual Fuel | C25: x | D25: =ResidCC -> 0 | E25: x | F25: =PetroEff -> 0 | G25: = | I25: = | K25: =
A26: Natural Gas | C26: x | D26: =NatGasCC -> 0 | E26: x | F26: =NGEff -> 0 | G26: = | I26: = | K26: =
A27: Other | B27: 0 | C27: x | E27: x | G27: = | H27: 0 | I27: = | J27: 0 | K27: = | L27: 0
A29: Commercial Sector | D29: 1992
B31: Consumption | D31: Emission Factor | F31: Combustion | H31: Emissions | J31: Emissions | L31: Emissions
A32: Fuel Type | B32: (Billion Btu) | D32: (lbs C/Million Btu) | F32: Efficiency (%) | H32: (short tons carbon) | J32: (MMTCE) | L32: (MMTCO2E)
A33: Coal | B33: =VLOOKUP($A$2&$C$2&$B$2&$C$2&$A33,ConsumeBlock1,6,FALSE) ->  | C33: x | D33: =IF(ISNUMBER(CommCoalCC),CommCoalCC,VLOOKUP($A$2 & " Res + Comm Coal CC",CoalCoeffBlock,D29-1988,FALSE)) ->  | E33: x | F33: =CoalEff -> 0 | G33: = | H33: =B33*D33*F33*1000*lbs_shortt ->  | I33: = | J33: =H33*Short_Metric/1000000 ->  | K33: = | L33: =J33*C_CO2 -> 
A34: Distillate Fuel | C34: x | D34: =DistillCC -> 0 | E34: x | F34: =PetroEff -> 0 | G34: = | H34: =B34*D34*F34*1000*lbs_shortt ->  | I34: = | J34: =H34*Short_Metric/1000000 ->  | K34: =
A35: Kerosene | C35: x | D35: =KeroCC -> 0 | E35: x | F35: =PetroEff -> 0 | G35: = | I35: = | K35: =
A36: Hydrocarbon Gas Liquids | C36: x | D36: =IF(ISNUMBER(LPGEUCC),LPGEUCC,VLOOKUP("LPG",VariableCCs,D29-1988,FALSE)) -> 37.80773182 | E36: x | F36: =LPGEff -> 0 | G36: = | I36: = | K36: =
A37: Motor Gasoline | C37: x | D37: =IF(ISNUMBER(MotorGasCC),MotorGasCC,VLOOKUP(A37,VariableCCs,D29-1988,FALSE)) -> 42.97982772 | E37: x | F37: =PetroEff -> 0 | G37: = | I37: = | K37: =
A38: Residual Fuel | C38: x | D38: =ResidCC -> 0 | E38: x | F38: =PetroEff -> 0 | G38: = | I38: = | K38: =
A39: Natural Gas | C39: x | D39: =NatGasCC -> 0 | E39: x | F39: =NGEff -> 0 | G39: = | I39: = | K39: =
A40: Other | B40: 0 | C40: x | E40: x | G40: = | H40: 0 | I40: = | J40: 0 | K40: = | L40: 0
A42: Commercial Sector | D42: 1993
B44: Consumption | D44: Emission Factor | F44: Combustion | H44: Emissions | J44: Emissions | L44: Emissions
A45: Fuel Type | B45: (Billion Btu) | D45: (lbs C/Million Btu) | F45: Efficiency (%) | H45: (short tons carbon) | J45: (MMTCE) | L45: (MMTCO2E)
A46: Coal | B46: =VLOOKUP($A$2&$C$2&$B$2&$C$2&$A46,ConsumeBlock1,7,FALSE) ->  | C46: x | D46: =IF(ISNUMBER(CommCoalCC),CommCoalCC,VLOOKUP($A$2 & " Res + Comm Coal CC",CoalCoeffBlock,D42-1988,FALSE)) ->  | E46: x | F46: =CoalEff -> 0 | G46: = | H46: =B46*D46*F46*1000*lbs_shortt ->  | I46: = | J46: =H46*Short_Metric/1000000 ->  | K46: = | L46: =J46*C_CO2 -> 
A47: Distillate Fuel | C47: x | D47: =DistillCC -> 0 | E47: x | F47: =PetroEff -> 0 | G47: = | H47: =B47*D47*F47*1000*lbs_shortt ->  | I47: = | J47: =H47*Short_Metric/1000000 ->  | K47: =
A48: Kerosene | C48: x | D48: =KeroCC -> 0 | E48: x | F48: =PetroEff -> 0 | G48: = | I48: = | K48: =
A49: Hydrocarbon Gas Liquids | C49: x | D49: =IF(ISNUMBER(LPGEUCC),LPGEUCC,VLOOKUP("LPG",VariableCCs,D42-1988,FALSE)) -> 37.80773182 | E49: x | F49: =LPGEff -> 0 | G49: = | I49: = | K49: =
A50: Motor Gasoline | C50: x | D50: =IF(ISNUMBER(MotorGasCC),MotorGasCC,VLOOKUP(A50,VariableCCs,D42-1988,FALSE)) -> 42.86336938 | E50: x | F50: =PetroEff -> 0 | G50: = | I50: = | K50: =
A51: Residual Fuel | C51: x | D51: =ResidCC -> 0 | E51: x | F51: =PetroEff -> 0 | G51: = | I51: = | K51: =
A52: Natural Gas | C52: x | D52: =NatGasCC -> 0 | E52: x | F52: =NGEff -> 0 | G52: = | I52: = | K52: =
A53: Other | B53: 0 | C53: x | E53: x | G53: = | H53: 0 | I53: = | J53: 0 | K53: = | L53: 0
A55: Commercial Sector | D55: 1994
B57: Consumption | D57: Emission Factor | F57: Combustion | H57: Emissions | J57: Emissions | L57: Emissions
A58: Fuel Type | B58: (Billion Btu) | D58: (lbs C/Million Btu) | F58: Efficiency (%) | H58: (short tons carbon) | J58: (MMTCE) | L58: (MMTCO2E)
A59: Coal | B59: =VLOOKUP($A$2&$C$2&$B$2&$C$2&$A59,ConsumeBlock1,8,FALSE) ->  | C59: x | D59: =IF(ISNUMBER(CommCoalCC),CommCoalCC,VLOOKUP($A$2 & " Res + Comm Coal CC",CoalCoeffBlock,D55-1988,FALSE)) ->  | E59: x | F59: =CoalEff -> 0 | G59: = | H59: =B59*D59*F59*1000*lbs_shortt ->  | I59: = | J59: =H59*Short_Metric/1000000 ->  | K59: = | L59: =J59*C_CO2 -> 
A60: Distillate Fuel | C60: x | D60: =DistillCC -> 0 | E60: x | F60: =PetroEff -> 0 | G60: = | H60: =B60*D60*F60*1000*lbs_shortt ->  | I60: = | J60: =H60*Short_Metric/1000000 ->  | K60: =
A61: Kerosene | C61: x | D61: =KeroCC -> 0 | E61: x | F61: =PetroEff -> 0 | G61: = | I61: = | K61: =
A62: Hydrocarbon Gas Liquids | C62: x | D62: =IF(ISNUMBER(LPGEUCC),LPGEUCC,VLOOKUP("LPG",VariableCCs,D55-1988,FALSE)) -> 37.80773182 | E62: x | F62: =LPGEff -> 0 | G62: = | I62: = | K62: =
A63: Motor Gasoline | C63: x | D63: =IF(ISNUMBER(MotorGasCC),MotorGasCC,VLOOKUP(A63,VariableCCs,D55-1988,FALSE)) -> 42.69717006 | E63: x | F63: =PetroEff -> 0 | G63: = | I63: = | K63: =
A64: Residual Fuel | C64: x | D64: =ResidCC -> 0 | E64: x | F64: =PetroEff -> 0 | G64: = | I64: = | K64: =
A65: Natural Gas | C65: x | D65: =NatGasCC -> 0 | E65: x | F65: =NGEff -> 0 | G65: = | I65: = | K65: =
A66: Other | B66: 0 | C66: x | E66: x | G66: = | H66: 0 | I66: = | J66: 0 | K66: = | L66: 0
A68: Commercial Sector | D68: 1995
B70: Consumption | D70: Emission Factor | F70: Combustion | H70: Emissions | J70: Emissions | L70: Emissions
A71: Fuel Type | B71: (Billion Btu) | D71: (lbs C/Million Btu) | F71: Efficiency (%) | H71: (short tons carbon) | J71: (MMTCE) | L71: (MMTCO2E)
A72: Coal | B72: =VLOOKUP($A$2&$C$2&$B$2&$C$2&$A72,ConsumeBlock1,9,FALSE) ->  | C72: x | D72: =IF(ISNUMBER(CommCoalCC),CommCoalCC,VLOOKUP($A$2 & " Res + Comm Coal CC",CoalCoeffBlock,D68-1988,FALSE)) ->  | E72: x | F72: =CoalEff -> 0 | G72: = | H72: =B72*D72*F72*1000*lbs_shortt ->  | I72: = | J72: =H72*Short_Metric/1000000 ->  | K72: = | L72: =J72*C_CO2 -> 
A73: Distillate Fuel | C73: x | D73: =DistillCC -> 0 | E73: x | F73: =PetroEff -> 0 | G73: = | H73: =B73*D73*F73*1000*lbs_shortt ->  | I73: = | J73: =H73*Short_Metric/1000000 ->  | K73: =
A74: Kerosene | C74: x | D74: =KeroCC -> 0 | E74: x | F74: =PetroEff -> 0 | G74: = | I74: = | K74: =
A75: Hydrocarbon Gas Liquids | C75: x | D75: =IF(ISNUMBER(LPGEUCC),LPGEUCC,VLOOKUP("LPG",VariableCCs,D68-1988,FALSE)) -> 37.80773182 | E75: x | F75: =LPGEff -> 0 | G75: = | I75: = | K75: =
A76: Motor Gasoline | C76: x | D76: =IF(ISNUMBER(MotorGasCC),MotorGasCC,VLOOKUP(A76,VariableCCs,D68-1988,FALSE)) -> 42.6828127 | E76: x | F76: =PetroEff -> 0 | G76: = | I76: = | K76: =
A77: Residual Fuel | C77: x | D77: =ResidCC -> 0 | E77: x | F77: =PetroEff -> 0 | G77: = | I77: = | K77: =
A78: Natural Gas | C78: x | D78: =NatGasCC -> 0 | E78: x | F78: =NGEff -> 0 | G78: = | I78: = | K78: =
A79: Other | B79: 0 | C79: x | E79: x | G79: = | H79: 0 | I79: = | J79: 0 | K79: = | L79: 0
A81: Commercial Sector | D81: 1996
B83: Consumption | D83: Emission Factor | F83: Combustion | H83: Emissions | J83: Emissions | L83: Emissions
A84: Fuel Type | B84: (Billion Btu) | D84: (lbs C/Million Btu) | F84: Efficiency (%) | H84: (short tons carbon) | J84: (MMTCE) | L84: (MMTCO2E)
A85: Coal | B85: =VLOOKUP($A$2&$C$2&$B$2&$C$2&$A85,ConsumeBlock1,10,FALSE) ->  | C85: x | D85: =IF(ISNUMBER(CommCoalCC),CommCoalCC,VLOOKUP($A$2 & " Res + Comm Coal CC",CoalCoeffBlock,D81-1988,FALSE)) ->  | E85: x | F85: =CoalEff -> 0 | G85: = | H85: =B85*D85*F85*1000*lbs_shortt ->  | I85: = | J85: =H85*Short_Metric/1000000 ->  | K85: = | L85: =J85*C_CO2 -> 
A86: Distillate Fuel | C86: x | D86: =DistillCC -> 0 | E86: x | F86: =PetroEff -> 0 | G86: = | H86: =B86*D86*F86*1000*lbs_shortt ->  | I86: = | J86: =H86*Short_Metric/1000000 ->  | K86: =
A87: Kerosene | C87: x | D87: =KeroCC -> 0 | E87: x | F87: =PetroEff -> 0 | G87: = | I87: = | K87: =
A88: Hydrocarbon Gas Liquids | C88: x | D88: =IF(ISNUMBER(LPGEUCC),LPGEUCC,VLOOKUP("LPG",VariableCCs,D81-1988,FALSE)) -> 37.80773182 | E88: x | F88: =LPGEff -> 0 | G88: = | I88: = | K88: =
A89: Motor Gasoline | C89: x | D89: =IF(ISNUMBER(MotorGasCC),MotorGasCC,VLOOKUP(A89,VariableCCs,D81-1988,FALSE)) -> 42.67679481 | E89: x | F89: =PetroEff -> 0 | G89: = | I89: = | K89: =
A90: Residual Fuel | C90: x | D90: =ResidCC -> 0 | E90: x | F90: =PetroEff -> 0 | G90: = | I90: = | K90: =
A91: Natural Gas | C91: x | D91: =NatGasCC -> 0 | E91: x | F91: =NGEff -> 0 | G91: = | I91: = | K91: =
A92: Other | B92: 0 | C92: x | E92: x | G92: = | H92: 0 | I92: = | J92: 0 | K92: = | L92: 0
A94: Commercial Sector | D94: 1997
B96: Consumption | D96: Emission Factor | F96: Combustion | H96: Emissions | J96: Emissions | L96: Emissions
A97: Fuel Type | B97: (Billion Btu) | D97: (lbs C/Million Btu) | F97: Efficiency (%) | H97: (short tons carbon) | J97: (MMTCE) | L97: (MMTCO2E)
A98: Coal | B98: =VLOOKUP($A$2&$C$2&$B$2&$C$2&$A98,ConsumeBlock1,11,FALSE) ->  | C98: x | D98: =IF(ISNUMBER(CommCoalCC),CommCoalCC,VLOOKUP($A$2 & " Res + Comm Coal CC",CoalCoeffBlock,D94-1988,FALSE)) ->  | E98: x | F98: =CoalEff -> 0 | G98: = | H98: =B98*D98*F98*1000*lbs_shortt ->  | I98: = | J98: =H98*Short_Metric/1000000 ->  | K98: = | L98: =J98*C_CO2 -> 
A99: Distillate Fuel | C99: x | D99: =DistillCC -> 0 | E99: x | F99: =PetroEff -> 0 | G99: = | H99: =B99*D99*F99*1000*lbs_shortt ->  | I99: = | J99: =H99*Short_Metric/1000000 ->  | K99: =
A100: Kerosene | C100: x | D100: =KeroCC -> 0 | E100: x | F100: =PetroEff -> 0 | G100: = | I100: = | K100: =
A101: Hydrocarbon Gas Liquids | C101: x | D101: =IF(ISNUMBER(LPGEUCC),LPGEUCC,VLOOKUP("LPG",VariableCCs,D94-1988,FALSE)) -> 37.80773182 | E101: x | F101: =LPGEff -> 0 | G101: = | I101: = | K101: =
A102: Motor Gasoline | C102: x | D102: =IF(ISNUMBER(MotorGasCC),MotorGasCC,VLOOKUP(A102,VariableCCs,D94-1988,FALSE)) -> 42.67799868 | E102: x | F102: =PetroEff -> 0 | G102: = | I102: = | K102: =
A103: Residual Fuel | C103: x | D103: =ResidCC -> 0 | E103: x | F103: =PetroEff -> 0 | G103: = | I103: = | K103: =
A104: Natural Gas | C104: x | D104: =NatGasCC -> 0 | E104: x | F104: =NGEff -> 0 | G104: = | I104: = | K104: =
A105: Other | B105: 0 | C105: x | E105: x | G105: = | H105: 0 | I105: = | J105: 0 | K105: = | L105: 0
A107: Commercial Sector | D107: 1998
B109: Consumption | D109: Emission Factor | F109: Combustion | H109: Emissions | J109: Emissions | L109: Emissions
A110: Fuel Type | B110: (Billion Btu) | D110: (lbs C/Million Btu) | F110: Efficiency (%) | H110: (short tons carbon) | J110: (MMTCE) | L110: (MMTCO2E)
A111: Coal | B111: =VLOOKUP($A$2&$C$2&$B$2&$C$2&$A111,ConsumeBlock1,12,FALSE) ->  | C111: x | D111: =IF(ISNUMBER(CommCoalCC),CommCoalCC,VLOOKUP($A$2 & " Res + Comm Coal CC",CoalCoeffBlock,D107-1988,FALSE)) ->  | E111: x | F111: =CoalEff -> 0 | G111: = | H111: =B111*D111*F111*1000*lbs_shortt ->  | I111: = | J111: =H111*Short_Metric/1000000 ->  | K111: = | L111: =J111*C_CO2 -> 
A112: Distillate Fuel | C112: x | D112: =DistillCC -> 0 | E112: x | F112: =PetroEff -> 0 | G112: = | H112: =B112*D112*F112*1000*lbs_shortt ->  | I112: = | J112: =H112*Short_Metric/1000000 ->  | K112: =
A113: Kerosene | C113: x | D113: =KeroCC -> 0 | E113: x | F113: =PetroEff -> 0 | G113: = | I113: = | K113: =
A114: Hydrocarbon Gas Liquids | C114: x | D114: =IF(ISNUMBER(LPGEUCC),LPGEUCC,VLOOKUP("LPG",VariableCCs,D107-1988,FALSE)) -> 37.80773182 | E114: x | F114: =LPGEff -> 0 | G114: = | I114: = | K114: =
A115: Motor Gasoline | C115: x | D115: =IF(ISNUMBER(MotorGasCC),MotorGasCC,VLOOKUP(A115,VariableCCs,D107-1988,FALSE)) -> 42.7036522 | E115: x | F115: =PetroEff -> 0 | G115: = | I115: = | K115: =
A116: Residual Fuel | C116: x | D116: =ResidCC -> 0 | E116: x | F116: =PetroEff -> 0 | G116: = | I116: = | K116: =
A117: Natural Gas | C117: x | D117: =NatGasCC -> 0 | E117: x | F117: =NGEff -> 0 | G117: = | I117: = | K117: =
A118: Other | B118: 0 | C118: x | E118: x | G118: = | H118: 0 | I118: = | J118: 0 | K118: = | L118: 0
A120: Commercial Sector | D120: 1999
B122: Consumption | D122: Emission Factor | F122: Combustion | H122: Emissions | J122: Emissions | L122: Emissions
A123: Fuel Type | B123: (Billion Btu) | D123: (lbs C/Million Btu) | F123: Efficiency (%) | H123: (short tons carbon) | J123: (MMTCE) | L123: (MMTCO2E)
A124: Coal | B124: =VLOOKUP($A$2&$C$2&$B$2&$C$2&$A124,ConsumeBlock1,13,FALSE) ->  | C124: x | D124: =IF(ISNUMBER(CommCoalCC),CommCoalCC,VLOOKUP($A$2 & " Res + Comm Coal CC",CoalCoeffBlock,D120-1988,FALSE)) ->  | E124: x | F124: =CoalEff -> 0 | G124: = | H124: =B124*D124*F124*1000*lbs_shortt ->  | I124: = | J124: =H124*Short_Metric/1000000 ->  | K124: = | L124: =J124*C_CO2 -> 
A125: Distillate Fuel | C125: x | D125: =DistillCC -> 0 | E125: x | F125: =PetroEff -> 0 | G125: = | H125: =B125*D125*F125*1000*lbs_shortt ->  | I125: = | J125: =H125*Short_Metric/1000000 ->  | K125: =
A126: Kerosene | C126: x | D126: =KeroCC -> 0 | E126: x | F126: =PetroEff -> 0 | G126: = | I126: = | K126: =
A127: Hydrocarbon Gas Liquids | C127: x | D127: =IF(ISNUMBER(LPGEUCC),LPGEUCC,VLOOKUP("LPG",VariableCCs,D120-1988,FALSE)) -> 37.80773182 | E127: x | F127: =LPGEff -> 0 | G127: = | I127: = | K127: =
A128: Motor Gasoline | C128: x | D128: =IF(ISNUMBER(MotorGasCC),MotorGasCC,VLOOKUP(A128,VariableCCs,D120-1988,FALSE)) -> 42.60420705 | E128: x | F128: =PetroEff -> 0 | G128: = | I128: = | K128: =
A129: Residual Fuel | C129: x | D129: =ResidCC -> 0 | E129: x | F129: =PetroEff -> 0 | G129: = | I129: = | K129: =
A130: Natural Gas | C130: x | D130: =NatGasCC -> 0 | E130: x | F130: =NGEff -> 0 | G130: = | I130: = | K130: =
A131: Other | B131: 0 | C131: x | E131: x | G131: = | H131: 0 | I131: = | J131: 0 | K131: = | L131: 0
A133: Commercial Sector | D133: 2000
B135: Consumption | D135: Emission Factor | F135: Combustion | H135: Emissions | J135: Emissions | L135: Emissions
A136: Fuel Type | B136: (Billion Btu) | D136: (lbs C/Million Btu) | F136: Efficiency (%) | H136: (short tons carbon) | J136: (MMTCE) | L136: (MMTCO2E)
A137: Coal | B137: =VLOOKUP($A$2&$C$2&$B$2&$C$2&$A137,ConsumeBlock1,14,FALSE) ->  | C137: x | D137: =IF(ISNUMBER(CommCoalCC),CommCoalCC,VLOOKUP($A$2 & " Res + Comm Coal CC",CoalCoeffBlock,D133-1988,FALSE)) ->  | E137: x | F137: =CoalEff -> 0 | G137: = | H137: =B137*D137*F137*1000*lbs_shortt ->  | I137: = | J137: =H137*Short_Metric/1000000 ->  | K137: = | L137: =J137*C_CO2 -> 
A138: Distillate Fuel | C138: x | D138: =DistillCC -> 0 | E138: x | F138: =PetroEff -> 0 | G138: = | H138: =B138*D138*F138*1000*lbs_shortt ->  | I138: = | J138: =H138*Short_Metric/1000000 ->  | K138: =
A139: Kerosene | C139: x | D139: =KeroCC -> 0 | E139: x | F139: =PetroEff -> 0 | G139: = | I139: = | K139: =
A140: Hydrocarbon Gas Liquids | C140: x | D140: =IF(ISNUMBER(LPGEUCC),LPGEUCC,VLOOKUP("LPG",VariableCCs,D133-1988,FALSE)) -> 37.80773182 | E140: x | F140: =LPGEff -> 0 | G140: = | I140: = | K140: =
A141: Motor Gasoline | C141: x | D141: =IF(ISNUMBER(MotorGasCC),MotorGasCC,VLOOKUP(A141,VariableCCs,D133-1988,FALSE)) -> 42.93135 | E141: x | F141: =PetroEff -> 0 | G141: = | I141: = | K141: =
A142: Residual Fuel | C142: x | D142: =ResidCC -> 0 | E142: x | F142: =PetroEff -> 0 | G142: = | I142: = | K142: =
A143: Natural Gas | C143: x | D143: =NatGasCC -> 0 | E143: x | F143: =NGEff -> 0 | G143: = | I143: = | K143: =
A144: Other | B144: 0 | C144: x | E144: x | G144: = | H144: 0 | I144: = | J144: 0 | K144: = | L144: 0
A146: Commercial Sector | D146: 2001
B148: Consumption | D148: Emission Factor | F148: Combustion | H148: Emissions | J148: Emissions | L148: Emissions
A149: Fuel Type | B149: (Billion Btu) | D149: (lbs C/Million Btu) | F149: Efficiency (%) | H149: (short tons carbon) | J149: (MMTCE) | L149: (MMTCO2E)
A150: Coal | B150: =VLOOKUP($A$2&$C$2&$B$2&$C$2&$A150,ConsumeBlock1,15,FALSE) ->  | C150: x | D150: =IF(ISNUMBER(CommCoalCC),CommCoalCC,VLOOKUP($A$2 & " Res + Comm Coal CC",CoalCoeffBlock,D146-1988,FALSE)) ->  | E150: x | F150: =CoalEff -> 0 | G150: = | H150: =B150*D150*F150*1000*lbs_shortt ->  | I150: = | J150: =H150*Short_Metric/1000000 ->  | K150: = | L150: =J150*C_CO2 -> 
A151: Distillate Fuel | C151: x | D151: =DistillCC -> 0 | E151: x | F151: =PetroEff -> 0 | G151: = | H151: =B151*D151*F151*1000*lbs_shortt ->  | I151: = | J151: =H151*Short_Metric/1000000 ->  | K151: =
A152: Kerosene | C152: x | D152: =KeroCC -> 0 | E152: x | F152: =PetroEff -> 0 | G152: = | I152: = | K152: =
A153: Hydrocarbon Gas Liquids | C153: x | D153: =IF(ISNUMBER(LPGEUCC),LPGEUCC,VLOOKUP("LPG",VariableCCs,D146-1988,FALSE)) -> 37.80773182 | E153: x | F153: =LPGEff -> 0 | G153: = | I153: = | K153: =
A154: Motor Gasoline | C154: x | D154: =IF(ISNUMBER(MotorGasCC),MotorGasCC,VLOOKUP(A154,VariableCCs,D146-1988,FALSE)) -> 42.6447 | E154: x | F154: =PetroEff -> 0 | G154: = | I154: = | K154: =
A155: Residual Fuel | C155: x | D155: =ResidCC -> 0 | E155: x | F155: =PetroEff -> 0 | G155: = | I155: = | K155: =
A156: Natural Gas | C156: x | D156: =NatGasCC -> 0 | E156: x | F156: =NGEff -> 0 | G156: = | I156: = | K156: =
A157: Other | B157: 0 | C157: x | E157: x | G157: = | H157: 0 | I157: = | J157: 0 | K157: = | L157: 0
A159: Commercial Sector | D159: 2002
B161: Consumption | D161: Emission Factor | F161: Combustion | H161: Emissions | J161: Emissions | L161: Emissions
A162: Fuel Type | B162: (Billion Btu) | D162: (lbs C/Million Btu) | F162: Efficiency (%) | H162: (short tons carbon) | J162: (MMTCE) | L162: (MMTCO2E)
A163: Coal | B163: =VLOOKUP($A$2&$C$2&$B$2&$C$2&$A163,ConsumeBlock1,16,FALSE) ->  | C163: x | D163: =IF(ISNUMBER(CommCoalCC),CommCoalCC,VLOOKUP($A$2 & " Res + Comm Coal CC",CoalCoeffBlock,D159-1988,FALSE)) ->  | E163: x | F163: =CoalEff -> 0 | G163: = | H163: =B163*D163*F163*1000*lbs_shortt ->  | I163: = | J163: =H163*Short_Metric/1000000 ->  | K163: = | L163: =J163*C_CO2 -> 
A164: Distillate Fuel | C164: x | D164: =DistillCC -> 0 | E164: x | F164: =PetroEff -> 0 | G164: = | H164: =B164*D164*F164*1000*lbs_shortt ->  | I164: = | J164: =H164*Short_Metric/1000000 ->  | K164: =
A165: Kerosene | C165: x | D165: =KeroCC -> 0 | E165: x | F165: =PetroEff -> 0 | G165: = | I165: = | K165: =
A166: Hydrocarbon Gas Liquids | C166: x | D166: =IF(ISNUMBER(LPGEUCC),LPGEUCC,VLOOKUP("LPG",VariableCCs,D159-1988,FALSE)) -> 37.80773182 | E166: x | F166: =LPGEff -> 0 | G166: = | I166: = | K166: =
A167: Motor Gasoline | C167: x | D167: =IF(ISNUMBER(MotorGasCC),MotorGasCC,VLOOKUP(A167,VariableCCs,D159-1988,FALSE)) -> 42.6888 | E167: x | F167: =PetroEff -> 0 | G167: = | I167: = | K167: =
A168: Residual Fuel | C168: x | D168: =ResidCC -> 0 | E168: x | F168: =PetroEff -> 0 | G168: = | I168: = | K168: =
A169: Natural Gas | C169: x | D169: =NatGasCC -> 0 | E169: x | F169: =NGEff -> 0 | G169: = | I169: = | K169: =
A170: Other | B170: 0 | C170: x | E170: x | G170: = | H170: 0 | I170: = | J170: 0 | K170: = | L170: 0
A172: Commercial Sector | D172: 2003
B174: Consumption | D174: Emission Factor | F174: Combustion | H174: Emissions | J174: Emissions | L174: Emissions
A175: Fuel Type | B175: (Billion Btu) | D175: (lbs C/Million Btu) | F175: Efficiency (%) | H175: (short tons carbon) | J175: (MMTCE) | L175: (MMTCO2E)
A176: Coal | B176: =VLOOKUP($A$2&$C$2&$B$2&$C$2&$A176,ConsumeBlock1,17,FALSE) ->  | C176: x | D176: =IF(ISNUMBER(CommCoalCC),CommCoalCC,VLOOKUP($A$2 & " Res + Comm Coal CC",CoalCoeffBlock,D172-1988,FALSE)) ->  | E176: x | F176: =CoalEff -> 0 | G176: = | H176: =B176*D176*F176*1000*lbs_shortt ->  | I176: = | J176: =H176*Short_Metric/1000000 ->  | K176: = | L176: =J176*C_CO2 -> 
A177: Distillate Fuel | C177: x | D177: =DistillCC -> 0 | E177: x | F177: =PetroEff -> 0 | G177: = | H177: =B177*D177*F177*1000*lbs_shortt ->  | I177: = | J177: =H177*Short_Metric/1000000 ->  | K177: =
A178: Kerosene | C178: x | D178: =KeroCC -> 0 | E178: x | F178: =PetroEff -> 0 | G178: = | I178: = | K178: =
A179: Hydrocarbon Gas Liquids | C179: x | D179: =IF(ISNUMBER(LPGEUCC),LPGEUCC,VLOOKUP("LPG",VariableCCs,D172-1988,FALSE)) -> 37.80773182 | E179: x | F179: =LPGEff -> 0 | G179: = | I179: = | K179: =
A180: Motor Gasoline | C180: x | D180: =IF(ISNUMBER(MotorGasCC),MotorGasCC,VLOOKUP(A180,VariableCCs,D172-1988,FALSE)) -> 43.24005 | E180: x | F180: =PetroEff -> 0 | G180: = | I180: = | K180: =
A181: Residual Fuel | C181: x | D181: =ResidCC -> 0 | E181: x | F181: =PetroEff -> 0 | G181: = | I181: = | K181: =
A182: Natural Gas | C182: x | D182: =NatGasCC -> 0 | E182: x | F182: =NGEff -> 0 | G182: = | I182: = | K182: =
A183: Other | B183: 0 | C183: x | E183: x | G183: = | H183: 0 | I183: = | J183: 0 | K183: = | L183: 0
A185: Commercial Sector | D185: 2004
B187: Consumption | D187: Emission Factor | F187: Combustion | H187: Emissions | J187: Emissions | L187: Emissions
A188: Fuel Type | B188: (Billion Btu) | D188: (lbs C/Million Btu) | F188: Efficiency (%) | H188: (short tons carbon) | J188: (MMTCE) | L188: (MMTCO2E)
A189: Coal | B189: =VLOOKUP($A$2&$C$2&$B$2&$C$2&$A189,ConsumeBlock1,18,FALSE) ->  | C189: x | D189: =IF(ISNUMBER(CommCoalCC),CommCoalCC,VLOOKUP($A$2 & " Res + Comm Coal CC",CoalCoeffBlock,D185-1988,FALSE)) ->  | E189: x | F189: =CoalEff -> 0 | G189: = | H189: =B189*D189*F189*1000*lbs_shortt ->  | I189: = | J189: =H189*Short_Metric/1000000 ->  | K189: = | L189: =J189*C_CO2 -> 
A190: Distillate Fuel | C190: x | D190: =DistillCC -> 0 | E190: x | F190: =PetroEff -> 0 | G190: = | H190: =B190*D190*F190*1000*lbs_shortt ->  | I190: = | J190: =H190*Short_Metric/1000000 ->  | K190: =
A191: Kerosene | C191: x | D191: =KeroCC -> 0 | E191: x | F191: =PetroEff -> 0 | G191: = | I191: = | K191: =
A192: Hydrocarbon Gas Liquids | C192: x | D192: =IF(ISNUMBER(LPGEUCC),LPGEUCC,VLOOKUP("LPG",VariableCCs,D185-1988,FALSE)) -> 37.80773182 | E192: x | F192: =LPGEff -> 0 | G192: = | I192: = | K192: =
A193: Motor Gasoline | C193: x | D193: =IF(ISNUMBER(MotorGasCC),MotorGasCC,VLOOKUP(A193,VariableCCs,D185-1988,FALSE)) -> 42.84315 | E193: x | F193: =PetroEff -> 0 | G193: = | I193: = | K193: =
A194: Residual Fuel | C194: x | D194: =ResidCC -> 0 | E194: x | F194: =PetroEff -> 0 | G194: = | I194: = | K194: =
A195: Natural Gas | C195: x | D195: =NatGasCC -> 0 | E195: x | F195: =NGEff -> 0 | G195: = | I195: = | K195: =
A196: Other | B196: 0 | C196: x | E196: x | G196: = | H196: 0 | I196: = | J196: 0 | K196: = | L196: 0
A198: Commercial Sector | D198: =D185+1 -> 2005
B200: Consumption | D200: Emission Factor | F200: Combustion | H200: Emissions | J200: Emissions | L200: Emissions
A201: Fuel Type | B201: (Billion Btu) | D201: (lbs C/Million Btu) | F201: Efficiency (%) | H201: (short tons carbon) | J201: (MMTCE) | L201: (MMTCO2E)
A202: Coal | B202: =VLOOKUP($A$2&$C$2&$B$2&$C$2&$A202,ConsumeBlock1,19,FALSE) ->  | C202: x | D202: =IF(ISNUMBER(CommCoalCC),CommCoalCC,VLOOKUP($A$2 & " Res + Comm Coal CC",CoalCoeffBlock,D198-1988,FALSE)) ->  | E202: x | F202: =CoalEff -> 0 | G202: = | H202: =B202*D202*F202*1000*lbs_shortt ->  | I202: = | J202: =H202*Short_Metric/1000000 ->  | K202: = | L202: =J202*C_CO2 -> 
A203: Distillate Fuel | C203: x | D203: =DistillCC -> 0 | E203: x | F203: =PetroEff -> 0 | G203: = | H203: =B203*D203*F203*1000*lbs_shortt ->  | I203: = | J203: =H203*Short_Metric/1000000 ->  | K203: =
A204: Kerosene | C204: x | D204: =KeroCC -> 0 | E204: x | F204: =PetroEff -> 0 | G204: = | I204: = | K204: =
A205: Hydrocarbon Gas Liquids | C205: x | D205: =IF(ISNUMBER(LPGEUCC),LPGEUCC,VLOOKUP("LPG",VariableCCs,D198-1988,FALSE)) -> 37.80773182 | E205: x | F205: =LPGEff -> 0 | G205: = | I205: = | K205: =
A206: Motor Gasoline | C206: x | D206: =IF(ISNUMBER(MotorGasCC),MotorGasCC,VLOOKUP(A206,VariableCCs,D198-1988,FALSE)) -> 42.6006 | E206: x | F206: =PetroEff -> 0 | G206: = | I206: = | K206: =
A207: Residual Fuel | C207: x | D207: =ResidCC -> 0 | E207: x | F207: =PetroEff -> 0 | G207: = | I207: = | K207: =
A208: Natural Gas | C208: x | D208: =NatGasCC -> 0 | E208: x | F208: =NGEff -> 0 | G208: = | I208: = | K208: =
A209: Other | B209: 0 | C209: x | E209: x | G209: = | H209: 0 | I209: = | J209: 0 | K209: = | L209: 0
A211: Commercial Sector | D211: =D198+1 -> 2006
B213: Consumption | D213: Emission Factor | F213: Combustion | H213: Emissions | J213: Emissions | L213: Emissions
A214: Fuel Type | B214: (Billion Btu) | D214: (lbs C/Million Btu) | F214: Efficiency (%) | H214: (short tons carbon) | J214: (MMTCE) | L214: (MMTCO2E)
A215: Coal | B215: =VLOOKUP($A$2&$C$2&$B$2&$C$2&$A215,ConsumeBlock1,20,FALSE) ->  | C215: x | D215: =IF(ISNUMBER(CommCoalCC),CommCoalCC,VLOOKUP($A$2 & " Res + Comm Coal CC",CoalCoeffBlock,D211-1988,FALSE)) ->  | E215: x | F215: =CoalEff -> 0 | G215: = | H215: =B215*D215*F215*1000*lbs_shortt ->  | I215: = | J215: =H215*Short_Metric/1000000 ->  | K215: = | L215: =J215*C_CO2 -> 
A216: Distillate Fuel | C216: x | D216: =DistillCC -> 0 | E216: x | F216: =PetroEff -> 0 | G216: = | H216: =B216*D216*F216*1000*lbs_shortt ->  | I216: = | J216: =H216*Short_Metric/1000000 ->  | K216: =
A217: Kerosene | C217: x | D217: =KeroCC -> 0 | E217: x | F217: =PetroEff -> 0 | G217: = | I217: = | K217: =
A218: Hydrocarbon Gas Liquids | C218: x | D218: =IF(ISNUMBER(LPGEUCC),LPGEUCC,VLOOKUP("LPG",VariableCCs,D211-1988,FALSE)) -> 37.80773182 | E218: x | F218: =LPGEff -> 0 | G218: = | I218: = | K218: =
A219: Motor Gasoline | C219: x | D219: =IF(ISNUMBER(MotorGasCC),MotorGasCC,VLOOKUP(A219,VariableCCs,D211-1988,FALSE)) -> 42.93135 | E219: x | F219: =PetroEff -> 0 | G219: = | I219: = | K219: =
A220: Residual Fuel | C220: x | D220: =ResidCC -> 0 | E220: x | F220: =PetroEff -> 0 | G220: = | I220: = | K220: =
A221: Natural Gas | C221: x | D221: =NatGasCC -> 0 | E221: x | F221: =NGEff -> 0 | G221: = | I221: = | K221: =
A222: Other | B222: 0 | C222: x | E222: x | G222: = | H222: 0 | I222: = | J222: 0 | K222: = | L222: 0
A224: Commercial Sector | D224: =D211+1 -> 2007
B226: Consumption | D226: Emission Factor | F226: Combustion | H226: Emissions | J226: Emissions | L226: Emissions
A227: Fuel Type | B227: (Billion Btu) | D227: (lbs C/Million Btu) | F227: Efficiency (%) | H227: (short tons carbon) | J227: (MMTCE) | L227: (MMTCO2E)
A228: Coal | B228: =VLOOKUP($A$2&$C$2&$B$2&$C$2&$A228,ConsumeBlock1,21,FALSE) ->  | C228: x | D228: =IF(ISNUMBER(CommCoalCC),CommCoalCC,VLOOKUP($A$2 & " Res + Comm Coal CC",CoalCoeffBlock,D224-1988,FALSE)) ->  | E228: x | F228: =CoalEff -> 0 | G228: = | H228: =B228*D228*F228*1000*lbs_shortt ->  | I228: = | J228: =H228*Short_Metric/1000000 ->  | K228: = | L228: =J228*C_CO2 -> 
A229: Distillate Fuel | C229: x | D229: =DistillCC -> 0 | E229: x | F229: =PetroEff -> 0 | G229: = | H229: =B229*D229*F229*1000*lbs_shortt ->  | I229: = | J229: =H229*Short_Metric/1000000 ->  | K229: =
A230: Kerosene | C230: x | D230: =KeroCC -> 0 | E230: x | F230: =PetroEff -> 0 | G230: = | I230: = | K230: =
A231: Hydrocarbon Gas Liquids | C231: x | D231: =IF(ISNUMBER(LPGEUCC),LPGEUCC,VLOOKUP("LPG",VariableCCs,D224-1988,FALSE)) -> 37.80773182 | E231: x | F231: =LPGEff -> 0 | G231: = | I231: = | K231: =
A232: Motor Gasoline | C232: x | D232: =IF(ISNUMBER(MotorGasCC),MotorGasCC,VLOOKUP(A232,VariableCCs,D224-1988,FALSE)) -> 43.15185 | E232: x | F232: =PetroEff -> 0 | G232: = | I232: = | K232: =
A233: Residual Fuel | C233: x | D233: =ResidCC -> 0 | E233: x | F233: =PetroEff -> 0 | G233: = | I233: = | K233: =
A234: Natural Gas | C234: x | D234: =NatGasCC -> 0 | E234: x | F234: =NGEff -> 0 | G234: = | I234: = | K234: =
A235: Other | B235: 0 | C235: x | E235: x | G235: = | H235: 0 | I235: = | J235: 0 | K235: = | L235: 0
... 143 more rows

Sheet Transportation
A1: ="6. Transportation Consumption and CO2 Emissions in "&'List Data'!E3 -> 6. Transportation Consumption and CO2 Emissions in Select a State . . .
A2: ='List Data'!F3 -> XX | B2: Transportation | C2: =" " -> 
A4: Transportation Sector | D4: 1990
B6: Consumption | D6: Emission Factor | F6: Combustion | H6: Emissions | J6: Emissions | L6: Emissions
A7: Fuel Type | B7: (Billion Btu) | D7: (lbs C/Million Btu) | F7: Efficiency (%) | H7: (short tons carbon) | J7: (MMTCE) | L7: (MMTCO2E)
A8: Aviation Gasoline | B8: =VLOOKUP($A$2&$C$2&$B$2&$C$2&$A8,ConsumeBlock1,4,FALSE) ->  | C8: x | D8: =AvGasCC -> 0 | E8: x | F8: =PetroEff -> 0 | G8: = | H8: =B8*D8*F8*1000*lbs_shortt ->  | I8: = | J8: =H8*Short_Metric/1000000 ->  | K8: = | L8: =J8*C_CO2 -> 
A9: Distillate Fuel | C9: x | D9: =DistillCC -> 0 | E9: x | F9: =PetroEff -> 0 | G9: = | H9: =B9*D9*F9*1000*lbs_shortt ->  | I9: = | J9: =H9*Short_Metric/1000000 ->  | K9: =
A10: Jet Fuel, Kerosene | C10: x | D10: =IF(ISNUMBER(JFKeroCC),JFKeroCC,VLOOKUP(A10,VariableCCs,D4-1988,FALSE)) -> 42.777 | E10: x | F10: 0 | G10: = | I10: = | K10: =
A11: Jet Fuel, Naphtha | C11: x | D11: =JFNaphCC -> 0 | E11: x | F11: 0 | G11: = | I11: = | K11: =
A12: Hydrocarbon Gas Liquids | C12: x | D12: =IF(ISNUMBER(LPGEUCC),LPGEUCC,VLOOKUP("LPG",VariableCCs,D4-1988,FALSE)) -> 37.80773182 | E12: x | F12: =LPGEff -> 0 | G12: = | I12: = | K12: =
A13: Motor Gasoline | C13: x | D13: =IF(ISNUMBER(MotorGasCC),MotorGasCC,VLOOKUP(A13,VariableCCs,D4-1988,FALSE)) -> 42.82731893 | E13: x | F13: 0 | G13: = | I13: = | K13: =
A14: Residual Fuel | C14: x | D14: =ResidCC -> 0 | E14: x | F14: 0 | G14: = | I14: = | K14: =
A15: Natural Gas | B15: =VLOOKUP($A$2&$C$2&$B$2&$C$2&$A15,ConsumeBlock1,4,FALSE) ->  | C15: x | D15: =NGCC -> 0 | E15: x | F15: =NGEff -> 0 | G15: = | I15: = | K15: =
A16: Other | B16: 0 | C16: x | E16: x | G16: = | H16: =B16*D16*F16*1000*lbs_shortt -> 0 | I16: = | J16: =H16*Short_Metric/1000000 -> 0 | K16: = | L16: 0
D18: Non-Energy | H18: Net combustible
B19: Consumption | D19: Consumption | H19: Consumption | J19: Emission Factor | L19: Combustion | N19: Emissions | P19: Emissions | R19: Emissions
B20: (Billion Btu) | D20: (Billion Btu) | F20: Storage Factor (%) | H20: (Billion Btu) | J20: (lbs C/Million Btu) | L20: Efficiency (%) | N20: (short tons carbon) | P20: (MMTCE) | R20: (MMTCO2E)
A21: Lubricants | B21: =VLOOKUP($A$2&$C$2&$B$2&$C$2&$A21,ConsumeBlock1,4,FALSE) ->  | C21: - ( | E21: x | F21: =LubeStore -> 0 | G21: ) = | H21: =B21-(D21*F21) ->  | I21: x | J21: =LubeCC -> 0 | K21: x | L21: =PetroEff -> 0 | M21: = | N21: =H21*J21*L21*1000*lbs_shortt ->  | O21: = | P21: =N21*Short_Metric/1000000 ->  | Q21: = | R21: =P21*C_CO2 -> 
A23: Transportation Sector | D23: 1991
B25: Consumption | D25: Emission Factor | F25: Combustion | H25: Emissions | J25: Emissions | L25: Emissions
A26: Fuel Type | B26: (Billion Btu) | D26: (lbs C/Million Btu) | F26: Efficiency (%) | H26: (short tons carbon) | J26: (MMTCE) | L26: (MMTCO2E)
A27: Aviation Gasoline | B27: =VLOOKUP($A$2&$C$2&$B$2&$C$2&$A27,ConsumeBlock1,5,FALSE) ->  | C27: x | D27: =AvGasCC -> 0 | E27: x | F27: =PetroEff -> 0 | G27: = | H27: =B27*D27*F27*1000*lbs_shortt ->  | I27: = | J27: =H27*Short_Metric/1000000 ->  | K27: = | L27: =J27*C_CO2 -> 
A28: Distillate Fuel | C28: x | D28: =DistillCC -> 0 | E28: x | F28: =PetroEff -> 0 | G28: = | H28: =B28*D28*F28*1000*lbs_shortt ->  | I28: = | J28: =H28*Short_Metric/1000000 ->  | K28: =
A29: Jet Fuel, Kerosene | C29: x | D29: =IF(ISNUMBER(JFKeroCC),JFKeroCC,VLOOKUP(A29,VariableCCs,D23-1988,FALSE)) -> 42.777 | E29: x | F29: 0 | G29: = | I29: = | K29: =
A30: Jet Fuel, Naphtha | C30: x | D30: =JFNaphCC -> 0 | E30: x | F30: 0 | G30: = | I30: = | K30: =
A31: Hydrocarbon Gas Liquids | C31: x | D31: =IF(ISNUMBER(LPGEUCC),LPGEUCC,VLOOKUP("LPG",VariableCCs,D23-1988,FALSE)) -> 37.80773182 | E31: x | F31: =LPGEff -> 0 | G31: = | I31: = | K31: =
A32: Motor Gasoline | C32: x | D32: =IF(ISNUMBER(MotorGasCC),MotorGasCC,VLOOKUP(A32,VariableCCs,D23-1988,FALSE)) -> 42.86295359 | E32: x | F32: 0 | G32: = | I32: = | K32: =
A33: Residual Fuel | C33: x | D33: =ResidCC -> 0 | E33: x | F33: 0 | G33: = | I33: = | K33: =
A34: Natural Gas | C34: x | D34: =NGCC -> 0 | E34: x | F34: =NGEff -> 0 | G34: = | I34: = | K34: =
A35: Other | B35: 0 | C35: x | E35: x | G35: = | H35: =B35*D35*F35*1000*lbs_shortt -> 0 | I35: = | J35: =H35*Short_Metric/1000000 -> 0 | K35: = | L35: 0
D37: Non-Energy | H37: Net combustible
B38: Consumption | D38: Consumption | H38: Consumption | J38: Emission Factor | L38: Combustion | N38: Emissions | P38: Emissions | R38: Emissions
B39: (Billion Btu) | D39: (Billion Btu) | F39: Storage Factor (%) | H39: (Billion Btu) | J39: (lbs C/Million Btu) | L39: Efficiency (%) | N39: (short tons carbon) | P39: (MMTCE) | R39: (MMTCO2E)
A40: Lubricants | B40: =VLOOKUP($A$2&$C$2&$B$2&$C$2&$A40,ConsumeBlock1,5,FALSE) ->  | C40: - ( | E40: x | F40: =LubeStore -> 0 | G40: ) = | H40: =B40-(D40*F40) ->  | I40: x | J40: =LubeCC -> 0 | K40: x | L40: =PetroEff -> 0 | M40: = | N40: =H40*J40*L40*1000*lbs_shortt ->  | O40: = | P40: =N40*Short_Metric/1000000 ->  | Q40: = | R40: =P40*C_CO2 -> 
A42: Transportation Sector | D42: 1992
B44: Consumption | D44: Emission Factor | F44: Combustion | H44: Emissions | J44: Emissions | L44: Emissions
A45: Fuel Type | B45: (Billion Btu) | D45: (lbs C/Million Btu) | F45: Efficiency (%) | H45: (short tons carbon) | J45: (MMTCE) | L45: (MMTCO2E)
A46: Aviation Gasoline | B46: =VLOOKUP($A$2&$C$2&$B$2&$C$2&$A46,ConsumeBlock1,6,FALSE) ->  | C46: x | D46: =AvGasCC -> 0 | E46: x | F46: =PetroEff -> 0 | G46: = | H46: =B46*D46*F46*1000*lbs_shortt ->  | I46: = | J46: =H46*Short_Metric/1000000 ->  | K46: = | L46: =J46*C_CO2 -> 
A47: Distillate Fuel | C47: x | D47: =DistillCC -> 0 | E47: x | F47: =PetroEff -> 0 | G47: = | H47: =B47*D47*F47*1000*lbs_shortt ->  | I47: = | J47: =H47*Short_Metric/1000000 ->  | K47: =
A48: Jet Fuel, Kerosene | C48: x | D48: =IF(ISNUMBER(JFKeroCC),JFKeroCC,VLOOKUP(A48,VariableCCs,D42-1988,FALSE)) -> 42.75495 | E48: x | F48: 0 | G48: = | I48: = | K48: =
A49: Jet Fuel, Naphtha | C49: x | D49: =JFNaphCC -> 0 | E49: x | F49: 0 | G49: = | I49: = | K49: =
A50: Hydrocarbon Gas Liquids | C50: x | D50: =IF(ISNUMBER(LPGEUCC),LPGEUCC,VLOOKUP("LPG",VariableCCs,D42-1988,FALSE)) -> 37.80773182 | E50: x | F50: =LPGEff -> 0 | G50: = | I50: = | K50: =
A51: Motor Gasoline | C51: x | D51: =IF(ISNUMBER(MotorGasCC),MotorGasCC,VLOOKUP(A51,VariableCCs,D42-1988,FALSE)) -> 42.97982772 | E51: x | F51: 0 | G51: = | I51: = | K51: =
A52: Residual Fuel | C52: x | D52: =ResidCC -> 0 | E52: x | F52: 0 | G52: = | I52: = | K52: =
A53: Natural Gas | C53: x | D53: =NGCC -> 0 | E53: x | F53: =NGEff -> 0 | G53: = | I53: = | K53: =
A54: Other | B54: 0 | C54: x | E54: x | G54: = | H54: =B54*D54*F54*1000*lbs_shortt -> 0 | I54: = | J54: =H54*Short_Metric/1000000 -> 0 | K54: = | L54: 0
D56: Non-Energy | H56: Net combustible
B57: Consumption | D57: Consumption | H57: Consumption | J57: Emission Factor | L57: Combustion | N57: Emissions | P57: Emissions | R57: Emissions
B58: (Billion Btu) | D58: (Billion Btu) | F58: Storage Factor (%) | H58: (Billion Btu) | J58: (lbs C/Million Btu) | L58: Efficiency (%) | N58: (short tons carbon) | P58: (MMTCE) | R58: (MMTCO2E)
A59: Lubricants | B59: =VLOOKUP($A$2&$C$2&$B$2&$C$2&$A59,ConsumeBlock1,6,FALSE) ->  | C59: - ( | E59: x | F59: =LubeStore -> 0 | G59: ) = | H59: =B59-(D59*F59) ->  | I59: x | J59: =LubeCC -> 0 | K59: x | L59: =PetroEff -> 0 | M59: = | N59: =H59*J59*L59*1000*lbs_shortt ->  | O59: = | P59: =N59*Short_Metric/1000000 ->  | Q59: = | R59: =P59*C_CO2 -> 
A61: Transportation Sector | D61: 1993
B63: Consumption | D63: Emission Factor | F63: Combustion | H63: Emissions | J63: Emissions | L63: Emissions
A64: Fuel Type | B64: (Billion Btu) | D64: (lbs C/Million Btu) | F64: Efficiency (%) | H64: (short tons carbon) | J64: (MMTCE) | L64: (MMTCO2E)
A65: Aviation Gasoline | B65: =VLOOKUP($A$2&$C$2&$B$2&$C$2&$A65,ConsumeBlock1,7,FALSE) ->  | C65: x | D65: =AvGasCC -> 0 | E65: x | F65: =PetroEff -> 0 | G65: = | H65: =B65*D65*F65*1000*lbs_shortt ->  | I65: = | J65: =H65*Short_Metric/1000000 ->  | K65: = | L65: =J65*C_CO2 -> 
A66: Distillate Fuel | C66: x | D66: =DistillCC -> 0 | E66: x | F66: =PetroEff -> 0 | G66: = | H66: =B66*D66*F66*1000*lbs_shortt ->  | I66: = | J66: =H66*Short_Metric/1000000 ->  | K66: =
A67: Jet Fuel, Kerosene | C67: x | D67: =IF(ISNUMBER(JFKeroCC),JFKeroCC,VLOOKUP(A67,VariableCCs,D61-1988,FALSE)) -> 42.71085 | E67: x | F67: 0 | G67: = | I67: = | K67: =
A68: Jet Fuel, Naphtha | C68: x | D68: =JFNaphCC -> 0 | E68: x | F68: 0 | G68: = | I68: = | K68: =
A69: Hydrocarbon Gas Liquids | C69: x | D69: =IF(ISNUMBER(LPGEUCC),LPGEUCC,VLOOKUP("LPG",VariableCCs,D61-1988,FALSE)) -> 37.80773182 | E69: x | F69: =LPGEff -> 0 | G69: = | I69: = | K69: =
A70: Motor Gasoline | C70: x | D70: =IF(ISNUMBER(MotorGasCC),MotorGasCC,VLOOKUP(A70,VariableCCs,D61-1988,FALSE)) -> 42.86336938 | E70: x | F70: 0 | G70: = | I70: = | K70: =
A71: Residual Fuel | C71: x | D71: =ResidCC -> 0 | E71: x | F71: 0 | G71: = | I71: = | K71: =
A72: Natural Gas | C72: x | D72: =NGCC -> 0 | E72: x | F72: =NGEff -> 0 | G72: = | I72: = | K72: =
A73: Other | B73: 0 | C73: x | E73: x | G73: = | H73: =B73*D73*F73*1000*lbs_shortt -> 0 | I73: = | J73: =H73*Short_Metric/1000000 -> 0 | K73: = | L73: 0
D75: Non-Energy | H75: Net combustible
B76: Consumption | D76: Consumption | H76: Consumption | J76: Emission Factor | L76: Combustion | N76: Emissions | P76: Emissions | R76: Emissions
B77: (Billion Btu) | D77: (Billion Btu) | F77: Storage Factor (%) | H77: (Billion Btu) | J77: (lbs C/Million Btu) | L77: Efficiency (%) | N77: (short tons carbon) | P77: (MMTCE) | R77: (MMTCO2E)
A78: Lubricants | B78: =VLOOKUP($A$2&$C$2&$B$2&$C$2&$A78,ConsumeBlock1,7,FALSE) ->  | C78: - ( | E78: x | F78: =LubeStore -> 0 | G78: ) = | H78: =B78-(D78*F78) ->  | I78: x | J78: =LubeCC -> 0 | K78: x | L78: =PetroEff -> 0 | M78: = | N78: =H78*J78*L78*1000*lbs_shortt ->  | O78: = | P78: =N78*Short_Metric/1000000 ->  | Q78: = | R78: =P78*C_CO2 -> 
A80: Transportation Sector | D80: 1994
B82: Consumption | D82: Emission Factor | F82: Combustion | H82: Emissions | J82: Emissions | L82: Emissions
A83: Fuel Type | B83: (Billion Btu) | D83: (lbs C/Million Btu) | F83: Efficiency (%) | H83: (short tons carbon) | J83: (MMTCE) | L83: (MMTCO2E)
A84: Aviation Gasoline | B84: =VLOOKUP($A$2&$C$2&$B$2&$C$2&$A84,ConsumeBlock1,8,FALSE) ->  | C84: x | D84: =AvGasCC -> 0 | E84: x | F84: =PetroEff -> 0 | G84: = | H84: =B84*D84*F84*1000*lbs_shortt ->  | I84: = | J84: =H84*Short_Metric/1000000 ->  | K84: = | L84: =J84*C_CO2 -> 
A85: Distillate Fuel | C85: x | D85: =DistillCC -> 0 | E85: x | F85: =PetroEff -> 0 | G85: = | H85: =B85*D85*F85*1000*lbs_shortt ->  | I85: = | J85: =H85*Short_Metric/1000000 ->  | K85: =
A86: Jet Fuel, Kerosene | C86: x | D86: =IF(ISNUMBER(JFKeroCC),JFKeroCC,VLOOKUP(A86,VariableCCs,D80-1988,FALSE)) -> 42.66675 | E86: x | F86: 0 | G86: = | I86: = | K86: =
A87: Jet Fuel, Naphtha | C87: x | D87: =JFNaphCC -> 0 | E87: x | F87: 0 | G87: = | I87: = | K87: =
A88: Hydrocarbon Gas Liquids | C88: x | D88: =IF(ISNUMBER(LPGEUCC),LPGEUCC,VLOOKUP("LPG",VariableCCs,D80-1988,FALSE)) -> 37.80773182 | E88: x | F88: =LPGEff -> 0 | G88: = | I88: = | K88: =
A89: Motor Gasoline | C89: x | D89: =IF(ISNUMBER(MotorGasCC),MotorGasCC,VLOOKUP(A89,VariableCCs,D80-1988,FALSE)) -> 42.69717006 | E89: x | F89: 0 | G89: = | I89: = | K89: =
A90: Residual Fuel | C90: x | D90: =ResidCC -> 0 | E90: x | F90: 0 | G90: = | I90: = | K90: =
A91: Natural Gas | C91: x | D91: =NGCC -> 0 | E91: x | F91: =NGEff -> 0 | G91: = | I91: = | K91: =
A92: Other | B92: 0 | C92: x | E92: x | G92: = | H92: =B92*D92*F92*1000*lbs_shortt -> 0 | I92: = | J92: =H92*Short_Metric/1000000 -> 0 | K92: = | L92: 0
D94: Non-Energy | H94: Net combustible
B95: Consumption | D95: Consumption | H95: Consumption | J95: Emission Factor | L95: Combustion | N95: Emissions | P95: Emissions | R95: Emissions
B96: (Billion Btu) | D96: (Billion Btu) | F96: Storage Factor (%) | H96: (Billion Btu) | J96: (lbs C/Million Btu) | L96: Efficiency (%) | N96: (short tons carbon) | P96: (MMTCE) | R96: (MMTCO2E)
A97: Lubricants | B97: =VLOOKUP($A$2&$C$2&$B$2&$C$2&$A97,ConsumeBlock1,8,FALSE) ->  | C97: - ( | E97: x | F97: =LubeStore -> 0 | G97: ) = | H97: =B97-(D97*F97) ->  | I97: x | J97: =LubeCC -> 0 | K97: x | L97: =PetroEff -> 0 | M97: = | N97: =H97*J97*L97*1000*lbs_shortt ->  | O97: = | P97: =N97*Short_Metric/1000000 ->  | Q97: = | R97: =P97*C_CO2 -> 
A99: Transportation Sector | D99: 1995
B101: Consumption | D101: Emission Factor | F101: Combustion | H101: Emissions | J101: Emissions | L101: Emissions
A102: Fuel Type | B102: (Billion Btu) | D102: (lbs C/Million Btu) | F102: Efficiency (%) | H102: (short tons carbon) | J102: (MMTCE) | L102: (MMTCO2E)
A103: Aviation Gasoline | B103: =VLOOKUP($A$2&$C$2&$B$2&$C$2&$A103,ConsumeBlock1,9,FALSE) ->  | C103: x | D103: =AvGasCC -> 0 | E103: x | F103: =PetroEff -> 0 | G103: = | H103: =B103*D103*F103*1000*lbs_shortt ->  | I103: = | J103: =H103*Short_Metric/1000000 ->  | K103: = | L103: =J103*C_CO2 -> 
A104: Distillate Fuel | C104: x | D104: =DistillCC -> 0 | E104: x | F104: =PetroEff -> 0 | G104: = | H104: =B104*D104*F104*1000*lbs_shortt ->  | I104: = | J104: =H104*Short_Metric/1000000 ->  | K104: =
A105: Jet Fuel, Kerosene | C105: x | D105: =IF(ISNUMBER(JFKeroCC),JFKeroCC,VLOOKUP(A105,VariableCCs,D99-1988,FALSE)) -> 42.6447 | E105: x | F105: 0 | G105: = | I105: = | K105: =
A106: Jet Fuel, Naphtha | C106: x | D106: =JFNaphCC -> 0 | E106: x | F106: 0 | G106: = | I106: = | K106: =
A107: Hydrocarbon Gas Liquids | C107: x | D107: =IF(ISNUMBER(LPGEUCC),LPGEUCC,VLOOKUP("LPG",VariableCCs,D99-1988,FALSE)) -> 37.80773182 | E107: x | F107: =LPGEff -> 0 | G107: = | I107: = | K107: =
A108: Motor Gasoline | C108: x | D108: =IF(ISNUMBER(MotorGasCC),MotorGasCC,VLOOKUP(A108,VariableCCs,D99-1988,FALSE)) -> 42.6828127 | E108: x | F108: 0 | G108: = | I108: = | K108: =
A109: Residual Fuel | C109: x | D109: =ResidCC -> 0 | E109: x | F109: 0 | G109: = | I109: = | K109: =
A110: Natural Gas | C110: x | D110: =NGCC -> 0 | E110: x | F110: =NGEff -> 0 | G110: = | I110: = | K110: =
A111: Other | B111: 0 | C111: x | E111: x | G111: = | H111: =B111*D111*F111*1000*lbs_shortt -> 0 | I111: = | J111: =H111*Short_Metric/1000000 -> 0 | K111: = | L111: 0
D113: Non-Energy | H113: Net combustible
B114: Consumption | D114: Consumption | H114: Consumption | J114: Emission Factor | L114: Combustion | N114: Emissions | P114: Emissions | R114: Emissions
B115: (Billion Btu) | D115: (Billion Btu) | F115: Storage Factor (%) | H115: (Billion Btu) | J115: (lbs C/Million Btu) | L115: Efficiency (%) | N115: (short tons carbon) | P115: (MMTCE) | R115: (MMTCO2E)
A116: Lubricants | B116: =VLOOKUP($A$2&$C$2&$B$2&$C$2&$A116,ConsumeBlock1,9,FALSE) ->  | C116: - ( | E116: x | F116: =LubeStore -> 0 | G116: ) = | H116: =B116-(D116*F116) ->  | I116: x | J116: =LubeCC -> 0 | K116: x | L116: =PetroEff -> 0 | M116: = | N116: =H116*J116*L116*1000*lbs_shortt ->  | O116: = | P116: =N116*Short_Metric/1000000 ->  | Q116: = | R116: =P116*C_CO2 -> 
A118: Transportation Sector | D118: 1996
B120: Consumption | D120: Emission Factor | F120: Combustion | H120: Emissions | J120: Emissions | L120: Emissions
A121: Fuel Type | B121: (Billion Btu) | D121: (lbs C/Million Btu) | F121: Efficiency (%) | H121: (short tons carbon) | J121: (MMTCE) | L121: (MMTCO2E)
A122: Aviation Gasoline | B122: =VLOOKUP($A$2&$C$2&$B$2&$C$2&$A122,ConsumeBlock1,10,FALSE) ->  | C122: x | D122: =AvGasCC -> 0 | E122: x | F122: =PetroEff -> 0 | G122: = | H122: =B122*D122*F122*1000*lbs_shortt ->  | I122: = | J122: =H122*Short_Metric/1000000 ->  | K122: = | L122: =J122*C_CO2 -> 
A123: Distillate Fuel | C123: x | D123: =DistillCC -> 0 | E123: x | F123: =PetroEff -> 0 | G123: = | H123: =B123*D123*F123*1000*lbs_shortt ->  | I123: = | J123: =H123*Short_Metric/1000000 ->  | K123: =
A124: Jet Fuel, Kerosene | C124: x | D124: =IF(ISNUMBER(JFKeroCC),JFKeroCC,VLOOKUP(A124,VariableCCs,D118-1988,FALSE)) -> 43.43181818 | E124: x | F124: 0 | G124: = | I124: = | K124: =
A125: Jet Fuel, Naphtha | C125: x | D125: =JFNaphCC -> 0 | E125: x | F125: 0 | G125: = | I125: = | K125: =
A126: Hydrocarbon Gas Liquids | C126: x | D126: =IF(ISNUMBER(LPGEUCC),LPGEUCC,VLOOKUP("LPG",VariableCCs,D118-1988,FALSE)) -> 37.80773182 | E126: x | F126: =LPGEff -> 0 | G126: = | I126: = | K126: =
A127: Motor Gasoline | C127: x | D127: =IF(ISNUMBER(MotorGasCC),MotorGasCC,VLOOKUP(A127,VariableCCs,D118-1988,FALSE)) -> 42.67679481 | E127: x | F127: 0 | G127: = | I127: = | K127: =
A128: Residual Fuel | C128: x | D128: =ResidCC -> 0 | E128: x | F128: 0 | G128: = | I128: = | K128: =
A129: Natural Gas | C129: x | D129: =NGCC -> 0 | E129: x | F129: =NGEff -> 0 | G129: = | I129: = | K129: =
A130: Other | B130: 0 | C130: x | E130: x | G130: = | H130: =B130*D130*F130*1000*lbs_shortt -> 0 | I130: = | J130: =H130*Short_Metric/1000000 -> 0 | K130: = | L130: 0
D132: Non-Energy | H132: Net combustible
B133: Consumption | D133: Consumption | H133: Consumption | J133: Emission Factor | L133: Combustion | N133: Emissions | P133: Emissions | R133: Emissions
B134: (Billion Btu) | D134: (Billion Btu) | F134: Storage Factor (%) | H134: (Billion Btu) | J134: (lbs C/Million Btu) | L134: Efficiency (%) | N134: (short tons carbon) | P134: (MMTCE) | R134: (MMTCO2E)
A135: Lubricants | B135: =VLOOKUP($A$2&$C$2&$B$2&$C$2&$A135,ConsumeBlock1,10,FALSE) ->  | C135: - ( | E135: x | F135: =LubeStore -> 0 | G135: ) = | H135: =B135-(D135*F135) ->  | I135: x | J135: =LubeCC -> 0 | K135: x | L135: =PetroEff -> 0 | M135: = | N135: =H135*J135*L135*1000*lbs_shortt ->  | O135: = | P135: =N135*Short_Metric/1000000 ->  | Q135: = | R135: =P135*C_CO2 -> 
A137: Transportation Sector | D137: 1997
B139: Consumption | D139: Emission Factor | F139: Combustion | H139: Emissions | J139: Emissions | L139: Emissions
A140: Fuel Type | B140: (Billion Btu) | D140: (lbs C/Million Btu) | F140: Efficiency (%) | H140: (short tons carbon) | J140: (MMTCE) | L140: (MMTCO2E)
A141: Aviation Gasoline | B141: =VLOOKUP($A$2&$C$2&$B$2&$C$2&$A141,ConsumeBlock1,11,FALSE) ->  | C141: x | D141: =AvGasCC -> 0 | E141: x | F141: =PetroEff -> 0 | G141: = | H141: =B141*D141*F141*1000*lbs_shortt ->  | I141: = | J141: =H141*Short_Metric/1000000 ->  | K141: = | L141: =J141*C_CO2 -> 
A142: Distillate Fuel | C142: x | D142: =DistillCC -> 0 | E142: x | F142: =PetroEff -> 0 | G142: = | H142: =B142*D142*F142*1000*lbs_shortt ->  | I142: = | J142: =H142*Short_Metric/1000000 ->  | K142: =
A143: Jet Fuel, Kerosene | C143: x | D143: =IF(ISNUMBER(JFKeroCC),JFKeroCC,VLOOKUP(A143,VariableCCs,D137-1988,FALSE)) -> 43.43181818 | E143: x | F143: 0 | G143: = | I143: = | K143: =
A144: Jet Fuel, Naphtha | C144: x | D144: =JFNaphCC -> 0 | E144: x | F144: 0 | G144: = | I144: = | K144: =
A145: Hydrocarbon Gas Liquids | C145: x | D145: =IF(ISNUMBER(LPGEUCC),LPGEUCC,VLOOKUP("LPG",VariableCCs,D137-1988,FALSE)) -> 37.80773182 | E145: x | F145: =LPGEff -> 0 | G145: = | I145: = | K145: =
A146: Motor Gasoline | C146: x | D146: =IF(ISNUMBER(MotorGasCC),MotorGasCC,VLOOKUP(A146,VariableCCs,D137-1988,FALSE)) -> 42.67799868 | E146: x | F146: 0 | G146: = | I146: = | K146: =
A147: Residual Fuel | C147: x | D147: =ResidCC -> 0 | E147: x | F147: 0 | G147: = | I147: = | K147: =
A148: Natural Gas | C148: x | D148: =NGCC -> 0 | E148: x | F148: =NGEff -> 0 | G148: = | I148: = | K148: =
A149: Other | B149: 0 | C149: x | E149: x | G149: = | H149: =B149*D149*F149*1000*lbs_shortt -> 0 | I149: = | J149: =H149*Short_Metric/1000000 -> 0 | K149: = | L149: 0
D151: Non-Energy | H151: Net combustible
B152: Consumption | D152: Consumption | H152: Consumption | J152: Emission Factor | L152: Combustion | N152: Emissions | P152: Emissions | R152: Emissions
B153: (Billion Btu) | D153: (Billion Btu) | F153: Storage Factor (%) | H153: (Billion Btu) | J153: (lbs C/Million Btu) | L153: Efficiency (%) | N153: (short tons carbon) | P153: (MMTCE) | R153: (MMTCO2E)
A154: Lubricants | B154: =VLOOKUP($A$2&$C$2&$B$2&$C$2&$A154,ConsumeBlock1,11,FALSE) ->  | C154: - ( | E154: x | F154: =LubeStore -> 0 | G154: ) = | H154: =B154-(D154*F154) ->  | I154: x | J154: =LubeCC -> 0 | K154: x | L154: =PetroEff -> 0 | M154: = | N154: =H154*J154*L154*1000*lbs_shortt ->  | O154: = | P154: =N154*Short_Metric/1000000 ->  | Q154: = | R154: =P154*C_CO2 -> 
A156: Transportation Sector | D156: 1998
B158: Consumption | D158: Emission Factor | F158: Combustion | H158: Emissions | J158: Emissions | L158: Emissions
A159: Fuel Type | B159: (Billion Btu) | D159: (lbs C/Million Btu) | F159: Efficiency (%) | H159: (short tons carbon) | J159: (MMTCE) | L159: (MMTCO2E)
A160: Aviation Gasoline | B160: =VLOOKUP($A$2&$C$2&$B$2&$C$2&$A160,ConsumeBlock1,12,FALSE) ->  | C160: x | D160: =AvGasCC -> 0 | E160: x | F160: =PetroEff -> 0 | G160: = | H160: =B160*D160*F160*1000*lbs_shortt ->  | I160: = | J160: =H160*Short_Metric/1000000 ->  | K160: = | L160: =J160*C_CO2 -> 
A161: Distillate Fuel | C161: x | D161: =DistillCC -> 0 | E161: x | F161: =PetroEff -> 0 | G161: = | H161: =B161*D161*F161*1000*lbs_shortt ->  | I161: = | J161: =H161*Short_Metric/1000000 ->  | K161: =
A162: Jet Fuel, Kerosene | C162: x | D162: =IF(ISNUMBER(JFKeroCC),JFKeroCC,VLOOKUP(A162,VariableCCs,D156-1988,FALSE)) -> 43.43181818 | E162: x | F162: 0 | G162: = | I162: = | K162: =
A163: Jet Fuel, Naphtha | C163: x | D163: =JFNaphCC -> 0 | E163: x | F163: 0 | G163: = | I163: = | K163: =
A164: Hydrocarbon Gas Liquids | C164: x | D164: =IF(ISNUMBER(LPGEUCC),LPGEUCC,VLOOKUP("LPG",VariableCCs,D156-1988,FALSE)) -> 37.80773182 | E164: x | F164: =LPGEff -> 0 | G164: = | I164: = | K164: =
A165: Motor Gasoline | C165: x | D165: =IF(ISNUMBER(MotorGasCC),MotorGasCC,VLOOKUP(A165,VariableCCs,D156-1988,FALSE)) -> 42.7036522 | E165: x | F165: 0 | G165: = | I165: = | K165: =
A166: Residual Fuel | C166: x | D166: =ResidCC -> 0 | E166: x | F166: 0 | G166: = | I166: = | K166: =
A167: Natural Gas | C167: x | D167: =NGCC -> 0 | E167: x | F167: =NGEff -> 0 | G167: = | I167: = | K167: =
A168: Other | B168: 0 | C168: x | E168: x | G168: = | H168: =B168*D168*F168*1000*lbs_shortt -> 0 | I168: = | J168: =H168*Short_Metric/1000000 -> 0 | K168: = | L168: 0
D170: Non-Energy | H170: Net combustible
B171: Consumption | D171: Consumption | H171: Consumption | J171: Emission Factor | L171: Combustion | N171: Emissions | P171: Emissions | R171: Emissions
B172: (Billion Btu) | D172: (Billion Btu) | F172: Storage Factor (%) | H172: (Billion Btu) | J172: (lbs C/Million Btu) | L172: Efficiency (%) | N172: (short tons carbon) | P172: (MMTCE) | R172: (MMTCO2E)
A173: Lubricants | B173: =VLOOKUP($A$2&$C$2&$B$2&$C$2&$A173,ConsumeBlock1,12,FALSE) ->  | C173: - ( | E173: x | F173: =LubeStore -> 0 | G173: ) = | H173: =B173-(D173*F173) ->  | I173: x | J173: =LubeCC -> 0 | K173: x | L173: =PetroEff -> 0 | M173: = | N173: =H173*J173*L173*1000*lbs_shortt ->  | O173: = | P173: =N173*Short_Metric/1000000 ->  | Q173: = | R173: =P173*C_CO2 -> 
A175: Transportation Sector | D175: 1999
B177: Consumption | D177: Emission Factor | F177: Combustion | H177: Emissions | J177: Emissions | L177: Emissions
A178: Fuel Type | B178: (Billion Btu) | D178: (lbs C/Million Btu) | F178: Efficiency (%) | H178: (short tons carbon) | J178: (MMTCE) | L178: (MMTCO2E)
A179: Aviation Gasoline | B179: =VLOOKUP($A$2&$C$2&$B$2&$C$2&$A179,ConsumeBlock1,13,FALSE) ->  | C179: x | D179: =AvGasCC -> 0 | E179: x | F179: =PetroEff -> 0 | G179: = | H179: =B179*D179*F179*1000*lbs_shortt ->  | I179: = | J179: =H179*Short_Metric/1000000 ->  | K179: = | L179: =J179*C_CO2 -> 
A180: Distillate Fuel | C180: x | D180: =DistillCC -> 0 | E180: x | F180: =PetroEff -> 0 | G180: = | H180: =B180*D180*F180*1000*lbs_shortt ->  | I180: = | J180: =H180*Short_Metric/1000000 ->  | K180: =
A181: Jet Fuel, Kerosene | C181: x | D181: =IF(ISNUMBER(JFKeroCC),JFKeroCC,VLOOKUP(A181,VariableCCs,D175-1988,FALSE)) -> 43.43181818 | E181: x | F181: 0 | G181: = | I181: = | K181: =
A182: Jet Fuel, Naphtha | C182: x | D182: =JFNaphCC -> 0 | E182: x | F182: 0 | G182: = | I182: = | K182: =
A183: Hydrocarbon Gas Liquids | C183: x | D183: =IF(ISNUMBER(LPGEUCC),LPGEUCC,VLOOKUP("LPG",VariableCCs,D175-1988,FALSE)) -> 37.80773182 | E183: x | F183: =LPGEff -> 0 | G183: = | I183: = | K183: =
A184: Motor Gasoline | C184: x | D184: =IF(ISNUMBER(MotorGasCC),MotorGasCC,VLOOKUP(A184,VariableCCs,D175-1988,FALSE)) -> 42.60420705 | E184: x | F184: 0 | G184: = | I184: = | K184: =
A185: Residual Fuel | C185: x | D185: =ResidCC -> 0 | E185: x | F185: 0 | G185: = | I185: = | K185: =
A186: Natural Gas | C186: x | D186: =NGCC -> 0 | E186: x | F186: =NGEff -> 0 | G186: = | I186: = | K186: =
A187: Other | B187: 0 | C187: x | E187: x | G187: = | H187: =B187*D187*F187*1000*lbs_shortt -> 0 | I187: = | J187: =H187*Short_Metric/1000000 -> 0 | K187: = | L187: 0
D189: Non-Energy | H189: Net combustible
B190: Consumption | D190: Consumption | H190: Consumption | J190: Emission Factor | L190: Combustion | N190: Emissions | P190: Emissions | R190: Emissions
B191: (Billion Btu) | D191: (Billion Btu) | F191: Storage Factor (%) | H191: (Billion Btu) | J191: (lbs C/Million Btu) | L191: Efficiency (%) | N191: (short tons carbon) | P191: (MMTCE) | R191: (MMTCO2E)
A192: Lubricants | B192: =VLOOKUP($A$2&$C$2&$B$2&$C$2&$A192,ConsumeBlock1,13,FALSE) ->  | C192: - ( | E192: x | F192: =LubeStore -> 0 | G192: ) = | H192: =B192-(D192*F192) ->  | I192: x | J192: =LubeCC -> 0 | K192: x | L192: =PetroEff -> 0 | M192: = | N192: =H192*J192*L192*1000*lbs_shortt ->  | O192: = | P192: =N192*Short_Metric/1000000 ->  | Q192: = | R192: =P192*C_CO2 -> 
A194: Transportation Sector | D194: 2000
B196: Consumption | D196: Emission Factor | F196: Combustion | H196: Emissions | J196: Emissions | L196: Emissions
A197: Fuel Type | B197: (Billion Btu) | D197: (lbs C/Million Btu) | F197: Efficiency (%) | H197: (short tons carbon) | J197: (MMTCE) | L197: (MMTCO2E)
A198: Aviation Gasoline | B198: =VLOOKUP($A$2&$C$2&$B$2&$C$2&$A198,ConsumeBlock1,14,FALSE) ->  | C198: x | D198: =AvGasCC -> 0 | E198: x | F198: =PetroEff -> 0 | G198: = | H198: =B198*D198*F198*1000*lbs_shortt ->  | I198: = | J198: =H198*Short_Metric/1000000 ->  | K198: = | L198: =J198*C_CO2 -> 
A199: Distillate Fuel | C199: x | D199: =DistillCC -> 0 | E199: x | F199: =PetroEff -> 0 | G199: = | H199: =B199*D199*F199*1000*lbs_shortt ->  | I199: = | J199: =H199*Short_Metric/1000000 ->  | K199: =
A200: Jet Fuel, Kerosene | C200: x | D200: =IF(ISNUMBER(JFKeroCC),JFKeroCC,VLOOKUP(A200,VariableCCs,D194-1988,FALSE)) -> 43.43181818 | E200: x | F200: 0 | G200: = | I200: = | K200: =
A201: Jet Fuel, Naphtha | C201: x | D201: =JFNaphCC -> 0 | E201: x | F201: 0 | G201: = | I201: = | K201: =
A202: Hydrocarbon Gas Liquids | C202: x | D202: =IF(ISNUMBER(LPGEUCC),LPGEUCC,VLOOKUP("LPG",VariableCCs,D194-1988,FALSE)) -> 37.80773182 | E202: x | F202: =LPGEff -> 0 | G202: = | I202: = | K202: =
A203: Motor Gasoline | C203: x | D203: =IF(ISNUMBER(MotorGasCC),MotorGasCC,VLOOKUP(A203,VariableCCs,D194-1988,FALSE)) -> 42.93135 | E203: x | F203: 0 | G203: = | I203: = | K203: =
A204: Residual Fuel | C204: x | D204: =ResidCC -> 0 | E204: x | F204: 0 | G204: = | I204: = | K204: =
A205: Natural Gas | C205: x | D205: =NGCC -> 0 | E205: x | F205: =NGEff -> 0 | G205: = | I205: = | K205: =
A206: Other | B206: 0 | C206: x | E206: x | G206: = | H206: =B206*D206*F206*1000*lbs_shortt -> 0 | I206: = | J206: =H206*Short_Metric/1000000 -> 0 | K206: = | L206: 0
D208: Non-Energy | H208: Net combustible
B209: Consumption | D209: Consumption | H209: Consumption | J209: Emission Factor | L209: Combustion | N209: Emissions | P209: Emissions | R209: Emissions
B210: (Billion Btu) | D210: (Billion Btu) | F210: Storage Factor (%) | H210: (Billion Btu) | J210: (lbs C/Million Btu) | L210: Efficiency (%) | N210: (short tons carbon) | P210: (MMTCE) | R210: (MMTCO2E)
A211: Lubricants | B211: =VLOOKUP($A$2&$C$2&$B$2&$C$2&$A211,ConsumeBlock1,14,FALSE) ->  | C211: - ( | E211: x | F211: =LubeStore -> 0 | G211: ) = | H211: =B211-(D211*F211) ->  | I211: x | J211: =LubeCC -> 0 | K211: x | L211: =PetroEff -> 0 | M211: = | N211: =H211*J211*L211*1000*lbs_shortt ->  | O211: = | P211: =N211*Short_Metric/1000000 ->  | Q211: = | R211: =P211*C_CO2 -> 
A213: Transportation Sector | D213: 2001
B215: Consumption | D215: Emission Factor | F215: Combustion | H215: Emissions | J215: Emissions | L215: Emissions
A216: Fuel Type | B216: (Billion Btu) | D216: (lbs C/Million Btu) | F216: Efficiency (%) | H216: (short tons carbon) | J216: (MMTCE) | L216: (MMTCO2E)
A217: Aviation Gasoline | B217: =VLOOKUP($A$2&$C$2&$B$2&$C$2&$A217,ConsumeBlock1,15,FALSE) ->  | C217: x | D217: =AvGasCC -> 0 | E217: x | F217: =PetroEff -> 0 | G217: = | H217: =B217*D217*F217*1000*lbs_shortt ->  | I217: = | J217: =H217*Short_Metric/1000000 ->  | K217: = | L217: =J217*C_CO2 -> 
A218: Distillate Fuel | C218: x | D218: =DistillCC -> 0 | E218: x | F218: =PetroEff -> 0 | G218: = | H218: =B218*D218*F218*1000*lbs_shortt ->  | I218: = | J218: =H218*Short_Metric/1000000 ->  | K218: =
A219: Jet Fuel, Kerosene | C219: x | D219: =IF(ISNUMBER(JFKeroCC),JFKeroCC,VLOOKUP(A219,VariableCCs,D213-1988,FALSE)) -> 43.43181818 | E219: x | F219: 0 | G219: = | I219: = | K219: =
A220: Jet Fuel, Naphtha | C220: x | D220: =JFNaphCC -> 0 | E220: x | F220: 0 | G220: = | I220: = | K220: =
A221: Hydrocarbon Gas Liquids | C221: x | D221: =IF(ISNUMBER(LPGEUCC),LPGEUCC,VLOOKUP("LPG",VariableCCs,D213-1988,FALSE)) -> 37.80773182 | E221: x | F221: =LPGEff -> 0 | G221: = | I221: = | K221: =
A222: Motor Gasoline | C222: x | D222: =IF(ISNUMBER(MotorGasCC),MotorGasCC,VLOOKUP(A222,VariableCCs,D213-1988,FALSE)) -> 42.6447 | E222: x | F222: 0 | G222: = | I222: = | K222: =
A223: Residual Fuel | C223: x | D223: =ResidCC -> 0 | E223: x | F223: 0 | G223: = | I223: = | K223: =
A224: Natural Gas | C224: x | D224: =NGCC -> 0 | E224: x | F224: =NGEff -> 0 | G224: = | I224: = | K224: =
A225: Other | B225: 0 | C225: x | E225: x | G225: = | H225: =B225*D225*F225*1000*lbs_shortt -> 0 | I225: = | J225: =H225*Short_Metric/1000000 -> 0 | K225: = | L225: 0
D227: Non-Energy | H227: Net combustible
B228: Consumption | D228: Consumption | H228: Consumption | J228: Emission Factor | L228: Combustion | N228: Emissions | P228: Emissions | R228: Emissions
B229: (Billion Btu) | D229: (Billion Btu) | F229: Storage Factor (%) | H229: (Billion Btu) | J229: (lbs C/Million Btu) | L229: Efficiency (%) | N229: (short tons carbon) | P229: (MMTCE) | R229: (MMTCO2E)
A230: Lubricants | B230: =VLOOKUP($A$2&$C$2&$B$2&$C$2&$A230,ConsumeBlock1,15,FALSE) ->  | C230: - ( | E230: x | F230: =LubeStore -> 0 | G230: ) = | H230: =B230-(D230*F230) ->  | I230: x | J230: =LubeCC -> 0 | K230: x | L230: =PetroEff -> 0 | M230: = | N230: =H230*J230*L230*1000*lbs_shortt ->  | O230: = | P230: =N230*Short_Metric/1000000 ->  | Q230: = | R230: =P230*C_CO2 -> 
A232: Transportation Sector | D232: 2002
B234: Consumption | D234: Emission Factor | F234: Combustion | H234: Emissions | J234: Emissions | L234: Emissions
A235: Fuel Type | B235: (Billion Btu) | D235: (lbs C/Million Btu) | F235: Efficiency (%) | H235: (short tons carbon) | J235: (MMTCE) | L235: (MMTCO2E)
A236: Aviation Gasoline | B236: =VLOOKUP($A$2&$C$2&$B$2&$C$2&$A236,ConsumeBlock1,16,FALSE) ->  | C236: x | D236: =AvGasCC -> 0 | E236: x | F236: =PetroEff -> 0 | G236: = | H236: =B236*D236*F236*1000*lbs_shortt ->  | I236: = | J236: =H236*Short_Metric/1000000 ->  | K236: = | L236: =J236*C_CO2 -> 
A237: Distillate Fuel | C237: x | D237: =DistillCC -> 0 | E237: x | F237: =PetroEff -> 0 | G237: = | H237: =B237*D237*F237*1000*lbs_shortt ->  | I237: = | J237: =H237*Short_Metric/1000000 ->  | K237: =
A238: Jet Fuel, Kerosene | C238: x | D238: =IF(ISNUMBER(JFKeroCC),JFKeroCC,VLOOKUP(A238,VariableCCs,D232-1988,FALSE)) -> 43.43181818 | E238: x | F238: 0 | G238: = | I238: = | K238: =
... 298 more rows

Sheet Electric Power
A1: ="7. Electric Power Consumption and CO2 Emissions in "&'List Data'!E3 -> 7. Electric Power Consumption and CO2 Emissions in Select a State . . .
A2: ='List Data'!F3 -> XX | B2: Electric Power | C2: =" " -> 
A3: Electric Power Sector | D3: 1990
B5: Consumption | D5: Emission Factor | F5: Combustion | H5: Emissions | J5: Emissions | L5: Emissions
A6: Fuel Type | B6: (Billion Btu) | D6: (lbs C/Million Btu) | F6: Efficiency (%) | H6: (short tons carbon) | J6: (MMTCE) | L6: (MMTCO2E)
A7: Coal | B7: =VLOOKUP($A$2&$C$2&$B$2&$C$2&$A7,ConsumeBlock1,4,FALSE) ->  | C7: x | D7: =IF(ISNUMBER(UtilityCoalCC),UtilityCoalCC,VLOOKUP($A$2 & " Electric Power Coal CC",CoalCoeffBlock,D3-1988,FALSE)) ->  | E7: x | F7: =CoalEff -> 0 | G7: = | H7: =B7*D7*F7*1000*lbs_shortt ->  | I7: = | J7: =H7*Short_Metric/1000000 ->  | K7: = | L7: =J7*C_CO2 -> 
A8: Distillate Fuel | C8: x | D8: =DistillCC -> 0 | E8: x | F8: =PetroEff -> 0 | G8: = | I8: = | K8: =
A9: Petroleum Coke | C9: x | D9: =PetCokeCC -> 0 | E9: x | F9: =PetroEff -> 0 | G9: = | I9: = | K9: =
A10: Residual Fuel | C10: x | D10: =ResidCC -> 0 | E10: x | F10: =PetroEff -> 0 | G10: = | I10: = | K10: =
A11: Natural Gas | C11: x | D11: =NGCC -> 0 | E11: x | F11: =NGEff -> 0 | G11: = | I11: = | K11: =
A12: Other | B12: 0 | C12: x | E12: x | G12: = | H12: 0 | I12: = | J12: 0 | K12: = | L12: 0
A14: Electric Power Sector | D14: 1991
B16: Consumption | D16: Emission Factor | F16: Combustion | H16: Emissions | J16: Emissions | L16: Emissions
A17: Fuel Type | B17: (Billion Btu) | D17: (lbs C/Million Btu) | F17: Efficiency (%) | H17: (short tons carbon) | J17: (MMTCE) | L17: (MMTCO2E)
A18: Coal | B18: =VLOOKUP($A$2&$C$2&$B$2&$C$2&$A18,ConsumeBlock1,5,FALSE) ->  | C18: x | D18: =IF(ISNUMBER(UtilityCoalCC),UtilityCoalCC,VLOOKUP($A$2 & " Electric Power Coal CC",CoalCoeffBlock,D14-1988,FALSE)) ->  | E18: x | F18: =CoalEff -> 0 | G18: = | H18: =B18*D18*F18*1000*lbs_shortt ->  | I18: = | J18: =H18*Short_Metric/1000000 ->  | K18: = | L18: =J18*C_CO2 -> 
A19: Distillate Fuel | C19: x | D19: =DistillCC -> 0 | E19: x | F19: =PetroEff -> 0 | G19: = | I19: = | K19: =
A20: Petroleum Coke | C20: x | D20: =PetCokeCC -> 0 | E20: x | F20: =PetroEff -> 0 | G20: = | I20: = | K20: =
A21: Residual Fuel | C21: x | D21: =ResidCC -> 0 | E21: x | F21: =PetroEff -> 0 | G21: = | I21: = | K21: =
A22: Natural Gas | C22: x | D22: =NGCC -> 0 | E22: x | F22: =NGEff -> 0 | G22: = | I22: = | K22: =
A23: Other | B23: 0 | C23: x | E23: x | G23: = | H23: 0 | I23: = | J23: 0 | K23: = | L23: 0
A25: Electric Power Sector | D25: 1992
B27: Consumption | D27: Emission Factor | F27: Combustion | H27: Emissions | J27: Emissions | L27: Emissions
A28: Fuel Type | B28: (Billion Btu) | D28: (lbs C/Million Btu) | F28: Efficiency (%) | H28: (short tons carbon) | J28: (MMTCE) | L28: (MMTCO2E)
A29: Coal | B29: =VLOOKUP($A$2&$C$2&$B$2&$C$2&$A29,ConsumeBlock1,6,FALSE) ->  | C29: x | D29: =IF(ISNUMBER(UtilityCoalCC),UtilityCoalCC,VLOOKUP($A$2 & " Electric Power Coal CC",CoalCoeffBlock,D25-1988,FALSE)) ->  | E29: x | F29: =CoalEff -> 0 | G29: = | H29: =B29*D29*F29*1000*lbs_shortt ->  | I29: = | J29: =H29*Short_Metric/1000000 ->  | K29: = | L29: =J29*C_CO2 -> 
A30: Distillate Fuel | C30: x | D30: =DistillCC -> 0 | E30: x | F30: =PetroEff -> 0 | G30: = | I30: = | K30: =
A31: Petroleum Coke | C31: x | D31: =PetCokeCC -> 0 | E31: x | F31: =PetroEff -> 0 | G31: = | I31: = | K31: =
A32: Residual Fuel | C32: x | D32: =ResidCC -> 0 | E32: x | F32: =PetroEff -> 0 | G32: = | I32: = | K32: =
A33: Natural Gas | C33: x | D33: =NGCC -> 0 | E33: x | F33: =NGEff -> 0 | G33: = | I33: = | K33: =
A34: Other | B34: 0 | C34: x | E34: x | G34: = | H34: 0 | I34: = | J34: 0 | K34: = | L34: 0
A36: Electric Power Sector | D36: 1993
B38: Consumption | D38: Emission Factor | F38: Combustion | H38: Emissions | J38: Emissions | L38: Emissions
A39: Fuel Type | B39: (Billion Btu) | D39: (lbs C/Million Btu) | F39: Efficiency (%) | H39: (short tons carbon) | J39: (MMTCE) | L39: (MMTCO2E)
A40: Coal | B40: =VLOOKUP($A$2&$C$2&$B$2&$C$2&$A40,ConsumeBlock1,7,FALSE) ->  | C40: x | D40: =IF(ISNUMBER(UtilityCoalCC),UtilityCoalCC,VLOOKUP($A$2 & " Electric Power Coal CC",CoalCoeffBlock,D36-1988,FALSE)) ->  | E40: x | F40: =CoalEff -> 0 | G40: = | H40: =B40*D40*F40*1000*lbs_shortt ->  | I40: = | J40: =H40*Short_Metric/1000000 ->  | K40: = | L40: =J40*C_CO2 -> 
A41: Distillate Fuel | C41: x | D41: =DistillCC -> 0 | E41: x | F41: =PetroEff -> 0 | G41: = | I41: = | K41: =
A42: Petroleum Coke | C42: x | D42: =PetCokeCC -> 0 | E42: x | F42: =PetroEff -> 0 | G42: = | I42: = | K42: =
A43: Residual Fuel | C43: x | D43: =ResidCC -> 0 | E43: x | F43: =PetroEff -> 0 | G43: = | I43: = | K43: =
A44: Natural Gas | C44: x | D44: =NGCC -> 0 | E44: x | F44: =NGEff -> 0 | G44: = | I44: = | K44: =
A45: Other | B45: 0 | C45: x | E45: x | G45: = | H45: 0 | I45: = | J45: 0 | K45: = | L45: 0
A47: Electric Power Sector | D47: 1994
B49: Consumption | D49: Emission Factor | F49: Combustion | H49: Emissions | J49: Emissions | L49: Emissions
A50: Fuel Type | B50: (Billion Btu) | D50: (lbs C/Million Btu) | F50: Efficiency (%) | H50: (short tons carbon) | J50: (MMTCE) | L50: (MMTCO2E)
A51: Coal | B51: =VLOOKUP($A$2&$C$2&$B$2&$C$2&$A51,ConsumeBlock1,8,FALSE) ->  | C51: x | D51: =IF(ISNUMBER(UtilityCoalCC),UtilityCoalCC,VLOOKUP($A$2 & " Electric Power Coal CC",CoalCoeffBlock,D47-1988,FALSE)) ->  | E51: x | F51: =CoalEff -> 0 | G51: = | H51: =B51*D51*F51*1000*lbs_shortt ->  | I51: = | J51: =H51*Short_Metric/1000000 ->  | K51: = | L51: =J51*C_CO2 -> 
A52: Distillate Fuel | C52: x | D52: =DistillCC -> 0 | E52: x | F52: =PetroEff -> 0 | G52: = | I52: = | K52: =
A53: Petroleum Coke | C53: x | D53: =PetCokeCC -> 0 | E53: x | F53: =PetroEff -> 0 | G53: = | I53: = | K53: =
A54: Residual Fuel | C54: x | D54: =ResidCC -> 0 | E54: x | F54: =PetroEff -> 0 | G54: = | I54: = | K54: =
A55: Natural Gas | C55: x | D55: =NGCC -> 0 | E55: x | F55: =NGEff -> 0 | G55: = | I55: = | K55: =
A56: Other | B56: 0 | C56: x | E56: x | G56: = | H56: 0 | I56: = | J56: 0 | K56: = | L56: 0
A58: Electric Power Sector | D58: 1995
B60: Consumption | D60: Emission Factor | F60: Combustion | H60: Emissions | J60: Emissions | L60: Emissions
A61: Fuel Type | B61: (Billion Btu) | D61: (lbs C/Million Btu) | F61: Efficiency (%) | H61: (short tons carbon) | J61: (MMTCE) | L61: (MMTCO2E)
A62: Coal | B62: =VLOOKUP($A$2&$C$2&$B$2&$C$2&$A62,ConsumeBlock1,9,FALSE) ->  | C62: x | D62: =IF(ISNUMBER(UtilityCoalCC),UtilityCoalCC,VLOOKUP($A$2 & " Electric Power Coal CC",CoalCoeffBlock,D58-1988,FALSE)) ->  | E62: x | F62: =CoalEff -> 0 | G62: = | H62: =B62*D62*F62*1000*lbs_shortt ->  | I62: = | J62: =H62*Short_Metric/1000000 ->  | K62: = | L62: =J62*C_CO2 -> 
A63: Distillate Fuel | C63: x | D63: =DistillCC -> 0 | E63: x | F63: =PetroEff -> 0 | G63: = | I63: = | K63: =
A64: Petroleum Coke | C64: x | D64: =PetCokeCC -> 0 | E64: x | F64: =PetroEff -> 0 | G64: = | I64: = | K64: =
A65: Residual Fuel | C65: x | D65: =ResidCC -> 0 | E65: x | F65: =PetroEff -> 0 | G65: = | I65: = | K65: =
A66: Natural Gas | C66: x | D66: =NGCC -> 0 | E66: x | F66: =NGEff -> 0 | G66: = | I66: = | K66: =
A67: Other | B67: 0 | C67: x | E67: x | G67: = | H67: 0 | I67: = | J67: 0 | K67: = | L67: 0
A69: Electric Power Sector | D69: 1996
B71: Consumption | D71: Emission Factor | F71: Combustion | H71: Emissions | J71: Emissions | L71: Emissions
A72: Fuel Type | B72: (Billion Btu) | D72: (lbs C/Million Btu) | F72: Efficiency (%) | H72: (short tons carbon) | J72: (MMTCE) | L72: (MMTCO2E)
A73: Coal | B73: =VLOOKUP($A$2&$C$2&$B$2&$C$2&$A73,ConsumeBlock1,10,FALSE) ->  | C73: x | D73: =IF(ISNUMBER(UtilityCoalCC),UtilityCoalCC,VLOOKUP($A$2 & " Electric Power Coal CC",CoalCoeffBlock,D69-1988,FALSE)) ->  | E73: x | F73: =CoalEff -> 0 | G73: = | H73: =B73*D73*F73*1000*lbs_shortt ->  | I73: = | J73: =H73*Short_Metric/1000000 ->  | K73: = | L73: =J73*C_CO2 -> 
A74: Distillate Fuel | C74: x | D74: =DistillCC -> 0 | E74: x | F74: =PetroEff -> 0 | G74: = | I74: = | K74: =
A75: Petroleum Coke | C75: x | D75: =PetCokeCC -> 0 | E75: x | F75: =PetroEff -> 0 | G75: = | I75: = | K75: =
A76: Residual Fuel | C76: x | D76: =ResidCC -> 0 | E76: x | F76: =PetroEff -> 0 | G76: = | I76: = | K76: =
A77: Natural Gas | C77: x | D77: =NGCC -> 0 | E77: x | F77: =NGEff -> 0 | G77: = | I77: = | K77: =
A78: Other | B78: 0 | C78: x | E78: x | G78: = | H78: 0 | I78: = | J78: 0 | K78: = | L78: 0
A80: Electric Power Sector | D80: 1997
B82: Consumption | D82: Emission Factor | F82: Combustion | H82: Emissions | J82: Emissions | L82: Emissions
A83: Fuel Type | B83: (Billion Btu) | D83: (lbs C/Million Btu) | F83: Efficiency (%) | H83: (short tons carbon) | J83: (MMTCE) | L83: (MMTCO2E)
A84: Coal | B84: =VLOOKUP($A$2&$C$2&$B$2&$C$2&$A84,ConsumeBlock1,11,FALSE) ->  | C84: x | D84: =IF(ISNUMBER(UtilityCoalCC),UtilityCoalCC,VLOOKUP($A$2 & " Electric Power Coal CC",CoalCoeffBlock,D80-1988,FALSE)) ->  | E84: x | F84: =CoalEff -> 0 | G84: = | H84: =B84*D84*F84*1000*lbs_shortt ->  | I84: = | J84: =H84*Short_Metric/1000000 ->  | K84: = | L84: =J84*C_CO2 -> 
A85: Distillate Fuel | C85: x | D85: =DistillCC -> 0 | E85: x | F85: =PetroEff -> 0 | G85: = | I85: = | K85: =
A86: Petroleum Coke | C86: x | D86: =PetCokeCC -> 0 | E86: x | F86: =PetroEff -> 0 | G86: = | I86: = | K86: =
A87: Residual Fuel | C87: x | D87: =ResidCC -> 0 | E87: x | F87: =PetroEff -> 0 | G87: = | I87: = | K87: =
A88: Natural Gas | C88: x | D88: =NGCC -> 0 | E88: x | F88: =NGEff -> 0 | G88: = | I88: = | K88: =
A89: Other | B89: 0 | C89: x | E89: x | G89: = | H89: 0 | I89: = | J89: 0 | K89: = | L89: 0
A91: Electric Power Sector | D91: 1998
B93: Consumption | D93: Emission Factor | F93: Combustion | H93: Emissions | J93: Emissions | L93: Emissions
A94: Fuel Type | B94: (Billion Btu) | D94: (lbs C/Million Btu) | F94: Efficiency (%) | H94: (short tons carbon) | J94: (MMTCE) | L94: (MMTCO2E)
A95: Coal | B95: =VLOOKUP($A$2&$C$2&$B$2&$C$2&$A95,ConsumeBlock1,12,FALSE) ->  | C95: x | D95: =IF(ISNUMBER(UtilityCoalCC),UtilityCoalCC,VLOOKUP($A$2 & " Electric Power Coal CC",CoalCoeffBlock,D91-1988,FALSE)) ->  | E95: x | F95: =CoalEff -> 0 | G95: = | H95: =B95*D95*F95*1000*lbs_shortt ->  | I95: = | J95: =H95*Short_Metric/1000000 ->  | K95: = | L95: =J95*C_CO2 -> 
A96: Distillate Fuel | C96: x | D96: =DistillCC -> 0 | E96: x | F96: =PetroEff -> 0 | G96: = | I96: = | K96: =
A97: Petroleum Coke | C97: x | D97: =PetCokeCC -> 0 | E97: x | F97: =PetroEff -> 0 | G97: = | I97: = | K97: =
A98: Residual Fuel | C98: x | D98: =ResidCC -> 0 | E98: x | F98: =PetroEff -> 0 | G98: = | I98: = | K98: =
A99: Natural Gas | C99: x | D99: =NGCC -> 0 | E99: x | F99: =NGEff -> 0 | G99: = | I99: = | K99: =
A100: Other | B100: 0 | C100: x | E100: x | G100: = | H100: 0 | I100: = | J100: 0 | K100: = | L100: 0
A102: Electric Power Sector | D102: 1999
B104: Consumption | D104: Emission Factor | F104: Combustion | H104: Emissions | J104: Emissions | L104: Emissions
A105: Fuel Type | B105: (Billion Btu) | D105: (lbs C/Million Btu) | F105: Efficiency (%) | H105: (short tons carbon) | J105: (MMTCE) | L105: (MMTCO2E)
A106: Coal | B106: =VLOOKUP($A$2&$C$2&$B$2&$C$2&$A106,ConsumeBlock1,13,FALSE) ->  | C106: x | D106: =IF(ISNUMBER(UtilityCoalCC),UtilityCoalCC,VLOOKUP($A$2 & " Electric Power Coal CC",CoalCoeffBlock,D102-1988,FALSE)) ->  | E106: x | F106: =CoalEff -> 0 | G106: = | H106: =B106*D106*F106*1000*lbs_shortt ->  | I106: = | J106: =H106*Short_Metric/1000000 ->  | K106: = | L106: =J106*C_CO2 -> 
A107: Distillate Fuel | C107: x | D107: =DistillCC -> 0 | E107: x | F107: =PetroEff -> 0 | G107: = | I107: = | K107: =
A108: Petroleum Coke | C108: x | D108: =PetCokeCC -> 0 | E108: x | F108: =PetroEff -> 0 | G108: = | I108: = | K108: =
A109: Residual Fuel | C109: x | D109: =ResidCC -> 0 | E109: x | F109: =PetroEff -> 0 | G109: = | I109: = | K109: =
A110: Natural Gas | C110: x | D110: =NGCC -> 0 | E110: x | F110: =NGEff -> 0 | G110: = | I110: = | K110: =
A111: Other | B111: 0 | C111: x | E111: x | G111: = | H111: 0 | I111: = | J111: 0 | K111: = | L111: 0
A113: Electric Power Sector | D113: 2000
B115: Consumption | D115: Emission Factor | F115: Combustion | H115: Emissions | J115: Emissions | L115: Emissions
A116: Fuel Type | B116: (Billion Btu) | D116: (lbs C/Million Btu) | F116: Efficiency (%) | H116: (short tons carbon) | J116: (MMTCE) | L116: (MMTCO2E)
A117: Coal | B117: =VLOOKUP($A$2&$C$2&$B$2&$C$2&$A117,ConsumeBlock1,14,FALSE) ->  | C117: x | D117: =IF(ISNUMBER(UtilityCoalCC),UtilityCoalCC,VLOOKUP($A$2 & " Electric Power Coal CC",CoalCoeffBlock,D113-1988,FALSE)) ->  | E117: x | F117: =CoalEff -> 0 | G117: = | H117: =B117*D117*F117*1000*lbs_shortt ->  | I117: = | J117: =H117*Short_Metric/1000000 ->  | K117: = | L117: =J117*C_CO2 -> 
A118: Distillate Fuel | C118: x | D118: =DistillCC -> 0 | E118: x | F118: =PetroEff -> 0 | G118: = | I118: = | K118: =
A119: Petroleum Coke | C119: x | D119: =PetCokeCC -> 0 | E119: x | F119: =PetroEff -> 0 | G119: = | I119: = | K119: =
A120: Residual Fuel | C120: x | D120: =ResidCC -> 0 | E120: x | F120: =PetroEff -> 0 | G120: = | I120: = | K120: =
A121: Natural Gas | C121: x | D121: =NGCC -> 0 | E121: x | F121: =NGEff -> 0 | G121: = | I121: = | K121: =
A122: Other | B122: 0 | C122: x | E122: x | G122: = | H122: 0 | I122: = | J122: 0 | K122: = | L122: 0
A124: Electric Power Sector | D124: 2001
B126: Consumption | D126: Emission Factor | F126: Combustion | H126: Emissions | J126: Emissions | L126: Emissions
A127: Fuel Type | B127: (Billion Btu) | D127: (lbs C/Million Btu) | F127: Efficiency (%) | H127: (short tons carbon) | J127: (MMTCE) | L127: (MMTCO2E)
A128: Coal | B128: =VLOOKUP($A$2&$C$2&$B$2&$C$2&$A128,ConsumeBlock1,15,FALSE) ->  | C128: x | D128: =IF(ISNUMBER(UtilityCoalCC),UtilityCoalCC,VLOOKUP($A$2 & " Electric Power Coal CC",CoalCoeffBlock,D124-1988,FALSE)) ->  | E128: x | F128: =CoalEff -> 0 | G128: = | H128: =B128*D128*F128*1000*lbs_shortt ->  | I128: = | J128: =H128*Short_Metric/1000000 ->  | K128: = | L128: =J128*C_CO2 -> 
A129: Distillate Fuel | C129: x | D129: =DistillCC -> 0 | E129: x | F129: =PetroEff -> 0 | G129: = | I129: = | K129: =
A130: Petroleum Coke | C130: x | D130: =PetCokeCC -> 0 | E130: x | F130: =PetroEff -> 0 | G130: = | I130: = | K130: =
A131: Residual Fuel | C131: x | D131: =ResidCC -> 0 | E131: x | F131: =PetroEff -> 0 | G131: = | I131: = | K131: =
A132: Natural Gas | C132: x | D132: =NGCC -> 0 | E132: x | F132: =NGEff -> 0 | G132: = | I132: = | K132: =
A133: Other | B133: 0 | C133: x | E133: x | G133: = | H133: 0 | I133: = | J133: 0 | K133: = | L133: 0
A135: Electric Power Sector | D135: 2002
B137: Consumption | D137: Emission Factor | F137: Combustion | H137: Emissions | J137: Emissions | L137: Emissions
A138: Fuel Type | B138: (Billion Btu) | D138: (lbs C/Million Btu) | F138: Efficiency (%) | H138: (short tons carbon) | J138: (MMTCE) | L138: (MMTCO2E)
A139: Coal | B139: =VLOOKUP($A$2&$C$2&$B$2&$C$2&$A139,ConsumeBlock1,16,FALSE) ->  | C139: x | D139: =IF(ISNUMBER(UtilityCoalCC),UtilityCoalCC,VLOOKUP($A$2 & " Electric Power Coal CC",CoalCoeffBlock,D135-1988,FALSE)) ->  | E139: x | F139: =CoalEff -> 0 | G139: = | H139: =B139*D139*F139*1000*lbs_shortt ->  | I139: = | J139: =H139*Short_Metric/1000000 ->  | K139: = | L139: =J139*C_CO2 -> 
A140: Distillate Fuel | C140: x | D140: =DistillCC -> 0 | E140: x | F140: =PetroEff -> 0 | G140: = | I140: = | K140: =
A141: Petroleum Coke | C141: x | D141: =PetCokeCC -> 0 | E141: x | F141: =PetroEff -> 0 | G141: = | I141: = | K141: =
A142: Residual Fuel | C142: x | D142: =ResidCC -> 0 | E142: x | F142: =PetroEff -> 0 | G142: = | I142: = | K142: =
A143: Natural Gas | C143: x | D143: =NGCC -> 0 | E143: x | F143: =NGEff -> 0 | G143: = | I143: = | K143: =
A144: Other | B144: 0 | C144: x | E144: x | G144: = | H144: 0 | I144: = | J144: 0 | K144: = | L144: 0
A146: Electric Power Sector | D146: 2003
B148: Consumption | D148: Emission Factor | F148: Combustion | H148: Emissions | J148: Emissions | L148: Emissions
A149: Fuel Type | B149: (Billion Btu) | D149: (lbs C/Million Btu) | F149: Efficiency (%) | H149: (short tons carbon) | J149: (MMTCE) | L149: (MMTCO2E)
A150: Coal | B150: =VLOOKUP($A$2&$C$2&$B$2&$C$2&$A150,ConsumeBlock1,17,FALSE) ->  | C150: x | D150: =IF(ISNUMBER(UtilityCoalCC),UtilityCoalCC,VLOOKUP($A$2 & " Electric Power Coal CC",CoalCoeffBlock,D146-1988,FALSE)) ->  | E150: x | F150: =CoalEff -> 0 | G150: = | H150: =B150*D150*F150*1000*lbs_shortt ->  | I150: = | J150: =H150*Short_Metric/1000000 ->  | K150: = | L150: =J150*C_CO2 -> 
A151: Distillate Fuel | C151: x | D151: =DistillCC -> 0 | E151: x | F151: =PetroEff -> 0 | G151: = | I151: = | K151: =
A152: Petroleum Coke | C152: x | D152: =PetCokeCC -> 0 | E152: x | F152: =PetroEff -> 0 | G152: = | I152: = | K152: =
A153: Residual Fuel | C153: x | D153: =ResidCC -> 0 | E153: x | F153: =PetroEff -> 0 | G153: = | I153: = | K153: =
A154: Natural Gas | C154: x | D154: =NGCC -> 0 | E154: x | F154: =NGEff -> 0 | G154: = | I154: = | K154: =
A155: Other | B155: 0 | C155: x | E155: x | G155: = | H155: 0 | I155: = | J155: 0 | K155: = | L155: 0
A157: Electric Power Sector | D157: 2004
B159: Consumption | D159: Emission Factor | F159: Combustion | H159: Emissions | J159: Emissions | L159: Emissions
A160: Fuel Type | B160: (Billion Btu) | D160: (lbs C/Million Btu) | F160: Efficiency (%) | H160: (short tons carbon) | J160: (MMTCE) | L160: (MMTCO2E)
A161: Coal | B161: =VLOOKUP($A$2&$C$2&$B$2&$C$2&$A161,ConsumeBlock1,18,FALSE) ->  | C161: x | D161: =IF(ISNUMBER(UtilityCoalCC),UtilityCoalCC,VLOOKUP($A$2 & " Electric Power Coal CC",CoalCoeffBlock,D157-1988,FALSE)) ->  | E161: x | F161: =CoalEff -> 0 | G161: = | H161: =B161*D161*F161*1000*lbs_shortt ->  | I161: = | J161: =H161*Short_Metric/1000000 ->  | K161: = | L161: =J161*C_CO2 -> 
A162: Distillate Fuel | C162: x | D162: =DistillCC -> 0 | E162: x | F162: =PetroEff -> 0 | G162: = | I162: = | K162: =
A163: Petroleum Coke | C163: x | D163: =PetCokeCC -> 0 | E163: x | F163: =PetroEff -> 0 | G163: = | I163: = | K163: =
A164: Residual Fuel | C164: x | D164: =ResidCC -> 0 | E164: x | F164: =PetroEff -> 0 | G164: = | I164: = | K164: =
A165: Natural Gas | C165: x | D165: =NGCC -> 0 | E165: x | F165: =NGEff -> 0 | G165: = | I165: = | K165: =
A166: Other | B166: 0 | C166: x | E166: x | G166: = | H166: 0 | I166: = | J166: 0 | K166: = | L166: 0
A168: Electric Power Sector | D168: =D157+1 -> 2005
B170: Consumption | D170: Emission Factor | F170: Combustion | H170: Emissions | J170: Emissions | L170: Emissions
A171: Fuel Type | B171: (Billion Btu) | D171: (lbs C/Million Btu) | F171: Efficiency (%) | H171: (short tons carbon) | J171: (MMTCE) | L171: (MMTCO2E)
A172: Coal | B172: =VLOOKUP($A$2&$C$2&$B$2&$C$2&$A172,ConsumeBlock1,19,FALSE) ->  | C172: x | D172: =IF(ISNUMBER(UtilityCoalCC),UtilityCoalCC,VLOOKUP($A$2 & " Electric Power Coal CC",CoalCoeffBlock,D168-1988,FALSE)) ->  | E172: x | F172: =CoalEff -> 0 | G172: = | H172: =B172*D172*F172*1000*lbs_shortt ->  | I172: = | J172: =H172*Short_Metric/1000000 ->  | K172: = | L172: =J172*C_CO2 -> 
A173: Distillate Fuel | C173: x | D173: =DistillCC -> 0 | E173: x | F173: =PetroEff -> 0 | G173: = | I173: = | K173: =
A174: Petroleum Coke | C174: x | D174: =PetCokeCC -> 0 | E174: x | F174: =PetroEff -> 0 | G174: = | I174: = | K174: =
A175: Residual Fuel | C175: x | D175: =ResidCC -> 0 | E175: x | F175: =PetroEff -> 0 | G175: = | I175: = | K175: =
A176: Natural Gas | C176: x | D176: =NGCC -> 0 | E176: x | F176: =NGEff -> 0 | G176: = | I176: = | K176: =
A177: Other | B177: 0 | C177: x | E177: x | G177: = | H177: 0 | I177: = | J177: 0 | K177: = | L177: 0
A179: Electric Power Sector | D179: =D168+1 -> 2006
B181: Consumption | D181: Emission Factor | F181: Combustion | H181: Emissions | J181: Emissions | L181: Emissions
A182: Fuel Type | B182: (Billion Btu) | D182: (lbs C/Million Btu) | F182: Efficiency (%) | H182: (short tons carbon) | J182: (MMTCE) | L182: (MMTCO2E)
A183: Coal | B183: =VLOOKUP($A$2&$C$2&$B$2&$C$2&$A183,ConsumeBlock1,20,FALSE) ->  | C183: x | D183: =IF(ISNUMBER(UtilityCoalCC),UtilityCoalCC,VLOOKUP($A$2 & " Electric Power Coal CC",CoalCoeffBlock,D179-1988,FALSE)) ->  | E183: x | F183: =CoalEff -> 0 | G183: = | H183: =B183*D183*F183*1000*lbs_shortt ->  | I183: = | J183: =H183*Short_Metric/1000000 ->  | K183: = | L183: =J183*C_CO2 -> 
A184: Distillate Fuel | C184: x | D184: =DistillCC -> 0 | E184: x | F184: =PetroEff -> 0 | G184: = | I184: = | K184: =
A185: Petroleum Coke | C185: x | D185: =PetCokeCC -> 0 | E185: x | F185: =PetroEff -> 0 | G185: = | I185: = | K185: =
A186: Residual Fuel | C186: x | D186: =ResidCC -> 0 | E186: x | F186: =PetroEff -> 0 | G186: = | I186: = | K186: =
A187: Natural Gas | C187: x | D187: =NGCC -> 0 | E187: x | F187: =NGEff -> 0 | G187: = | I187: = | K187: =
A188: Other | B188: 0 | C188: x | E188: x | G188: = | H188: 0 | I188: = | J188: 0 | K188: = | L188: 0
A190: Electric Power Sector | D190: =D179+1 -> 2007
B192: Consumption | D192: Emission Factor | F192: Combustion | H192: Emissions | J192: Emissions | L192: Emissions
A193: Fuel Type | B193: (Billion Btu) | D193: (lbs C/Million Btu) | F193: Efficiency (%) | H193: (short tons carbon) | J193: (MMTCE) | L193: (MMTCO2E)
A194: Coal | B194: =VLOOKUP($A$2&$C$2&$B$2&$C$2&$A194,ConsumeBlock1,21,FALSE) ->  | C194: x | D194: =IF(ISNUMBER(UtilityCoalCC),UtilityCoalCC,VLOOKUP($A$2 & " Electric Power Coal CC",CoalCoeffBlock,D190-1988,FALSE)) ->  | E194: x | F194: =CoalEff -> 0 | G194: = | H194: =B194*D194*F194*1000*lbs_shortt ->  | I194: = | J194: =H194*Short_Metric/1000000 ->  | K194: = | L194: =J194*C_CO2 -> 
A195: Distillate Fuel | C195: x | D195: =DistillCC -> 0 | E195: x | F195: =PetroEff -> 0 | G195: = | I195: = | K195: =
A196: Petroleum Coke | C196: x | D196: =PetCokeCC -> 0 | E196: x | F196: =PetroEff -> 0 | G196: = | I196: = | K196: =
A197: Residual Fuel | C197: x | D197: =ResidCC -> 0 | E197: x | F197: =PetroEff -> 0 | G197: = | I197: = | K197: =
A198: Natural Gas | C198: x | D198: =NGCC -> 0 | E198: x | F198: =NGEff -> 0 | G198: = | I198: = | K198: =
A199: Other | B199: 0 | C199: x | E199: x | G199: = | H199: 0 | I199: = | J199: 0 | K199: = | L199: 0
A201: Electric Power Sector | D201: =D190+1 -> 2008
B203: Consumption | D203: Emission Factor | F203: Combustion | H203: Emissions | J203: Emissions | L203: Emissions
A204: Fuel Type | B204: (Billion Btu) | D204: (lbs C/Million Btu) | F204: Efficiency (%) | H204: (short tons carbon) | J204: (MMTCE) | L204: (MMTCO2E)
A205: Coal | B205: =VLOOKUP($A$2&$C$2&$B$2&$C$2&$A205,ConsumeBlock1,22,FALSE) ->  | C205: x | D205: =IF(ISNUMBER(UtilityCoalCC),UtilityCoalCC,VLOOKUP($A$2 & " Electric Power Coal CC",CoalCoeffBlock,D201-1988,FALSE)) ->  | E205: x | F205: =CoalEff -> 0 | G205: = | H205: =B205*D205*F205*1000*lbs_shortt ->  | I205: = | J205: =H205*Short_Metric/1000000 ->  | K205: = | L205: =J205*C_CO2 -> 
A206: Distillate Fuel | C206: x | D206: =DistillCC -> 0 | E206: x | F206: =PetroEff -> 0 | G206: = | I206: = | K206: =
A207: Petroleum Coke | C207: x | D207: =PetCokeCC -> 0 | E207: x | F207: =PetroEff -> 0 | G207: = | I207: = | K207: =
A208: Residual Fuel | C208: x | D208: =ResidCC -> 0 | E208: x | F208: =PetroEff -> 0 | G208: = | I208: = | K208: =
A209: Natural Gas | C209: x | D209: =NGCC -> 0 | E209: x | F209: =NGEff -> 0 | G209: = | I209: = | K209: =
A210: Other | B210: 0 | C210: x | E210: x | G210: = | H210: 0 | I210: = | J210: 0 | K210: = | L210: 0
A212: Electric Power Sector | D212: =D201+1 -> 2009
B214: Consumption | D214: Emission Factor | F214: Combustion | H214: Emissions | J214: Emissions | L214: Emissions
A215: Fuel Type | B215: (Billion Btu) | D215: (lbs C/Million Btu) | F215: Efficiency (%) | H215: (short tons carbon) | J215: (MMTCE) | L215: (MMTCO2E)
A216: Coal | B216: =VLOOKUP($A$2&$C$2&$B$2&$C$2&$A216,ConsumeBlock1,23,FALSE) ->  | C216: x | D216: =IF(ISNUMBER(UtilityCoalCC),UtilityCoalCC,VLOOKUP($A$2 & " Electric Power Coal CC",CoalCoeffBlock,D212-1988,FALSE)) ->  | E216: x | F216: =CoalEff -> 0 | G216: = | H216: =B216*D216*F216*1000*lbs_shortt ->  | I216: = | J216: =H216*Short_Metric/1000000 ->  | K216: = | L216: =J216*C_CO2 -> 
A217: Distillate Fuel | C217: x | D217: =DistillCC -> 0 | E217: x | F217: =PetroEff -> 0 | G217: = | I217: = | K217: =
A218: Petroleum Coke | C218: x | D218: =PetCokeCC -> 0 | E218: x | F218: =PetroEff -> 0 | G218: = | I218: = | K218: =
A219: Residual Fuel | C219: x | D219: =ResidCC -> 0 | E219: x | F219: =PetroEff -> 0 | G219: = | I219: = | K219: =
A220: Natural Gas | C220: x | D220: =NGCC -> 0 | E220: x | F220: =NGEff -> 0 | G220: = | I220: = | K220: =
A221: Other | B221: 0 | C221: x | E221: x | G221: = | H221: 0 | I221: = | J221: 0 | K221: = | L221: 0
A223: Electric Power Sector | D223: =D212+1 -> 2010
B225: Consumption | D225: Emission Factor | F225: Combustion | H225: Emissions | J225: Emissions | L225: Emissions
A226: Fuel Type | B226: (Billion Btu) | D226: (lbs C/Million Btu) | F226: Efficiency (%) | H226: (short tons carbon) | J226: (MMTCE) | L226: (MMTCO2E)
A227: Coal | B227: =VLOOKUP($A$2&$C$2&$B$2&$C$2&$A227,ConsumeBlock1,24,FALSE) ->  | C227: x | D227: =IF(ISNUMBER(UtilityCoalCC),UtilityCoalCC,VLOOKUP($A$2 & " Electric Power Coal CC",CoalCoeffBlock,D223-1988,FALSE)) ->  | E227: x | F227: =CoalEff -> 0 | G227: = | H227: =B227*D227*F227*1000*lbs_shortt ->  | I227: = | J227: =H227*Short_Metric/1000000 ->  | K227: = | L227: =J227*C_CO2 -> 
A228: Distillate Fuel | C228: x | D228: =DistillCC -> 0 | E228: x | F228: =PetroEff -> 0 | G228: = | I228: = | K228: =
A229: Petroleum Coke | C229: x | D229: =PetCokeCC -> 0 | E229: x | F229: =PetroEff -> 0 | G229: = | I229: = | K229: =
A230: Residual Fuel | C230: x | D230: =ResidCC -> 0 | E230: x | F230: =PetroEff -> 0 | G230: = | I230: = | K230: =
A231: Natural Gas | C231: x | D231: =NGCC -> 0 | E231: x | F231: =NGEff -> 0 | G231: = | I231: = | K231: =
A232: Other | B232: 0 | C232: x | E232: x | G232: = | H232: 0 | I232: = | J232: 0 | K232: = | L232: 0
A234: Electric Power Sector | D234: =D223+1 -> 2011
B236: Consumption | D236: Emission Factor | F236: Combustion | H236: Emissions | J236: Emissions | L236: Emissions
A237: Fuel Type | B237: (Billion Btu) | D237: (lbs C/Million Btu) | F237: Efficiency (%) | H237: (short tons carbon) | J237: (MMTCE) | L237: (MMTCO2E)
A238: Coal | B238: =VLOOKUP($A$2&$C$2&$B$2&$C$2&$A238,ConsumeBlock1,25,FALSE) ->  | C238: x | D238: =IF(ISNUMBER(UtilityCoalCC),UtilityCoalCC,VLOOKUP($A$2 & " Electric Power Coal CC",CoalCoeffBlock,D234-1988,FALSE)) ->  | E238: x | F238: =CoalEff -> 0 | G238: = | H238: =B238*D238*F238*1000*lbs_shortt ->  | I238: = | J238: =H238*Short_Metric/1000000 ->  | K238: = | L238: =J238*C_CO2 -> 
A239: Distillate Fuel | C239: x | D239: =DistillCC -> 0 | E239: x | F239: =PetroEff -> 0 | G239: = | I239: = | K239: =
A240: Petroleum Coke | C240: x | D240: =PetCokeCC -> 0 | E240: x | F240: =PetroEff -> 0 | G240: = | I240: = | K240: =
A241: Residual Fuel | C241: x | D241: =ResidCC -> 0 | E241: x | F241: =PetroEff -> 0 | G241: = | I241: = | K241: =
A242: Natural Gas | C242: x | D242: =NGCC -> 0 | E242: x | F242: =NGEff -> 0 | G242: = | I242: = | K242: =
A243: Other | B243: 0 | C243: x | E243: x | G243: = | H243: 0 | I243: = | J243: 0 | K243: = | L243: 0
... 81 more rows

Sheet Bunker Fuels
A1: ="8. International Bunker Fuel Consumption and CO2 Emissions in "&'List Data'!E3 -> 8. International Bunker Fuel Consumption and CO2 Emissions in Select a State . . .
A2: ='List Data'!F3 -> XX | B2: Bunker Fuels | C2: =" " -> 
A4: International Bunker Fuels | F4: 1990
B6: Consumption | D6: Emission Factor | F6: Combustion | H6: Emissions | J6: Emissions | L6: Emissions
A7: Fuel Type | B7: (Billion Btu) | D7: (lbs C/Million Btu) | F7: Efficiency (%) | H7: (short tons carbon) | J7: (MMTCE) | L7: (MMTCO2E)
A8: Jet Fuel, Kerosene | B8: =VLOOKUP($A$2&$C$2&$B$2&$C$2&$A8,ConsumeBlock1,4,FALSE) ->  | C8: x | D8: =IF(ISNUMBER(JFKeroCC),JFKeroCC,VLOOKUP(A8,VariableCCs,F4-1988,FALSE)) -> 42.777 | E8: x | F8: =PetroEff -> 0 | G8: = | H8: =B8*D8*F8*1000*lbs_shortt ->  | I8: = | J8: =H8*Short_Metric/1000000 ->  | K8: = | L8: =J8*C_CO2 -> 
A9: Distillate Fuel | B9: =VLOOKUP($A$2&$C$2&$B$2&$C$2&$A9,ConsumeBlock1,4,FALSE) ->  | C9: x | D9: =DistillCC -> 0 | E9: x | F9: =PetroEff -> 0 | G9: = | H9: =B9*D9*F9*1000*lbs_shortt ->  | I9: = | J9: =H9*Short_Metric/1000000 ->  | K9: = | L9: =J9*C_CO2 -> 
A10: Residual Fuel | B10: =VLOOKUP($A$2&$C$2&$B$2&$C$2&$A10,ConsumeBlock1,4,FALSE) ->  | C10: x | D10: =ResidCC -> 0 | E10: x | F10: =PetroEff -> 0 | G10: = | H10: =B10*D10*F10*1000*lbs_shortt ->  | I10: = | J10: =H10*Short_Metric/1000000 ->  | K10: = | L10: =J10*C_CO2 -> 
A11: Total | J11: =SUM(J8:J10) ->  | L11: =SUM(L8:L10) -> 
A13: International Bunker Fuels | F13: =F4+1 -> 1991
B15: Consumption | D15: Emission Factor | F15: Combustion | H15: Emissions | J15: Emissions | L15: Emissions
A16: Fuel Type | B16: (Billion Btu) | D16: (lbs C/Million Btu) | F16: Efficiency (%) | H16: (short tons carbon) | J16: (MMTCE) | L16: (MMTCO2E)
A17: Jet Fuel, Kerosene | B17: =VLOOKUP($A$2&$C$2&$B$2&$C$2&$A17,ConsumeBlock1,5,FALSE) ->  | C17: x | D17: =IF(ISNUMBER(JFKeroCC),JFKeroCC,VLOOKUP(A17,VariableCCs,F13-1988,FALSE)) -> 42.777 | E17: x | F17: =PetroEff -> 0 | G17: = | H17: =B17*D17*F17*1000*lbs_shortt ->  | I17: = | J17: =H17*Short_Metric/1000000 ->  | K17: = | L17: =J17*C_CO2 -> 
A18: Distillate Fuel | B18: =VLOOKUP($A$2&$C$2&$B$2&$C$2&$A18,ConsumeBlock1,5,FALSE) ->  | C18: x | D18: =DistillCC -> 0 | E18: x | F18: =PetroEff -> 0 | G18: = | H18: =B18*D18*F18*1000*lbs_shortt ->  | I18: = | J18: =H18*Short_Metric/1000000 ->  | K18: = | L18: =J18*C_CO2 -> 
A19: Residual Fuel | B19: =VLOOKUP($A$2&$C$2&$B$2&$C$2&$A19,ConsumeBlock1,5,FALSE) ->  | C19: x | D19: =ResidCC -> 0 | E19: x | F19: =PetroEff -> 0 | G19: = | H19: =B19*D19*F19*1000*lbs_shortt ->  | I19: = | J19: =H19*Short_Metric/1000000 ->  | K19: = | L19: =J19*C_CO2 -> 
A20: Total | J20: =SUM(J17:J19) ->  | L20: =SUM(L17:L19) -> 
A22: International Bunker Fuels | F22: =F13+1 -> 1992
B24: Consumption | D24: Emission Factor | F24: Combustion | H24: Emissions | J24: Emissions | L24: Emissions
A25: Fuel Type | B25: (Billion Btu) | D25: (lbs C/Million Btu) | F25: Efficiency (%) | H25: (short tons carbon) | J25: (MMTCE) | L25: (MMTCO2E)
A26: Jet Fuel, Kerosene | B26: =VLOOKUP($A$2&$C$2&$B$2&$C$2&$A26,ConsumeBlock1,6,FALSE) ->  | C26: x | D26: =IF(ISNUMBER(JFKeroCC),JFKeroCC,VLOOKUP(A26,VariableCCs,F22-1988,FALSE)) -> 42.75495 | E26: x | F26: =PetroEff -> 0 | G26: = | H26: =B26*D26*F26*1000*lbs_shortt ->  | I26: = | J26: =H26*Short_Metric/1000000 ->  | K26: = | L26: =J26*C_CO2 -> 
A27: Distillate Fuel | B27: =VLOOKUP($A$2&$C$2&$B$2&$C$2&$A27,ConsumeBlock1,6,FALSE) ->  | C27: x | D27: =DistillCC -> 0 | E27: x | F27: =PetroEff -> 0 | G27: = | H27: =B27*D27*F27*1000*lbs_shortt ->  | I27: = | J27: =H27*Short_Metric/1000000 ->  | K27: = | L27: =J27*C_CO2 -> 
A28: Residual Fuel | B28: =VLOOKUP($A$2&$C$2&$B$2&$C$2&$A28,ConsumeBlock1,6,FALSE) ->  | C28: x | D28: =ResidCC -> 0 | E28: x | F28: =PetroEff -> 0 | G28: = | H28: =B28*D28*F28*1000*lbs_shortt ->  | I28: = | J28: =H28*Short_Metric/1000000 ->  | K28: = | L28: =J28*C_CO2 -> 
A29: Total | J29: =SUM(J26:J28) ->  | L29: =SUM(L26:L28) -> 
A31: International Bunker Fuels | F31: =F22+1 -> 1993
B33: Consumption | D33: Emission Factor | F33: Combustion | H33: Emissions | J33: Emissions | L33: Emissions
A34: Fuel Type | B34: (Billion Btu) | D34: (lbs C/Million Btu) | F34: Efficiency (%) | H34: (short tons carbon) | J34: (MMTCE) | L34: (MMTCO2E)
A35: Jet Fuel, Kerosene | B35: =VLOOKUP($A$2&$C$2&$B$2&$C$2&$A35,ConsumeBlock1,7,FALSE) ->  | C35: x | D35: =IF(ISNUMBER(JFKeroCC),JFKeroCC,VLOOKUP(A35,VariableCCs,F31-1988,FALSE)) -> 42.71085 | E35: x | F35: =PetroEff -> 0 | G35: = | H35: =B35*D35*F35*1000*lbs_shortt ->  | I35: = | J35: =H35*Short_Metric/1000000 ->  | K35: = | L35: =J35*C_CO2 -> 
A36: Distillate Fuel | B36: =VLOOKUP($A$2&$C$2&$B$2&$C$2&$A36,ConsumeBlock1,7,FALSE) ->  | C36: x | D36: =DistillCC -> 0 | E36: x | F36: =PetroEff -> 0 | G36: = | H36: =B36*D36*F36*1000*lbs_shortt ->  | I36: = | J36: =H36*Short_Metric/1000000 ->  | K36: = | L36: =J36*C_CO2 -> 
A37: Residual Fuel | B37: =VLOOKUP($A$2&$C$2&$B$2&$C$2&$A37,ConsumeBlock1,7,FALSE) ->  | C37: x | D37: =ResidCC -> 0 | E37: x | F37: =PetroEff -> 0 | G37: = | H37: =B37*D37*F37*1000*lbs_shortt ->  | I37: = | J37: =H37*Short_Metric/1000000 ->  | K37: = | L37: =J37*C_CO2 -> 
A38: Total | J38: =SUM(J35:J37) ->  | L38: =SUM(L35:L37) -> 
A40: International Bunker Fuels | F40: =F31+1 -> 1994
B42: Consumption | D42: Emission Factor | F42: Combustion | H42: Emissions | J42: Emissions | L42: Emissions
A43: Fuel Type | B43: (Billion Btu) | D43: (lbs C/Million Btu) | F43: Efficiency (%) | H43: (short tons carbon) | J43: (MMTCE) | L43: (MMTCO2E)
A44: Jet Fuel, Kerosene | B44: =VLOOKUP($A$2&$C$2&$B$2&$C$2&$A44,ConsumeBlock1,8,FALSE) ->  | C44: x | D44: =IF(ISNUMBER(JFKeroCC),JFKeroCC,VLOOKUP(A44,VariableCCs,F40-1988,FALSE)) -> 42.66675 | E44: x | F44: =PetroEff -> 0 | G44: = | H44: =B44*D44*F44*1000*lbs_shortt ->  | I44: = | J44: =H44*Short_Metric/1000000 ->  | K44: = | L44: =J44*C_CO2 -> 
A45: Distillate Fuel | B45: =VLOOKUP($A$2&$C$2&$B$2&$C$2&$A45,ConsumeBlock1,8,FALSE) ->  | C45: x | D45: =DistillCC -> 0 | E45: x | F45: =PetroEff -> 0 | G45: = | H45: =B45*D45*F45*1000*lbs_shortt ->  | I45: = | J45: =H45*Short_Metric/1000000 ->  | K45: = | L45: =J45*C_CO2 -> 
A46: Residual Fuel | B46: =VLOOKUP($A$2&$C$2&$B$2&$C$2&$A46,ConsumeBlock1,8,FALSE) ->  | C46: x | D46: =ResidCC -> 0 | E46: x | F46: =PetroEff -> 0 | G46: = | H46: =B46*D46*F46*1000*lbs_shortt ->  | I46: = | J46: =H46*Short_Metric/1000000 ->  | K46: = | L46: =J46*C_CO2 -> 
A47: Total | J47: =SUM(J44:J46) ->  | L47: =SUM(L44:L46) -> 
A49: International Bunker Fuels | F49: =F40+1 -> 1995
B51: Consumption | D51: Emission Factor | F51: Combustion | H51: Emissions | J51: Emissions | L51: Emissions
A52: Fuel Type | B52: (Billion Btu) | D52: (lbs C/Million Btu) | F52: Efficiency (%) | H52: (short tons carbon) | J52: (MMTCE) | L52: (MMTCO2E)
A53: Jet Fuel, Kerosene | B53: =VLOOKUP($A$2&$C$2&$B$2&$C$2&$A53,ConsumeBlock1,9,FALSE) ->  | C53: x | D53: =IF(ISNUMBER(JFKeroCC),JFKeroCC,VLOOKUP(A53,VariableCCs,F49-1988,FALSE)) -> 42.6447 | E53: x | F53: =PetroEff -> 0 | G53: = | H53: =B53*D53*F53*1000*lbs_shortt ->  | I53: = | J53: =H53*Short_Metric/1000000 ->  | K53: = | L53: =J53*C_CO2 -> 
A54: Distillate Fuel | B54: =VLOOKUP($A$2&$C$2&$B$2&$C$2&$A54,ConsumeBlock1,9,FALSE) ->  | C54: x | D54: =DistillCC -> 0 | E54: x | F54: =PetroEff -> 0 | G54: = | H54: =B54*D54*F54*1000*lbs_shortt ->  | I54: = | J54: =H54*Short_Metric/1000000 ->  | K54: = | L54: =J54*C_CO2 -> 
A55: Residual Fuel | B55: =VLOOKUP($A$2&$C$2&$B$2&$C$2&$A55,ConsumeBlock1,9,FALSE) ->  | C55: x | D55: =ResidCC -> 0 | E55: x | F55: =PetroEff -> 0 | G55: = | H55: =B55*D55*F55*1000*lbs_shortt ->  | I55: = | J55: =H55*Short_Metric/1000000 ->  | K55: = | L55: =J55*C_CO2 -> 
A56: Total | J56: =SUM(J53:J55) ->  | L56: =SUM(L53:L55) -> 
A58: International Bunker Fuels | F58: =F49+1 -> 1996
B60: Consumption | D60: Emission Factor | F60: Combustion | H60: Emissions | J60: Emissions | L60: Emissions
A61: Fuel Type | B61: (Billion Btu) | D61: (lbs C/Million Btu) | F61: Efficiency (%) | H61: (short tons carbon) | J61: (MMTCE) | L61: (MMTCO2E)
A62: Jet Fuel, Kerosene | B62: =VLOOKUP($A$2&$C$2&$B$2&$C$2&$A62,ConsumeBlock1,10,FALSE) ->  | C62: x | D62: =IF(ISNUMBER(JFKeroCC),JFKeroCC,VLOOKUP(A62,VariableCCs,F58-1988,FALSE)) -> 43.43181818 | E62: x | F62: =PetroEff -> 0 | G62: = | H62: =B62*D62*F62*1000*lbs_shortt ->  | I62: = | J62: =H62*Short_Metric/1000000 ->  | K62: = | L62: =J62*C_CO2 -> 
A63: Distillate Fuel | B63: =VLOOKUP($A$2&$C$2&$B$2&$C$2&$A63,ConsumeBlock1,10,FALSE) ->  | C63: x | D63: =DistillCC -> 0 | E63: x | F63: =PetroEff -> 0 | G63: = | H63: =B63*D63*F63*1000*lbs_shortt ->  | I63: = | J63: =H63*Short_Metric/1000000 ->  | K63: = | L63: =J63*C_CO2 -> 
A64: Residual Fuel | B64: =VLOOKUP($A$2&$C$2&$B$2&$C$2&$A64,ConsumeBlock1,10,FALSE) ->  | C64: x | D64: =ResidCC -> 0 | E64: x | F64: =PetroEff -> 0 | G64: = | H64: =B64*D64*F64*1000*lbs_shortt ->  | I64: = | J64: =H64*Short_Metric/1000000 ->  | K64: = | L64: =J64*C_CO2 -> 
A65: Total | J65: =SUM(J62:J64) ->  | L65: =SUM(L62:L64) -> 
A67: International Bunker Fuels | F67: =F58+1 -> 1997
B69: Consumption | D69: Emission Factor | F69: Combustion | H69: Emissions | J69: Emissions | L69: Emissions
A70: Fuel Type | B70: (Billion Btu) | D70: (lbs C/Million Btu) | F70: Efficiency (%) | H70: (short tons carbon) | J70: (MMTCE) | L70: (MMTCO2E)
A71: Jet Fuel, Kerosene | B71: =VLOOKUP($A$2&$C$2&$B$2&$C$2&$A71,ConsumeBlock1,11,FALSE) ->  | C71: x | D71: =IF(ISNUMBER(JFKeroCC),JFKeroCC,VLOOKUP(A71,VariableCCs,F67-1988,FALSE)) -> 43.43181818 | E71: x | F71: =PetroEff -> 0 | G71: = | H71: =B71*D71*F71*1000*lbs_shortt ->  | I71: = | J71: =H71*Short_Metric/1000000 ->  | K71: = | L71: =J71*C_CO2 -> 
A72: Distillate Fuel | B72: =VLOOKUP($A$2&$C$2&$B$2&$C$2&$A72,ConsumeBlock1,11,FALSE) ->  | C72: x | D72: =DistillCC -> 0 | E72: x | F72: =PetroEff -> 0 | G72: = | H72: =B72*D72*F72*1000*lbs_shortt ->  | I72: = | J72: =H72*Short_Metric/1000000 ->  | K72: = | L72: =J72*C_CO2 -> 
A73: Residual Fuel | B73: =VLOOKUP($A$2&$C$2&$B$2&$C$2&$A73,ConsumeBlock1,11,FALSE) ->  | C73: x | D73: =ResidCC -> 0 | E73: x | F73: =PetroEff -> 0 | G73: = | H73: =B73*D73*F73*1000*lbs_shortt ->  | I73: = | J73: =H73*Short_Metric/1000000 ->  | K73: = | L73: =J73*C_CO2 -> 
A74: Total | J74: =SUM(J71:J73) ->  | L74: =SUM(L71:L73) -> 
A76: International Bunker Fuels | F76: =F67+1 -> 1998
B78: Consumption | D78: Emission Factor | F78: Combustion | H78: Emissions | J78: Emissions | L78: Emissions
A79: Fuel Type | B79: (Billion Btu) | D79: (lbs C/Million Btu) | F79: Efficiency (%) | H79: (short tons carbon) | J79: (MMTCE) | L79: (MMTCO2E)
A80: Jet Fuel, Kerosene | B80: =VLOOKUP($A$2&$C$2&$B$2&$C$2&$A80,ConsumeBlock1,12,FALSE) ->  | C80: x | D80: =IF(ISNUMBER(JFKeroCC),JFKeroCC,VLOOKUP(A80,VariableCCs,F76-1988,FALSE)) -> 43.43181818 | E80: x | F80: =PetroEff -> 0 | G80: = | H80: =B80*D80*F80*1000*lbs_shortt ->  | I80: = | J80: =H80*Short_Metric/1000000 ->  | K80: = | L80: =J80*C_CO2 -> 
A81: Distillate Fuel | B81: =VLOOKUP($A$2&$C$2&$B$2&$C$2&$A81,ConsumeBlock1,12,FALSE) ->  | C81: x | D81: =DistillCC -> 0 | E81: x | F81: =PetroEff -> 0 | G81: = | H81: =B81*D81*F81*1000*lbs_shortt ->  | I81: = | J81: =H81*Short_Metric/1000000 ->  | K81: = | L81: =J81*C_CO2 -> 
A82: Residual Fuel | B82: =VLOOKUP($A$2&$C$2&$B$2&$C$2&$A82,ConsumeBlock1,12,FALSE) ->  | C82: x | D82: =ResidCC -> 0 | E82: x | F82: =PetroEff -> 0 | G82: = | H82: =B82*D82*F82*1000*lbs_shortt ->  | I82: = | J82: =H82*Short_Metric/1000000 ->  | K82: = | L82: =J82*C_CO2 -> 
A83: Total | J83: =SUM(J80:J82) ->  | L83: =SUM(L80:L82) -> 
A85: International Bunker Fuels | F85: =F76+1 -> 1999
B87: Consumption | D87: Emission Factor | F87: Combustion | H87: Emissions | J87: Emissions | L87: Emissions
A88: Fuel Type | B88: (Billion Btu) | D88: (lbs C/Million Btu) | F88: Efficiency (%) | H88: (short tons carbon) | J88: (MMTCE) | L88: (MMTCO2E)
A89: Jet Fuel, Kerosene | B89: =VLOOKUP($A$2&$C$2&$B$2&$C$2&$A89,ConsumeBlock1,13,FALSE) ->  | C89: x | D89: =IF(ISNUMBER(JFKeroCC),JFKeroCC,VLOOKUP(A89,VariableCCs,F85-1988,FALSE)) -> 43.43181818 | E89: x | F89: =PetroEff -> 0 | G89: = | H89: =B89*D89*F89*1000*lbs_shortt ->  | I89: = | J89: =H89*Short_Metric/1000000 ->  | K89: = | L89: =J89*C_CO2 -> 
A90: Distillate Fuel | B90: =VLOOKUP($A$2&$C$2&$B$2&$C$2&$A90,ConsumeBlock1,13,FALSE) ->  | C90: x | D90: =DistillCC -> 0 | E90: x | F90: =PetroEff -> 0 | G90: = | H90: =B90*D90*F90*1000*lbs_shortt ->  | I90: = | J90: =H90*Short_Metric/1000000 ->  | K90: = | L90: =J90*C_CO2 -> 
A91: Residual Fuel | B91: =VLOOKUP($A$2&$C$2&$B$2&$C$2&$A91,ConsumeBlock1,13,FALSE) ->  | C91: x | D91: =ResidCC -> 0 | E91: x | F91: =PetroEff -> 0 | G91: = | H91: =B91*D91*F91*1000*lbs_shortt ->  | I91: = | J91: =H91*Short_Metric/1000000 ->  | K91: = | L91: =J91*C_CO2 -> 
A92: Total | J92: =SUM(J89:J91) ->  | L92: =SUM(L89:L91) -> 
A94: International Bunker Fuels | F94: =F85+1 -> 2000
B96: Consumption | D96: Emission Factor | F96: Combustion | H96: Emissions | J96: Emissions | L96: Emissions
A97: Fuel Type | B97: (Billion Btu) | D97: (lbs C/Million Btu) | F97: Efficiency (%) | H97: (short tons carbon) | J97: (MMTCE) | L97: (MMTCO2E)
A98: Jet Fuel, Kerosene | B98: =VLOOKUP($A$2&$C$2&$B$2&$C$2&$A98,ConsumeBlock1,14,FALSE) ->  | C98: x | D98: =IF(ISNUMBER(JFKeroCC),JFKeroCC,VLOOKUP(A98,VariableCCs,F94-1988,FALSE)) -> 43.43181818 | E98: x | F98: =PetroEff -> 0 | G98: = | H98: =B98*D98*F98*1000*lbs_shortt ->  | I98: = | J98: =H98*Short_Metric/1000000 ->  | K98: = | L98: =J98*C_CO2 -> 
A99: Distillate Fuel | B99: =VLOOKUP($A$2&$C$2&$B$2&$C$2&$A99,ConsumeBlock1,14,FALSE) ->  | C99: x | D99: =DistillCC -> 0 | E99: x | F99: =PetroEff -> 0 | G99: = | H99: =B99*D99*F99*1000*lbs_shortt ->  | I99: = | J99: =H99*Short_Metric/1000000 ->  | K99: = | L99: =J99*C_CO2 -> 
A100: Residual Fuel | B100: =VLOOKUP($A$2&$C$2&$B$2&$C$2&$A100,ConsumeBlock1,14,FALSE) ->  | C100: x | D100: =ResidCC -> 0 | E100: x | F100: =PetroEff -> 0 | G100: = | H100: =B100*D100*F100*1000*lbs_shortt ->  | I100: = | J100: =H100*Short_Metric/1000000 ->  | K100: = | L100: =J100*C_CO2 -> 
A101: Total | J101: =SUM(J98:J100) ->  | L101: =SUM(L98:L100) -> 
A103: International Bunker Fuels | F103: =F94+1 -> 2001
B105: Consumption | D105: Emission Factor | F105: Combustion | H105: Emissions | J105: Emissions | L105: Emissions
A106: Fuel Type | B106: (Billion Btu) | D106: (lbs C/Million Btu) | F106: Efficiency (%) | H106: (short tons carbon) | J106: (MMTCE) | L106: (MMTCO2E)
A107: Jet Fuel, Kerosene | B107: =VLOOKUP($A$2&$C$2&$B$2&$C$2&$A107,ConsumeBlock1,15,FALSE) ->  | C107: x | D107: =IF(ISNUMBER(JFKeroCC),JFKeroCC,VLOOKUP(A107,VariableCCs,F103-1988,FALSE)) -> 43.43181818 | E107: x | F107: =PetroEff -> 0 | G107: = | H107: =B107*D107*F107*1000*lbs_shortt ->  | I107: = | J107: =H107*Short_Metric/1000000 ->  | K107: = | L107: =J107*C_CO2 -> 
A108: Distillate Fuel | B108: =VLOOKUP($A$2&$C$2&$B$2&$C$2&$A108,ConsumeBlock1,15,FALSE) ->  | C108: x | D108: =DistillCC -> 0 | E108: x | F108: =PetroEff -> 0 | G108: = | H108: =B108*D108*F108*1000*lbs_shortt ->  | I108: = | J108: =H108*Short_Metric/1000000 ->  | K108: = | L108: =J108*C_CO2 -> 
A109: Residual Fuel | B109: =VLOOKUP($A$2&$C$2&$B$2&$C$2&$A109,ConsumeBlock1,15,FALSE) ->  | C109: x | D109: =ResidCC -> 0 | E109: x | F109: =PetroEff -> 0 | G109: = | H109: =B109*D109*F109*1000*lbs_shortt ->  | I109: = | J109: =H109*Short_Metric/1000000 ->  | K109: = | L109: =J109*C_CO2 -> 
A110: Total | J110: =SUM(J107:J109) ->  | L110: =SUM(L107:L109) -> 
A112: International Bunker Fuels | F112: =F103+1 -> 2002
B114: Consumption | D114: Emission Factor | F114: Combustion | H114: Emissions | J114: Emissions | L114: Emissions
A115: Fuel Type | B115: (Billion Btu) | D115: (lbs C/Million Btu) | F115: Efficiency (%) | H115: (short tons carbon) | J115: (MMTCE) | L115: (MMTCO2E)
A116: Jet Fuel, Kerosene | B116: =VLOOKUP($A$2&$C$2&$B$2&$C$2&$A116,ConsumeBlock1,16,FALSE) ->  | C116: x | D116: =IF(ISNUMBER(JFKeroCC),JFKeroCC,VLOOKUP(A116,VariableCCs,F112-1988,FALSE)) -> 43.43181818 | E116: x | F116: =PetroEff -> 0 | G116: = | H116: =B116*D116*F116*1000*lbs_shortt ->  | I116: = | J116: =H116*Short_Metric/1000000 ->  | K116: = | L116: =J116*C_CO2 -> 
A117: Distillate Fuel | B117: =VLOOKUP($A$2&$C$2&$B$2&$C$2&$A117,ConsumeBlock1,16,FALSE) ->  | C117: x | D117: =DistillCC -> 0 | E117: x | F117: =PetroEff -> 0 | G117: = | H117: =B117*D117*F117*1000*lbs_shortt ->  | I117: = | J117: =H117*Short_Metric/1000000 ->  | K117: = | L117: =J117*C_CO2 -> 
A118: Residual Fuel | B118: =VLOOKUP($A$2&$C$2&$B$2&$C$2&$A118,ConsumeBlock1,16,FALSE) ->  | C118: x | D118: =ResidCC -> 0 | E118: x | F118: =PetroEff -> 0 | G118: = | H118: =B118*D118*F118*1000*lbs_shortt ->  | I118: = | J118: =H118*Short_Metric/1000000 ->  | K118: = | L118: =J118*C_CO2 -> 
A119: Total | J119: =SUM(J116:J118) ->  | L119: =SUM(L116:L118) -> 
A121: International Bunker Fuels | F121: =F112+1 -> 2003
B123: Consumption | D123: Emission Factor | F123: Combustion | H123: Emissions | J123: Emissions | L123: Emissions
A124: Fuel Type | B124: (Billion Btu) | D124: (lbs C/Million Btu) | F124: Efficiency (%) | H124: (short tons carbon) | J124: (MMTCE) | L124: (MMTCO2E)
A125: Jet Fuel, Kerosene | B125: =VLOOKUP($A$2&$C$2&$B$2&$C$2&$A125,ConsumeBlock1,17,FALSE) ->  | C125: x | D125: =IF(ISNUMBER(JFKeroCC),JFKeroCC,VLOOKUP(A125,VariableCCs,F121-1988,FALSE)) -> 43.43181818 | E125: x | F125: =PetroEff -> 0 | G125: = | H125: =B125*D125*F125*1000*lbs_shortt ->  | I125: = | J125: =H125*Short_Metric/1000000 ->  | K125: = | L125: =J125*C_CO2 -> 
A126: Distillate Fuel | B126: =VLOOKUP($A$2&$C$2&$B$2&$C$2&$A126,ConsumeBlock1,17,FALSE) ->  | C126: x | D126: =DistillCC -> 0 | E126: x | F126: =PetroEff -> 0 | G126: = | H126: =B126*D126*F126*1000*lbs_shortt ->  | I126: = | J126: =H126*Short_Metric/1000000 ->  | K126: = | L126: =J126*C_CO2 -> 
A127: Residual Fuel | B127: =VLOOKUP($A$2&$C$2&$B$2&$C$2&$A127,ConsumeBlock1,17,FALSE) ->  | C127: x | D127: =ResidCC -> 0 | E127: x | F127: =PetroEff -> 0 | G127: = | H127: =B127*D127*F127*1000*lbs_shortt ->  | I127: = | J127: =H127*Short_Metric/1000000 ->  | K127: = | L127: =J127*C_CO2 -> 
A128: Total | J128: =SUM(J125:J127) ->  | L128: =SUM(L125:L127) -> 
A130: International Bunker Fuels | F130: =F121+1 -> 2004
B132: Consumption | D132: Emission Factor | F132: Combustion | H132: Emissions | J132: Emissions | L132: Emissions
A133: Fuel Type | B133: (Billion Btu) | D133: (lbs C/Million Btu) | F133: Efficiency (%) | H133: (short tons carbon) | J133: (MMTCE) | L133: (MMTCO2E)
A134: Jet Fuel, Kerosene | B134: =VLOOKUP($A$2&$C$2&$B$2&$C$2&$A134,ConsumeBlock1,18,FALSE) ->  | C134: x | D134: =IF(ISNUMBER(JFKeroCC),JFKeroCC,VLOOKUP(A134,VariableCCs,F130-1988,FALSE)) -> 43.43181818 | E134: x | F134: =PetroEff -> 0 | G134: = | H134: =B134*D134*F134*1000*lbs_shortt ->  | I134: = | J134: =H134*Short_Metric/1000000 ->  | K134: = | L134: =J134*C_CO2 -> 
A135: Distillate Fuel | B135: =VLOOKUP($A$2&$C$2&$B$2&$C$2&$A135,ConsumeBlock1,18,FALSE) ->  | C135: x | D135: =DistillCC -> 0 | E135: x | F135: =PetroEff -> 0 | G135: = | H135: =B135*D135*F135*1000*lbs_shortt ->  | I135: = | J135: =H135*Short_Metric/1000000 ->  | K135: = | L135: =J135*C_CO2 -> 
A136: Residual Fuel | B136: =VLOOKUP($A$2&$C$2&$B$2&$C$2&$A136,ConsumeBlock1,18,FALSE) ->  | C136: x | D136: =ResidCC -> 0 | E136: x | F136: =PetroEff -> 0 | G136: = | H136: =B136*D136*F136*1000*lbs_shortt ->  | I136: = | J136: =H136*Short_Metric/1000000 ->  | K136: = | L136: =J136*C_CO2 -> 
A137: Total | J137: =SUM(J134:J136) ->  | L137: =SUM(L134:L136) -> 
A139: International Bunker Fuels | F139: =F130+1 -> 2005
B141: Consumption | D141: Emission Factor | F141: Combustion | H141: Emissions | J141: Emissions | L141: Emissions
A142: Fuel Type | B142: (Billion Btu) | D142: (lbs C/Million Btu) | F142: Efficiency (%) | H142: (short tons carbon) | J142: (MMTCE) | L142: (MMTCO2E)
A143: Jet Fuel, Kerosene | B143: =VLOOKUP($A$2&$C$2&$B$2&$C$2&$A143,ConsumeBlock1,19,FALSE) ->  | C143: x | D143: =IF(ISNUMBER(JFKeroCC),JFKeroCC,VLOOKUP(A143,VariableCCs,F139-1988,FALSE)) -> 43.43181818 | E143: x | F143: =PetroEff -> 0 | G143: = | H143: =B143*D143*F143*1000*lbs_shortt ->  | I143: = | J143: =H143*Short_Metric/1000000 ->  | K143: = | L143: =J143*C_CO2 -> 
A144: Distillate Fuel | B144: =VLOOKUP($A$2&$C$2&$B$2&$C$2&$A144,ConsumeBlock1,19,FALSE) ->  | C144: x | D144: =DistillCC -> 0 | E144: x | F144: =PetroEff -> 0 | G144: = | H144: =B144*D144*F144*1000*lbs_shortt ->  | I144: = | J144: =H144*Short_Metric/1000000 ->  | K144: = | L144: =J144*C_CO2 -> 
A145: Residual Fuel | B145: =VLOOKUP($A$2&$C$2&$B$2&$C$2&$A145,ConsumeBlock1,19,FALSE) ->  | C145: x | D145: =ResidCC -> 0 | E145: x | F145: =PetroEff -> 0 | G145: = | H145: =B145*D145*F145*1000*lbs_shortt ->  | I145: = | J145: =H145*Short_Metric/1000000 ->  | K145: = | L145: =J145*C_CO2 -> 
A146: Total | J146: =SUM(J143:J145) ->  | L146: =SUM(L143:L145) -> 
A148: International Bunker Fuels | F148: =F139+1 -> 2006
B150: Consumption | D150: Emission Factor | F150: Combustion | H150: Emissions | J150: Emissions | L150: Emissions
A151: Fuel Type | B151: (Billion Btu) | D151: (lbs C/Million Btu) | F151: Efficiency (%) | H151: (short tons carbon) | J151: (MMTCE) | L151: (MMTCO2E)
A152: Jet Fuel, Kerosene | B152: =VLOOKUP($A$2&$C$2&$B$2&$C$2&$A152,ConsumeBlock1,20,FALSE) ->  | C152: x | D152: =IF(ISNUMBER(JFKeroCC),JFKeroCC,VLOOKUP(A152,VariableCCs,F148-1988,FALSE)) -> 43.43181818 | E152: x | F152: =PetroEff -> 0 | G152: = | H152: =B152*D152*F152*1000*lbs_shortt ->  | I152: = | J152: =H152*Short_Metric/1000000 ->  | K152: = | L152: =J152*C_CO2 -> 
A153: Distillate Fuel | B153: =VLOOKUP($A$2&$C$2&$B$2&$C$2&$A153,ConsumeBlock1,20,FALSE) ->  | C153: x | D153: =DistillCC -> 0 | E153: x | F153: =PetroEff -> 0 | G153: = | H153: =B153*D153*F153*1000*lbs_shortt ->  | I153: = | J153: =H153*Short_Metric/1000000 ->  | K153: = | L153: =J153*C_CO2 -> 
A154: Residual Fuel | B154: =VLOOKUP($A$2&$C$2&$B$2&$C$2&$A154,ConsumeBlock1,20,FALSE) ->  | C154: x | D154: =ResidCC -> 0 | E154: x | F154: =PetroEff -> 0 | G154: = | H154: =B154*D154*F154*1000*lbs_shortt ->  | I154: = | J154: =H154*Short_Metric/1000000 ->  | K154: = | L154: =J154*C_CO2 -> 
A155: Total | J155: =SUM(J152:J154) ->  | L155: =SUM(L152:L154) -> 
A157: International Bunker Fuels | F157: =F148+1 -> 2007
B159: Consumption | D159: Emission Factor | F159: Combustion | H159: Emissions | J159: Emissions | L159: Emissions
A160: Fuel Type | B160: (Billion Btu) | D160: (lbs C/Million Btu) | F160: Efficiency (%) | H160: (short tons carbon) | J160: (MMTCE) | L160: (MMTCO2E)
A161: Jet Fuel, Kerosene | B161: =VLOOKUP($A$2&$C$2&$B$2&$C$2&$A161,ConsumeBlock1,21,FALSE) ->  | C161: x | D161: =IF(ISNUMBER(JFKeroCC),JFKeroCC,VLOOKUP(A161,VariableCCs,F157-1988,FALSE)) -> 43.43181818 | E161: x | F161: =PetroEff -> 0 | G161: = | H161: =B161*D161*F161*1000*lbs_shortt ->  | I161: = | J161: =H161*Short_Metric/1000000 ->  | K161: = | L161: =J161*C_CO2 -> 
A162: Distillate Fuel | B162: =VLOOKUP($A$2&$C$2&$B$2&$C$2&$A162,ConsumeBlock1,21,FALSE) ->  | C162: x | D162: =DistillCC -> 0 | E162: x | F162: =PetroEff -> 0 | G162: = | H162: =B162*D162*F162*1000*lbs_shortt ->  | I162: = | J162: =H162*Short_Metric/1000000 ->  | K162: = | L162: =J162*C_CO2 -> 
A163: Residual Fuel | B163: =VLOOKUP($A$2&$C$2&$B$2&$C$2&$A163,ConsumeBlock1,21,FALSE) ->  | C163: x | D163: =ResidCC -> 0 | E163: x | F163: =PetroEff -> 0 | G163: = | H163: =B163*D163*F163*1000*lbs_shortt ->  | I163: = | J163: =H163*Short_Metric/1000000 ->  | K163: = | L163: =J163*C_CO2 -> 
A164: Total | J164: =SUM(J161:J163) ->  | L164: =SUM(L161:L163) -> 
A166: International Bunker Fuels | F166: =F157+1 -> 2008
B168: Consumption | D168: Emission Factor | F168: Combustion | H168: Emissions | J168: Emissions | L168: Emissions
A169: Fuel Type | B169: (Billion Btu) | D169: (lbs C/Million Btu) | F169: Efficiency (%) | H169: (short tons carbon) | J169: (MMTCE) | L169: (MMTCO2E)
A170: Jet Fuel, Kerosene | B170: =VLOOKUP($A$2&$C$2&$B$2&$C$2&$A170,ConsumeBlock1,22,FALSE) ->  | C170: x | D170: =IF(ISNUMBER(JFKeroCC),JFKeroCC,VLOOKUP(A170,VariableCCs,F166-1988,FALSE)) -> 43.43181818 | E170: x | F170: =PetroEff -> 0 | G170: = | H170: =B170*D170*F170*1000*lbs_shortt ->  | I170: = | J170: =H170*Short_Metric/1000000 ->  | K170: = | L170: =J170*C_CO2 -> 
A171: Distillate Fuel | B171: =VLOOKUP($A$2&$C$2&$B$2&$C$2&$A171,ConsumeBlock1,22,FALSE) ->  | C171: x | D171: =DistillCC -> 0 | E171: x | F171: =PetroEff -> 0 | G171: = | H171: =B171*D171*F171*1000*lbs_shortt ->  | I171: = | J171: =H171*Short_Metric/1000000 ->  | K171: = | L171: =J171*C_CO2 -> 
A172: Residual Fuel | B172: =VLOOKUP($A$2&$C$2&$B$2&$C$2&$A172,ConsumeBlock1,22,FALSE) ->  | C172: x | D172: =ResidCC -> 0 | E172: x | F172: =PetroEff -> 0 | G172: = | H172: =B172*D172*F172*1000*lbs_shortt ->  | I172: = | J172: =H172*Short_Metric/1000000 ->  | K172: = | L172: =J172*C_CO2 -> 
A173: Total | J173: =SUM(J170:J172) ->  | L173: =SUM(L170:L172) -> 
A175: International Bunker Fuels | F175: =F166+1 -> 2009
B177: Consumption | D177: Emission Factor | F177: Combustion | H177: Emissions | J177: Emissions | L177: Emissions
A178: Fuel Type | B178: (Billion Btu) | D178: (lbs C/Million Btu) | F178: Efficiency (%) | H178: (short tons carbon) | J178: (MMTCE) | L178: (MMTCO2E)
A179: Jet Fuel, Kerosene | B179: =VLOOKUP($A$2&$C$2&$B$2&$C$2&$A179,ConsumeBlock1,23,FALSE) ->  | C179: x | D179: =IF(ISNUMBER(JFKeroCC),JFKeroCC,VLOOKUP(A179,VariableCCs,F175-1988,FALSE)) -> 43.43181818 | E179: x | F179: =PetroEff -> 0 | G179: = | H179: =B179*D179*F179*1000*lbs_shortt ->  | I179: = | J179: =H179*Short_Metric/1000000 ->  | K179: = | L179: =J179*C_CO2 -> 
A180: Distillate Fuel | B180: =VLOOKUP($A$2&$C$2&$B$2&$C$2&$A180,ConsumeBlock1,23,FALSE) ->  | C180: x | D180: =DistillCC -> 0 | E180: x | F180: =PetroEff -> 0 | G180: = | H180: =B180*D180*F180*1000*lbs_shortt ->  | I180: = | J180: =H180*Short_Metric/1000000 ->  | K180: = | L180: =J180*C_CO2 -> 
A181: Residual Fuel | B181: =VLOOKUP($A$2&$C$2&$B$2&$C$2&$A181,ConsumeBlock1,23,FALSE) ->  | C181: x | D181: =ResidCC -> 0 | E181: x | F181: =PetroEff -> 0 | G181: = | H181: =B181*D181*F181*1000*lbs_shortt ->  | I181: = | J181: =H181*Short_Metric/1000000 ->  | K181: = | L181: =J181*C_CO2 -> 
A182: Total | J182: =SUM(J179:J181) ->  | L182: =SUM(L179:L181) -> 
A184: International Bunker Fuels | F184: =F175+1 -> 2010
B186: Consumption | D186: Emission Factor | F186: Combustion | H186: Emissions | J186: Emissions | L186: Emissions
A187: Fuel Type | B187: (Billion Btu) | D187: (lbs C/Million Btu) | F187: Efficiency (%) | H187: (short tons carbon) | J187: (MMTCE) | L187: (MMTCO2E)
A188: Jet Fuel, Kerosene | B188: =VLOOKUP($A$2&$C$2&$B$2&$C$2&$A188,ConsumeBlock1,24,FALSE) ->  | C188: x | D188: =IF(ISNUMBER(JFKeroCC),JFKeroCC,VLOOKUP(A188,VariableCCs,F184-1988,FALSE)) -> 43.43181818 | E188: x | F188: =PetroEff -> 0 | G188: = | H188: =B188*D188*F188*1000*lbs_shortt ->  | I188: = | J188: =H188*Short_Metric/1000000 ->  | K188: = | L188: =J188*C_CO2 -> 
A189: Distillate Fuel | B189: =VLOOKUP($A$2&$C$2&$B$2&$C$2&$A189,ConsumeBlock1,24,FALSE) ->  | C189: x | D189: =DistillCC -> 0 | E189: x | F189: =PetroEff -> 0 | G189: = | H189: =B189*D189*F189*1000*lbs_shortt ->  | I189: = | J189: =H189*Short_Metric/1000000 ->  | K189: = | L189: =J189*C_CO2 -> 
A190: Residual Fuel | B190: =VLOOKUP($A$2&$C$2&$B$2&$C$2&$A190,ConsumeBlock1,24,FALSE) ->  | C190: x | D190: =ResidCC -> 0 | E190: x | F190: =PetroEff -> 0 | G190: = | H190: =B190*D190*F190*1000*lbs_shortt ->  | I190: = | J190: =H190*Short_Metric/1000000 ->  | K190: = | L190: =J190*C_CO2 -> 
A191: Total | J191: =SUM(J188:J190) ->  | L191: =SUM(L188:L190) -> 
A193: International Bunker Fuels | F193: =F184+1 -> 2011
B195: Consumption | D195: Emission Factor | F195: Combustion | H195: Emissions | J195: Emissions | L195: Emissions
A196: Fuel Type | B196: (Billion Btu) | D196: (lbs C/Million Btu) | F196: Efficiency (%) | H196: (short tons carbon) | J196: (MMTCE) | L196: (MMTCO2E)
A197: Jet Fuel, Kerosene | B197: =VLOOKUP($A$2&$C$2&$B$2&$C$2&$A197,ConsumeBlock1,25,FALSE) ->  | C197: x | D197: =IF(ISNUMBER(JFKeroCC),JFKeroCC,VLOOKUP(A197,VariableCCs,F193-1988,FALSE)) -> 43.43181818 | E197: x | F197: =PetroEff -> 0 | G197: = | H197: =B197*D197*F197*1000*lbs_shortt ->  | I197: = | J197: =H197*Short_Metric/1000000 ->  | K197: = | L197: =J197*C_CO2 -> 
A198: Distillate Fuel | B198: =VLOOKUP($A$2&$C$2&$B$2&$C$2&$A198,ConsumeBlock1,25,FALSE) ->  | C198: x | D198: =DistillCC -> 0 | E198: x | F198: =PetroEff -> 0 | G198: = | H198: =B198*D198*F198*1000*lbs_shortt ->  | I198: = | J198: =H198*Short_Metric/1000000 ->  | K198: = | L198: =J198*C_CO2 -> 
A199: Residual Fuel | B199: =VLOOKUP($A$2&$C$2&$B$2&$C$2&$A199,ConsumeBlock1,25,FALSE) ->  | C199: x | D199: =ResidCC -> 0 | E199: x | F199: =PetroEff -> 0 | G199: = | H199: =B199*D199*F199*1000*lbs_shortt ->  | I199: = | J199: =H199*Short_Metric/1000000 ->  | K199: = | L199: =J199*C_CO2 -> 
A200: Total | J200: =SUM(J197:J199) ->  | L200: =SUM(L197:L199) -> 
A202: International Bunker Fuels | F202: =F193+1 -> 2012
B204: Consumption | D204: Emission Factor | F204: Combustion | H204: Emissions | J204: Emissions | L204: Emissions
A205: Fuel Type | B205: (Billion Btu) | D205: (lbs C/Million Btu) | F205: Efficiency (%) | H205: (short tons carbon) | J205: (MMTCE) | L205: (MMTCO2E)
A206: Jet Fuel, Kerosene | B206: =VLOOKUP($A$2&$C$2&$B$2&$C$2&$A206,ConsumeBlock1,26,FALSE) ->  | C206: x | D206: =IF(ISNUMBER(JFKeroCC),JFKeroCC,VLOOKUP(A206,VariableCCs,F202-1988,FALSE)) -> 43.43181818 | E206: x | F206: =PetroEff -> 0 | G206: = | H206: =B206*D206*F206*1000*lbs_shortt ->  | I206: = | J206: =H206*Short_Metric/1000000 ->  | K206: = | L206: =J206*C_CO2 -> 
A207: Distillate Fuel | B207: =VLOOKUP($A$2&$C$2&$B$2&$C$2&$A207,ConsumeBlock1,26,FALSE) ->  | C207: x | D207: =DistillCC -> 0 | E207: x | F207: =PetroEff -> 0 | G207: = | H207: =B207*D207*F207*1000*lbs_shortt ->  | I207: = | J207: =H207*Short_Metric/1000000 ->  | K207: = | L207: =J207*C_CO2 -> 
A208: Residual Fuel | B208: =VLOOKUP($A$2&$C$2&$B$2&$C$2&$A208,ConsumeBlock1,26,FALSE) ->  | C208: x | D208: =ResidCC -> 0 | E208: x | F208: =PetroEff -> 0 | G208: = | H208: =B208*D208*F208*1000*lbs_shortt ->  | I208: = | J208: =H208*Short_Metric/1000000 ->  | K208: = | L208: =J208*C_CO2 -> 
A209: Total | J209: =SUM(J206:J208) ->  | L209: =SUM(L206:L208) -> 
A211: International Bunker Fuels | F211: =F202+1 -> 2013
B213: Consumption | D213: Emission Factor | F213: Combustion | H213: Emissions | J213: Emissions | L213: Emissions
A214: Fuel Type | B214: (Billion Btu) | D214: (lbs C/Million Btu) | F214: Efficiency (%) | H214: (short tons carbon) | J214: (MMTCE) | L214: (MMTCO2E)
A215: Jet Fuel, Kerosene | B215: =VLOOKUP($A$2&$C$2&$B$2&$C$2&$A215,ConsumeBlock1,27,FALSE) ->  | C215: x | D215: =IF(ISNUMBER(JFKeroCC),JFKeroCC,VLOOKUP(A215,VariableCCs,F211-1988,FALSE)) -> 43.43181818 | E215: x | F215: =PetroEff -> 0 | G215: = | H215: =B215*D215*F215*1000*lbs_shortt ->  | I215: = | J215: =H215*Short_Metric/1000000 ->  | K215: = | L215: =J215*C_CO2 -> 
A216: Distillate Fuel | B216: =VLOOKUP($A$2&$C$2&$B$2&$C$2&$A216,ConsumeBlock1,27,FALSE) ->  | C216: x | D216: =DistillCC -> 0 | E216: x | F216: =PetroEff -> 0 | G216: = | H216: =B216*D216*F216*1000*lbs_shortt ->  | I216: = | J216: =H216*Short_Metric/1000000 ->  | K216: = | L216: =J216*C_CO2 -> 
A217: Residual Fuel | B217: =VLOOKUP($A$2&$C$2&$B$2&$C$2&$A217,ConsumeBlock1,27,FALSE) ->  | C217: x | D217: =ResidCC -> 0 | E217: x | F217: =PetroEff -> 0 | G217: = | H217: =B217*D217*F217*1000*lbs_shortt ->  | I217: = | J217: =H217*Short_Metric/1000000 ->  | K217: = | L217: =J217*C_CO2 -> 
A218: Total | J218: =SUM(J215:J217) ->  | L218: =SUM(L215:L217) -> 
A220: International Bunker Fuels | F220: =F211+1 -> 2014
B222: Consumption | D222: Emission Factor | F222: Combustion | H222: Emissions | J222: Emissions | L222: Emissions
A223: Fuel Type | B223: (Billion Btu) | D223: (lbs C/Million Btu) | F223: Efficiency (%) | H223: (short tons carbon) | J223: (MMTCE) | L223: (MMTCO2E)
A224: Jet Fuel, Kerosene | B224: =VLOOKUP($A$2&$C$2&$B$2&$C$2&$A224,ConsumeBlock1,28,FALSE) ->  | C224: x | D224: =IF(ISNUMBER(JFKeroCC),JFKeroCC,VLOOKUP(A224,VariableCCs,F220-1988,FALSE)) -> 43.43181818 | E224: x | F224: =PetroEff -> 0 | G224: = | H224: =B224*D224*F224*1000*lbs_shortt ->  | I224: = | J224: =H224*Short_Metric/1000000 ->  | K224: = | L224: =J224*C_CO2 -> 
A225: Distillate Fuel | B225: =VLOOKUP($A$2&$C$2&$B$2&$C$2&$A225,ConsumeBlock1,28,FALSE) ->  | C225: x | D225: =DistillCC -> 0 | E225: x | F225: =PetroEff -> 0 | G225: = | H225: =B225*D225*F225*1000*lbs_shortt ->  | I225: = | J225: =H225*Short_Metric/1000000 ->  | K225: = | L225: =J225*C_CO2 -> 
A226: Residual Fuel | B226: =VLOOKUP($A$2&$C$2&$B$2&$C$2&$A226,ConsumeBlock1,28,FALSE) ->  | C226: x | D226: =ResidCC -> 0 | E226: x | F226: =PetroEff -> 0 | G226: = | H226: =B226*D226*F226*1000*lbs_shortt ->  | I226: = | J226: =H226*Short_Metric/1000000 ->  | K226: = | L226: =J226*C_CO2 -> 
A227: Total | J227: =SUM(J224:J226) ->  | L227: =SUM(L224:L226) -> 
A229: International Bunker Fuels | F229: =F220+1 -> 2015
B231: Consumption | D231: Emission Factor | F231: Combustion | H231: Emissions | J231: Emissions | L231: Emissions
A232: Fuel Type | B232: (Billion Btu) | D232: (lbs C/Million Btu) | F232: Efficiency (%) | H232: (short tons carbon) | J232: (MMTCE) | L232: (MMTCO2E)
A233: Jet Fuel, Kerosene | B233: =VLOOKUP($A$2&$C$2&$B$2&$C$2&$A233,ConsumeBlock1,29,FALSE) ->  | C233: x | D233: =IF(ISNUMBER(JFKeroCC),JFKeroCC,VLOOKUP(A233,VariableCCs,F229-1988,FALSE)) -> 43.43181818 | E233: x | F233: =PetroEff -> 0 | G233: = | H233: =B233*D233*F233*1000*lbs_shortt ->  | I233: = | J233: =H233*Short_Metric/1000000 ->  | K233: = | L233: =J233*C_CO2 -> 
A234: Distillate Fuel | B234: =VLOOKUP($A$2&$C$2&$B$2&$C$2&$A234,ConsumeBlock1,29,FALSE) ->  | C234: x | D234: =DistillCC -> 0 | E234: x | F234: =PetroEff -> 0 | G234: = | H234: =B234*D234*F234*1000*lbs_shortt ->  | I234: = | J234: =H234*Short_Metric/1000000 ->  | K234: = | L234: =J234*C_CO2 -> 
A235: Residual Fuel | B235: =VLOOKUP($A$2&$C$2&$B$2&$C$2&$A235,ConsumeBlock1,29,FALSE) ->  | C235: x | D235: =ResidCC -> 0 | E235: x | F235: =PetroEff -> 0 | G235: = | H235: =B235*D235*F235*1000*lbs_shortt ->  | I235: = | J235: =H235*Short_Metric/1000000 ->  | K235: = | L235: =J235*C_CO2 -> 
A236: Total | J236: =SUM(J233:J235) ->  | L236: =SUM(L233:L235) -> 
A238: International Bunker Fuels | F238: =F229+1 -> 2016
B240: Consumption | D240: Emission Factor | F240: Combustion | H240: Emissions | J240: Emissions | L240: Emissions
A241: Fuel Type | B241: (Billion Btu) | D241: (lbs C/Million Btu) | F241: Efficiency (%) | H241: (short tons carbon) | J241: (MMTCE) | L241: (MMTCO2E)
A242: Jet Fuel, Kerosene | B242: =VLOOKUP($A$2&$C$2&$B$2&$C$2&$A242,ConsumeBlock1,30,FALSE) ->  | C242: x | D242: =IF(ISNUMBER(JFKeroCC),JFKeroCC,VLOOKUP(A242,VariableCCs,F238-1988,FALSE)) -> 43.43181818 | E242: x | F242: =PetroEff -> 0 | G242: = | H242: =B242*D242*F242*1000*lbs_shortt ->  | I242: = | J242: =H242*Short_Metric/1000000 ->  | K242: = | L242: =J242*C_CO2 -> 
A243: Distillate Fuel | B243: =VLOOKUP($A$2&$C$2&$B$2&$C$2&$A243,ConsumeBlock1,30,FALSE) ->  | C243: x | D243: =DistillCC -> 0 | E243: x | F243: =PetroEff -> 0 | G243: = | H243: =B243*D243*F243*1000*lbs_shortt ->  | I243: = | J243: =H243*Short_Metric/1000000 ->  | K243: = | L243: =J243*C_CO2 -> 
A244: Residual Fuel | B244: =VLOOKUP($A$2&$C$2&$B$2&$C$2&$A244,ConsumeBlock1,30,FALSE) ->  | C244: x | D244: =ResidCC -> 0 | E244: x | F244: =PetroEff -> 0 | G244: = | H244: =B244*D244*F244*1000*lbs_shortt ->  | I244: = | J244: =H244*Short_Metric/1000000 ->  | K244: = | L244: =J244*C_CO2 -> 
A245: Total | J245: =SUM(J242:J244) ->  | L245: =SUM(L242:L244) -> 
A247: International Bunker Fuels | F247: =F238+1 -> 2017
B249: Consumption | D249: Emission Factor | F249: Combustion | H249: Emissions | J249: Emissions | L249: Emissions
A250: Fuel Type | B250: (Billion Btu) | D250: (lbs C/Million Btu) | F250: Efficiency (%) | H250: (short tons carbon) | J250: (MMTCE) | L250: (MMTCO2E)
A251: Jet Fuel, Kerosene | B251: =VLOOKUP($A$2&$C$2&$B$2&$C$2&$A251,ConsumeBlock1,31,FALSE) ->  | C251: x | D251: =IF(ISNUMBER(JFKeroCC),JFKeroCC,VLOOKUP(A251,VariableCCs,F247-1988,FALSE)) -> 43.43181818 | E251: x | F251: =PetroEff -> 0 | G251: = | H251: =B251*D251*F251*1000*lbs_shortt ->  | I251: = | J251: =H251*Short_Metric/1000000 ->  | K251: = | L251: =J251*C_CO2 -> 
A252: Distillate Fuel | B252: =VLOOKUP($A$2&$C$2&$B$2&$C$2&$A252,ConsumeBlock1,31,FALSE) ->  | C252: x | D252: =DistillCC -> 0 | E252: x | F252: =PetroEff -> 0 | G252: = | H252: =B252*D252*F252*1000*lbs_shortt ->  | I252: = | J252: =H252*Short_Metric/1000000 ->  | K252: = | L252: =J252*C_CO2 -> 
A253: Residual Fuel | B253: =VLOOKUP($A$2&$C$2&$B$2&$C$2&$A253,ConsumeBlock1,31,FALSE) ->  | C253: x | D253: =ResidCC -> 0 | E253: x | F253: =PetroEff -> 0 | G253: = | H253: =B253*D253*F253*1000*lbs_shortt ->  | I253: = | J253: =H253*Short_Metric/1000000 ->  | K253: = | L253: =J253*C_CO2 -> 
A254: Total | J254: =SUM(J251:J253) ->  | L254: =SUM(L251:L253) -> 
A256: International Bunker Fuels | F256: =F247+1 -> 2018
B258: Consumption | D258: Emission Factor | F258: Combustion | H258: Emissions | J258: Emissions | L258: Emissions
... 19 more rows

Sheet Industrial
A1: ="9. Industrial Consumption and CO2 Emissions in "&'List Data'!E3 -> 9. Industrial Consumption and CO2 Emissions in Select a State . . .
A2: ='List Data'!F3 -> XX | B2: Industrial | C2: =" " ->  | D2: ='List Data'!E3 -> Select a State . . .
A4: Industrial Sector | D4: 1990
B5: Total | D5: Non-Energy | H5: Net combustible
B6: Consumption | D6: Consumption | H6: Consumption | J6: Emission Factor | L6: Combustion | N6: Emissions | P6: Emissions | R6: Emissions
A7: Fuel Type | B7: (Billion Btu) | D7: (Billion Btu) | F7: Storage Factor (%) | H7: (Billion Btu) | J7: (lbs C/Million Btu) | L7: Efficiency (%) | N7: (short tons carbon) | P7: (MMTCE) | R7: (MMTCO2E)
A8: Coking Coal | B8: =VLOOKUP($A$2&$C$2&$B$2&" "&$A8,ConsumeBlock1,$D4-1986,FALSE) ->  | C8: - ( | E8: x | F8: =CokeCoalStore -> 0 | G8: ) = | H8: =B8-(D8*F8) ->  | I8: x | J8: =IF(ISNUMBER(CokeCoalCC),CokeCoalCC,VLOOKUP($A$2&" "&$B$2& " Coking Coal CC",CoalCoeffBlock,D4-1988,FALSE)) ->  | K8: x | L8: =CoalEff -> 0 | M8: = | N8: =H8*J8*L8*1000*lbs_shortt ->  | O8: = | P8: =N8*Short_Metric/1000000 ->  | Q8: = | R8: =P8*C_CO2 -> 
A9: Other Coal | B9: =IF(VLOOKUP($A$2&$C$2&$B$2&" "&$A9,ConsumeBlock1,$D4-1986,FALSE)-VLOOKUP($D$2,SyntheticNG,$D4-1988,FALSE)<0,0,VLOOKUP($A$2&$C$2&$B$2&" "&$A9,ConsumeBlock1,$D4-1986,FALSE)-VLOOKUP($D$2,SyntheticNG,$D4-1988,FALSE)) ->  | C9: - ( | E9: x | F9: 0 | G9: ) = | H9: =B9-(D9*F9) ->  | I9: x | J9: =IF(ISNUMBER(OtherCoalCC),OtherCoalCC,VLOOKUP($A$2 &" "&$B$2& " Other Coal CC",CoalCoeffBlock,D4-1988,FALSE)) ->  | K9: x | L9: =CoalEff -> 0 | M9: = | N9: =H9*J9*L9*1000*lbs_shortt ->  | O9: = | Q9: =
A10: Asphalt and Road Oil | B10: =VLOOKUP($A$2&$C$2&$B$2&$C$2&$A10,ConsumeBlock1,D$4-1986,FALSE) ->  | C10: - ( | E10: x | F10: =AsphaltStore -> 0 | G10: ) = | H10: =B10-(D10*F10) ->  | I10: x | J10: =AsphaltCC -> 0 | K10: x | L10: =PetroEff -> 0 | M10: = | N10: =H10*J10*L10*1000*lbs_shortt ->  | O10: = | P10: =N10*Short_Metric/1000000 ->  | Q10: =
A11: Aviation Gasoline Blending Components | C11: - ( | E11: x | F11: 0 | G11: ) = | H11: =B11-(D11*F11) ->  | I11: x | J11: =AvBlendCC -> 0 | K11: x | L11: =PetroEff -> 0 | M11: = | N11: =H11*J11*L11*1000*lbs_shortt ->  | O11: = | Q11: =
A12: Crude Oil | C12: - ( | E12: x | F12: 0 | G12: ) = | I12: x | J12: =IF(ISNUMBER(CrudeCC),CrudeCC,VLOOKUP(A12,VariableCCs,D4-1988,FALSE)) -> 44.42249826 | K12: x | L12: 0 | M12: = | O12: = | Q12: =
A13: Distillate Fuel | C13: - ( | E13: x | F13: =DistillStore -> 0 | G13: ) = | I13: x | J13: =DistillCC -> 0 | K13: x | L13: 0 | M13: = | O13: = | Q13: =
A14: Feedstocks, Naphtha less than 401 F | C14: - ( | E14: x | F14: =IF(ISNUMBER(NaphStore),NaphStore,VLOOKUP(D4,StorageFactor,2,FALSE)) -> 0.5518437741 | G14: ) = | I14: x | J14: =NaphCC -> 0 | K14: x | L14: 0 | M14: = | O14: = | Q14: =
A15: Feedstocks, Other Oils greater than 401 F | C15: - ( | E15: x | F15: =IF(ISNUMBER(OtherOilStore),OtherOilStore,VLOOKUP(D4,StorageFactor,2,FALSE)) -> 0.5518437741 | G15: ) = | I15: x | J15: =OtherOilCC -> 0 | K15: x | L15: 0 | M15: = | O15: = | Q15: =
A16: Kerosene | C16: - ( | E16: x | F16: 0 | G16: ) = | I16: x | J16: =KeroCC -> 0 | K16: x | L16: 0 | M16: = | O16: = | Q16: =
A17: Hydrocarbon Gas Liquids | B17: =VLOOKUP($A$2&$C$2&$B$2&$C$2&$A17,ConsumeBlock1,D$4-1986,FALSE)-B23 ->  | C17: - ( | E17: x | F17: =IF(ISNUMBER(LPGStore),LPGStore,VLOOKUP(D4,StorageFactor,2,FALSE)) -> 0.5518437741 | G17: ) = | I17: x | J17: =IF(ISNUMBER(LPGCC),LPGCC,VLOOKUP("HGL (energy use)",VariableCCs,D4-1988,FALSE)) -> 38.6065184 | K17: x | L17: =LPGEff -> 0 | M17: = | O17: = | Q17: =
A18: Lubricants | C18: - ( | E18: x | F18: =LubeStore -> 0 | G18: ) = | I18: x | J18: =LubeCC -> 0 | K18: x | L18: 0 | M18: = | O18: = | Q18: =
A19: Motor Gasoline | C19: - ( | E19: x | F19: 0 | G19: ) = | I19: x | J19: =IF(ISNUMBER(MotorGasCC),MotorGasCC,VLOOKUP(A19,VariableCCs,D4-1988,FALSE)) -> 42.82731893 | K19: x | L19: 0 | M19: = | O19: = | Q19: =
A20: Motor Gasoline Blending Components | C20: - ( | E20: x | F20: 0 | G20: ) = | I20: x | J20: =IF(ISNUMBER(MoBlendCC),MoBlendCC,VLOOKUP(A20,VariableCCs,D4-1988,FALSE)) -> 42.82731893 | K20: x | L20: 0 | M20: = | O20: = | Q20: =
A21: Misc. Petro Products | C21: - ( | E21: x | F21: =MiscStore -> 0 | G21: ) = | I21: x | J21: =IF(ISNUMBER(MiscCC),MiscCC,VLOOKUP(A21,VariableCCs,D4-1988,FALSE)) -> 0 | K21: x | L21: 0 | M21: = | O21: = | Q21: =
A22: Petroleum Coke | C22: - ( | E22: x | F22: =PetCokeStore -> 0 | G22: ) = | I22: x | J22: =PetCokeCC -> 0 | K22: x | L22: 0 | M22: = | O22: = | Q22: =
A23: Pentanes Plus | C23: - ( | E23: x | F23: =IF(ISNUMBER(PentanesStore),PentanesStore,VLOOKUP(D4,StorageFactor,2,FALSE)) -> 0.5518437741 | G23: ) = | I23: x | J23: =pentanesCC -> 0 | K23: x | L23: 0 | M23: = | O23: = | Q23: =
A24: Residual Fuel | C24: - ( | E24: x | F24: =ResidStore -> 0 | G24: ) = | I24: x | J24: =ResidCC -> 0 | K24: x | L24: 0 | M24: = | O24: = | Q24: =
A25: Still Gas | C25: - ( | E25: x | F25: =StillStore -> 0 | G25: ) = | I25: x | J25: =StillCC -> 0 | K25: x | L25: 0 | M25: = | O25: = | Q25: =
A26: Special Naphthas | C26: - ( | E26: x | F26: =SpecialStore -> 0 | G26: ) = | I26: x | J26: =SpecialCC -> 0 | K26: x | L26: 0 | M26: = | O26: = | Q26: =
A27: Unfinished Oils | C27: - ( | E27: x | F27: 0 | G27: ) = | I27: x | J27: =IF(ISNUMBER(UnfinCC),UnfinCC,VLOOKUP(A27,VariableCCs,D4-1988,FALSE)) -> 44.42249826 | K27: x | L27: 0 | M27: = | O27: = | Q27: =
A28: Waxes | C28: - ( | E28: x | F28: =WaxesStore -> 0 | G28: ) = | I28: x | J28: =WaxesCC -> 0 | K28: x | L28: 0 | M28: = | O28: = | Q28: =
A29: Natural Gas | C29: - ( | E29: x | F29: =IF(ISNUMBER(NGStore),NGStore,VLOOKUP(D4,StorageFactor,2,FALSE)) -> 0.5518437741 | G29: ) = | I29: x | J29: =NGCC -> 0 | K29: x | L29: =NGEff -> 0 | M29: = | O29: = | Q29: =
A30: Other | B30: 0 | C30: - ( | E30: x | G30: ) = | H30: =B30-(D30*F30) -> 0 | I30: x | K30: x | M30: = | N30: 0 | O30: = | P30: 0 | Q30: = | R30: 0
A32: Industrial Sector | D32: 1991
B33: Total | D33: Non-Energy | H33: Net combustible
B34: Consumption | D34: Consumption | H34: Consumption | J34: Emission Factor | L34: Combustion | N34: Emissions | P34: Emissions | R34: Emissions
A35: Fuel Type | B35: (Billion Btu) | D35: (Billion Btu) | F35: Storage Factor (%) | H35: (Billion Btu) | J35: (lbs C/Million Btu) | L35: Efficiency (%) | N35: (short tons carbon) | P35: (MMTCE) | R35: (MMTCO2E)
A36: Coking Coal | B36: =VLOOKUP($A$2&$C$2&$B$2&" "&$A36,ConsumeBlock1,$D32-1986,FALSE) ->  | C36: - ( | E36: x | F36: =CokeCoalStore -> 0 | G36: ) = | H36: =B36-(D36*F36) ->  | I36: x | J36: =IF(ISNUMBER(CokeCoalCC),CokeCoalCC,VLOOKUP($A$2&" "&$B$2& " Coking Coal CC",CoalCoeffBlock,D32-1988,FALSE)) ->  | K36: x | L36: =CoalEff -> 0 | M36: = | N36: =H36*J36*L36*1000*lbs_shortt ->  | O36: = | P36: =N36*Short_Metric/1000000 ->  | Q36: = | R36: =P36*C_CO2 -> 
A37: Other Coal | B37: =IF(VLOOKUP($A$2&$C$2&$B$2&" "&$A37,ConsumeBlock1,$D32-1986,FALSE)-VLOOKUP($D$2,SyntheticNG,$D32-1988,FALSE)<0,0,VLOOKUP($A$2&$C$2&$B$2&" "&$A37,ConsumeBlock1,$D32-1986,FALSE)-VLOOKUP($D$2,SyntheticNG,$D32-1988,FALSE)) ->  | C37: - ( | E37: x | F37: 0 | G37: ) = | H37: =B37-(D37*F37) ->  | I37: x | J37: =IF(ISNUMBER(OtherCoalCC),OtherCoalCC,VLOOKUP($A$2 &" "&$B$2& " Other Coal CC",CoalCoeffBlock,D32-1988,FALSE)) ->  | K37: x | L37: =CoalEff -> 0 | M37: = | N37: =H37*J37*L37*1000*lbs_shortt ->  | O37: = | P37: =N37*Short_Metric/1000000 ->  | Q37: =
A38: Asphalt and Road Oil | B38: =VLOOKUP($A$2&$C$2&$B$2&$C$2&$A38,ConsumeBlock1,D$32-1986,FALSE) ->  | C38: - ( | E38: x | F38: =AsphaltStore -> 0 | G38: ) = | I38: x | J38: =AsphaltCC -> 0 | K38: x | L38: =PetroEff -> 0 | M38: = | N38: =H38*J38*L38*1000*lbs_shortt ->  | O38: = | P38: =N38*Short_Metric/1000000 ->  | Q38: =
A39: Aviation Gasoline Blending Components | C39: - ( | E39: x | F39: 0 | G39: ) = | I39: x | J39: =AvBlendCC -> 0 | K39: x | L39: =PetroEff -> 0 | M39: = | O39: = | Q39: =
A40: Crude Oil | C40: - ( | E40: x | F40: 0 | G40: ) = | I40: x | J40: =IF(ISNUMBER(CrudeCC),CrudeCC,VLOOKUP(A40,VariableCCs,D32-1988,FALSE)) -> 44.44927514 | K40: x | L40: 0 | M40: = | O40: = | Q40: =
A41: Distillate Fuel | C41: - ( | E41: x | F41: =DistillStore -> 0 | G41: ) = | I41: x | J41: =DistillCC -> 0 | K41: x | L41: 0 | M41: = | O41: = | Q41: =
A42: Feedstocks, Naphtha less than 401 F | C42: - ( | E42: x | F42: =IF(ISNUMBER(NaphStore),NaphStore,VLOOKUP(D32,StorageFactor,2,FALSE)) -> 0.5332486763 | G42: ) = | I42: x | J42: =NaphCC -> 0 | K42: x | L42: 0 | M42: = | O42: = | Q42: =
A43: Feedstocks, Other Oils greater than 401 F | C43: - ( | E43: x | F43: =IF(ISNUMBER(OtherOilStore),OtherOilStore,VLOOKUP(D32,StorageFactor,2,FALSE)) -> 0.5332486763 | G43: ) = | I43: x | J43: =OtherOilCC -> 0 | K43: x | L43: 0 | M43: = | O43: = | Q43: =
A44: Kerosene | C44: - ( | E44: x | F44: 0 | G44: ) = | I44: x | J44: =KeroCC -> 0 | K44: x | L44: 0 | M44: = | O44: = | Q44: =
A45: Hydrocarbon Gas Liquids | B45: =VLOOKUP($A$2&$C$2&$B$2&$C$2&$A45,ConsumeBlock1,D$32-1986,FALSE)-B51 ->  | C45: - ( | E45: x | F45: =IF(ISNUMBER(LPGStore),LPGStore,VLOOKUP(D32,StorageFactor,2,FALSE)) -> 0.5332486763 | G45: ) = | H45: =B45-(D45*F45) ->  | I45: x | J45: =IF(ISNUMBER(LPGCC),LPGCC,VLOOKUP("HGL (energy use)",VariableCCs,D32-1988,FALSE)) -> 38.58543182 | K45: x | L45: =LPGEff -> 0 | M45: = | O45: = | Q45: =
A46: Lubricants | C46: - ( | E46: x | F46: =LubeStore -> 0 | G46: ) = | I46: x | J46: =LubeCC -> 0 | K46: x | L46: 0 | M46: = | O46: = | Q46: =
A47: Motor Gasoline | C47: - ( | E47: x | F47: 0 | G47: ) = | I47: x | J47: =IF(ISNUMBER(MotorGasCC),MotorGasCC,VLOOKUP(A47,VariableCCs,D32-1988,FALSE)) -> 42.86295359 | K47: x | L47: 0 | M47: = | O47: = | Q47: =
A48: Motor Gasoline Blending Components | C48: - ( | E48: x | F48: 0 | G48: ) = | I48: x | J48: =IF(ISNUMBER(MoBlendCC),MoBlendCC,VLOOKUP(A48,VariableCCs,D32-1988,FALSE)) -> 42.86295359 | K48: x | L48: 0 | M48: = | O48: = | Q48: =
A49: Misc. Petro Products | C49: - ( | E49: x | F49: =MiscStore -> 0 | G49: ) = | I49: x | J49: =IF(ISNUMBER(MiscCC),MiscCC,VLOOKUP(A49,VariableCCs,D32-1988,FALSE)) -> 0 | K49: x | L49: 0 | M49: = | O49: = | Q49: =
A50: Petroleum Coke | C50: - ( | E50: x | F50: =PetCokeStore -> 0 | G50: ) = | I50: x | J50: =PetCokeCC -> 0 | K50: x | L50: 0 | M50: = | O50: = | Q50: =
A51: Pentanes Plus | C51: - ( | E51: x | F51: =IF(ISNUMBER(PentanesStore),PentanesStore,VLOOKUP(D32,StorageFactor,2,FALSE)) -> 0.5332486763 | G51: ) = | I51: x | J51: =pentanesCC -> 0 | K51: x | L51: 0 | M51: = | O51: = | Q51: =
A52: Residual Fuel | C52: - ( | E52: x | F52: =ResidStore -> 0 | G52: ) = | I52: x | J52: =ResidCC -> 0 | K52: x | L52: 0 | M52: = | O52: = | Q52: =
A53: Still Gas | C53: - ( | E53: x | F53: =StillStore -> 0 | G53: ) = | I53: x | J53: =StillCC -> 0 | K53: x | L53: 0 | M53: = | O53: = | Q53: =
A54: Special Naphthas | C54: - ( | E54: x | F54: =SpecialStore -> 0 | G54: ) = | I54: x | J54: =SpecialCC -> 0 | K54: x | L54: 0 | M54: = | O54: = | Q54: =
A55: Unfinished Oils | C55: - ( | E55: x | F55: 0 | G55: ) = | I55: x | J55: =IF(ISNUMBER(UnfinCC),UnfinCC,VLOOKUP(A55,VariableCCs,D32-1988,FALSE)) -> 44.44927514 | K55: x | L55: 0 | M55: = | O55: = | Q55: =
A56: Waxes | C56: - ( | E56: x | F56: =WaxesStore -> 0 | G56: ) = | I56: x | J56: =WaxesCC -> 0 | K56: x | L56: 0 | M56: = | O56: = | Q56: =
A57: Natural Gas | C57: - ( | E57: x | F57: =IF(ISNUMBER(NGStore),NGStore,VLOOKUP(D32,StorageFactor,2,FALSE)) -> 0.5332486763 | G57: ) = | I57: x | J57: =NGCC -> 0 | K57: x | L57: =NGEff -> 0 | M57: = | O57: = | Q57: =
A58: Other | B58: 0 | C58: - ( | E58: x | G58: ) = | H58: 0 | I58: x | K58: x | M58: = | N58: 0 | O58: = | P58: 0 | Q58: = | R58: 0
A60: Industrial Sector | D60: 1992
B61: Total | D61: Non-Energy | H61: Net combustible
B62: Consumption | D62: Consumption | H62: Consumption | J62: Emission Factor | L62: Combustion | N62: Emissions | P62: Emissions | R62: Emissions
A63: Fuel Type | B63: (Billion Btu) | D63: (Billion Btu) | F63: Storage Factor (%) | H63: (Billion Btu) | J63: (lbs C/Million Btu) | L63: Efficiency (%) | N63: (short tons carbon) | P63: (MMTCE) | R63: (MMTCO2E)
A64: Coking Coal | B64: =VLOOKUP($A$2&$C$2&$B$2&" "&$A64,ConsumeBlock1,$D60-1986,FALSE) ->  | C64: - ( | E64: x | F64: =CokeCoalStore -> 0 | G64: ) = | H64: =B64-(D64*F64) ->  | I64: x | J64: =IF(ISNUMBER(CokeCoalCC),CokeCoalCC,VLOOKUP($A$2&" "&$B$2& " Coking Coal CC",CoalCoeffBlock,D60-1988,FALSE)) ->  | K64: x | L64: =CoalEff -> 0 | M64: = | N64: =H64*J64*L64*1000*lbs_shortt ->  | O64: = | P64: =N64*Short_Metric/1000000 ->  | Q64: = | R64: =P64*C_CO2 -> 
A65: Other Coal | B65: =IF(VLOOKUP($A$2&$C$2&$B$2&" "&$A65,ConsumeBlock1,$D60-1986,FALSE)-VLOOKUP($D$2,SyntheticNG,$D60-1988,FALSE)<0,0,VLOOKUP($A$2&$C$2&$B$2&" "&$A65,ConsumeBlock1,$D60-1986,FALSE)-VLOOKUP($D$2,SyntheticNG,$D60-1988,FALSE)) ->  | C65: - ( | E65: x | F65: 0 | G65: ) = | H65: =B65-(D65*F65) ->  | I65: x | J65: =IF(ISNUMBER(OtherCoalCC),OtherCoalCC,VLOOKUP($A$2 &" "&$B$2& " Other Coal CC",CoalCoeffBlock,D60-1988,FALSE)) ->  | K65: x | L65: =CoalEff -> 0 | M65: = | N65: =H65*J65*L65*1000*lbs_shortt ->  | O65: = | P65: =N65*Short_Metric/1000000 ->  | Q65: =
A66: Asphalt and Road Oil | B66: =VLOOKUP($A$2&$C$2&$B$2&$C$2&$A66,ConsumeBlock1,D$60-1986,FALSE) ->  | C66: - ( | E66: x | F66: =AsphaltStore -> 0 | G66: ) = | I66: x | J66: =AsphaltCC -> 0 | K66: x | L66: =PetroEff -> 0 | M66: = | N66: =H66*J66*L66*1000*lbs_shortt ->  | O66: = | P66: =N66*Short_Metric/1000000 ->  | Q66: =
A67: Aviation Gasoline Blending Components | C67: - ( | E67: x | F67: 0 | G67: ) = | I67: x | J67: =AvBlendCC -> 0 | K67: x | L67: =PetroEff -> 0 | M67: = | O67: = | Q67: =
A68: Crude Oil | C68: - ( | E68: x | F68: 0 | G68: ) = | I68: x | J68: =IF(ISNUMBER(CrudeCC),CrudeCC,VLOOKUP(A68,VariableCCs,D60-1988,FALSE)) -> 44.54331354 | K68: x | L68: 0 | M68: = | O68: = | Q68: =
A69: Distillate Fuel | C69: - ( | E69: x | F69: =DistillStore -> 0 | G69: ) = | I69: x | J69: =DistillCC -> 0 | K69: x | L69: 0 | M69: = | O69: = | Q69: =
A70: Feedstocks, Naphtha less than 401 F | C70: - ( | E70: x | F70: =IF(ISNUMBER(NaphStore),NaphStore,VLOOKUP(D60,StorageFactor,2,FALSE)) -> 0.5370707367 | G70: ) = | I70: x | J70: =NaphCC -> 0 | K70: x | L70: 0 | M70: = | O70: = | Q70: =
A71: Feedstocks, Other Oils greater than 401 F | C71: - ( | E71: x | F71: =IF(ISNUMBER(OtherOilStore),OtherOilStore,VLOOKUP(D60,StorageFactor,2,FALSE)) -> 0.5370707367 | G71: ) = | I71: x | J71: =OtherOilCC -> 0 | K71: x | L71: 0 | M71: = | O71: = | Q71: =
A72: Kerosene | C72: - ( | E72: x | F72: 0 | G72: ) = | I72: x | J72: =KeroCC -> 0 | K72: x | L72: 0 | M72: = | O72: = | Q72: =
A73: Hydrocarbon Gas Liquids | B73: =VLOOKUP($A$2&$C$2&$B$2&$C$2&$A73,ConsumeBlock1,D$60-1986,FALSE)-B79 ->  | C73: - ( | E73: x | F73: =IF(ISNUMBER(LPGStore),LPGStore,VLOOKUP(D60,StorageFactor,2,FALSE)) -> 0.5370707367 | G73: ) = | I73: x | J73: =IF(ISNUMBER(LPGCC),LPGCC,VLOOKUP("HGL (energy use)",VariableCCs,D60-1988,FALSE)) -> 38.62450153 | K73: x | L73: =LPGEff -> 0 | M73: = | O73: = | Q73: =
A74: Lubricants | C74: - ( | E74: x | F74: =LubeStore -> 0 | G74: ) = | I74: x | J74: =LubeCC -> 0 | K74: x | L74: 0 | M74: = | O74: = | Q74: =
A75: Motor Gasoline | C75: - ( | E75: x | F75: 0 | G75: ) = | I75: x | J75: =IF(ISNUMBER(MotorGasCC),MotorGasCC,VLOOKUP(A75,VariableCCs,D60-1988,FALSE)) -> 42.97982772 | K75: x | L75: 0 | M75: = | O75: = | Q75: =
A76: Motor Gasoline Blending Components | C76: - ( | E76: x | F76: 0 | G76: ) = | I76: x | J76: =IF(ISNUMBER(MoBlendCC),MoBlendCC,VLOOKUP(A76,VariableCCs,D60-1988,FALSE)) -> 42.97982772 | K76: x | L76: 0 | M76: = | O76: = | Q76: =
A77: Misc. Petro Products | C77: - ( | E77: x | F77: =MiscStore -> 0 | G77: ) = | I77: x | J77: =IF(ISNUMBER(MiscCC),MiscCC,VLOOKUP(A77,VariableCCs,D60-1988,FALSE)) -> 0 | K77: x | L77: 0 | M77: = | O77: = | Q77: =
A78: Petroleum Coke | C78: - ( | E78: x | F78: =PetCokeStore -> 0 | G78: ) = | I78: x | J78: =PetCokeCC -> 0 | K78: x | L78: 0 | M78: = | O78: = | Q78: =
A79: Pentanes Plus | C79: - ( | E79: x | F79: =IF(ISNUMBER(PentanesStore),PentanesStore,VLOOKUP(D60,StorageFactor,2,FALSE)) -> 0.5370707367 | G79: ) = | I79: x | J79: =pentanesCC -> 0 | K79: x | L79: 0 | M79: = | O79: = | Q79: =
A80: Residual Fuel | C80: - ( | E80: x | F80: =ResidStore -> 0 | G80: ) = | I80: x | J80: =ResidCC -> 0 | K80: x | L80: 0 | M80: = | O80: = | Q80: =
A81: Still Gas | C81: - ( | E81: x | F81: =StillStore -> 0 | G81: ) = | I81: x | J81: =StillCC -> 0 | K81: x | L81: 0 | M81: = | O81: = | Q81: =
A82: Special Naphthas | C82: - ( | E82: x | F82: =SpecialStore -> 0 | G82: ) = | I82: x | J82: =SpecialCC -> 0 | K82: x | L82: 0 | M82: = | O82: = | Q82: =
A83: Unfinished Oils | C83: - ( | E83: x | F83: 0 | G83: ) = | I83: x | J83: =IF(ISNUMBER(UnfinCC),UnfinCC,VLOOKUP(A83,VariableCCs,D60-1988,FALSE)) -> 44.54331354 | K83: x | L83: 0 | M83: = | O83: = | Q83: =
A84: Waxes | C84: - ( | E84: x | F84: =WaxesStore -> 0 | G84: ) = | I84: x | J84: =WaxesCC -> 0 | K84: x | L84: 0 | M84: = | O84: = | Q84: =
A85: Natural Gas | C85: - ( | E85: x | F85: =IF(ISNUMBER(NGStore),NGStore,VLOOKUP(D60,StorageFactor,2,FALSE)) -> 0.5370707367 | G85: ) = | I85: x | J85: =NGCC -> 0 | K85: x | L85: =NGEff -> 0 | M85: = | O85: = | Q85: =
A86: Other | B86: 0 | C86: - ( | E86: x | G86: ) = | H86: 0 | I86: x | K86: x | M86: = | N86: 0 | O86: = | P86: 0 | Q86: = | R86: 0
A88: Industrial Sector | D88: 1993
B89: Total | D89: Non-Energy | H89: Net combustible
B90: Consumption | D90: Consumption | H90: Consumption | J90: Emission Factor | L90: Combustion | N90: Emissions | P90: Emissions | R90: Emissions
A91: Fuel Type | B91: (Billion Btu) | D91: (Billion Btu) | F91: Storage Factor (%) | H91: (Billion Btu) | J91: (lbs C/Million Btu) | L91: Efficiency (%) | N91: (short tons carbon) | P91: (MMTCE) | R91: (MMTCO2E)
A92: Coking Coal | B92: =VLOOKUP($A$2&$C$2&$B$2&" "&$A92,ConsumeBlock1,$D88-1986,FALSE) ->  | C92: - ( | E92: x | F92: =CokeCoalStore -> 0 | G92: ) = | H92: =B92-(D92*F92) ->  | I92: x | J92: =IF(ISNUMBER(CokeCoalCC),CokeCoalCC,VLOOKUP($A$2&" "&$B$2& " Coking Coal CC",CoalCoeffBlock,D88-1988,FALSE)) ->  | K92: x | L92: =CoalEff -> 0 | M92: = | N92: =H92*J92*L92*1000*lbs_shortt ->  | O92: = | P92: =N92*Short_Metric/1000000 ->  | Q92: = | R92: =P92*C_CO2 -> 
A93: Other Coal | B93: =IF(VLOOKUP($A$2&$C$2&$B$2&" "&$A93,ConsumeBlock1,$D88-1986,FALSE)-VLOOKUP($D$2,SyntheticNG,$D88-1988,FALSE)<0,0,VLOOKUP($A$2&$C$2&$B$2&" "&$A93,ConsumeBlock1,$D88-1986,FALSE)-VLOOKUP($D$2,SyntheticNG,$D88-1988,FALSE)) ->  | C93: - ( | E93: x | F93: 0 | G93: ) = | H93: =B93-(D93*F93) ->  | I93: x | J93: =IF(ISNUMBER(OtherCoalCC),OtherCoalCC,VLOOKUP($A$2 &" "&$B$2& " Other Coal CC",CoalCoeffBlock,D88-1988,FALSE)) ->  | K93: x | L93: =CoalEff -> 0 | M93: = | N93: =H93*J93*L93*1000*lbs_shortt ->  | O93: = | P93: =N93*Short_Metric/1000000 ->  | Q93: =
A94: Asphalt and Road Oil | B94: =VLOOKUP($A$2&$C$2&$B$2&$C$2&$A94,ConsumeBlock1,D$88-1986,FALSE) ->  | C94: - ( | E94: x | F94: =AsphaltStore -> 0 | G94: ) = | I94: x | J94: =AsphaltCC -> 0 | K94: x | L94: =PetroEff -> 0 | M94: = | N94: =H94*J94*L94*1000*lbs_shortt ->  | O94: = | P94: =N94*Short_Metric/1000000 ->  | Q94: =
A95: Aviation Gasoline Blending Components | C95: - ( | E95: x | F95: 0 | G95: ) = | I95: x | J95: =AvBlendCC -> 0 | K95: x | L95: =PetroEff -> 0 | M95: = | O95: = | Q95: =
A96: Crude Oil | C96: - ( | E96: x | F96: 0 | G96: ) = | I96: x | J96: =IF(ISNUMBER(CrudeCC),CrudeCC,VLOOKUP(A96,VariableCCs,D88-1988,FALSE)) -> 44.54783211 | K96: x | L96: 0 | M96: = | O96: = | Q96: =
A97: Distillate Fuel | C97: - ( | E97: x | F97: =DistillStore -> 0 | G97: ) = | I97: x | J97: =DistillCC -> 0 | K97: x | L97: 0 | M97: = | O97: = | Q97: =
A98: Feedstocks, Naphtha less than 401 F | C98: - ( | E98: x | F98: =IF(ISNUMBER(NaphStore),NaphStore,VLOOKUP(D88,StorageFactor,2,FALSE)) -> 0.565318355 | G98: ) = | I98: x | J98: =NaphCC -> 0 | K98: x | L98: 0 | M98: = | O98: = | Q98: =
A99: Feedstocks, Other Oils greater than 401 F | C99: - ( | E99: x | F99: =IF(ISNUMBER(OtherOilStore),OtherOilStore,VLOOKUP(D88,StorageFactor,2,FALSE)) -> 0.565318355 | G99: ) = | I99: x | J99: =OtherOilCC -> 0 | K99: x | L99: 0 | M99: = | O99: = | Q99: =
A100: Kerosene | C100: - ( | E100: x | F100: 0 | G100: ) = | I100: x | J100: =KeroCC -> 0 | K100: x | L100: 0 | M100: = | O100: = | Q100: =
A101: Hydrocarbon Gas Liquids | B101: =VLOOKUP($A$2&$C$2&$B$2&$C$2&$A101,ConsumeBlock1,D$88-1986,FALSE)-B107 ->  | C101: - ( | E101: x | F101: =IF(ISNUMBER(LPGStore),LPGStore,VLOOKUP(D88,StorageFactor,2,FALSE)) -> 0.565318355 | G101: ) = | I101: x | J101: =IF(ISNUMBER(LPGCC),LPGCC,VLOOKUP("HGL (energy use)",VariableCCs,D88-1988,FALSE)) -> 38.60682536 | K101: x | L101: =LPGEff -> 0 | M101: = | O101: = | Q101: =
A102: Lubricants | C102: - ( | E102: x | F102: =LubeStore -> 0 | G102: ) = | I102: x | J102: =LubeCC -> 0 | K102: x | L102: 0 | M102: = | O102: = | Q102: =
A103: Motor Gasoline | C103: - ( | E103: x | F103: 0 | G103: ) = | I103: x | J103: =IF(ISNUMBER(MotorGasCC),MotorGasCC,VLOOKUP(A103,VariableCCs,D88-1988,FALSE)) -> 42.86336938 | K103: x | L103: 0 | M103: = | O103: = | Q103: =
A104: Motor Gasoline Blending Components | C104: - ( | E104: x | F104: 0 | G104: ) = | I104: x | J104: =IF(ISNUMBER(MoBlendCC),MoBlendCC,VLOOKUP(A104,VariableCCs,D88-1988,FALSE)) -> 42.86336938 | K104: x | L104: 0 | M104: = | O104: = | Q104: =
A105: Misc. Petro Products | C105: - ( | E105: x | F105: =MiscStore -> 0 | G105: ) = | I105: x | J105: =IF(ISNUMBER(MiscCC),MiscCC,VLOOKUP(A105,VariableCCs,D88-1988,FALSE)) -> 0 | K105: x | L105: 0 | M105: = | O105: = | Q105: =
A106: Petroleum Coke | C106: - ( | E106: x | F106: =PetCokeStore -> 0 | G106: ) = | I106: x | J106: =PetCokeCC -> 0 | K106: x | L106: 0 | M106: = | O106: = | Q106: =
A107: Pentanes Plus | C107: - ( | E107: x | F107: =IF(ISNUMBER(PentanesStore),PentanesStore,VLOOKUP(D88,StorageFactor,2,FALSE)) -> 0.565318355 | G107: ) = | I107: x | J107: =pentanesCC -> 0 | K107: x | L107: 0 | M107: = | O107: = | Q107: =
A108: Residual Fuel | C108: - ( | E108: x | F108: =ResidStore -> 0 | G108: ) = | I108: x | J108: =ResidCC -> 0 | K108: x | L108: 0 | M108: = | O108: = | Q108: =
A109: Still Gas | C109: - ( | E109: x | F109: =StillStore -> 0 | G109: ) = | I109: x | J109: =StillCC -> 0 | K109: x | L109: 0 | M109: = | O109: = | Q109: =
A110: Special Naphthas | C110: - ( | E110: x | F110: =SpecialStore -> 0 | G110: ) = | I110: x | J110: =SpecialCC -> 0 | K110: x | L110: 0 | M110: = | O110: = | Q110: =
A111: Unfinished Oils | C111: - ( | E111: x | F111: 0 | G111: ) = | I111: x | J111: =IF(ISNUMBER(UnfinCC),UnfinCC,VLOOKUP(A111,VariableCCs,D88-1988,FALSE)) -> 44.54783211 | K111: x | L111: 0 | M111: = | O111: = | Q111: =
A112: Waxes | C112: - ( | E112: x | F112: =WaxesStore -> 0 | G112: ) = | I112: x | J112: =WaxesCC -> 0 | K112: x | L112: 0 | M112: = | O112: = | Q112: =
A113: Natural Gas | C113: - ( | E113: x | F113: =IF(ISNUMBER(NGStore),NGStore,VLOOKUP(D88,StorageFactor,2,FALSE)) -> 0.565318355 | G113: ) = | I113: x | J113: =NGCC -> 0 | K113: x | L113: =NGEff -> 0 | M113: = | O113: = | Q113: =
A114: Other | B114: 0 | C114: - ( | E114: x | G114: ) = | H114: 0 | I114: x | K114: x | M114: = | N114: 0 | O114: = | P114: 0 | Q114: = | R114: 0
A116: Industrial Sector | D116: 1994
B117: Total | D117: Non-Energy | H117: Net combustible
B118: Consumption | D118: Consumption | H118: Consumption | J118: Emission Factor | L118: Combustion | N118: Emissions | P118: Emissions | R118: Emissions
A119: Fuel Type | B119: (Billion Btu) | D119: (Billion Btu) | F119: Storage Factor (%) | H119: (Billion Btu) | J119: (lbs C/Million Btu) | L119: Efficiency (%) | N119: (short tons carbon) | P119: (MMTCE) | R119: (MMTCO2E)
A120: Coking Coal | B120: =VLOOKUP($A$2&$C$2&$B$2&" "&$A120,ConsumeBlock1,$D116-1986,FALSE) ->  | C120: - ( | E120: x | F120: =CokeCoalStore -> 0 | G120: ) = | H120: =B120-(D120*F120) ->  | I120: x | J120: =IF(ISNUMBER(CokeCoalCC),CokeCoalCC,VLOOKUP($A$2&" "&$B$2& " Coking Coal CC",CoalCoeffBlock,D116-1988,FALSE)) ->  | K120: x | L120: =CoalEff -> 0 | M120: = | N120: =H120*J120*L120*1000*lbs_shortt ->  | O120: = | P120: =N120*Short_Metric/1000000 ->  | Q120: = | R120: =P120*C_CO2 -> 
A121: Other Coal | B121: =IF(VLOOKUP($A$2&$C$2&$B$2&" "&$A121,ConsumeBlock1,$D116-1986,FALSE)-VLOOKUP($D$2,SyntheticNG,$D116-1988,FALSE)<0,0,VLOOKUP($A$2&$C$2&$B$2&" "&$A121,ConsumeBlock1,$D116-1986,FALSE)-VLOOKUP($D$2,SyntheticNG,$D116-1988,FALSE)) ->  | C121: - ( | E121: x | F121: 0 | G121: ) = | H121: =B121-(D121*F121) ->  | I121: x | J121: =IF(ISNUMBER(OtherCoalCC),OtherCoalCC,VLOOKUP($A$2 &" "&$B$2& " Other Coal CC",CoalCoeffBlock,D116-1988,FALSE)) ->  | K121: x | L121: =CoalEff -> 0 | M121: = | N121: =H121*J121*L121*1000*lbs_shortt ->  | O121: = | P121: =N121*Short_Metric/1000000 ->  | Q121: =
A122: Asphalt and Road Oil | B122: =VLOOKUP($A$2&$C$2&$B$2&$C$2&$A122,ConsumeBlock1,D$116-1986,FALSE) ->  | C122: - ( | E122: x | F122: =AsphaltStore -> 0 | G122: ) = | I122: x | J122: =AsphaltCC -> 0 | K122: x | L122: =PetroEff -> 0 | M122: = | N122: =H122*J122*L122*1000*lbs_shortt ->  | O122: = | P122: =N122*Short_Metric/1000000 ->  | Q122: =
A123: Aviation Gasoline Blending Components | C123: - ( | E123: x | F123: 0 | G123: ) = | I123: x | J123: =AvBlendCC -> 0 | K123: x | L123: =PetroEff -> 0 | M123: = | O123: = | Q123: =
A124: Crude Oil | C124: - ( | E124: x | F124: 0 | G124: ) = | I124: x | J124: =IF(ISNUMBER(CrudeCC),CrudeCC,VLOOKUP(A124,VariableCCs,D116-1988,FALSE)) -> 44.54914538 | K124: x | L124: 0 | M124: = | O124: = | Q124: =
A125: Distillate Fuel | C125: - ( | E125: x | F125: =DistillStore -> 0 | G125: ) = | I125: x | J125: =DistillCC -> 0 | K125: x | L125: 0 | M125: = | O125: = | Q125: =
A126: Feedstocks, Naphtha less than 401 F | C126: - ( | E126: x | F126: =IF(ISNUMBER(NaphStore),NaphStore,VLOOKUP(D116,StorageFactor,2,FALSE)) -> 0.5605044775 | G126: ) = | I126: x | J126: =NaphCC -> 0 | K126: x | L126: 0 | M126: = | O126: = | Q126: =
A127: Feedstocks, Other Oils greater than 401 F | C127: - ( | E127: x | F127: =IF(ISNUMBER(OtherOilStore),OtherOilStore,VLOOKUP(D116,StorageFactor,2,FALSE)) -> 0.5605044775 | G127: ) = | I127: x | J127: =OtherOilCC -> 0 | K127: x | L127: 0 | M127: = | O127: = | Q127: =
A128: Kerosene | C128: - ( | E128: x | F128: 0 | G128: ) = | I128: x | J128: =KeroCC -> 0 | K128: x | L128: 0 | M128: = | O128: = | Q128: =
A129: Hydrocarbon Gas Liquids | B129: =VLOOKUP($A$2&$C$2&$B$2&$C$2&$A129,ConsumeBlock1,D$116-1986,FALSE)-B135 ->  | C129: - ( | E129: x | F129: =IF(ISNUMBER(LPGStore),LPGStore,VLOOKUP(D116,StorageFactor,2,FALSE)) -> 0.5605044775 | G129: ) = | I129: x | J129: =IF(ISNUMBER(LPGCC),LPGCC,VLOOKUP("HGL (energy use)",VariableCCs,D116-1988,FALSE)) -> 38.63427462 | K129: x | L129: =LPGEff -> 0 | M129: = | O129: = | Q129: =
A130: Lubricants | C130: - ( | E130: x | F130: =LubeStore -> 0 | G130: ) = | I130: x | J130: =LubeCC -> 0 | K130: x | L130: 0 | M130: = | O130: = | Q130: =
A131: Motor Gasoline | C131: - ( | E131: x | F131: 0 | G131: ) = | I131: x | J131: =IF(ISNUMBER(MotorGasCC),MotorGasCC,VLOOKUP(A131,VariableCCs,D116-1988,FALSE)) -> 42.69717006 | K131: x | L131: 0 | M131: = | O131: = | Q131: =
A132: Motor Gasoline Blending Components | C132: - ( | E132: x | F132: 0 | G132: ) = | I132: x | J132: =IF(ISNUMBER(MoBlendCC),MoBlendCC,VLOOKUP(A132,VariableCCs,D116-1988,FALSE)) -> 42.69717006 | K132: x | L132: 0 | M132: = | O132: = | Q132: =
A133: Misc. Petro Products | C133: - ( | E133: x | F133: =MiscStore -> 0 | G133: ) = | I133: x | J133: =IF(ISNUMBER(MiscCC),MiscCC,VLOOKUP(A133,VariableCCs,D116-1988,FALSE)) -> 0 | K133: x | L133: 0 | M133: = | O133: = | Q133: =
A134: Petroleum Coke | C134: - ( | E134: x | F134: =PetCokeStore -> 0 | G134: ) = | I134: x | J134: =PetCokeCC -> 0 | K134: x | L134: 0 | M134: = | O134: = | Q134: =
A135: Pentanes Plus | C135: - ( | E135: x | F135: =IF(ISNUMBER(PentanesStore),PentanesStore,VLOOKUP(D116,StorageFactor,2,FALSE)) -> 0.5605044775 | G135: ) = | I135: x | J135: =pentanesCC -> 0 | K135: x | L135: 0 | M135: = | O135: = | Q135: =
A136: Residual Fuel | C136: - ( | E136: x | F136: =ResidStore -> 0 | G136: ) = | I136: x | J136: =ResidCC -> 0 | K136: x | L136: 0 | M136: = | O136: = | Q136: =
A137: Still Gas | C137: - ( | E137: x | F137: =StillStore -> 0 | G137: ) = | I137: x | J137: =StillCC -> 0 | K137: x | L137: 0 | M137: = | O137: = | Q137: =
A138: Special Naphthas | C138: - ( | E138: x | F138: =SpecialStore -> 0 | G138: ) = | I138: x | J138: =SpecialCC -> 0 | K138: x | L138: 0 | M138: = | O138: = | Q138: =
A139: Unfinished Oils | C139: - ( | E139: x | F139: 0 | G139: ) = | I139: x | J139: =IF(ISNUMBER(UnfinCC),UnfinCC,VLOOKUP(A139,VariableCCs,D116-1988,FALSE)) -> 44.54914538 | K139: x | L139: 0 | M139: = | O139: = | Q139: =
A140: Waxes | C140: - ( | E140: x | F140: =WaxesStore -> 0 | G140: ) = | I140: x | J140: =WaxesCC -> 0 | K140: x | L140: 0 | M140: = | O140: = | Q140: =
A141: Natural Gas | C141: - ( | E141: x | F141: =IF(ISNUMBER(NGStore),NGStore,VLOOKUP(D116,StorageFactor,2,FALSE)) -> 0.5605044775 | G141: ) = | I141: x | J141: =NGCC -> 0 | K141: x | L141: =NGEff -> 0 | M141: = | O141: = | Q141: =
A142: Other | B142: 0 | C142: - ( | E142: x | G142: ) = | H142: 0 | I142: x | K142: x | M142: = | N142: 0 | O142: = | P142: 0 | Q142: = | R142: 0
A144: Industrial Sector | D144: 1995
B145: Total | D145: Non-Energy | H145: Net combustible
B146: Consumption | D146: Consumption | H146: Consumption | J146: Emission Factor | L146: Combustion | N146: Emissions | P146: Emissions | R146: Emissions
A147: Fuel Type | B147: (Billion Btu) | D147: (Billion Btu) | F147: Storage Factor (%) | H147: (Billion Btu) | J147: (lbs C/Million Btu) | L147: Efficiency (%) | N147: (short tons carbon) | P147: (MMTCE) | R147: (MMTCO2E)
A148: Coking Coal | B148: =VLOOKUP($A$2&$C$2&$B$2&" "&$A148,ConsumeBlock1,$D144-1986,FALSE) ->  | C148: - ( | E148: x | F148: =CokeCoalStore -> 0 | G148: ) = | H148: =B148-(D148*F148) ->  | I148: x | J148: =IF(ISNUMBER(CokeCoalCC),CokeCoalCC,VLOOKUP($A$2&" "&$B$2& " Coking Coal CC",CoalCoeffBlock,D144-1988,FALSE)) ->  | K148: x | L148: =CoalEff -> 0 | M148: = | N148: =H148*J148*L148*1000*lbs_shortt ->  | O148: = | P148: =N148*Short_Metric/1000000 ->  | Q148: = | R148: =P148*C_CO2 -> 
A149: Other Coal | B149: =IF(VLOOKUP($A$2&$C$2&$B$2&" "&$A149,ConsumeBlock1,$D144-1986,FALSE)-VLOOKUP($D$2,SyntheticNG,$D144-1988,FALSE)<0,0,VLOOKUP($A$2&$C$2&$B$2&" "&$A149,ConsumeBlock1,$D144-1986,FALSE)-VLOOKUP($D$2,SyntheticNG,$D144-1988,FALSE)) ->  | C149: - ( | E149: x | F149: 0 | G149: ) = | H149: =B149-(D149*F149) ->  | I149: x | J149: =IF(ISNUMBER(OtherCoalCC),OtherCoalCC,VLOOKUP($A$2 &" "&$B$2& " Other Coal CC",CoalCoeffBlock,D144-1988,FALSE)) ->  | K149: x | L149: =CoalEff -> 0 | M149: = | N149: =H149*J149*L149*1000*lbs_shortt ->  | O149: = | P149: =N149*Short_Metric/1000000 ->  | Q149: =
A150: Asphalt and Road Oil | B150: =VLOOKUP($A$2&$C$2&$B$2&$C$2&$A150,ConsumeBlock1,D$144-1986,FALSE) ->  | C150: - ( | E150: x | F150: =AsphaltStore -> 0 | G150: ) = | I150: x | J150: =AsphaltCC -> 0 | K150: x | L150: =PetroEff -> 0 | M150: = | N150: =H150*J150*L150*1000*lbs_shortt ->  | O150: = | P150: =N150*Short_Metric/1000000 ->  | Q150: =
A151: Aviation Gasoline Blending Components | C151: - ( | E151: x | F151: 0 | G151: ) = | I151: x | J151: =AvBlendCC -> 0 | K151: x | L151: =PetroEff -> 0 | M151: = | O151: = | Q151: =
A152: Crude Oil | C152: - ( | E152: x | F152: 0 | G152: ) = | I152: x | J152: =IF(ISNUMBER(CrudeCC),CrudeCC,VLOOKUP(A152,VariableCCs,D144-1988,FALSE)) -> 44.55580083 | K152: x | L152: 0 | M152: = | O152: = | Q152: =
A153: Distillate Fuel | C153: - ( | E153: x | F153: =DistillStore -> 0 | G153: ) = | I153: x | J153: =DistillCC -> 0 | K153: x | L153: 0 | M153: = | O153: = | Q153: =
A154: Feedstocks, Naphtha less than 401 F | C154: - ( | E154: x | F154: =IF(ISNUMBER(NaphStore),NaphStore,VLOOKUP(D144,StorageFactor,2,FALSE)) -> 0.5775692337 | G154: ) = | I154: x | J154: =NaphCC -> 0 | K154: x | L154: 0 | M154: = | O154: = | Q154: =
A155: Feedstocks, Other Oils greater than 401 F | C155: - ( | E155: x | F155: =IF(ISNUMBER(OtherOilStore),OtherOilStore,VLOOKUP(D144,StorageFactor,2,FALSE)) -> 0.5775692337 | G155: ) = | I155: x | J155: =OtherOilCC -> 0 | K155: x | L155: 0 | M155: = | O155: = | Q155: =
A156: Kerosene | C156: - ( | E156: x | F156: 0 | G156: ) = | I156: x | J156: =KeroCC -> 0 | K156: x | L156: 0 | M156: = | O156: = | Q156: =
A157: Hydrocarbon Gas Liquids | B157: =VLOOKUP($A$2&$C$2&$B$2&$C$2&$A157,ConsumeBlock1,D$144-1986,FALSE)-B163 ->  | C157: - ( | E157: x | F157: =IF(ISNUMBER(LPGStore),LPGStore,VLOOKUP(D144,StorageFactor,2,FALSE)) -> 0.5775692337 | G157: ) = | I157: x | J157: =IF(ISNUMBER(LPGCC),LPGCC,VLOOKUP("HGL (energy use)",VariableCCs,D144-1988,FALSE)) -> 38.61951664 | K157: x | L157: =LPGEff -> 0 | M157: = | O157: = | Q157: =
A158: Lubricants | C158: - ( | E158: x | F158: =LubeStore -> 0 | G158: ) = | I158: x | J158: =LubeCC -> 0 | K158: x | L158: 0 | M158: = | O158: = | Q158: =
A159: Motor Gasoline | C159: - ( | E159: x | F159: 0 | G159: ) = | I159: x | J159: =IF(ISNUMBER(MotorGasCC),MotorGasCC,VLOOKUP(A159,VariableCCs,D144-1988,FALSE)) -> 42.6828127 | K159: x | L159: 0 | M159: = | O159: = | Q159: =
A160: Motor Gasoline Blending Components | C160: - ( | E160: x | F160: 0 | G160: ) = | I160: x | J160: =IF(ISNUMBER(MoBlendCC),MoBlendCC,VLOOKUP(A160,VariableCCs,D144-1988,FALSE)) -> 42.6828127 | K160: x | L160: 0 | M160: = | O160: = | Q160: =
A161: Misc. Petro Products | C161: - ( | E161: x | F161: =MiscStore -> 0 | G161: ) = | I161: x | J161: =IF(ISNUMBER(MiscCC),MiscCC,VLOOKUP(A161,VariableCCs,D144-1988,FALSE)) -> 0 | K161: x | L161: 0 | M161: = | O161: = | Q161: =
A162: Petroleum Coke | C162: - ( | E162: x | F162: =PetCokeStore -> 0 | G162: ) = | I162: x | J162: =PetCokeCC -> 0 | K162: x | L162: 0 | M162: = | O162: = | Q162: =
A163: Pentanes Plus | C163: - ( | E163: x | F163: =IF(ISNUMBER(PentanesStore),PentanesStore,VLOOKUP(D144,StorageFactor,2,FALSE)) -> 0.5775692337 | G163: ) = | I163: x | J163: =pentanesCC -> 0 | K163: x | L163: 0 | M163: = | O163: = | Q163: =
A164: Residual Fuel | C164: - ( | E164: x | F164: =ResidStore -> 0 | G164: ) = | I164: x | J164: =ResidCC -> 0 | K164: x | L164: 0 | M164: = | O164: = | Q164: =
A165: Still Gas | C165: - ( | E165: x | F165: =StillStore -> 0 | G165: ) = | I165: x | J165: =StillCC -> 0 | K165: x | L165: 0 | M165: = | O165: = | Q165: =
A166: Special Naphthas | C166: - ( | E166: x | F166: =SpecialStore -> 0 | G166: ) = | I166: x | J166: =SpecialCC -> 0 | K166: x | L166: 0 | M166: = | O166: = | Q166: =
A167: Unfinished Oils | C167: - ( | E167: x | F167: 0 | G167: ) = | I167: x | J167: =IF(ISNUMBER(UnfinCC),UnfinCC,VLOOKUP(A167,VariableCCs,D144-1988,FALSE)) -> 44.55580083 | K167: x | L167: 0 | M167: = | O167: = | Q167: =
A168: Waxes | C168: - ( | E168: x | F168: =WaxesStore -> 0 | G168: ) = | I168: x | J168: =WaxesCC -> 0 | K168: x | L168: 0 | M168: = | O168: = | Q168: =
A169: Natural Gas | C169: - ( | E169: x | F169: =IF(ISNUMBER(NGStore),NGStore,VLOOKUP(D144,StorageFactor,2,FALSE)) -> 0.5775692337 | G169: ) = | I169: x | J169: =NGCC -> 0 | K169: x | L169: =NGEff -> 0 | M169: = | O169: = | Q169: =
A170: Other | B170: 0 | C170: - ( | E170: x | G170: ) = | H170: 0 | I170: x | K170: x | M170: = | N170: 0 | O170: = | P170: 0 | Q170: = | R170: 0
A172: Industrial Sector | D172: 1996
B173: Total | D173: Non-Energy | H173: Net combustible
B174: Consumption | D174: Consumption | H174: Consumption | J174: Emission Factor | L174: Combustion | N174: Emissions | P174: Emissions | R174: Emissions
A175: Fuel Type | B175: (Billion Btu) | D175: (Billion Btu) | F175: Storage Factor (%) | H175: (Billion Btu) | J175: (lbs C/Million Btu) | L175: Efficiency (%) | N175: (short tons carbon) | P175: (MMTCE) | R175: (MMTCO2E)
A176: Coking Coal | B176: =VLOOKUP($A$2&$C$2&$B$2&" "&$A176,ConsumeBlock1,$D172-1986,FALSE) ->  | C176: - ( | E176: x | F176: =CokeCoalStore -> 0 | G176: ) = | H176: =B176-(D176*F176) ->  | I176: x | J176: =IF(ISNUMBER(CokeCoalCC),CokeCoalCC,VLOOKUP($A$2&" "&$B$2& " Coking Coal CC",CoalCoeffBlock,D172-1988,FALSE)) ->  | K176: x | L176: =CoalEff -> 0 | M176: = | N176: =H176*J176*L176*1000*lbs_shortt ->  | O176: = | P176: =N176*Short_Metric/1000000 ->  | Q176: = | R176: =P176*C_CO2 -> 
A177: Other Coal | B177: =IF(VLOOKUP($A$2&$C$2&$B$2&" "&$A177,ConsumeBlock1,$D172-1986,FALSE)-VLOOKUP($D$2,SyntheticNG,$D172-1988,FALSE)<0,0,VLOOKUP($A$2&$C$2&$B$2&" "&$A177,ConsumeBlock1,$D172-1986,FALSE)-VLOOKUP($D$2,SyntheticNG,$D172-1988,FALSE)) ->  | C177: - ( | E177: x | F177: 0 | G177: ) = | H177: =B177-(D177*F177) ->  | I177: x | J177: =IF(ISNUMBER(OtherCoalCC),OtherCoalCC,VLOOKUP($A$2 &" "&$B$2& " Other Coal CC",CoalCoeffBlock,D172-1988,FALSE)) ->  | K177: x | L177: =CoalEff -> 0 | M177: = | N177: =H177*J177*L177*1000*lbs_shortt ->  | O177: = | P177: =N177*Short_Metric/1000000 ->  | Q177: =
A178: Asphalt and Road Oil | B178: =VLOOKUP($A$2&$C$2&$B$2&$C$2&$A178,ConsumeBlock1,D$172-1986,FALSE) ->  | C178: - ( | E178: x | F178: =AsphaltStore -> 0 | G178: ) = | I178: x | J178: =AsphaltCC -> 0 | K178: x | L178: =PetroEff -> 0 | M178: = | N178: =H178*J178*L178*1000*lbs_shortt ->  | O178: = | P178: =N178*Short_Metric/1000000 ->  | Q178: =
A179: Aviation Gasoline Blending Components | C179: - ( | E179: x | F179: 0 | G179: ) = | I179: x | J179: =AvBlendCC -> 0 | K179: x | L179: =PetroEff -> 0 | M179: = | O179: = | Q179: =
A180: Crude Oil | C180: - ( | E180: x | F180: 0 | G180: ) = | I180: x | J180: =IF(ISNUMBER(CrudeCC),CrudeCC,VLOOKUP(A180,VariableCCs,D172-1988,FALSE)) -> 44.61672095 | K180: x | L180: 0 | M180: = | O180: = | Q180: =
A181: Distillate Fuel | C181: - ( | E181: x | F181: =DistillStore -> 0 | G181: ) = | I181: x | J181: =DistillCC -> 0 | K181: x | L181: 0 | M181: = | O181: = | Q181: =
A182: Feedstocks, Naphtha less than 401 F | C182: - ( | E182: x | F182: =IF(ISNUMBER(NaphStore),NaphStore,VLOOKUP(D172,StorageFactor,2,FALSE)) -> 0.5984599635 | G182: ) = | I182: x | J182: =NaphCC -> 0 | K182: x | L182: 0 | M182: = | O182: = | Q182: =
A183: Feedstocks, Other Oils greater than 401 F | C183: - ( | E183: x | F183: =IF(ISNUMBER(OtherOilStore),OtherOilStore,VLOOKUP(D172,StorageFactor,2,FALSE)) -> 0.5984599635 | G183: ) = | I183: x | J183: =OtherOilCC -> 0 | K183: x | L183: 0 | M183: = | O183: = | Q183: =
A184: Kerosene | C184: - ( | E184: x | F184: 0 | G184: ) = | I184: x | J184: =KeroCC -> 0 | K184: x | L184: 0 | M184: = | O184: = | Q184: =
A185: Hydrocarbon Gas Liquids | B185: =VLOOKUP($A$2&$C$2&$B$2&$C$2&$A185,ConsumeBlock1,D$172-1986,FALSE)-B191 ->  | C185: - ( | E185: x | F185: =IF(ISNUMBER(LPGStore),LPGStore,VLOOKUP(D172,StorageFactor,2,FALSE)) -> 0.5984599635 | G185: ) = | I185: x | J185: =IF(ISNUMBER(LPGCC),LPGCC,VLOOKUP("HGL (energy use)",VariableCCs,D172-1988,FALSE)) -> 38.62620544 | K185: x | L185: =LPGEff -> 0 | M185: = | O185: = | Q185: =
A186: Lubricants | C186: - ( | E186: x | F186: =LubeStore -> 0 | G186: ) = | I186: x | J186: =LubeCC -> 0 | K186: x | L186: 0 | M186: = | O186: = | Q186: =
A187: Motor Gasoline | C187: - ( | E187: x | F187: 0 | G187: ) = | I187: x | J187: =IF(ISNUMBER(MotorGasCC),MotorGasCC,VLOOKUP(A187,VariableCCs,D172-1988,FALSE)) -> 42.67679481 | K187: x | L187: 0 | M187: = | O187: = | Q187: =
A188: Motor Gasoline Blending Components | C188: - ( | E188: x | F188: 0 | G188: ) = | I188: x | J188: =IF(ISNUMBER(MoBlendCC),MoBlendCC,VLOOKUP(A188,VariableCCs,D172-1988,FALSE)) -> 42.67679481 | K188: x | L188: 0 | M188: = | O188: = | Q188: =
A189: Misc. Petro Products | C189: - ( | E189: x | F189: =MiscStore -> 0 | G189: ) = | I189: x | J189: =IF(ISNUMBER(MiscCC),MiscCC,VLOOKUP(A189,VariableCCs,D172-1988,FALSE)) -> 0 | K189: x | L189: 0 | M189: = | O189: = | Q189: =
A190: Petroleum Coke | C190: - ( | E190: x | F190: =PetCokeStore -> 0 | G190: ) = | I190: x | J190: =PetCokeCC -> 0 | K190: x | L190: 0 | M190: = | O190: = | Q190: =
A191: Pentanes Plus | C191: - ( | E191: x | F191: =IF(ISNUMBER(PentanesStore),PentanesStore,VLOOKUP(D172,StorageFactor,2,FALSE)) -> 0.5984599635 | G191: ) = | I191: x | J191: =pentanesCC -> 0 | K191: x | L191: 0 | M191: = | O191: = | Q191: =
A192: Residual Fuel | C192: - ( | E192: x | F192: =ResidStore -> 0 | G192: ) = | I192: x | J192: =ResidCC -> 0 | K192: x | L192: 0 | M192: = | O192: = | Q192: =
A193: Still Gas | C193: - ( | E193: x | F193: =StillStore -> 0 | G193: ) = | I193: x | J193: =StillCC -> 0 | K193: x | L193: 0 | M193: = | O193: = | Q193: =
A194: Special Naphthas | C194: - ( | E194: x | F194: =SpecialStore -> 0 | G194: ) = | I194: x | J194: =SpecialCC -> 0 | K194: x | L194: 0 | M194: = | O194: = | Q194: =
A195: Unfinished Oils | C195: - ( | E195: x | F195: 0 | G195: ) = | I195: x | J195: =IF(ISNUMBER(UnfinCC),UnfinCC,VLOOKUP(A195,VariableCCs,D172-1988,FALSE)) -> 44.61672095 | K195: x | L195: 0 | M195: = | O195: = | Q195: =
A196: Waxes | C196: - ( | E196: x | F196: =WaxesStore -> 0 | G196: ) = | I196: x | J196: =WaxesCC -> 0 | K196: x | L196: 0 | M196: = | O196: = | Q196: =
A197: Natural Gas | C197: - ( | E197: x | F197: =IF(ISNUMBER(NGStore),NGStore,VLOOKUP(D172,StorageFactor,2,FALSE)) -> 0.5984599635 | G197: ) = | I197: x | J197: =NGCC -> 0 | K197: x | L197: =NGEff -> 0 | M197: = | O197: = | Q197: =
A198: Other | B198: 0 | C198: - ( | E198: x | G198: ) = | H198: 0 | I198: x | K198: x | M198: = | N198: 0 | O198: = | P198: 0 | Q198: = | R198: 0
A200: Industrial Sector | D200: 1997
B201: Total | D201: Non-Energy | H201: Net combustible
B202: Consumption | D202: Consumption | H202: Consumption | J202: Emission Factor | L202: Combustion | N202: Emissions | P202: Emissions | R202: Emissions
A203: Fuel Type | B203: (Billion Btu) | D203: (Billion Btu) | F203: Storage Factor (%) | H203: (Billion Btu) | J203: (lbs C/Million Btu) | L203: Efficiency (%) | N203: (short tons carbon) | P203: (MMTCE) | R203: (MMTCO2E)
A204: Coking Coal | B204: =VLOOKUP($A$2&$C$2&$B$2&" "&$A204,ConsumeBlock1,$D200-1986,FALSE) ->  | C204: - ( | E204: x | F204: =CokeCoalStore -> 0 | G204: ) = | H204: =B204-(D204*F204) ->  | I204: x | J204: =IF(ISNUMBER(CokeCoalCC),CokeCoalCC,VLOOKUP($A$2&" "&$B$2& " Coking Coal CC",CoalCoeffBlock,D200-1988,FALSE)) ->  | K204: x | L204: =CoalEff -> 0 | M204: = | N204: =H204*J204*L204*1000*lbs_shortt ->  | O204: = | P204: =N204*Short_Metric/1000000 ->  | Q204: = | R204: =P204*C_CO2 -> 
A205: Other Coal | B205: =IF(VLOOKUP($A$2&$C$2&$B$2&" "&$A205,ConsumeBlock1,$D200-1986,FALSE)-VLOOKUP($D$2,SyntheticNG,$D200-1988,FALSE)<0,0,VLOOKUP($A$2&$C$2&$B$2&" "&$A205,ConsumeBlock1,$D200-1986,FALSE)-VLOOKUP($D$2,SyntheticNG,$D200-1988,FALSE)) ->  | C205: - ( | E205: x | F205: 0 | G205: ) = | H205: =B205-(D205*F205) ->  | I205: x | J205: =IF(ISNUMBER(OtherCoalCC),OtherCoalCC,VLOOKUP($A$2 &" "&$B$2& " Other Coal CC",CoalCoeffBlock,D200-1988,FALSE)) ->  | K205: x | L205: =CoalEff -> 0 | M205: = | N205: =H205*J205*L205*1000*lbs_shortt ->  | O205: = | P205: =N205*Short_Metric/1000000 ->  | Q205: =
A206: Asphalt and Road Oil | B206: =VLOOKUP($A$2&$C$2&$B$2&$C$2&$A206,ConsumeBlock1,D$200-1986,FALSE) ->  | C206: - ( | E206: x | F206: =AsphaltStore -> 0 | G206: ) = | I206: x | J206: =AsphaltCC -> 0 | K206: x | L206: =PetroEff -> 0 | M206: = | N206: =H206*J206*L206*1000*lbs_shortt ->  | O206: = | P206: =N206*Short_Metric/1000000 ->  | Q206: =
A207: Aviation Gasoline Blending Components | C207: - ( | E207: x | F207: 0 | G207: ) = | I207: x | J207: =AvBlendCC -> 0 | K207: x | L207: =PetroEff -> 0 | M207: = | O207: = | Q207: =
A208: Crude Oil | C208: - ( | E208: x | F208: 0 | G208: ) = | I208: x | J208: =IF(ISNUMBER(CrudeCC),CrudeCC,VLOOKUP(A208,VariableCCs,D200-1988,FALSE)) -> 44.57895955 | K208: x | L208: 0 | M208: = | O208: = | Q208: =
... 639 more rows

Sheet Summary-MMTCO2E
A1: ="10. "&'List Data'!E3&" Emissions Summary (MMTCO2E)" -> 10. Select a State . . . Emissions Summary (MMTCO2E)
B3: =Tracker!B13 -> Emissions were not calculated for the following sectors: Residential, Commercial, Industrial, Transportation, Electric Power, and International Bunker Fuels.
B5: MMTCO2E | C5: 1990 | D5: 1991 | E5: 1992 | F5: 1993 | G5: 1994 | H5: 1995 | I5: 1996 | J5: 1997 | K5: 1998 | L5: 1999 | M5: 2000 | N5: 2001 | O5: 2002 | P5: 2003 | Q5: 2004 | R5: 2005 | S5: 2006 | T5: 2007 | U5: 2008 | V5: 2009 | W5: 2010 | X5: 2011 | Y5: 2012 | Z5: 2013 | AA5: 2014 | AB5: 2015 | AC5: 2016 | AD5: 2017 | AE5: 2018 | AF5: 2019 | AG5: 2020
B6: Residential | C6: ='Summary-MMTCE'!C6*C_CO2 ->  | D6: ='Summary-MMTCE'!D6*C_CO2 ->  | E6: ='Summary-MMTCE'!E6*C_CO2 ->  | F6: ='Summary-MMTCE'!F6*C_CO2 ->  | G6: ='Summary-MMTCE'!G6*C_CO2 ->  | H6: ='Summary-MMTCE'!H6*C_CO2 ->  | I6: ='Summary-MMTCE'!I6*C_CO2 ->  | J6: ='Summary-MMTCE'!J6*C_CO2 ->  | K6: ='Summary-MMTCE'!K6*C_CO2 ->  | L6: ='Summary-MMTCE'!L6*C_CO2 ->  | M6: ='Summary-MMTCE'!M6*C_CO2 ->  | N6: ='Summary-MMTCE'!N6*C_CO2 ->  | O6: ='Summary-MMTCE'!O6*C_CO2 ->  | P6: ='Summary-MMTCE'!P6*C_CO2 ->  | Q6: ='Summary-MMTCE'!Q6*C_CO2 ->  | R6: ='Summary-MMTCE'!R6*C_CO2 ->  | S6: ='Summary-MMTCE'!S6*C_CO2 ->  | T6: ='Summary-MMTCE'!T6*C_CO2 ->  | U6: ='Summary-MMTCE'!U6*C_CO2 ->  | V6: ='Summary-MMTCE'!V6*C_CO2 ->  | W6: ='Summary-MMTCE'!W6*C_CO2 ->  | X6: ='Summary-MMTCE'!X6*C_CO2 ->  | Y6: ='Summary-MMTCE'!Y6*C_CO2 ->  | Z6: ='Summary-MMTCE'!Z6*C_CO2 ->  | AA6: ='Summary-MMTCE'!AA6*C_CO2 ->  | AB6: ='Summary-MMTCE'!AB6*C_CO2 ->  | AC6: ='Summary-MMTCE'!AC6*C_CO2 ->  | AD6: ='Summary-MMTCE'!AD6*C_CO2 ->  | AE6: ='Summary-MMTCE'!AE6*C_CO2 ->  | AF6: ='Summary-MMTCE'!AF6*C_CO2 ->  | AG6: ='Summary-MMTCE'!AG6*C_CO2 -> 
B7: Coal | C7: ='Summary-MMTCE'!C7*C_CO2 ->  | D7: ='Summary-MMTCE'!D7*C_CO2 ->  | E7: ='Summary-MMTCE'!E7*C_CO2 ->  | F7: ='Summary-MMTCE'!F7*C_CO2 ->  | G7: ='Summary-MMTCE'!G7*C_CO2 ->  | H7: ='Summary-MMTCE'!H7*C_CO2 ->  | I7: ='Summary-MMTCE'!I7*C_CO2 ->  | J7: ='Summary-MMTCE'!J7*C_CO2 ->  | K7: ='Summary-MMTCE'!K7*C_CO2 ->  | L7: ='Summary-MMTCE'!L7*C_CO2 ->  | M7: ='Summary-MMTCE'!M7*C_CO2 ->  | N7: ='Summary-MMTCE'!N7*C_CO2 ->  | O7: ='Summary-MMTCE'!O7*C_CO2 ->  | P7: ='Summary-MMTCE'!P7*C_CO2 ->  | Q7: ='Summary-MMTCE'!Q7*C_CO2 ->  | R7: ='Summary-MMTCE'!R7*C_CO2 ->  | S7: ='Summary-MMTCE'!S7*C_CO2 ->  | T7: ='Summary-MMTCE'!T7*C_CO2 ->  | U7: ='Summary-MMTCE'!U7*C_CO2 ->  | V7: ='Summary-MMTCE'!V7*C_CO2 ->  | W7: ='Summary-MMTCE'!W7*C_CO2 ->  | X7: ='Summary-MMTCE'!X7*C_CO2 ->  | Y7: ='Summary-MMTCE'!Y7*C_CO2 ->  | Z7: ='Summary-MMTCE'!Z7*C_CO2 ->  | AA7: ='Summary-MMTCE'!AA7*C_CO2 ->  | AB7: ='Summary-MMTCE'!AB7*C_CO2 ->  | AC7: ='Summary-MMTCE'!AC7*C_CO2 ->  | AD7: ='Summary-MMTCE'!AD7*C_CO2 ->  | AE7: ='Summary-MMTCE'!AE7*C_CO2 ->  | AF7: ='Summary-MMTCE'!AF7*C_CO2 ->  | AG7: ='Summary-MMTCE'!AG7*C_CO2 -> 
B8: Petroleum | C8: ='Summary-MMTCE'!C8*C_CO2 ->  | D8: ='Summary-MMTCE'!D8*C_CO2 ->  | E8: ='Summary-MMTCE'!E8*C_CO2 ->  | F8: ='Summary-MMTCE'!F8*C_CO2 ->  | G8: ='Summary-MMTCE'!G8*C_CO2 ->  | H8: ='Summary-MMTCE'!H8*C_CO2 ->  | I8: ='Summary-MMTCE'!I8*C_CO2 ->  | J8: ='Summary-MMTCE'!J8*C_CO2 ->  | K8: ='Summary-MMTCE'!K8*C_CO2 ->  | L8: ='Summary-MMTCE'!L8*C_CO2 ->  | M8: ='Summary-MMTCE'!M8*C_CO2 ->  | N8: ='Summary-MMTCE'!N8*C_CO2 ->  | O8: ='Summary-MMTCE'!O8*C_CO2 ->  | P8: ='Summary-MMTCE'!P8*C_CO2 ->  | Q8: ='Summary-MMTCE'!Q8*C_CO2 ->  | R8: ='Summary-MMTCE'!R8*C_CO2 ->  | S8: ='Summary-MMTCE'!S8*C_CO2 ->  | T8: ='Summary-MMTCE'!T8*C_CO2 ->  | U8: ='Summary-MMTCE'!U8*C_CO2 ->  | V8: ='Summary-MMTCE'!V8*C_CO2 ->  | W8: ='Summary-MMTCE'!W8*C_CO2 ->  | X8: ='Summary-MMTCE'!X8*C_CO2 ->  | Y8: ='Summary-MMTCE'!Y8*C_CO2 ->  | Z8: ='Summary-MMTCE'!Z8*C_CO2 ->  | AA8: ='Summary-MMTCE'!AA8*C_CO2 ->  | AB8: ='Summary-MMTCE'!AB8*C_CO2 ->  | AC8: ='Summary-MMTCE'!AC8*C_CO2 ->  | AD8: ='Summary-MMTCE'!AD8*C_CO2 ->  | AE8: ='Summary-MMTCE'!AE8*C_CO2 ->  | AF8: ='Summary-MMTCE'!AF8*C_CO2 ->  | AG8: ='Summary-MMTCE'!AG8*C_CO2 -> 
B9: Natural Gas | C9: ='Summary-MMTCE'!C9*C_CO2 ->  | D9: ='Summary-MMTCE'!D9*C_CO2 ->  | E9: ='Summary-MMTCE'!E9*C_CO2 ->  | F9: ='Summary-MMTCE'!F9*C_CO2 ->  | G9: ='Summary-MMTCE'!G9*C_CO2 ->  | H9: ='Summary-MMTCE'!H9*C_CO2 ->  | I9: ='Summary-MMTCE'!I9*C_CO2 ->  | J9: ='Summary-MMTCE'!J9*C_CO2 ->  | K9: ='Summary-MMTCE'!K9*C_CO2 ->  | L9: ='Summary-MMTCE'!L9*C_CO2 ->  | M9: ='Summary-MMTCE'!M9*C_CO2 ->  | N9: ='Summary-MMTCE'!N9*C_CO2 ->  | O9: ='Summary-MMTCE'!O9*C_CO2 ->  | P9: ='Summary-MMTCE'!P9*C_CO2 ->  | Q9: ='Summary-MMTCE'!Q9*C_CO2 ->  | R9: ='Summary-MMTCE'!R9*C_CO2 ->  | S9: ='Summary-MMTCE'!S9*C_CO2 ->  | T9: ='Summary-MMTCE'!T9*C_CO2 ->  | U9: ='Summary-MMTCE'!U9*C_CO2 ->  | V9: ='Summary-MMTCE'!V9*C_CO2 ->  | W9: ='Summary-MMTCE'!W9*C_CO2 ->  | X9: ='Summary-MMTCE'!X9*C_CO2 ->  | Y9: ='Summary-MMTCE'!Y9*C_CO2 ->  | Z9: ='Summary-MMTCE'!Z9*C_CO2 ->  | AA9: ='Summary-MMTCE'!AA9*C_CO2 ->  | AB9: ='Summary-MMTCE'!AB9*C_CO2 ->  | AC9: ='Summary-MMTCE'!AC9*C_CO2 ->  | AD9: ='Summary-MMTCE'!AD9*C_CO2 ->  | AE9: ='Summary-MMTCE'!AE9*C_CO2 ->  | AF9: ='Summary-MMTCE'!AF9*C_CO2 ->  | AG9: ='Summary-MMTCE'!AG9*C_CO2 -> 
B10: Other | C10: ='Summary-MMTCE'!C10*C_CO2 -> 0 | D10: ='Summary-MMTCE'!D10*C_CO2 -> 0 | E10: ='Summary-MMTCE'!E10*C_CO2 -> 0 | F10: ='Summary-MMTCE'!F10*C_CO2 -> 0 | G10: ='Summary-MMTCE'!G10*C_CO2 -> 0 | H10: ='Summary-MMTCE'!H10*C_CO2 -> 0 | I10: ='Summary-MMTCE'!I10*C_CO2 -> 0 | J10: ='Summary-MMTCE'!J10*C_CO2 -> 0 | K10: ='Summary-MMTCE'!K10*C_CO2 -> 0 | L10: ='Summary-MMTCE'!L10*C_CO2 -> 0 | M10: ='Summary-MMTCE'!M10*C_CO2 -> 0 | N10: ='Summary-MMTCE'!N10*C_CO2 -> 0 | O10: ='Summary-MMTCE'!O10*C_CO2 -> 0 | P10: ='Summary-MMTCE'!P10*C_CO2 -> 0 | Q10: ='Summary-MMTCE'!Q10*C_CO2 -> 0 | R10: ='Summary-MMTCE'!R10*C_CO2 -> 0 | S10: ='Summary-MMTCE'!S10*C_CO2 -> 0 | T10: ='Summary-MMTCE'!T10*C_CO2 -> 0 | U10: ='Summary-MMTCE'!U10*C_CO2 -> 0 | V10: ='Summary-MMTCE'!V10*C_CO2 -> 0 | W10: ='Summary-MMTCE'!W10*C_CO2 -> 0 | X10: ='Summary-MMTCE'!X10*C_CO2 -> 0 | Y10: ='Summary-MMTCE'!Y10*C_CO2 -> 0 | Z10: ='Summary-MMTCE'!Z10*C_CO2 -> 0 | AA10: ='Summary-MMTCE'!AA10*C_CO2 -> 0 | AB10: ='Summary-MMTCE'!AB10*C_CO2 -> 0 | AC10: ='Summary-MMTCE'!AC10*C_CO2 -> 0 | AD10: ='Summary-MMTCE'!AD10*C_CO2 -> 0 | AE10: ='Summary-MMTCE'!AE10*C_CO2 -> 0 | AF10: ='Summary-MMTCE'!AF10*C_CO2 -> 0 | AG10: ='Summary-MMTCE'!AG10*C_CO2 -> 0
B11: Commercial | C11: ='Summary-MMTCE'!C11*C_CO2 ->  | D11: ='Summary-MMTCE'!D11*C_CO2 ->  | E11: ='Summary-MMTCE'!E11*C_CO2 ->  | F11: ='Summary-MMTCE'!F11*C_CO2 ->  | G11: ='Summary-MMTCE'!G11*C_CO2 ->  | H11: ='Summary-MMTCE'!H11*C_CO2 ->  | I11: ='Summary-MMTCE'!I11*C_CO2 ->  | J11: ='Summary-MMTCE'!J11*C_CO2 ->  | K11: ='Summary-MMTCE'!K11*C_CO2 ->  | L11: ='Summary-MMTCE'!L11*C_CO2 ->  | M11: ='Summary-MMTCE'!M11*C_CO2 ->  | N11: ='Summary-MMTCE'!N11*C_CO2 ->  | O11: ='Summary-MMTCE'!O11*C_CO2 ->  | P11: ='Summary-MMTCE'!P11*C_CO2 ->  | Q11: ='Summary-MMTCE'!Q11*C_CO2 ->  | R11: ='Summary-MMTCE'!R11*C_CO2 ->  | S11: ='Summary-MMTCE'!S11*C_CO2 ->  | T11: ='Summary-MMTCE'!T11*C_CO2 ->  | U11: ='Summary-MMTCE'!U11*C_CO2 ->  | V11: ='Summary-MMTCE'!V11*C_CO2 ->  | W11: ='Summary-MMTCE'!W11*C_CO2 ->  | X11: ='Summary-MMTCE'!X11*C_CO2 ->  | Y11: ='Summary-MMTCE'!Y11*C_CO2 ->  | Z11: ='Summary-MMTCE'!Z11*C_CO2 ->  | AA11: ='Summary-MMTCE'!AA11*C_CO2 ->  | AB11: ='Summary-MMTCE'!AB11*C_CO2 ->  | AC11: ='Summary-MMTCE'!AC11*C_CO2 ->  | AD11: ='Summary-MMTCE'!AD11*C_CO2 ->  | AE11: ='Summary-MMTCE'!AE11*C_CO2 ->  | AF11: ='Summary-MMTCE'!AF11*C_CO2 ->  | AG11: ='Summary-MMTCE'!AG11*C_CO2 -> 
B12: Coal | C12: ='Summary-MMTCE'!C12*C_CO2 ->  | D12: ='Summary-MMTCE'!D12*C_CO2 ->  | E12: ='Summary-MMTCE'!E12*C_CO2 ->  | F12: ='Summary-MMTCE'!F12*C_CO2 ->  | G12: ='Summary-MMTCE'!G12*C_CO2 ->  | H12: ='Summary-MMTCE'!H12*C_CO2 ->  | I12: ='Summary-MMTCE'!I12*C_CO2 ->  | J12: ='Summary-MMTCE'!J12*C_CO2 ->  | K12: ='Summary-MMTCE'!K12*C_CO2 ->  | L12: ='Summary-MMTCE'!L12*C_CO2 ->  | M12: ='Summary-MMTCE'!M12*C_CO2 ->  | N12: ='Summary-MMTCE'!N12*C_CO2 ->  | O12: ='Summary-MMTCE'!O12*C_CO2 ->  | P12: ='Summary-MMTCE'!P12*C_CO2 ->  | Q12: ='Summary-MMTCE'!Q12*C_CO2 ->  | R12: ='Summary-MMTCE'!R12*C_CO2 ->  | S12: ='Summary-MMTCE'!S12*C_CO2 ->  | T12: ='Summary-MMTCE'!T12*C_CO2 ->  | U12: ='Summary-MMTCE'!U12*C_CO2 ->  | V12: ='Summary-MMTCE'!V12*C_CO2 ->  | W12: ='Summary-MMTCE'!W12*C_CO2 ->  | X12: ='Summary-MMTCE'!X12*C_CO2 ->  | Y12: ='Summary-MMTCE'!Y12*C_CO2 ->  | Z12: ='Summary-MMTCE'!Z12*C_CO2 ->  | AA12: ='Summary-MMTCE'!AA12*C_CO2 ->  | AB12: ='Summary-MMTCE'!AB12*C_CO2 ->  | AC12: ='Summary-MMTCE'!AC12*C_CO2 ->  | AD12: ='Summary-MMTCE'!AD12*C_CO2 ->  | AE12: ='Summary-MMTCE'!AE12*C_CO2 ->  | AF12: ='Summary-MMTCE'!AF12*C_CO2 ->  | AG12: ='Summary-MMTCE'!AG12*C_CO2 -> 
B13: Petroleum | C13: ='Summary-MMTCE'!C13*C_CO2 ->  | D13: ='Summary-MMTCE'!D13*C_CO2 ->  | E13: ='Summary-MMTCE'!E13*C_CO2 ->  | F13: ='Summary-MMTCE'!F13*C_CO2 ->  | G13: ='Summary-MMTCE'!G13*C_CO2 ->  | H13: ='Summary-MMTCE'!H13*C_CO2 ->  | I13: ='Summary-MMTCE'!I13*C_CO2 ->  | J13: ='Summary-MMTCE'!J13*C_CO2 ->  | K13: ='Summary-MMTCE'!K13*C_CO2 ->  | L13: ='Summary-MMTCE'!L13*C_CO2 ->  | M13: ='Summary-MMTCE'!M13*C_CO2 ->  | N13: ='Summary-MMTCE'!N13*C_CO2 ->  | O13: ='Summary-MMTCE'!O13*C_CO2 ->  | P13: ='Summary-MMTCE'!P13*C_CO2 ->  | Q13: ='Summary-MMTCE'!Q13*C_CO2 ->  | R13: ='Summary-MMTCE'!R13*C_CO2 ->  | S13: ='Summary-MMTCE'!S13*C_CO2 ->  | T13: ='Summary-MMTCE'!T13*C_CO2 ->  | U13: ='Summary-MMTCE'!U13*C_CO2 ->  | V13: ='Summary-MMTCE'!V13*C_CO2 ->  | W13: ='Summary-MMTCE'!W13*C_CO2 ->  | X13: ='Summary-MMTCE'!X13*C_CO2 ->  | Y13: ='Summary-MMTCE'!Y13*C_CO2 ->  | Z13: ='Summary-MMTCE'!Z13*C_CO2 ->  | AA13: ='Summary-MMTCE'!AA13*C_CO2 ->  | AB13: ='Summary-MMTCE'!AB13*C_CO2 ->  | AC13: ='Summary-MMTCE'!AC13*C_CO2 ->  | AD13: ='Summary-MMTCE'!AD13*C_CO2 ->  | AE13: ='Summary-MMTCE'!AE13*C_CO2 ->  | AF13: ='Summary-MMTCE'!AF13*C_CO2 ->  | AG13: ='Summary-MMTCE'!AG13*C_CO2 -> 
B14: Natural Gas | C14: ='Summary-MMTCE'!C14*C_CO2 ->  | D14: ='Summary-MMTCE'!D14*C_CO2 ->  | E14: ='Summary-MMTCE'!E14*C_CO2 ->  | F14: ='Summary-MMTCE'!F14*C_CO2 ->  | G14: ='Summary-MMTCE'!G14*C_CO2 ->  | H14: ='Summary-MMTCE'!H14*C_CO2 ->  | I14: ='Summary-MMTCE'!I14*C_CO2 ->  | J14: ='Summary-MMTCE'!J14*C_CO2 ->  | K14: ='Summary-MMTCE'!K14*C_CO2 ->  | L14: ='Summary-MMTCE'!L14*C_CO2 ->  | M14: ='Summary-MMTCE'!M14*C_CO2 ->  | N14: ='Summary-MMTCE'!N14*C_CO2 ->  | O14: ='Summary-MMTCE'!O14*C_CO2 ->  | P14: ='Summary-MMTCE'!P14*C_CO2 ->  | Q14: ='Summary-MMTCE'!Q14*C_CO2 ->  | R14: ='Summary-MMTCE'!R14*C_CO2 ->  | S14: ='Summary-MMTCE'!S14*C_CO2 ->  | T14: ='Summary-MMTCE'!T14*C_CO2 ->  | U14: ='Summary-MMTCE'!U14*C_CO2 ->  | V14: ='Summary-MMTCE'!V14*C_CO2 ->  | W14: ='Summary-MMTCE'!W14*C_CO2 ->  | X14: ='Summary-MMTCE'!X14*C_CO2 ->  | Y14: ='Summary-MMTCE'!Y14*C_CO2 ->  | Z14: ='Summary-MMTCE'!Z14*C_CO2 ->  | AA14: ='Summary-MMTCE'!AA14*C_CO2 ->  | AB14: ='Summary-MMTCE'!AB14*C_CO2 ->  | AC14: ='Summary-MMTCE'!AC14*C_CO2 ->  | AD14: ='Summary-MMTCE'!AD14*C_CO2 ->  | AE14: ='Summary-MMTCE'!AE14*C_CO2 ->  | AF14: ='Summary-MMTCE'!AF14*C_CO2 ->  | AG14: ='Summary-MMTCE'!AG14*C_CO2 -> 
B15: Other | C15: ='Summary-MMTCE'!C15*C_CO2 -> 0 | D15: ='Summary-MMTCE'!D15*C_CO2 -> 0 | E15: ='Summary-MMTCE'!E15*C_CO2 -> 0 | F15: ='Summary-MMTCE'!F15*C_CO2 -> 0 | G15: ='Summary-MMTCE'!G15*C_CO2 -> 0 | H15: ='Summary-MMTCE'!H15*C_CO2 -> 0 | I15: ='Summary-MMTCE'!I15*C_CO2 -> 0 | J15: ='Summary-MMTCE'!J15*C_CO2 -> 0 | K15: ='Summary-MMTCE'!K15*C_CO2 -> 0 | L15: ='Summary-MMTCE'!L15*C_CO2 -> 0 | M15: ='Summary-MMTCE'!M15*C_CO2 -> 0 | N15: ='Summary-MMTCE'!N15*C_CO2 -> 0 | O15: ='Summary-MMTCE'!O15*C_CO2 -> 0 | P15: ='Summary-MMTCE'!P15*C_CO2 -> 0 | Q15: ='Summary-MMTCE'!Q15*C_CO2 -> 0 | R15: ='Summary-MMTCE'!R15*C_CO2 -> 0 | S15: ='Summary-MMTCE'!S15*C_CO2 -> 0 | T15: ='Summary-MMTCE'!T15*C_CO2 -> 0 | U15: ='Summary-MMTCE'!U15*C_CO2 -> 0 | V15: ='Summary-MMTCE'!V15*C_CO2 -> 0 | W15: ='Summary-MMTCE'!W15*C_CO2 -> 0 | X15: ='Summary-MMTCE'!X15*C_CO2 -> 0 | Y15: ='Summary-MMTCE'!Y15*C_CO2 -> 0 | Z15: ='Summary-MMTCE'!Z15*C_CO2 -> 0 | AA15: ='Summary-MMTCE'!AA15*C_CO2 -> 0 | AB15: ='Summary-MMTCE'!AB15*C_CO2 -> 0 | AC15: ='Summary-MMTCE'!AC15*C_CO2 -> 0 | AD15: ='Summary-MMTCE'!AD15*C_CO2 -> 0 | AE15: ='Summary-MMTCE'!AE15*C_CO2 -> 0 | AF15: ='Summary-MMTCE'!AF15*C_CO2 -> 0 | AG15: ='Summary-MMTCE'!AG15*C_CO2 -> 0
B16: Industrial | C16: ='Summary-MMTCE'!C16*C_CO2 ->  | D16: ='Summary-MMTCE'!D16*C_CO2 ->  | E16: ='Summary-MMTCE'!E16*C_CO2 ->  | F16: ='Summary-MMTCE'!F16*C_CO2 ->  | G16: ='Summary-MMTCE'!G16*C_CO2 ->  | H16: ='Summary-MMTCE'!H16*C_CO2 ->  | I16: ='Summary-MMTCE'!I16*C_CO2 ->  | J16: ='Summary-MMTCE'!J16*C_CO2 ->  | K16: ='Summary-MMTCE'!K16*C_CO2 ->  | L16: ='Summary-MMTCE'!L16*C_CO2 ->  | M16: ='Summary-MMTCE'!M16*C_CO2 ->  | N16: ='Summary-MMTCE'!N16*C_CO2 ->  | O16: ='Summary-MMTCE'!O16*C_CO2 ->  | P16: ='Summary-MMTCE'!P16*C_CO2 ->  | Q16: ='Summary-MMTCE'!Q16*C_CO2 ->  | R16: ='Summary-MMTCE'!R16*C_CO2 ->  | S16: ='Summary-MMTCE'!S16*C_CO2 ->  | T16: ='Summary-MMTCE'!T16*C_CO2 ->  | U16: ='Summary-MMTCE'!U16*C_CO2 ->  | V16: ='Summary-MMTCE'!V16*C_CO2 ->  | W16: ='Summary-MMTCE'!W16*C_CO2 ->  | X16: ='Summary-MMTCE'!X16*C_CO2 ->  | Y16: ='Summary-MMTCE'!Y16*C_CO2 ->  | Z16: ='Summary-MMTCE'!Z16*C_CO2 ->  | AA16: ='Summary-MMTCE'!AA16*C_CO2 ->  | AB16: ='Summary-MMTCE'!AB16*C_CO2 ->  | AC16: ='Summary-MMTCE'!AC16*C_CO2 ->  | AD16: ='Summary-MMTCE'!AD16*C_CO2 ->  | AE16: ='Summary-MMTCE'!AE16*C_CO2 ->  | AF16: ='Summary-MMTCE'!AF16*C_CO2 ->  | AG16: ='Summary-MMTCE'!AG16*C_CO2 -> 
B17: Coal | C17: ='Summary-MMTCE'!C17*C_CO2 ->  | D17: ='Summary-MMTCE'!D17*C_CO2 ->  | E17: ='Summary-MMTCE'!E17*C_CO2 ->  | F17: ='Summary-MMTCE'!F17*C_CO2 ->  | G17: ='Summary-MMTCE'!G17*C_CO2 ->  | H17: ='Summary-MMTCE'!H17*C_CO2 ->  | I17: ='Summary-MMTCE'!I17*C_CO2 ->  | J17: ='Summary-MMTCE'!J17*C_CO2 ->  | K17: ='Summary-MMTCE'!K17*C_CO2 ->  | L17: ='Summary-MMTCE'!L17*C_CO2 ->  | M17: ='Summary-MMTCE'!M17*C_CO2 ->  | N17: ='Summary-MMTCE'!N17*C_CO2 ->  | O17: ='Summary-MMTCE'!O17*C_CO2 ->  | P17: ='Summary-MMTCE'!P17*C_CO2 ->  | Q17: ='Summary-MMTCE'!Q17*C_CO2 ->  | R17: ='Summary-MMTCE'!R17*C_CO2 ->  | S17: ='Summary-MMTCE'!S17*C_CO2 ->  | T17: ='Summary-MMTCE'!T17*C_CO2 ->  | U17: ='Summary-MMTCE'!U17*C_CO2 ->  | V17: ='Summary-MMTCE'!V17*C_CO2 ->  | W17: ='Summary-MMTCE'!W17*C_CO2 ->  | X17: ='Summary-MMTCE'!X17*C_CO2 ->  | Y17: ='Summary-MMTCE'!Y17*C_CO2 ->  | Z17: ='Summary-MMTCE'!Z17*C_CO2 ->  | AA17: ='Summary-MMTCE'!AA17*C_CO2 ->  | AB17: ='Summary-MMTCE'!AB17*C_CO2 ->  | AC17: ='Summary-MMTCE'!AC17*C_CO2 ->  | AD17: ='Summary-MMTCE'!AD17*C_CO2 ->  | AE17: ='Summary-MMTCE'!AE17*C_CO2 ->  | AF17: ='Summary-MMTCE'!AF17*C_CO2 ->  | AG17: ='Summary-MMTCE'!AG17*C_CO2 -> 
B18: Petroleum | C18: ='Summary-MMTCE'!C18*C_CO2 ->  | D18: ='Summary-MMTCE'!D18*C_CO2 ->  | E18: ='Summary-MMTCE'!E18*C_CO2 ->  | F18: ='Summary-MMTCE'!F18*C_CO2 ->  | G18: ='Summary-MMTCE'!G18*C_CO2 ->  | H18: ='Summary-MMTCE'!H18*C_CO2 ->  | I18: ='Summary-MMTCE'!I18*C_CO2 ->  | J18: ='Summary-MMTCE'!J18*C_CO2 ->  | K18: ='Summary-MMTCE'!K18*C_CO2 ->  | L18: ='Summary-MMTCE'!L18*C_CO2 ->  | M18: ='Summary-MMTCE'!M18*C_CO2 ->  | N18: ='Summary-MMTCE'!N18*C_CO2 ->  | O18: ='Summary-MMTCE'!O18*C_CO2 ->  | P18: ='Summary-MMTCE'!P18*C_CO2 ->  | Q18: ='Summary-MMTCE'!Q18*C_CO2 ->  | R18: ='Summary-MMTCE'!R18*C_CO2 ->  | S18: ='Summary-MMTCE'!S18*C_CO2 ->  | T18: ='Summary-MMTCE'!T18*C_CO2 ->  | U18: ='Summary-MMTCE'!U18*C_CO2 ->  | V18: ='Summary-MMTCE'!V18*C_CO2 ->  | W18: ='Summary-MMTCE'!W18*C_CO2 ->  | X18: ='Summary-MMTCE'!X18*C_CO2 ->  | Y18: ='Summary-MMTCE'!Y18*C_CO2 ->  | Z18: ='Summary-MMTCE'!Z18*C_CO2 ->  | AA18: ='Summary-MMTCE'!AA18*C_CO2 ->  | AB18: ='Summary-MMTCE'!AB18*C_CO2 ->  | AC18: ='Summary-MMTCE'!AC18*C_CO2 ->  | AD18: ='Summary-MMTCE'!AD18*C_CO2 ->  | AE18: ='Summary-MMTCE'!AE18*C_CO2 ->  | AF18: ='Summary-MMTCE'!AF18*C_CO2 ->  | AG18: ='Summary-MMTCE'!AG18*C_CO2 -> 
B19: Natural Gas | C19: ='Summary-MMTCE'!C19*C_CO2 ->  | D19: ='Summary-MMTCE'!D19*C_CO2 ->  | E19: ='Summary-MMTCE'!E19*C_CO2 ->  | F19: ='Summary-MMTCE'!F19*C_CO2 ->  | G19: ='Summary-MMTCE'!G19*C_CO2 ->  | H19: ='Summary-MMTCE'!H19*C_CO2 ->  | I19: ='Summary-MMTCE'!I19*C_CO2 ->  | J19: ='Summary-MMTCE'!J19*C_CO2 ->  | K19: ='Summary-MMTCE'!K19*C_CO2 ->  | L19: ='Summary-MMTCE'!L19*C_CO2 ->  | M19: ='Summary-MMTCE'!M19*C_CO2 ->  | N19: ='Summary-MMTCE'!N19*C_CO2 ->  | O19: ='Summary-MMTCE'!O19*C_CO2 ->  | P19: ='Summary-MMTCE'!P19*C_CO2 ->  | Q19: ='Summary-MMTCE'!Q19*C_CO2 ->  | R19: ='Summary-MMTCE'!R19*C_CO2 ->  | S19: ='Summary-MMTCE'!S19*C_CO2 ->  | T19: ='Summary-MMTCE'!T19*C_CO2 ->  | U19: ='Summary-MMTCE'!U19*C_CO2 ->  | V19: ='Summary-MMTCE'!V19*C_CO2 ->  | W19: ='Summary-MMTCE'!W19*C_CO2 ->  | X19: ='Summary-MMTCE'!X19*C_CO2 ->  | Y19: ='Summary-MMTCE'!Y19*C_CO2 ->  | Z19: ='Summary-MMTCE'!Z19*C_CO2 ->  | AA19: ='Summary-MMTCE'!AA19*C_CO2 ->  | AB19: ='Summary-MMTCE'!AB19*C_CO2 ->  | AC19: ='Summary-MMTCE'!AC19*C_CO2 ->  | AD19: ='Summary-MMTCE'!AD19*C_CO2 ->  | AE19: ='Summary-MMTCE'!AE19*C_CO2 ->  | AF19: ='Summary-MMTCE'!AF19*C_CO2 ->  | AG19: ='Summary-MMTCE'!AG19*C_CO2 -> 
B20: Other | C20: ='Summary-MMTCE'!C20*C_CO2 -> 0 | D20: ='Summary-MMTCE'!D20*C_CO2 -> 0 | E20: ='Summary-MMTCE'!E20*C_CO2 -> 0 | F20: ='Summary-MMTCE'!F20*C_CO2 -> 0 | G20: ='Summary-MMTCE'!G20*C_CO2 -> 0 | H20: ='Summary-MMTCE'!H20*C_CO2 -> 0 | I20: ='Summary-MMTCE'!I20*C_CO2 -> 0 | J20: ='Summary-MMTCE'!J20*C_CO2 -> 0 | K20: ='Summary-MMTCE'!K20*C_CO2 -> 0 | L20: ='Summary-MMTCE'!L20*C_CO2 -> 0 | M20: ='Summary-MMTCE'!M20*C_CO2 -> 0 | N20: ='Summary-MMTCE'!N20*C_CO2 -> 0 | O20: ='Summary-MMTCE'!O20*C_CO2 -> 0 | P20: ='Summary-MMTCE'!P20*C_CO2 -> 0 | Q20: ='Summary-MMTCE'!Q20*C_CO2 -> 0 | R20: ='Summary-MMTCE'!R20*C_CO2 -> 0 | S20: ='Summary-MMTCE'!S20*C_CO2 -> 0 | T20: ='Summary-MMTCE'!T20*C_CO2 -> 0 | U20: ='Summary-MMTCE'!U20*C_CO2 -> 0 | V20: ='Summary-MMTCE'!V20*C_CO2 -> 0 | W20: ='Summary-MMTCE'!W20*C_CO2 -> 0 | X20: ='Summary-MMTCE'!X20*C_CO2 -> 0 | Y20: ='Summary-MMTCE'!Y20*C_CO2 -> 0 | Z20: ='Summary-MMTCE'!Z20*C_CO2 -> 0 | AA20: ='Summary-MMTCE'!AA20*C_CO2 -> 0 | AB20: ='Summary-MMTCE'!AB20*C_CO2 -> 0 | AC20: ='Summary-MMTCE'!AC20*C_CO2 -> 0 | AD20: ='Summary-MMTCE'!AD20*C_CO2 -> 0 | AE20: ='Summary-MMTCE'!AE20*C_CO2 -> 0 | AF20: ='Summary-MMTCE'!AF20*C_CO2 -> 0 | AG20: ='Summary-MMTCE'!AG20*C_CO2 -> 0
B21: Transportation | C21: ='Summary-MMTCE'!C21*C_CO2 ->  | D21: ='Summary-MMTCE'!D21*C_CO2 ->  | E21: ='Summary-MMTCE'!E21*C_CO2 ->  | F21: ='Summary-MMTCE'!F21*C_CO2 ->  | G21: ='Summary-MMTCE'!G21*C_CO2 ->  | H21: ='Summary-MMTCE'!H21*C_CO2 ->  | I21: ='Summary-MMTCE'!I21*C_CO2 ->  | J21: ='Summary-MMTCE'!J21*C_CO2 ->  | K21: ='Summary-MMTCE'!K21*C_CO2 ->  | L21: ='Summary-MMTCE'!L21*C_CO2 ->  | M21: ='Summary-MMTCE'!M21*C_CO2 ->  | N21: ='Summary-MMTCE'!N21*C_CO2 ->  | O21: ='Summary-MMTCE'!O21*C_CO2 ->  | P21: ='Summary-MMTCE'!P21*C_CO2 ->  | Q21: ='Summary-MMTCE'!Q21*C_CO2 ->  | R21: ='Summary-MMTCE'!R21*C_CO2 ->  | S21: ='Summary-MMTCE'!S21*C_CO2 ->  | T21: ='Summary-MMTCE'!T21*C_CO2 ->  | U21: ='Summary-MMTCE'!U21*C_CO2 ->  | V21: ='Summary-MMTCE'!V21*C_CO2 ->  | W21: ='Summary-MMTCE'!W21*C_CO2 ->  | X21: ='Summary-MMTCE'!X21*C_CO2 ->  | Y21: ='Summary-MMTCE'!Y21*C_CO2 ->  | Z21: ='Summary-MMTCE'!Z21*C_CO2 ->  | AA21: ='Summary-MMTCE'!AA21*C_CO2 ->  | AB21: ='Summary-MMTCE'!AB21*C_CO2 ->  | AC21: ='Summary-MMTCE'!AC21*C_CO2 ->  | AD21: ='Summary-MMTCE'!AD21*C_CO2 ->  | AE21: ='Summary-MMTCE'!AE21*C_CO2 ->  | AF21: ='Summary-MMTCE'!AF21*C_CO2 ->  | AG21: ='Summary-MMTCE'!AG21*C_CO2 -> 
B22: Coal | C22: ='Summary-MMTCE'!C22*C_CO2 -> 0 | D22: ='Summary-MMTCE'!D22*C_CO2 -> 0 | E22: ='Summary-MMTCE'!E22*C_CO2 -> 0 | F22: ='Summary-MMTCE'!F22*C_CO2 -> 0 | G22: ='Summary-MMTCE'!G22*C_CO2 -> 0 | H22: ='Summary-MMTCE'!H22*C_CO2 -> 0 | I22: ='Summary-MMTCE'!I22*C_CO2 -> 0 | J22: ='Summary-MMTCE'!J22*C_CO2 -> 0 | K22: ='Summary-MMTCE'!K22*C_CO2 -> 0 | L22: ='Summary-MMTCE'!L22*C_CO2 -> 0 | M22: ='Summary-MMTCE'!M22*C_CO2 -> 0 | N22: ='Summary-MMTCE'!N22*C_CO2 -> 0 | O22: ='Summary-MMTCE'!O22*C_CO2 -> 0 | P22: ='Summary-MMTCE'!P22*C_CO2 -> 0 | Q22: ='Summary-MMTCE'!Q22*C_CO2 -> 0 | R22: ='Summary-MMTCE'!R22*C_CO2 -> 0 | S22: ='Summary-MMTCE'!S22*C_CO2 -> 0 | T22: ='Summary-MMTCE'!T22*C_CO2 -> 0 | U22: ='Summary-MMTCE'!U22*C_CO2 -> 0 | V22: ='Summary-MMTCE'!V22*C_CO2 -> 0 | W22: ='Summary-MMTCE'!W22*C_CO2 -> 0 | X22: ='Summary-MMTCE'!X22*C_CO2 -> 0 | Y22: ='Summary-MMTCE'!Y22*C_CO2 -> 0 | Z22: ='Summary-MMTCE'!Z22*C_CO2 -> 0 | AA22: ='Summary-MMTCE'!AA22*C_CO2 -> 0 | AB22: ='Summary-MMTCE'!AB22*C_CO2 -> 0 | AC22: ='Summary-MMTCE'!AC22*C_CO2 -> 0 | AD22: ='Summary-MMTCE'!AD22*C_CO2 -> 0 | AE22: ='Summary-MMTCE'!AE22*C_CO2 -> 0 | AF22: ='Summary-MMTCE'!AF22*C_CO2 -> 0 | AG22: ='Summary-MMTCE'!AG22*C_CO2 -> 0
B23: Petroleum | C23: ='Summary-MMTCE'!C23*C_CO2 ->  | D23: ='Summary-MMTCE'!D23*C_CO2 ->  | E23: ='Summary-MMTCE'!E23*C_CO2 ->  | F23: ='Summary-MMTCE'!F23*C_CO2 ->  | G23: ='Summary-MMTCE'!G23*C_CO2 ->  | H23: ='Summary-MMTCE'!H23*C_CO2 ->  | I23: ='Summary-MMTCE'!I23*C_CO2 ->  | J23: ='Summary-MMTCE'!J23*C_CO2 ->  | K23: ='Summary-MMTCE'!K23*C_CO2 ->  | L23: ='Summary-MMTCE'!L23*C_CO2 ->  | M23: ='Summary-MMTCE'!M23*C_CO2 ->  | N23: ='Summary-MMTCE'!N23*C_CO2 ->  | O23: ='Summary-MMTCE'!O23*C_CO2 ->  | P23: ='Summary-MMTCE'!P23*C_CO2 ->  | Q23: ='Summary-MMTCE'!Q23*C_CO2 ->  | R23: ='Summary-MMTCE'!R23*C_CO2 ->  | S23: ='Summary-MMTCE'!S23*C_CO2 ->  | T23: ='Summary-MMTCE'!T23*C_CO2 ->  | U23: ='Summary-MMTCE'!U23*C_CO2 ->  | V23: ='Summary-MMTCE'!V23*C_CO2 ->  | W23: ='Summary-MMTCE'!W23*C_CO2 ->  | X23: ='Summary-MMTCE'!X23*C_CO2 ->  | Y23: ='Summary-MMTCE'!Y23*C_CO2 ->  | Z23: ='Summary-MMTCE'!Z23*C_CO2 ->  | AA23: ='Summary-MMTCE'!AA23*C_CO2 ->  | AB23: ='Summary-MMTCE'!AB23*C_CO2 ->  | AC23: ='Summary-MMTCE'!AC23*C_CO2 ->  | AD23: ='Summary-MMTCE'!AD23*C_CO2 ->  | AE23: ='Summary-MMTCE'!AE23*C_CO2 ->  | AF23: ='Summary-MMTCE'!AF23*C_CO2 ->  | AG23: ='Summary-MMTCE'!AG23*C_CO2 -> 
B24: Natural Gas | C24: ='Summary-MMTCE'!C24*C_CO2 ->  | D24: ='Summary-MMTCE'!D24*C_CO2 ->  | E24: ='Summary-MMTCE'!E24*C_CO2 ->  | F24: ='Summary-MMTCE'!F24*C_CO2 ->  | G24: ='Summary-MMTCE'!G24*C_CO2 ->  | H24: ='Summary-MMTCE'!H24*C_CO2 ->  | I24: ='Summary-MMTCE'!I24*C_CO2 ->  | J24: ='Summary-MMTCE'!J24*C_CO2 ->  | K24: ='Summary-MMTCE'!K24*C_CO2 ->  | L24: ='Summary-MMTCE'!L24*C_CO2 ->  | M24: ='Summary-MMTCE'!M24*C_CO2 ->  | N24: ='Summary-MMTCE'!N24*C_CO2 ->  | O24: ='Summary-MMTCE'!O24*C_CO2 ->  | P24: ='Summary-MMTCE'!P24*C_CO2 ->  | Q24: ='Summary-MMTCE'!Q24*C_CO2 ->  | R24: ='Summary-MMTCE'!R24*C_CO2 ->  | S24: ='Summary-MMTCE'!S24*C_CO2 ->  | T24: ='Summary-MMTCE'!T24*C_CO2 ->  | U24: ='Summary-MMTCE'!U24*C_CO2 ->  | V24: ='Summary-MMTCE'!V24*C_CO2 ->  | W24: ='Summary-MMTCE'!W24*C_CO2 ->  | X24: ='Summary-MMTCE'!X24*C_CO2 ->  | Y24: ='Summary-MMTCE'!Y24*C_CO2 ->  | Z24: ='Summary-MMTCE'!Z24*C_CO2 ->  | AA24: ='Summary-MMTCE'!AA24*C_CO2 ->  | AB24: ='Summary-MMTCE'!AB24*C_CO2 ->  | AC24: ='Summary-MMTCE'!AC24*C_CO2 ->  | AD24: ='Summary-MMTCE'!AD24*C_CO2 ->  | AE24: ='Summary-MMTCE'!AE24*C_CO2 ->  | AF24: ='Summary-MMTCE'!AF24*C_CO2 ->  | AG24: ='Summary-MMTCE'!AG24*C_CO2 -> 
B25: Other | C25: ='Summary-MMTCE'!C25*C_CO2 -> 0 | D25: ='Summary-MMTCE'!D25*C_CO2 -> 0 | E25: ='Summary-MMTCE'!E25*C_CO2 -> 0 | F25: ='Summary-MMTCE'!F25*C_CO2 -> 0 | G25: ='Summary-MMTCE'!G25*C_CO2 -> 0 | H25: ='Summary-MMTCE'!H25*C_CO2 -> 0 | I25: ='Summary-MMTCE'!I25*C_CO2 -> 0 | J25: ='Summary-MMTCE'!J25*C_CO2 -> 0 | K25: ='Summary-MMTCE'!K25*C_CO2 -> 0 | L25: ='Summary-MMTCE'!L25*C_CO2 -> 0 | M25: ='Summary-MMTCE'!M25*C_CO2 -> 0 | N25: ='Summary-MMTCE'!N25*C_CO2 -> 0 | O25: ='Summary-MMTCE'!O25*C_CO2 -> 0 | P25: ='Summary-MMTCE'!P25*C_CO2 -> 0 | Q25: ='Summary-MMTCE'!Q25*C_CO2 -> 0 | R25: ='Summary-MMTCE'!R25*C_CO2 -> 0 | S25: ='Summary-MMTCE'!S25*C_CO2 -> 0 | T25: ='Summary-MMTCE'!T25*C_CO2 -> 0 | U25: ='Summary-MMTCE'!U25*C_CO2 -> 0 | V25: ='Summary-MMTCE'!V25*C_CO2 -> 0 | W25: ='Summary-MMTCE'!W25*C_CO2 -> 0 | X25: ='Summary-MMTCE'!X25*C_CO2 -> 0 | Y25: ='Summary-MMTCE'!Y25*C_CO2 -> 0 | Z25: ='Summary-MMTCE'!Z25*C_CO2 -> 0 | AA25: ='Summary-MMTCE'!AA25*C_CO2 -> 0 | AB25: ='Summary-MMTCE'!AB25*C_CO2 -> 0 | AC25: ='Summary-MMTCE'!AC25*C_CO2 -> 0 | AD25: ='Summary-MMTCE'!AD25*C_CO2 -> 0 | AE25: ='Summary-MMTCE'!AE25*C_CO2 -> 0 | AF25: ='Summary-MMTCE'!AF25*C_CO2 -> 0 | AG25: ='Summary-MMTCE'!AG25*C_CO2 -> 0
B26: Electric Power | C26: ='Summary-MMTCE'!C26*C_CO2 ->  | D26: ='Summary-MMTCE'!D26*C_CO2 ->  | E26: ='Summary-MMTCE'!E26*C_CO2 ->  | F26: ='Summary-MMTCE'!F26*C_CO2 ->  | G26: ='Summary-MMTCE'!G26*C_CO2 ->  | H26: ='Summary-MMTCE'!H26*C_CO2 ->  | I26: ='Summary-MMTCE'!I26*C_CO2 ->  | J26: ='Summary-MMTCE'!J26*C_CO2 ->  | K26: ='Summary-MMTCE'!K26*C_CO2 ->  | L26: ='Summary-MMTCE'!L26*C_CO2 ->  | M26: ='Summary-MMTCE'!M26*C_CO2 ->  | N26: ='Summary-MMTCE'!N26*C_CO2 ->  | O26: ='Summary-MMTCE'!O26*C_CO2 ->  | P26: ='Summary-MMTCE'!P26*C_CO2 ->  | Q26: ='Summary-MMTCE'!Q26*C_CO2 ->  | R26: ='Summary-MMTCE'!R26*C_CO2 ->  | S26: ='Summary-MMTCE'!S26*C_CO2 ->  | T26: ='Summary-MMTCE'!T26*C_CO2 ->  | U26: ='Summary-MMTCE'!U26*C_CO2 ->  | V26: ='Summary-MMTCE'!V26*C_CO2 ->  | W26: ='Summary-MMTCE'!W26*C_CO2 ->  | X26: ='Summary-MMTCE'!X26*C_CO2 ->  | Y26: ='Summary-MMTCE'!Y26*C_CO2 ->  | Z26: ='Summary-MMTCE'!Z26*C_CO2 ->  | AA26: ='Summary-MMTCE'!AA26*C_CO2 ->  | AB26: ='Summary-MMTCE'!AB26*C_CO2 ->  | AC26: ='Summary-MMTCE'!AC26*C_CO2 ->  | AD26: ='Summary-MMTCE'!AD26*C_CO2 ->  | AE26: ='Summary-MMTCE'!AE26*C_CO2 ->  | AF26: ='Summary-MMTCE'!AF26*C_CO2 ->  | AG26: ='Summary-MMTCE'!AG26*C_CO2 -> 
B27: Coal | C27: ='Summary-MMTCE'!C27*C_CO2 ->  | D27: ='Summary-MMTCE'!D27*C_CO2 ->  | E27: ='Summary-MMTCE'!E27*C_CO2 ->  | F27: ='Summary-MMTCE'!F27*C_CO2 ->  | G27: ='Summary-MMTCE'!G27*C_CO2 ->  | H27: ='Summary-MMTCE'!H27*C_CO2 ->  | I27: ='Summary-MMTCE'!I27*C_CO2 ->  | J27: ='Summary-MMTCE'!J27*C_CO2 ->  | K27: ='Summary-MMTCE'!K27*C_CO2 ->  | L27: ='Summary-MMTCE'!L27*C_CO2 ->  | M27: ='Summary-MMTCE'!M27*C_CO2 ->  | N27: ='Summary-MMTCE'!N27*C_CO2 ->  | O27: ='Summary-MMTCE'!O27*C_CO2 ->  | P27: ='Summary-MMTCE'!P27*C_CO2 ->  | Q27: ='Summary-MMTCE'!Q27*C_CO2 ->  | R27: ='Summary-MMTCE'!R27*C_CO2 ->  | S27: ='Summary-MMTCE'!S27*C_CO2 ->  | T27: ='Summary-MMTCE'!T27*C_CO2 ->  | U27: ='Summary-MMTCE'!U27*C_CO2 ->  | V27: ='Summary-MMTCE'!V27*C_CO2 ->  | W27: ='Summary-MMTCE'!W27*C_CO2 ->  | X27: ='Summary-MMTCE'!X27*C_CO2 ->  | Y27: ='Summary-MMTCE'!Y27*C_CO2 ->  | Z27: ='Summary-MMTCE'!Z27*C_CO2 ->  | AA27: ='Summary-MMTCE'!AA27*C_CO2 ->  | AB27: ='Summary-MMTCE'!AB27*C_CO2 ->  | AC27: ='Summary-MMTCE'!AC27*C_CO2 ->  | AD27: ='Summary-MMTCE'!AD27*C_CO2 ->  | AE27: ='Summary-MMTCE'!AE27*C_CO2 ->  | AF27: ='Summary-MMTCE'!AF27*C_CO2 ->  | AG27: ='Summary-MMTCE'!AG27*C_CO2 -> 
B28: Petroleum | C28: ='Summary-MMTCE'!C28*C_CO2 ->  | D28: ='Summary-MMTCE'!D28*C_CO2 ->  | E28: ='Summary-MMTCE'!E28*C_CO2 ->  | F28: ='Summary-MMTCE'!F28*C_CO2 ->  | G28: ='Summary-MMTCE'!G28*C_CO2 ->  | H28: ='Summary-MMTCE'!H28*C_CO2 ->  | I28: ='Summary-MMTCE'!I28*C_CO2 ->  | J28: ='Summary-MMTCE'!J28*C_CO2 ->  | K28: ='Summary-MMTCE'!K28*C_CO2 ->  | L28: ='Summary-MMTCE'!L28*C_CO2 ->  | M28: ='Summary-MMTCE'!M28*C_CO2 ->  | N28: ='Summary-MMTCE'!N28*C_CO2 ->  | O28: ='Summary-MMTCE'!O28*C_CO2 ->  | P28: ='Summary-MMTCE'!P28*C_CO2 ->  | Q28: ='Summary-MMTCE'!Q28*C_CO2 ->  | R28: ='Summary-MMTCE'!R28*C_CO2 ->  | S28: ='Summary-MMTCE'!S28*C_CO2 ->  | T28: ='Summary-MMTCE'!T28*C_CO2 ->  | U28: ='Summary-MMTCE'!U28*C_CO2 ->  | V28: ='Summary-MMTCE'!V28*C_CO2 ->  | W28: ='Summary-MMTCE'!W28*C_CO2 ->  | X28: ='Summary-MMTCE'!X28*C_CO2 ->  | Y28: ='Summary-MMTCE'!Y28*C_CO2 ->  | Z28: ='Summary-MMTCE'!Z28*C_CO2 ->  | AA28: ='Summary-MMTCE'!AA28*C_CO2 ->  | AB28: ='Summary-MMTCE'!AB28*C_CO2 ->  | AC28: ='Summary-MMTCE'!AC28*C_CO2 ->  | AD28: ='Summary-MMTCE'!AD28*C_CO2 ->  | AE28: ='Summary-MMTCE'!AE28*C_CO2 ->  | AF28: ='Summary-MMTCE'!AF28*C_CO2 ->  | AG28: ='Summary-MMTCE'!AG28*C_CO2 -> 
B29: Natural Gas | C29: ='Summary-MMTCE'!C29*C_CO2 ->  | D29: ='Summary-MMTCE'!D29*C_CO2 ->  | E29: ='Summary-MMTCE'!E29*C_CO2 ->  | F29: ='Summary-MMTCE'!F29*C_CO2 ->  | G29: ='Summary-MMTCE'!G29*C_CO2 ->  | H29: ='Summary-MMTCE'!H29*C_CO2 ->  | I29: ='Summary-MMTCE'!I29*C_CO2 ->  | J29: ='Summary-MMTCE'!J29*C_CO2 ->  | K29: ='Summary-MMTCE'!K29*C_CO2 ->  | L29: ='Summary-MMTCE'!L29*C_CO2 ->  | M29: ='Summary-MMTCE'!M29*C_CO2 ->  | N29: ='Summary-MMTCE'!N29*C_CO2 ->  | O29: ='Summary-MMTCE'!O29*C_CO2 ->  | P29: ='Summary-MMTCE'!P29*C_CO2 ->  | Q29: ='Summary-MMTCE'!Q29*C_CO2 ->  | R29: ='Summary-MMTCE'!R29*C_CO2 ->  | S29: ='Summary-MMTCE'!S29*C_CO2 ->  | T29: ='Summary-MMTCE'!T29*C_CO2 ->  | U29: ='Summary-MMTCE'!U29*C_CO2 ->  | V29: ='Summary-MMTCE'!V29*C_CO2 ->  | W29: ='Summary-MMTCE'!W29*C_CO2 ->  | X29: ='Summary-MMTCE'!X29*C_CO2 ->  | Y29: ='Summary-MMTCE'!Y29*C_CO2 ->  | Z29: ='Summary-MMTCE'!Z29*C_CO2 ->  | AA29: ='Summary-MMTCE'!AA29*C_CO2 ->  | AB29: ='Summary-MMTCE'!AB29*C_CO2 ->  | AC29: ='Summary-MMTCE'!AC29*C_CO2 ->  | AD29: ='Summary-MMTCE'!AD29*C_CO2 ->  | AE29: ='Summary-MMTCE'!AE29*C_CO2 ->  | AF29: ='Summary-MMTCE'!AF29*C_CO2 ->  | AG29: ='Summary-MMTCE'!AG29*C_CO2 -> 
B30: Other | C30: ='Summary-MMTCE'!C30*C_CO2 -> 0 | D30: ='Summary-MMTCE'!D30*C_CO2 -> 0 | E30: ='Summary-MMTCE'!E30*C_CO2 -> 0 | F30: ='Summary-MMTCE'!F30*C_CO2 -> 0 | G30: ='Summary-MMTCE'!G30*C_CO2 -> 0 | H30: ='Summary-MMTCE'!H30*C_CO2 -> 0 | I30: ='Summary-MMTCE'!I30*C_CO2 -> 0 | J30: ='Summary-MMTCE'!J30*C_CO2 -> 0 | K30: ='Summary-MMTCE'!K30*C_CO2 -> 0 | L30: ='Summary-MMTCE'!L30*C_CO2 -> 0 | M30: ='Summary-MMTCE'!M30*C_CO2 -> 0 | N30: ='Summary-MMTCE'!N30*C_CO2 -> 0 | O30: ='Summary-MMTCE'!O30*C_CO2 -> 0 | P30: ='Summary-MMTCE'!P30*C_CO2 -> 0 | Q30: ='Summary-MMTCE'!Q30*C_CO2 -> 0 | R30: ='Summary-MMTCE'!R30*C_CO2 -> 0 | S30: ='Summary-MMTCE'!S30*C_CO2 -> 0 | T30: ='Summary-MMTCE'!T30*C_CO2 -> 0 | U30: ='Summary-MMTCE'!U30*C_CO2 -> 0 | V30: ='Summary-MMTCE'!V30*C_CO2 -> 0 | W30: ='Summary-MMTCE'!W30*C_CO2 -> 0 | X30: ='Summary-MMTCE'!X30*C_CO2 -> 0 | Y30: ='Summary-MMTCE'!Y30*C_CO2 -> 0 | Z30: ='Summary-MMTCE'!Z30*C_CO2 -> 0 | AA30: ='Summary-MMTCE'!AA30*C_CO2 -> 0 | AB30: ='Summary-MMTCE'!AB30*C_CO2 -> 0 | AC30: ='Summary-MMTCE'!AC30*C_CO2 -> 0 | AD30: ='Summary-MMTCE'!AD30*C_CO2 -> 0 | AE30: ='Summary-MMTCE'!AE30*C_CO2 -> 0 | AF30: ='Summary-MMTCE'!AF30*C_CO2 -> 0 | AG30: ='Summary-MMTCE'!AG30*C_CO2 -> 0
B31: International Bunker Fuels | C31: ='Summary-MMTCE'!C31*C_CO2 ->  | D31: ='Summary-MMTCE'!D31*C_CO2 ->  | E31: ='Summary-MMTCE'!E31*C_CO2 ->  | F31: ='Summary-MMTCE'!F31*C_CO2 ->  | G31: ='Summary-MMTCE'!G31*C_CO2 ->  | H31: ='Summary-MMTCE'!H31*C_CO2 ->  | I31: ='Summary-MMTCE'!I31*C_CO2 ->  | J31: ='Summary-MMTCE'!J31*C_CO2 ->  | K31: ='Summary-MMTCE'!K31*C_CO2 ->  | L31: ='Summary-MMTCE'!L31*C_CO2 ->  | M31: ='Summary-MMTCE'!M31*C_CO2 ->  | N31: ='Summary-MMTCE'!N31*C_CO2 ->  | O31: ='Summary-MMTCE'!O31*C_CO2 ->  | P31: ='Summary-MMTCE'!P31*C_CO2 ->  | Q31: ='Summary-MMTCE'!Q31*C_CO2 ->  | R31: ='Summary-MMTCE'!R31*C_CO2 ->  | S31: ='Summary-MMTCE'!S31*C_CO2 ->  | T31: ='Summary-MMTCE'!T31*C_CO2 ->  | U31: ='Summary-MMTCE'!U31*C_CO2 ->  | V31: ='Summary-MMTCE'!V31*C_CO2 ->  | W31: ='Summary-MMTCE'!W31*C_CO2 ->  | X31: ='Summary-MMTCE'!X31*C_CO2 ->  | Y31: ='Summary-MMTCE'!Y31*C_CO2 ->  | Z31: ='Summary-MMTCE'!Z31*C_CO2 ->  | AA31: ='Summary-MMTCE'!AA31*C_CO2 ->  | AB31: ='Summary-MMTCE'!AB31*C_CO2 ->  | AC31: ='Summary-MMTCE'!AC31*C_CO2 ->  | AD31: ='Summary-MMTCE'!AD31*C_CO2 ->  | AE31: ='Summary-MMTCE'!AE31*C_CO2 ->  | AF31: ='Summary-MMTCE'!AF31*C_CO2 ->  | AG31: ='Summary-MMTCE'!AG31*C_CO2 -> 
B32: Petroleum | C32: ='Summary-MMTCE'!C32*C_CO2 ->  | D32: ='Summary-MMTCE'!D32*C_CO2 ->  | E32: ='Summary-MMTCE'!E32*C_CO2 ->  | F32: ='Summary-MMTCE'!F32*C_CO2 ->  | G32: ='Summary-MMTCE'!G32*C_CO2 ->  | H32: ='Summary-MMTCE'!H32*C_CO2 ->  | I32: ='Summary-MMTCE'!I32*C_CO2 ->  | J32: ='Summary-MMTCE'!J32*C_CO2 ->  | K32: ='Summary-MMTCE'!K32*C_CO2 ->  | L32: ='Summary-MMTCE'!L32*C_CO2 ->  | M32: ='Summary-MMTCE'!M32*C_CO2 ->  | N32: ='Summary-MMTCE'!N32*C_CO2 ->  | O32: ='Summary-MMTCE'!O32*C_CO2 ->  | P32: ='Summary-MMTCE'!P32*C_CO2 ->  | Q32: ='Summary-MMTCE'!Q32*C_CO2 ->  | R32: ='Summary-MMTCE'!R32*C_CO2 ->  | S32: ='Summary-MMTCE'!S32*C_CO2 ->  | T32: ='Summary-MMTCE'!T32*C_CO2 ->  | U32: ='Summary-MMTCE'!U32*C_CO2 ->  | V32: ='Summary-MMTCE'!V32*C_CO2 ->  | W32: ='Summary-MMTCE'!W32*C_CO2 ->  | X32: ='Summary-MMTCE'!X32*C_CO2 ->  | Y32: ='Summary-MMTCE'!Y32*C_CO2 ->  | Z32: ='Summary-MMTCE'!Z32*C_CO2 ->  | AA32: ='Summary-MMTCE'!AA32*C_CO2 ->  | AB32: ='Summary-MMTCE'!AB32*C_CO2 ->  | AC32: ='Summary-MMTCE'!AC32*C_CO2 ->  | AD32: ='Summary-MMTCE'!AD32*C_CO2 ->  | AE32: ='Summary-MMTCE'!AE32*C_CO2 ->  | AF32: ='Summary-MMTCE'!AF32*C_CO2 ->  | AG32: ='Summary-MMTCE'!AG32*C_CO2 -> 
B33: TOTAL | C33: ='Summary-MMTCE'!C33*C_CO2 ->  | D33: ='Summary-MMTCE'!D33*C_CO2 ->  | E33: ='Summary-MMTCE'!E33*C_CO2 ->  | F33: ='Summary-MMTCE'!F33*C_CO2 ->  | G33: ='Summary-MMTCE'!G33*C_CO2 ->  | H33: ='Summary-MMTCE'!H33*C_CO2 ->  | I33: ='Summary-MMTCE'!I33*C_CO2 ->  | J33: ='Summary-MMTCE'!J33*C_CO2 ->  | K33: ='Summary-MMTCE'!K33*C_CO2 ->  | L33: ='Summary-MMTCE'!L33*C_CO2 ->  | M33: ='Summary-MMTCE'!M33*C_CO2 ->  | N33: ='Summary-MMTCE'!N33*C_CO2 ->  | O33: ='Summary-MMTCE'!O33*C_CO2 ->  | P33: ='Summary-MMTCE'!P33*C_CO2 ->  | Q33: ='Summary-MMTCE'!Q33*C_CO2 ->  | R33: ='Summary-MMTCE'!R33*C_CO2 ->  | S33: ='Summary-MMTCE'!S33*C_CO2 ->  | T33: ='Summary-MMTCE'!T33*C_CO2 ->  | U33: ='Summary-MMTCE'!U33*C_CO2 ->  | V33: ='Summary-MMTCE'!V33*C_CO2 ->  | W33: ='Summary-MMTCE'!W33*C_CO2 ->  | X33: ='Summary-MMTCE'!X33*C_CO2 ->  | Y33: ='Summary-MMTCE'!Y33*C_CO2 ->  | Z33: ='Summary-MMTCE'!Z33*C_CO2 ->  | AA33: ='Summary-MMTCE'!AA33*C_CO2 ->  | AB33: ='Summary-MMTCE'!AB33*C_CO2 ->  | AC33: ='Summary-MMTCE'!AC33*C_CO2 ->  | AD33: ='Summary-MMTCE'!AD33*C_CO2 ->  | AE33: ='Summary-MMTCE'!AE33*C_CO2 ->  | AF33: ='Summary-MMTCE'!AF33*C_CO2 ->  | AG33: ='Summary-MMTCE'!AG33*C_CO2 -> 
B34: Coal | C34: ='Summary-MMTCE'!C34*C_CO2 ->  | D34: ='Summary-MMTCE'!D34*C_CO2 ->  | E34: ='Summary-MMTCE'!E34*C_CO2 ->  | F34: ='Summary-MMTCE'!F34*C_CO2 ->  | G34: ='Summary-MMTCE'!G34*C_CO2 ->  | H34: ='Summary-MMTCE'!H34*C_CO2 ->  | I34: ='Summary-MMTCE'!I34*C_CO2 ->  | J34: ='Summary-MMTCE'!J34*C_CO2 ->  | K34: ='Summary-MMTCE'!K34*C_CO2 ->  | L34: ='Summary-MMTCE'!L34*C_CO2 ->  | M34: ='Summary-MMTCE'!M34*C_CO2 ->  | N34: ='Summary-MMTCE'!N34*C_CO2 ->  | O34: ='Summary-MMTCE'!O34*C_CO2 ->  | P34: ='Summary-MMTCE'!P34*C_CO2 ->  | Q34: ='Summary-MMTCE'!Q34*C_CO2 ->  | R34: ='Summary-MMTCE'!R34*C_CO2 ->  | S34: ='Summary-MMTCE'!S34*C_CO2 ->  | T34: ='Summary-MMTCE'!T34*C_CO2 ->  | U34: ='Summary-MMTCE'!U34*C_CO2 ->  | V34: ='Summary-MMTCE'!V34*C_CO2 ->  | W34: ='Summary-MMTCE'!W34*C_CO2 ->  | X34: ='Summary-MMTCE'!X34*C_CO2 ->  | Y34: ='Summary-MMTCE'!Y34*C_CO2 ->  | Z34: ='Summary-MMTCE'!Z34*C_CO2 ->  | AA34: ='Summary-MMTCE'!AA34*C_CO2 ->  | AB34: ='Summary-MMTCE'!AB34*C_CO2 ->  | AC34: ='Summary-MMTCE'!AC34*C_CO2 ->  | AD34: ='Summary-MMTCE'!AD34*C_CO2 ->  | AE34: ='Summary-MMTCE'!AE34*C_CO2 ->  | AF34: ='Summary-MMTCE'!AF34*C_CO2 ->  | AG34: ='Summary-MMTCE'!AG34*C_CO2 -> 
B35: Petroleum | C35: ='Summary-MMTCE'!C35*C_CO2 ->  | D35: ='Summary-MMTCE'!D35*C_CO2 ->  | E35: ='Summary-MMTCE'!E35*C_CO2 ->  | F35: ='Summary-MMTCE'!F35*C_CO2 ->  | G35: ='Summary-MMTCE'!G35*C_CO2 ->  | H35: ='Summary-MMTCE'!H35*C_CO2 ->  | I35: ='Summary-MMTCE'!I35*C_CO2 ->  | J35: ='Summary-MMTCE'!J35*C_CO2 ->  | K35: ='Summary-MMTCE'!K35*C_CO2 ->  | L35: ='Summary-MMTCE'!L35*C_CO2 ->  | M35: ='Summary-MMTCE'!M35*C_CO2 ->  | N35: ='Summary-MMTCE'!N35*C_CO2 ->  | O35: ='Summary-MMTCE'!O35*C_CO2 ->  | P35: ='Summary-MMTCE'!P35*C_CO2 ->  | Q35: ='Summary-MMTCE'!Q35*C_CO2 ->  | R35: ='Summary-MMTCE'!R35*C_CO2 ->  | S35: ='Summary-MMTCE'!S35*C_CO2 ->  | T35: ='Summary-MMTCE'!T35*C_CO2 ->  | U35: ='Summary-MMTCE'!U35*C_CO2 ->  | V35: ='Summary-MMTCE'!V35*C_CO2 ->  | W35: ='Summary-MMTCE'!W35*C_CO2 ->  | X35: ='Summary-MMTCE'!X35*C_CO2 ->  | Y35: ='Summary-MMTCE'!Y35*C_CO2 ->  | Z35: ='Summary-MMTCE'!Z35*C_CO2 ->  | AA35: ='Summary-MMTCE'!AA35*C_CO2 ->  | AB35: ='Summary-MMTCE'!AB35*C_CO2 ->  | AC35: ='Summary-MMTCE'!AC35*C_CO2 ->  | AD35: ='Summary-MMTCE'!AD35*C_CO2 ->  | AE35: ='Summary-MMTCE'!AE35*C_CO2 ->  | AF35: ='Summary-MMTCE'!AF35*C_CO2 ->  | AG35: ='Summary-MMTCE'!AG35*C_CO2 -> 
B36: Natural Gas | C36: ='Summary-MMTCE'!C36*C_CO2 ->  | D36: ='Summary-MMTCE'!D36*C_CO2 ->  | E36: ='Summary-MMTCE'!E36*C_CO2 ->  | F36: ='Summary-MMTCE'!F36*C_CO2 ->  | G36: ='Summary-MMTCE'!G36*C_CO2 ->  | H36: ='Summary-MMTCE'!H36*C_CO2 ->  | I36: ='Summary-MMTCE'!I36*C_CO2 ->  | J36: ='Summary-MMTCE'!J36*C_CO2 ->  | K36: ='Summary-MMTCE'!K36*C_CO2 ->  | L36: ='Summary-MMTCE'!L36*C_CO2 ->  | M36: ='Summary-MMTCE'!M36*C_CO2 ->  | N36: ='Summary-MMTCE'!N36*C_CO2 ->  | O36: ='Summary-MMTCE'!O36*C_CO2 ->  | P36: ='Summary-MMTCE'!P36*C_CO2 ->  | Q36: ='Summary-MMTCE'!Q36*C_CO2 ->  | R36: ='Summary-MMTCE'!R36*C_CO2 ->  | S36: ='Summary-MMTCE'!S36*C_CO2 ->  | T36: ='Summary-MMTCE'!T36*C_CO2 ->  | U36: ='Summary-MMTCE'!U36*C_CO2 ->  | V36: ='Summary-MMTCE'!V36*C_CO2 ->  | W36: ='Summary-MMTCE'!W36*C_CO2 ->  | X36: ='Summary-MMTCE'!X36*C_CO2 ->  | Y36: ='Summary-MMTCE'!Y36*C_CO2 ->  | Z36: ='Summary-MMTCE'!Z36*C_CO2 ->  | AA36: ='Summary-MMTCE'!AA36*C_CO2 ->  | AB36: ='Summary-MMTCE'!AB36*C_CO2 ->  | AC36: ='Summary-MMTCE'!AC36*C_CO2 ->  | AD36: ='Summary-MMTCE'!AD36*C_CO2 ->  | AE36: ='Summary-MMTCE'!AE36*C_CO2 ->  | AF36: ='Summary-MMTCE'!AF36*C_CO2 ->  | AG36: ='Summary-MMTCE'!AG36*C_CO2 -> 
B37: Other | C37: ='Summary-MMTCE'!C37*C_CO2 -> 0 | D37: ='Summary-MMTCE'!D37*C_CO2 -> 0 | E37: ='Summary-MMTCE'!E37*C_CO2 -> 0 | F37: ='Summary-MMTCE'!F37*C_CO2 -> 0 | G37: ='Summary-MMTCE'!G37*C_CO2 -> 0 | H37: ='Summary-MMTCE'!H37*C_CO2 -> 0 | I37: ='Summary-MMTCE'!I37*C_CO2 -> 0 | J37: ='Summary-MMTCE'!J37*C_CO2 -> 0 | K37: ='Summary-MMTCE'!K37*C_CO2 -> 0 | L37: ='Summary-MMTCE'!L37*C_CO2 -> 0 | M37: ='Summary-MMTCE'!M37*C_CO2 -> 0 | N37: ='Summary-MMTCE'!N37*C_CO2 -> 0 | O37: ='Summary-MMTCE'!O37*C_CO2 -> 0 | P37: ='Summary-MMTCE'!P37*C_CO2 -> 0 | Q37: ='Summary-MMTCE'!Q37*C_CO2 -> 0 | R37: ='Summary-MMTCE'!R37*C_CO2 -> 0 | S37: ='Summary-MMTCE'!S37*C_CO2 -> 0 | T37: ='Summary-MMTCE'!T37*C_CO2 -> 0 | U37: ='Summary-MMTCE'!U37*C_CO2 -> 0 | V37: ='Summary-MMTCE'!V37*C_CO2 -> 0 | W37: ='Summary-MMTCE'!W37*C_CO2 -> 0 | X37: ='Summary-MMTCE'!X37*C_CO2 -> 0 | Y37: ='Summary-MMTCE'!Y37*C_CO2 -> 0 | Z37: ='Summary-MMTCE'!Z37*C_CO2 -> 0 | AA37: ='Summary-MMTCE'!AA37*C_CO2 -> 0 | AB37: ='Summary-MMTCE'!AB37*C_CO2 -> 0 | AC37: ='Summary-MMTCE'!AC37*C_CO2 -> 0 | AD37: ='Summary-MMTCE'!AD37*C_CO2 -> 0 | AE37: ='Summary-MMTCE'!AE37*C_CO2 -> 0 | AF37: ='Summary-MMTCE'!AF37*C_CO2 -> 0 | AG37: ='Summary-MMTCE'!AG37*C_CO2 -> 0
C39: 1 | D39: =IF(ISERROR(IF(D33=0,0,COLUMN()-2)),0,IF(D33=0,0,COLUMN()-2)) -> 0 | E39: =IF(ISERROR(IF(E33=0,0,COLUMN()-2)),0,IF(E33=0,0,COLUMN()-2)) -> 0 | F39: 0 | G39: 0 | H39: 0 | I39: 0 | J39: 0 | K39: 0 | L39: 0 | M39: 0 | N39: 0 | O39: 0 | P39: 0 | Q39: 0 | R39: 0 | S39: 0 | T39: 0 | U39: 0 | V39: 0 | W39: 0 | X39: 0 | Y39: 0 | Z39: 0 | AA39: 0 | AB39: 0 | AC39: 0 | AD39: 0 | AE39: 0 | AF39: 0 | AG39: 0
C40: =IF(C39=0,0,C5) -> 1990 | D40: =IF(D39=0,0,D5) -> 0 | E40: 0 | F40: 0 | G40: 0 | H40: 0 | I40: 0 | J40: 0 | K40: 0 | L40: 0 | M40: 0 | N40: 0 | O40: 0 | P40: 0 | Q40: 0 | R40: 0 | S40: 0 | T40: 0 | U40: 0 | V40: 0 | W40: 0 | X40: 0 | Y40: 0 | Z40: 0 | AA40: 0 | AB40: 0 | AC40: 0 | AD40: 0 | AE40: 0 | AF40: 0 | AG40: 0
Z42: ="Emissions by Fuel Type, 1990-"&MAX($C$40:$AG$40) -> Emissions by Fuel Type, 1990-1990
Z43: ="Emissions by Sector, 1990-"&MAX($C$40:$AG$40) -> Emissions by Sector, 1990-1990
Z44: ="Transportation Emissions by Fuel Type, 1990-"&MAX($C$40:$AG$40) -> Transportation Emissions by Fuel Type, 1990-1990
Z45: ="Electric Power Emissions by Fuel Type, 1990-"&MAX($C$40:$AG$40) -> Electric Power Emissions by Fuel Type, 1990-1990
Z46: ="Residential Emissions by Fuel Type, 1990-"&MAX($C$40:$AG$40) -> Residential Emissions by Fuel Type, 1990-1990
Z47: ="Commercial Emissions by Fuel Type, 1990-"&MAX($C$40:$AG$40) -> Commercial Emissions by Fuel Type, 1990-1990
Z48: ="Industrial Emissions by Fuel Type, 1990-"&MAX($C$40:$AG$40) -> Industrial Emissions by Fuel Type, 1990-1990

Sheet Summary-MMTCE (hidden)
A1: ="10. "&'List Data'!E3&" Emissions Summary (MMTCE)" -> 10. Select a State . . . Emissions Summary (MMTCE)
B3: =Tracker!B13 -> Emissions were not calculated for the following sectors: Residential, Commercial, Industrial, Transportation, Electric Power, and International Bunker Fuels.
B5: MMTCE | C5: 1990 | D5: 1991 | E5: 1992 | F5: 1993 | G5: 1994 | H5: 1995 | I5: 1996 | J5: 1997 | K5: 1998 | L5: 1999 | M5: 2000 | N5: 2001 | O5: 2002 | P5: 2003 | Q5: 2004 | R5: 2005 | S5: 2006 | T5: 2007 | U5: 2008 | V5: 2009 | W5: 2010 | X5: 2011 | Y5: 2012 | Z5: 2013 | AA5: 2014 | AB5: 2015 | AC5: 2016 | AD5: 2017 | AE5: 2018 | AF5: 2019 | AG5: 2020
B6: Residential | C6: =SUM(C7:C9) ->  | D6: =SUM(D7:D9) -> 
B7: Coal | C7: =Residential!J7 ->  | D7: =Residential!J18 ->  | E7: =Residential!J29 ->  | F7: =Residential!J40 ->  | G7: =Residential!J51 ->  | H7: =Residential!J62 ->  | I7: =Residential!J73 ->  | J7: =Residential!J84 ->  | K7: =Residential!J95 ->  | L7: =Residential!J106 ->  | M7: =Residential!J117 ->  | N7: =Residential!J128 ->  | O7: =Residential!J139 ->  | P7: =Residential!J150 ->  | Q7: =Residential!J161 ->  | R7: =Residential!J172 ->  | S7: =Residential!J183 ->  | T7: =Residential!J194 ->  | U7: =Residential!J205 ->  | V7: =Residential!J216 ->  | W7: =Residential!J227 ->  | X7: =Residential!J238 ->  | Y7: =Residential!J249 ->  | Z7: =Residential!J260 ->  | AA7: =Residential!J271 ->  | AB7: =Residential!J282 ->  | AC7: =Residential!J293 ->  | AD7: =Residential!J304 ->  | AE7: =Residential!J315 ->  | AF7: =Residential!J326 ->  | AG7: =Residential!J337 -> 
B8: Petroleum | C8: =SUM(Residential!J8:J10) ->  | D8: =SUM(Residential!J19:J21) ->  | E8: =SUM(Residential!J30:J32) ->  | F8: =SUM(Residential!J41:J43) ->  | G8: =SUM(Residential!J52:J54) ->  | H8: =SUM(Residential!J63:J65) ->  | I8: =SUM(Residential!J74:J76) ->  | J8: =SUM(Residential!J85:J87) ->  | K8: =SUM(Residential!J96:J98) ->  | L8: =SUM(Residential!J107:J109) ->  | M8: =SUM(Residential!J118:J120) ->  | N8: =SUM(Residential!J129:J131) ->  | O8: =SUM(Residential!J140:J142) ->  | P8: =SUM(Residential!J151:J153) ->  | Q8: =SUM(Residential!J162:J164) ->  | R8: =SUM(Residential!J173:J175) ->  | S8: =SUM(Residential!J184:J186) ->  | T8: =SUM(Residential!J195:J197) ->  | U8: =SUM(Residential!J206:J208) ->  | V8: =SUM(Residential!J217:J219) ->  | W8: =SUM(Residential!J228:J230) ->  | X8: =SUM(Residential!J239:J241) ->  | Y8: =SUM(Residential!J250:J252) ->  | Z8: =SUM(Residential!J261:J263) ->  | AA8: =SUM(Residential!J272:J274) ->  | AB8: =SUM(Residential!J283:J285) ->  | AC8: =SUM(Residential!J294:J296) ->  | AD8: =SUM(Residential!J305:J307) ->  | AE8: =SUM(Residential!J316:J318) ->  | AF8: =SUM(Residential!J327:J329) ->  | AG8: =SUM(Residential!J338:J340) -> 
B9: Natural Gas | C9: =Residential!J11 ->  | D9: =Residential!J22 ->  | E9: =Residential!J33 ->  | F9: =Residential!J44 ->  | G9: =Residential!J55 ->  | H9: =Residential!J66 ->  | I9: =Residential!J77 ->  | J9: =Residential!J88 ->  | K9: =Residential!J99 ->  | L9: =Residential!J110 ->  | M9: =Residential!J121 ->  | N9: =Residential!J132 ->  | O9: =Residential!J143 ->  | P9: =Residential!J154 ->  | Q9: =Residential!J165 ->  | R9: =Residential!J176 ->  | S9: =Residential!J187 ->  | T9: =Residential!J198 ->  | U9: =Residential!J209 ->  | V9: =Residential!J220 ->  | W9: =Residential!J231 ->  | X9: =Residential!J242 ->  | Y9: =Residential!J253 ->  | Z9: =Residential!J264 ->  | AA9: =Residential!J275 ->  | AB9: =Residential!J286 ->  | AC9: =Residential!J297 ->  | AD9: =Residential!J308 ->  | AE9: =Residential!J319 ->  | AF9: =Residential!J330 ->  | AG9: =Residential!J341 -> 
B10: Other | C10: =Residential!J12 -> 0 | D10: =Residential!J23 -> 0 | E10: =Residential!J34 -> 0 | F10: =Residential!J45 -> 0 | G10: =Residential!J56 -> 0 | H10: =Residential!J67 -> 0 | I10: =Residential!J78 -> 0 | J10: =Residential!J89 -> 0 | K10: =Residential!J100 -> 0 | L10: =Residential!J111 -> 0 | M10: =Residential!J122 -> 0 | N10: =Residential!J133 -> 0 | O10: =Residential!J144 -> 0 | P10: =Residential!J155 -> 0 | Q10: =Residential!J166 -> 0 | R10: =Residential!J177 -> 0 | S10: =Residential!J188 -> 0 | T10: =Residential!J199 -> 0 | U10: =Residential!J210 -> 0 | V10: =Residential!J221 -> 0 | W10: =Residential!J232 -> 0 | X10: =Residential!J243 -> 0 | Y10: =Residential!J254 -> 0 | Z10: =Residential!J265 -> 0 | AA10: =Residential!J276 -> 0 | AB10: =Residential!J287 -> 0 | AC10: =Residential!J298 -> 0 | AD10: =Residential!J309 -> 0 | AE10: =Residential!J320 -> 0 | AF10: =Residential!J331 -> 0 | AG10: =Residential!J342 -> 0
B11: Commercial | C11: =SUM(C12:C14) ->  | D11: =SUM(D12:D14) -> 
B12: Coal | C12: =Commercial!J7 ->  | D12: =Commercial!J20 ->  | E12: =Commercial!J33 ->  | F12: =Commercial!J46 ->  | G12: =Commercial!J59 ->  | H12: =Commercial!J72 ->  | I12: =Commercial!J85 ->  | J12: =Commercial!J98 ->  | K12: =Commercial!J111 ->  | L12: =Commercial!J124 ->  | M12: =Commercial!J137 ->  | N12: =Commercial!J150 ->  | O12: =Commercial!J163 ->  | P12: =Commercial!J176 ->  | Q12: =Commercial!J189 ->  | R12: =Commercial!J202 ->  | S12: =Commercial!J215 ->  | T12: =Commercial!J228 ->  | U12: =Commercial!J241 ->  | V12: =Commercial!J254 ->  | W12: =Commercial!J267 ->  | X12: =Commercial!J280 ->  | Y12: =Commercial!J293 ->  | Z12: =Commercial!J306 ->  | AA12: =Commercial!J319 ->  | AB12: =Commercial!J332 ->  | AC12: =Commercial!J345 ->  | AD12: =Commercial!J358 ->  | AE12: =Commercial!J371 ->  | AF12: =Commercial!J384 ->  | AG12: =Commercial!J397 -> 
B13: Petroleum | C13: =SUM(Commercial!J8:J12) ->  | D13: =SUM(Commercial!J21:J25) ->  | E13: =SUM(Commercial!J34:J38) ->  | F13: =SUM(Commercial!J47:J51) ->  | G13: =SUM(Commercial!J60:J64) ->  | H13: =SUM(Commercial!J73:J77) ->  | I13: =SUM(Commercial!J86:J90) ->  | J13: =SUM(Commercial!J99:J103) ->  | K13: =SUM(Commercial!J112:J116) ->  | L13: =SUM(Commercial!J125:J129) ->  | M13: =SUM(Commercial!J138:J142) ->  | N13: =SUM(Commercial!J151:J155) ->  | O13: =SUM(Commercial!J164:J168) ->  | P13: =SUM(Commercial!J177:J181) ->  | Q13: =SUM(Commercial!J190:J194) ->  | R13: =SUM(Commercial!J203:J207) ->  | S13: =SUM(Commercial!J216:J220) ->  | T13: =SUM(Commercial!J229:J233) ->  | U13: =SUM(Commercial!J242:J246) ->  | V13: =SUM(Commercial!J255:J259) ->  | W13: =SUM(Commercial!J268:J272) ->  | X13: =SUM(Commercial!J281:J285) ->  | Y13: =SUM(Commercial!J294:J298) ->  | Z13: =SUM(Commercial!J307:J311) ->  | AA13: =SUM(Commercial!J320:J324) ->  | AB13: =SUM(Commercial!J333:J337) ->  | AC13: =SUM(Commercial!J346:J350) ->  | AD13: =SUM(Commercial!J359:J363) ->  | AE13: =SUM(Commercial!J372:J376) ->  | AF13: =SUM(Commercial!J385:J389) ->  | AG13: =SUM(Commercial!J398:J402) -> 
B14: Natural Gas | C14: =Commercial!J13 ->  | D14: =Commercial!J26 ->  | E14: =Commercial!J39 ->  | F14: =Commercial!J52 ->  | G14: =Commercial!J65 ->  | H14: =Commercial!J78 ->  | I14: =Commercial!J91 ->  | J14: =Commercial!J104 ->  | K14: =Commercial!J117 ->  | L14: =Commercial!J130 ->  | M14: =Commercial!J143 ->  | N14: =Commercial!J156 ->  | O14: =Commercial!J169 ->  | P14: =Commercial!J182 ->  | Q14: =Commercial!J195 ->  | R14: =Commercial!J208 ->  | S14: =Commercial!J221 ->  | T14: =Commercial!J234 ->  | U14: =Commercial!J247 ->  | V14: =Commercial!J260 ->  | W14: =Commercial!J273 ->  | X14: =Commercial!J286 ->  | Y14: =Commercial!J299 ->  | Z14: =Commercial!J312 ->  | AA14: =Commercial!J325 ->  | AB14: =Commercial!J338 ->  | AC14: =Commercial!J351 ->  | AD14: =Commercial!J364 ->  | AE14: =Commercial!J377 ->  | AF14: =Commercial!J390 ->  | AG14: =Commercial!J403 -> 
